Workbook

Sheet CAPA
B1: SPARTA | C1: Ver. | R1: DF | S1: Sudeste/Centro Oeste
B2: Helenístico LX | C2: 0.93 | M2: =C23 -> 155 | N2: =C22 -> 6587
C3: Macro Ver.
C4: 80.61
B6: ESE | C6: =VLOOKUP(B6,TabEmpresas[#Data],5,FALSE) -> NÃO SUPRIDA | L6: CodigoSamp | M6: Empresa | N6: Nome Completo | O6: IdSgtAg | P6: CodigoSamp | Q6: Supridora/suprida | R6: Financeiro 243 (TUSD) | S6: Databse Fin. 243
B7: =VLOOKUP(B6,TabEmpresas[#Data],2,FALSE) -> ESE - Energisa Sergipe - Distribuidora de Energia S.A. | C7: Reajuste | G7: Últ. Atualização | L7: 396 | M7: AES SUL | N7: AES-SUL - AES SUL Distribuidora Gaúcha de Energia S/A. | O7: 101 | P7: 396 | Q7: NÃO SUPRIDA
B8: CÓDIGO DA EMPRESA | C8: ="D" & TEXT(C23-100,"00") -> D55 | F8: Info iniciais | G8: 2022-03-07T14:05:40 | L8: 7019 | M8: AME | N8: Amazonas Distribuidora de Energia S/A | O8: 102 | P8: 7019 | Q8: NÃO SUPRIDA
B9: Data do Reajuste/Revisão Anterior | C9: 44308 | F9: Energia do ano anterior (CM compra, MWh Mercado, R$ Mercado) | L9: 383 | M9: AMPLA | N9: AMPLA - Ampla Energia e Serviços S/A | O9: 103 | P9: 383 | Q9: NÃO SUPRIDA
B10: Data de Reajuste/Revisão em Processamento | C10: 44673 | F10: Perda de RB /Perdas Regulatórias /TUSDgONS-RB | L10: 391 | M10: BANDEIRANTE | N10: BANDEIRANTE - Bandeirante Energia S/A. | O10: 104 | P10: 391 | Q10: NÃO SUPRIDA
F11: Financeiros ano anterior (CVA 5º dia útil, RTE restante) | L11: 370 | M11: BOAVISTA | N11: Boa Vista - Boa Vista Energia S/A | O11: 105 | P11: 370 | Q11: NÃO SUPRIDA
F12: Encargos ano anterior (não RTE) | L12: 386 | M12: BRAGANTINA | N12: BRAGANTINA- Empresa Elétrica Bragantina S/A. | O12: 142 | P12: 386 | Q12: NÃO SUPRIDA
F13: Dados da Revisão, Fator X e DecFec | L13: 5216 | M13: CAIUA | N13: CAIUÁ-D - Caiuá Distribuição de Energia S/A | O13: 106 | P13: 5216 | Q13: NÃO SUPRIDA
F14: Previsão de Subsidios dos Processos Anteriores | L14: 31 | M14: CEA | N14: CEA - Companhia de Eletricidade do Amapá | O14: 107 | P14: 31 | Q14: NÃO SUPRIDA
B15: Período de Referencia final | C15: =DATE(YEAR($C$10),MONTH($C$10)-1,1) -> 44621 | F15: Conexão ano anterior | L15: 44 | M15: CEAL | N15: CEAL - Companhia Energética de Alagoas | O15: 108 | P15: 44 | Q15: NÃO SUPRIDA
B16: Período de Referencia inicial | C16: =DATE(YEAR($C$10)-1,MONTH($C$10),1) -> 44287 | F16: Energia (CCEAR, Bil., Itaipu) | G16: 2022-04-12T17:05:27 | L16: 5160 | M16: CEB | N16: CEB-DIS - CEB Distribuição S/A | O16: 109 | P16: 5160 | Q16: NÃO SUPRIDA
B17: Índice IGPM na data Revisão/Reajuste | C17: =VLOOKUP(C15,Índices!$B$7:$F$500,2,FALSE) -> 1161.418 | F17: CCEAR | L17: 5707 | M17: CEEE | N17: CEEE-D - Companhia Estadual de Distribuição de Energia Elétrica | O17: 110 | P17: 5707 | Q17: NÃO SUPRIDA
B18: Índice IPCA na data Revisão/Reajuste | C18: =VLOOKUP(C15,Índices!$B$7:$F$500,3,FALSE) -> 6315.93 | F18: Bilateral | L18: 5697 | M18: CELESC | N18: CELESC-DIS - Celesc Distribuição S.A. | O18: 111 | P18: 5697 | Q18: NÃO SUPRIDA
B19: IGPM para o período de Referência | C19: =VLOOKUP(DATE(YEAR($C$10),MONTH($C$10)-1,1),Índices!$B$7:$F$500,2,FALSE)/VLOOKUP(DATE(YEAR($C$9),MONTH($C$9)-1,1),Índices!$B$7:$F$500,2,FALSE)-1 -> 0.1477052181 | F19: Itaipu (Energia, Transporte, MUST) | L19: 6072 | M19: CELG | N19: CELG-D - Celg Distribuição S.A. | O19: 112 | P19: 6072 | Q19: NÃO SUPRIDA
B20: IPCA para o período de Referência | C20: =VLOOKUP(DATE(YEAR(C10),MONTH(C10)-1,1),Índices!$B$7:$F$500,3,FALSE)/VLOOKUP(DATE(YEAR($C$9),MONTH($C$9)-1,1),Índices!$B$7:$F$500,3,FALSE)-1 -> 0.1129941213 | F20: Cotas Lei/Angra | L20: 371 | M20: CELPA | N20: CELPA - Centrais Elétricas do Pará S/A. | O20: 113 | P20: 371 | Q20: NÃO SUPRIDA
B21: Dados Gerenciais | F21: Encargos DRP | G21: 2022-03-07T14:07:12 | L21: 43 | M21: CELPE | N21: CELPE - Companhia Energética de Pernambuco | O21: 114 | P21: 43 | Q21: NÃO SUPRIDA
B22: IdAgente | C22: =VLOOKUP(B6,TabEmpresas[#Data],4,FALSE) -> 6587 | F22: Indicadores Econômicos / Dólar | G22: 2022-04-08T11:32:27 | L22: 32 | M22: CELTINS | N22: CELTINS - Companhia de Energia Elétrica do Estado do Tocantins | O22: 115 | P22: 32 | Q22: NÃO SUPRIDA
B23: ID Concessão | C23: =VLOOKUP(B6,TabEmpresas[#Data],3,FALSE) -> 155 | F23: Tudo de Mercado | G23: 2022-03-30T11:44:46 | L23: 37 | M23: CEMAR | N23: CEMAR - Companhia Energética do Maranhão | O23: 116 | P23: 37 | Q23: NÃO SUPRIDA
F24: Rede Básica e Conexão | G24: 2022-03-30T11:46:49 | L24: 405 | M24: CEMAT | N24: CEMAT - Centrais Elétricas Matogrossenses S/A. | O24: 117 | P24: 405 | Q24: NÃO SUPRIDA
B25: Quadro para vínculos | F25: Histórico de Tarifas B1 Residencial | G25: 2022-03-22T10:13:30 | L25: 4950 | M25: CEMIG | N25: CEMIG-D - CEMIG Distribuição S/A | O25: 118 | P25: 4950 | Q25: NÃO SUPRIDA
B26: Descrição | C26: valor | F26: CVA | G26: 2022-04-08T10:31:18 | L26: 38 | M26: CEPISA | N26: CEPISA - Companhia Energética do Piauí | O26: 119 | P26: 38 | Q26: NÃO SUPRIDA
B27: (Exemplo) Efeito Consumidor Geral | C27: =LnkTxtEfeito -> 0.1624356761 | F27: CUSD | L27: 369 | M27: CERON | N27: CERON - Centrais Elétricas de Rondônia S/A. | O27: 120 | P27: 369 | Q27: NÃO SUPRIDA
B28: Contrato de concessão | C28: 007/1997 | L28: 28 | M28: CERR | N28: CERR - Companhia Energética de Roraima | O28: 121 | P28: 28 | Q28: NÃO SUPRIDA
C29: 48500.004956/2021-17 | L29: 103 | M29: CHESP | N29: CHESP - Companhia Hidroelétrica São Patrício | O29: 123 | P29: 103 | Q29: SUPRIDA
B30: Período de Referencia | C30: =TEXT(C16,"mmmm/aaaa")& " a "&TEXT(C15,"mmmm/aaaa") -> abril/2021 a março/2022 | L30: 75 | M30: CNEE | N30: CNEE - Companhia Nacional de Energia Elétrica | O30: 127 | P30: 75 | Q30: NÃO SUPRIDA
B31: Neutralidade Total | C31: =SUM(Financeiros!D28:D35) -> -817867.2623 | L31: 82 | M31: COCEL | N31: COCEL - Companhia Campolarguense de Energia | O31: 128 | P31: 82 | Q31: SUPRIDA
B32: CVA Saldo a Compensar | C32: =SUM(Financeiros!D19:D27) -> 143550236.5 | L32: 47 | M32: COELBA | N32: COELBA - Companhia de Eletricidade do Estado da Bahia | O32: 129 | P32: 47 | Q32: NÃO SUPRIDA
B33: Reversão CDE | C33: =SUM(Financeiros!D79:D80) -> 0 | L33: 39 | M33: COELCE | N33: COELCE - Companhia Energética do Ceará | O33: 130 | P33: 39 | Q33: NÃO SUPRIDA
L34: 2904 | M34: COOPERALIANÇA | N34: COOPERALIANÇA - Cooperativa Aliança | O34: 131 | P34: 2904 | Q34: SUPRIDA
L35: 2866 | M35: COPEL | N35: COPEL-DIS - Copel Distribuição S/A | O35: 132 | P35: 2866 | Q35: NÃO SUPRIDA
L36: 40 | M36: COSERN | N36: COSERN - Companhia Energética do Rio Grande do Norte | O36: 133 | P36: 40 | Q36: NÃO SUPRIDA
L37: 69 | M37: CPFL Jaguari | N37: CPFL Jaguari - Companhia Jaguari de Energia | O37: 124 | P37: 69 | Q37: NÃO SUPRIDA
L38: 71 | M38: CPFL Leste Paulista | N38: =TabEmpresas[[#This Row],[Empresa]]&" - Companhia Leste Paulista de Energia " -> CPFL Leste Paulista - Companhia Leste Paulista de Energia | O38: 134 | P38: 71 | Q38: NÃO SUPRIDA
L39: 70 | M39: CPFL Mococa | N39: =TabEmpresas[[#This Row],[Empresa]]&" - Companhia Luz e Força de Mococa " -> CPFL Mococa - Companhia Luz e Força de Mococa | O39: 125 | P39: 70 | Q39: NÃO SUPRIDA
L40: 72 | M40: CPFL Santa Cruz | N40: =TabEmpresas[[#This Row],[Empresa]]&" - Companhia Luz e Força Santa Cruz " -> CPFL Santa Cruz - Companhia Luz e Força Santa Cruz | O40: 126 | P40: 72 | Q40: NÃO SUPRIDA
L41: 73 | M41: CPFL Sul Paulista | N41: =TabEmpresas[[#This Row],[Empresa]]&" - Companhia Sul Paulista de Energia " -> CPFL Sul Paulista - Companhia Sul Paulista de Energia | O41: 137 | P41: 73 | Q41: NÃO SUPRIDA
L42: 63 | M42: CPFL Paulista | N42: CPFL-Paulista - Companhia Paulista de Força e Luz | O42: 136 | P42: 63 | Q42: NÃO SUPRIDA
L43: 2937 | M43: CPFL Piratininga | N43: CPFL- Piratininga - Companhia Piratininga de Força e Luz | O43: 135 | P43: 2937 | Q43: NÃO SUPRIDA
L44: 95 | M44: DEMEI | N44: DEMEI - Departamento Municipal de Energia de Ijuí | O44: 138 | P44: 95 | Q44: SUPRIDA
L45: 51 | M45: DMED | N45: =TabEmpresas[[#This Row],[Empresa]]&" - DME Distribuição S.A" -> DMED - DME Distribuição S.A | O45: 139 | P45: 51 | Q45: NÃO SUPRIDA
L46: 6611 | M46: EBO | N46: EBO - Energisa Borborema – Distribuidora de Energia S.A. | O46: 140 | P46: 6611 | Q46: NÃO SUPRIDA
B47: Deslocar mercado | C47: Não | L47: 5217 | M47: EDEVP | N47: EDEVP - Empresa de Distribuição de Energia Vale Paranapanema S/A | O47: 141 | P47: 5217 | Q47: NÃO SUPRIDA
B48: Data de processamento em simulação | C48: 43811 | L48: 385 | M48: ELEKTRO | N48: ELEKTRO - Elektro Eletricidade e Serviços S/A. | O48: 145 | P48: 385 | Q48: NÃO SUPRIDA
L49: 26 | M49: ELETROACRE | N49: ELETROACRE - Companhia de Eletricidade do Acre | O49: 146 | P49: 26 | Q49: NÃO SUPRIDA
L50: 398 | M50: ELETROCAR | N50: ELETROCAR - Centrais Elétricas de Carazinho S/A. | O50: 147 | P50: 398 | Q50: SUPRIDA
L51: 390 | M51: ELETROPAULO | N51: ELETROPAULO - Eletropaulo Metropolitana Eletricidade de São Paulo S/A | O51: 148 | P51: 390 | Q51: NÃO SUPRIDA
L52: 6585 | M52: EMG | N52: EMG - Energisa Minas Gerais - Distribuidora de Energia S.A. | O52: 150 | P52: 6585 | Q52: NÃO SUPRIDA
L53: 404 | M53: ENERSUL | N53: ENERSUL - Empresa Energética de Mato Grosso do Sul S/A. | O53: 151 | P53: 404 | Q53: NÃO SUPRIDA
L54: 6612 | M54: ENF | N54: ENF - Energisa Nova Friburgo - Distribuidora de Energia S.A. | O54: 152 | P54: 6612 | Q54: SUPRIDA
L55: 6600 | M55: EPB | N55: EPB - Energisa Paraíba - Distribuidora de Energia | O55: 153 | P55: 6600 | Q55: NÃO SUPRIDA
L56: 380 | M56: ESCELSA | N56: ESCELSA - Espírito Santo Centrais Elétricas S/A. | O56: 154 | P56: 380 | Q56: NÃO SUPRIDA
L57: 6587 | M57: ESE | N57: ESE - Energisa Sergipe - Distribuidora de Energia S.A. | O57: 155 | P57: 6587 | Q57: NÃO SUPRIDA
L58: 83 | M58: FORCEL | N58: FORCEL - Força e Luz Coronel Vivida Ltda | O58: 156 | P58: 83 | Q58: SUPRIDA
L59: 399 | M59: HIDROPAN | N59: HIDROPAN - Hidroelétrica Panambi S/A. | O59: 157 | P59: 399 | Q59: SUPRIDA
L60: 87 | M60: IENERGIA | N60: IENERGIA - Iguaçu Distribuidora de Energia Elétrica Ltda | O60: 158 | P60: 87 | Q60: NÃO SUPRIDA
L61: 213 | M61: JARI | N61: JARI - Jari Celulose S/A | O61: 159 | P61: 213 | Q61: NÃO SUPRIDA
L62: 88 | M62: JOÃO CESA | N62: JOÃO CESA - Empresa Força e Luz João Cesa Ltda | O62: 143 | P62: 88 | Q62: SUPRIDA
L63: 382 | M63: LIGHT | N63: LIGHT - Light Serviços de Eletricidade S/A. | O63: 160 | P63: 382 | Q63: NÃO SUPRIDA
L64: 401 | M64: MUX Energia | N64: MUX Energia - Muxfeldt Marin & Cia. Ltda | O64: 161 | P64: 401 | Q64: SUPRIDA
L65: 84 | M65: OESTE | N65: CFLO - Companhia Força e Luz do Oeste | O65: 122 | P65: 84 | Q65: SUPRIDA
L66: 397 | M66: RGE | N66: RGE - Rio Grande Energia S/A. | O66: 162 | P66: 397 | Q66: NÃO SUPRIDA
L67: 381 | M67: SANTA MARIA | N67: SANTA MARIA - Empresa Luz e Força Santa Maria S/A. | O67: 149 | P67: 381 | Q67: SUPRIDA
L68: 46 | M68: SULGIPE | N68: SULGIPE - Companhia Sul Sergipana de Eletricidade | O68: 163 | P68: 46 | Q68: SUPRIDA
L69: 400 | M69: UHENPAL | N69: UHENPAL - Usina Hidroelétrica Nova Palma Ltda. | O69: 164 | P69: 400 | Q69: SUPRIDA
L70: 86 | M70: URUSSANGA | N70: URUSSANGA - Empresa Força e Luz Urussanga Ltda | O70: 144 | P70: 86 | Q70: SUPRIDA
L71: 1000040 | M71: ENERGISA Sul Sudeste | N71: ENERGISA SUL SUDESTE | O71: 165 | P71: 1000040 | Q71: NÃO SUPRIDA
L72: 1000041 | M72: NOVA SANTA CRUZ | N72: NOVA SANTA CRUZ | O72: 166 | P72: 1000041 | Q72: NÃO SUPRIDA
L73: 1000042 | M73: RGE SUL | N73: RGE SUL | O73: 167 | P73: 1000042 | Q73: NÃO SUPRIDA

Sheet BD
B1: Banco de Dados | M1: Anexo II | N1: =Resultado!$D$6 -> 0.1127888828
B2: =CAPA!B6 -> ESE | M2: Anexo I | N2: =Resultado!$D$8 -> 0.1211434605
B5: Informações do ano anterior | G5: Dados de abertura (Neutralidade e CVA saldo a compensar) | L5: Dados de Energia | S5: Dados para Revisão
B7: Encargos | G7: Encargo | H7: Valor | I7: Norma | L7: Cotas | M7: Valor da "Cota" | N7: Ano | O7: Custo Médio da Cota | P7: Energia MWh | S7: item | T7: Descrição | U7: Detalhe | V7: Valor
B8: CDE Covid TE | C8: =D8 -> 9633157.01 | D8: =F18*H17 -> 9633157.01 | G8: CCC | L8: Angra | M8: 0.007195833342 | N8: 2022 | O8: 349.15 | P8: 96266.70475
B9: CDE Covid TUSD | C9: =D9 -> 9196083.994 | D9: =F19*H17 -> 9196083.994 | G9: CDE | H9: 80903572.19 | I9: NT 294/2021 - valor provisório Quota 2022
B10: TFSEE | C10: 2460179.867 | G10: CFURH
B11: CDE | C11: 47877914.01 | G11: ESS/EER | H11: 44173415.51 | I11: Desp 226/2022 | L11: Ano | M11: Cota Itaipu
G12: PROINFA | H12: 35275305.42 | I12: ReH 2.995/2021
B13: ESS/ERR | C13: 27032703.65 | G13: ONS | H13: 72430.71429 | I13: Contribuição 2021
B14: PROINFA | C14: 22727451.67 | G14: TFSEE
B15: P&D | C15: 13337955.2 | G15: EER | H15: 43061757.86 | I15: Desp 226/2022
B16: ONS | C16: 72777.14 | G16: TFSEE Fator de Carga | H16: 0.8420175939
G17: CDE Covid | H17: 18829241 | I17: Previsão-2022
B18: Pmix | C18: 202.6487008 | F18: =Encargos!H24 -> 0.5116062303 | G18: CDE Covid TE% | H18: =F18 -> 0.5116062303
B19: PN2021 | C19: 0.04896394538 | F19: =Encargos!H23 -> 0.4883937697 | G19: CDE Covid TUSD% | H19: =F19 -> 0.4883937697
B20: PN2022 | C20: 0.04896394538
B21: PT2018 | C21: 0.07914 | G21: Informações de Postergação
B22: Perda RB total | C22: 0.02685487616 | L22: Mês | M22: Potência | N22: Tarifa | O22: Perdas | P22: Energia
G23: Tipo | H23: Valor
B24: CVA RB | C24: 24442086.65 | G24: Data Postergada | H24: 44673
B25: CVA CCC | C25: 0 | G25: Data Anterior | H25: 44673
B26: CVA CDE | C26: 2477415.633 | G26: Diferença de Dias | H26: 0
B27: CVA CFURH | G27: MesesAdin | H27: 0
B28: CVA ESS\ERR | C28: -3203996.651 | G28: Reversão Subvenção CDE
B29: CVA PROINFA | C29: 1190044.392 | G29: Data 4CRT | H29: 43212
B30: CVA TRANS. ITAIPU | C30: 0
B31: CVA ENERGIA | C31: 52039474.18
B32: CVA CDE E | C32: -3392641.657
G35: Nome | H35: Valor
G36: TUSDg Export DRP | H36: 0 | L36: Mês | M36: Potência | N36: Tarifa DRA | O36: Tarifa DRP | P36: Colunas1
G37: TUSDg ONS DRP | H37: 0
G38: TUSDg ONS DRA | H38: 0
B39: Rede Básica | G39: TUSDg Export DRA | H39: 0
C40: 9134822.105
G42: Fator X | H42: Valor
G43: fatorx_t | H43: 0.02168842337
B44: Mercado | G44: fatorx_pd | H44: 0.01029596792
C45: 3197727.015
C46: 1461570444 | G46: DecFec Processo Anterior | H46: Valor
G47: DEC A-2
B48: 2022 | C48: 55270.67351 | G48: DEC A-1
B49: Detalhamento de Encargos ESS e CDE | G49: FEC A-2
G50: FEC A-1 | L50: Dado | M50: Valor | N50: Início | O50: Fim
L51: MUST | M51: 9039 | N51: 44013 | O51: 44377
G52: Dados de dólar | H52: Valor | L52: MUST | M52: 7919 | N52: 44378 | O52: 44742
G53: Dólar médio | H53: 4.899168182 | L53: Potência Max | M53: 10935 | N53: 44197 | O53: 44561
G54: Data Inicial | H54: 44628 | L54: Potência Max | M54: 10775 | N54: 44562 | O54: 44926
G55: Data Final | H55: 44657
G56: Último Dado Diponível | H56: 44652 | L56: Dados de perda | M56: Valor | O56: Agente | P56: Ressarcimento P&D
B57: Subsídios Concedidos (sem ajuste) | L57: Perdas RB | M57: 86326.6219
B58: Mês de Início | C58: Carga Fonte | D58: Geração | E58: Distribuição | F58: Água, Esgoto e Saneamento | G58: Rural | H58: Irrigante/Aquicultor | L58: Perdas DITs | M58: 4310.4501
B59: 2021-04-01 | C59: 1619117.143 | D59: 313088.8883 | E59: 0 | F59: 465060.1183 | G59: 412709.9642 | H59: 460415.5792
B65: Data | C65: Tipo | D65: Valor | E65: Valor IGPM | F65: Valor IPCA | G65: EixoRef
B66: =DATE(YEAR(CAPA!C10),MONTH(CAPA!C10),1) -> 2022-04-01 | C66: =IF(CAPA!C7="Revisão",1,0) -> 0 | D66: =Resultado!L11 -> 677.9853425 | E66: =IFERROR(VLOOKUP(EDATE($B66,-1),Índices!$B$6:$F$500,2,FALSE)/VLOOKUP(EDATE(MIN($B$67:$B$81),-1),Índices!$B$6:$F$500,2,FALSE)*VLOOKUP(MIN($B$67:$B$81),$B$67:$D$81,3,FALSE),0) -> 862.6864002 | F66: =IFERROR(VLOOKUP(EDATE($B66,-1),Índices!$B$6:$F$500,3,FALSE)/VLOOKUP(EDATE(MIN($B$67:$B$81),-1),Índices!$B$6:$F$500,3,FALSE)*VLOOKUP(MIN($B$67:$B$81),$B$67:$D$81,3,FALSE),0) -> 648.3644274 | G66: =IF(B66<>"",150+1,"") -> 151
B67: 2021-04-01 | C67: Reajuste | D67: 580.44
B68: 2020-07-01 | C68: COVID | D68: 535.51
B69: 2019-04-01 | C69: Reajuste | D69: 530.72
B70: 2018-04-01 | C70: Revisão | D70: 514.3
B71: 2017-04-01 | C71: Reajuste | D71: 467.59
B72: 2016-04-01 | C72: Reajuste | D72: 432.33
B73: 2015-04-01 | C73: Reajuste | D73: 409.35
B74: 2015-03-01 | C74: RTE | D74: 369.77
B75: 2014-04-01 | C75: Reajuste | D75: 344.79
B76: 2013-04-01 | C76: Revisão | D76: 308.29
B77: 2013-01-01 | C77: RTE | D77: 290.03
B78: 2012-04-01 | C78: Reajuste | D78: 353.69
B84: Tabela de Resumo de Montante DRP ano anterior/ Montante Apurado pelo Mercado
B85: detalhe_grupo | C85: GrupoTarifa | D85: tipoBase | E85: tipofatura | F85: ValorCTAnterior_Sum | G85: ValorAnt_Sum | L85: Prcesso Anterior | N85: RTE
L86: MWh | M86: R$ | N86: MWh | O86: R$ | S86: DthEfetivaPagamento | T86: VlrGarantiaFinanceira
I87: BILATERAL | K87: valor | L87: 100616.4 | M87: 40740410.21 | S87: 44287 | T87: 40507.87
I88: CCEAR-DISP | J88: Alternativa | K88: valor | L88: 68584.08642 | M88: 17079026.47 | S88: 44317 | T88: 40507.98
I89: CCEAR-DISP | J89: Existente | K89: valor | L89: 45572.704 | M89: 13333069.84 | S89: 44348 | T89: 40507.98
I90: CCEAR-DISP | J90: Nova | K90: valor | L90: 789403.5752 | M90: 213322016.9 | S90: 44378 | T90: 43771.2
I91: CCEAR-QTD | J91: Madeira | K91: valor | L91: 305968.141 | M91: 42926548.08 | S91: 44409 | T91: 43771.2
I92: CCEAR-QTD | J92: Alternativa | K92: valor | L92: 4746.717 | M92: 1246544.236 | S92: 44440 | T92: 43771.2
I93: CCEAR-QTD | J93: Existente | K93: valor | L93: 18086.12197 | M93: 3167482.5 | S93: 44470 | T93: 43771.2
I94: CCEAR-QTD | J94: Madeira | K94: valor | L94: 140210.352 | M94: 22087467.57 | S94: 44501 | T94: 43771.2
I95: CCEAR-QTD | J95: Nova | K95: valor | L95: 486903.8355 | M95: 112065211.6 | S95: 44531 | T95: 43771.2
I96: CCEN | K96: valor | L96: 105609.0195 | M96: 26364235.62 | S96: 44562 | T96: 43771.2
I97: PROINFA | K97: valor | L97: 60587.30906
I98: SOBRA/EXPOSIÇÃO | K98: valor | L98: 239437.3517 | M98: 57066669.41
I99: CCGF | K99: valor | L99: 796014.7116 | M99: 91323886.61
V105: Empresa | W105: AT | X105: MT | Y105: BT
V106: 167 | W106: 0.02134 | X106: 0.35825 | Y106: 0.62041
V107: 102 | W107: 0.064 | X107: 0.32003 | Y107: 0.61596
V108: 103 | W108: 0.02996 | X108: 0.27106 | Y108: 0.69898
V109: 104 | W109: 0.07171 | X109: 0.2909 | Y109: 0.63739
V110: 105 | W110: 0.00823 | X110: 0.24677 | Y110: 0.745
I111: Agente | J111: idagente | K111: indexador | L111: database | M111: RAP do ciclo | N111: Colunas1 | O111: RAP atualizada | V111: 165 | W111: 0.00795 | X111: 0.22554 | Y111: 0.76651
O112: =M112*VLOOKUP(CAPA!C15,Índices!$B$6:$F$626,IF(BD!K112="IPCA",3,2),FALSE)/VLOOKUP(L112,Índices!$B$6:$F$626,IF(BD!K112="IPCA",3,2),FALSE) ->  | V112: 108 | W112: 0.06098 | X112: 0.1711 | Y112: 0.76792
O113: =M113*VLOOKUP(CAPA!C16,Índices!$B$6:$F$626,IF(BD!K113="IPCA",3,2),FALSE)/VLOOKUP(L113,Índices!$B$6:$F$626,IF(BD!K113="IPCA",3,2),FALSE) ->  | V113: 109 | W113: 0.01034 | X113: 0.24366 | Y113: 0.746
O114: =M114*VLOOKUP(CAPA!C17,Índices!$B$6:$F$626,IF(BD!K114="IPCA",3,2),FALSE)/VLOOKUP(L114,Índices!$B$6:$F$626,IF(BD!K114="IPCA",3,2),FALSE) ->  | V114: 110 | W114: 0.01165 | X114: 0.24322 | Y114: 0.74513
O115: =M115*VLOOKUP(CAPA!C18,Índices!$B$6:$F$626,IF(BD!K115="IPCA",3,2),FALSE)/VLOOKUP(L115,Índices!$B$6:$F$626,IF(BD!K115="IPCA",3,2),FALSE) ->  | V115: 111 | W115: 0.03791 | X115: 0.37961 | Y115: 0.58248
O116: =M116*VLOOKUP(CAPA!C19,Índices!$B$6:$F$626,IF(BD!K116="IPCA",3,2),FALSE)/VLOOKUP(L116,Índices!$B$6:$F$626,IF(BD!K116="IPCA",3,2),FALSE) ->  | V116: 112 | W116: 0.02273 | X116: 0.26361 | Y116: 0.71367
O117: =M117*VLOOKUP(CAPA!C20,Índices!$B$6:$F$626,IF(BD!K117="IPCA",3,2),FALSE)/VLOOKUP(L117,Índices!$B$6:$F$626,IF(BD!K117="IPCA",3,2),FALSE) ->  | V117: 113 | W117: 0.01263 | X117: 0.23345 | Y117: 0.75392
O118: =M118*VLOOKUP(CAPA!C21,Índices!$B$6:$F$626,IF(BD!K118="IPCA",3,2),FALSE)/VLOOKUP(L118,Índices!$B$6:$F$626,IF(BD!K118="IPCA",3,2),FALSE) ->  | V118: 114 | W118: 0.01726 | X118: 0.23794 | Y118: 0.7448
O119: =M119*VLOOKUP(CAPA!C22,Índices!$B$6:$F$626,IF(BD!K119="IPCA",3,2),FALSE)/VLOOKUP(L119,Índices!$B$6:$F$626,IF(BD!K119="IPCA",3,2),FALSE) ->  | V119: 115 | W119: 0.00993 | X119: 0.23087 | Y119: 0.7592
O120: =M120*VLOOKUP(CAPA!C23,Índices!$B$6:$F$626,IF(BD!K120="IPCA",3,2),FALSE)/VLOOKUP(L120,Índices!$B$6:$F$626,IF(BD!K120="IPCA",3,2),FALSE) ->  | S120: iddet1 | T120: valor | V120: 116 | W120: 0.00806 | X120: 0.16835 | Y120: 0.82359
O121: =M121*VLOOKUP(CAPA!C24,Índices!$B$6:$F$626,IF(BD!K121="IPCA",3,2),FALSE)/VLOOKUP(L121,Índices!$B$6:$F$626,IF(BD!K121="IPCA",3,2),FALSE) ->  | S121: 56 | T121: 44649 | V121: 117 | W121: 0.03028 | X121: 0.29131 | Y121: 0.67841
O122: =M122*VLOOKUP(CAPA!C25,Índices!$B$6:$F$626,IF(BD!K122="IPCA",3,2),FALSE)/VLOOKUP(L122,Índices!$B$6:$F$626,IF(BD!K122="IPCA",3,2),FALSE) ->  | S122: 57 | T122: 44578 | V122: 118 | W122: 0.04215 | X122: 0.2081 | Y122: 0.74975
O123: =M123*VLOOKUP(CAPA!C26,Índices!$B$6:$F$626,IF(BD!K123="IPCA",3,2),FALSE)/VLOOKUP(L123,Índices!$B$6:$F$626,IF(BD!K123="IPCA",3,2),FALSE) ->  | S123: 58 | T123: 44531 | V123: 119 | W123: 0.01807 | X123: 0.11713 | Y123: 0.8648
O124: =M124*VLOOKUP(CAPA!C27,Índices!$B$6:$F$626,IF(BD!K124="IPCA",3,2),FALSE)/VLOOKUP(L124,Índices!$B$6:$F$626,IF(BD!K124="IPCA",3,2),FALSE) ->  | V124: 120 | W124: - | X124: 0.17688 | Y124: 0.82312
O125: =M125*VLOOKUP(CAPA!C28,Índices!$B$6:$F$626,IF(BD!K125="IPCA",3,2),FALSE)/VLOOKUP(L125,Índices!$B$6:$F$626,IF(BD!K125="IPCA",3,2),FALSE) ->  | V125: 123 | W125: - | X125: 0.13612 | Y125: 0.86388
O126: =M126*VLOOKUP(CAPA!C29,Índices!$B$6:$F$626,IF(BD!K126="IPCA",3,2),FALSE)/VLOOKUP(L126,Índices!$B$6:$F$626,IF(BD!K126="IPCA",3,2),FALSE) ->  | V126: 166 | W126: 0.04257 | X126: 0.29652 | Y126: 0.66092
O127: =M127*VLOOKUP(CAPA!C30,Índices!$B$6:$F$626,IF(BD!K127="IPCA",3,2),FALSE)/VLOOKUP(L127,Índices!$B$6:$F$626,IF(BD!K127="IPCA",3,2),FALSE) ->  | V127: 128 | W127: - | X127: 0.40427 | Y127: 0.59573
O128: =M128*VLOOKUP(CAPA!C31,Índices!$B$6:$F$626,IF(BD!K128="IPCA",3,2),FALSE)/VLOOKUP(L128,Índices!$B$6:$F$626,IF(BD!K128="IPCA",3,2),FALSE) ->  | V128: 129 | W128: 0.02905 | X128: 0.24895 | Y128: 0.722
O129: =M129*VLOOKUP(CAPA!C32,Índices!$B$6:$F$626,IF(BD!K129="IPCA",3,2),FALSE)/VLOOKUP(L129,Índices!$B$6:$F$626,IF(BD!K129="IPCA",3,2),FALSE) ->  | V129: 130 | W129: 0.0175 | X129: 0.14397 | Y129: 0.83853
O130: =M130*VLOOKUP(CAPA!C33,Índices!$B$6:$F$626,IF(BD!K130="IPCA",3,2),FALSE)/VLOOKUP(L130,Índices!$B$6:$F$626,IF(BD!K130="IPCA",3,2),FALSE) ->  | S130: Nível | T130: Mercado Faturado A-6 | V130: 131 | W130: - | X130: 0.30099 | Y130: 0.69901
O131: =M131*VLOOKUP(CAPA!C34,Índices!$B$6:$F$626,IF(BD!K131="IPCA",3,2),FALSE)/VLOOKUP(L131,Índices!$B$6:$F$626,IF(BD!K131="IPCA",3,2),FALSE) ->  | S131: AT | T131: 717229.357 | V131: 132 | W131: 0.02757 | X131: 0.26424 | Y131: 0.70819
O132: =M132*VLOOKUP(CAPA!C35,Índices!$B$6:$F$626,IF(BD!K132="IPCA",3,2),FALSE)/VLOOKUP(L132,Índices!$B$6:$F$626,IF(BD!K132="IPCA",3,2),FALSE) ->  | S132: BT | T132: 1624583.068 | V132: 133 | W132: 0.01856 | X132: 0.19536 | Y132: 0.78608
S133: MT | T133: 815377.928 | V133: 135 | W133: 0.04788 | X133: 0.27054 | Y133: 0.68158
V134: 136 | W134: 0.06732 | X134: 0.35547 | Y134: 0.57721
V135: 138 | W135: - | X135: 0.07651 | Y135: 0.92349
V136: 139 | W136: - | X136: 0.35483 | Y136: 0.64517
V137: 140 | W137: 0.01004 | X137: 0.21058 | Y137: 0.77938
V138: 143 | W138: - | X138: 0.20409 | Y138: 0.79591
V139: 144 | W139: - | X139: 0.48131 | Y139: 0.51869
A140: NumBar | B140: Nome Conexão | C140: Tensão | D140: Posto Tarifário | E140: Tarifas Fronteiras - DRA | F140: Tarifa Fronteira - DRP | G140: Tarifas RB - DRA | H140: Tarifa RB - DRP | I140: M01 | J140: M02 | K140: M03 | L140: M04 | M140: M05 | N140: M06 | O140: M07 | P140: M08 | Q140: M09 | R140: M10 | S140: M11 | T140: M12 | V140: 145 | W140: 0.03725 | X140: 0.29306 | Y140: 0.66969
A141: 5713 | B141: ITABAIANA - 69 kV (A) | C141: 69 | D141: Ponta | E141: 6261 | F141: 5428 | G141: 1069 | H141: 926 | I141: 152.82 | J141: 152.82 | K141: 152.82 | L141: 152.82 | M141: 152.82 | N141: 152.82 | O141: 152.82 | P141: 160.99 | Q141: 160.99 | R141: 163 | S141: 163 | T141: 163 | V141: 146 | W141: - | X141: 0.14124 | Y141: 0.85876
A142: 5723 | B142: JARDIM SE - 69 kV (A) | C142: 69 | D142: Ponta | E142: 6125 | F142: 5355 | G142: 1641 | H142: 1063 | I142: 185 | J142: 185 | K142: 185 | L142: 179 | M142: 179 | N142: 179 | O142: 179 | P142: 179 | Q142: 179 | R142: 179 | S142: 179 | T142: 179 | V142: 147 | W142: - | X142: 0.20977 | Y142: 0.79023
A143: 5743 | B143: N.S.SOCORRO - 69 kV (A) | C143: 69 | D143: Ponta | E143: 6207 | F143: 5441 | G143: 900 | H143: 918 | I143: 124 | J143: 124 | K143: 124 | L143: 114 | M143: 114 | N143: 114 | O143: 114 | P143: 114 | Q143: 114 | R143: 114 | S143: 114 | T143: 114 | V143: 148 | W143: 0.03455 | X143: 0.23757 | Y143: 0.72788
A144: 5293 | B144: PENEDO - 69 kV (A) | C144: 69 | D144: Ponta | E144: 7972 | F144: 6393 | G144: 920 | H144: 1281 | I144: 28 | J144: 28 | K144: 28 | L144: 28 | M144: 28 | N144: 28 | O144: 28 | P144: 28 | Q144: 28 | R144: 28 | S144: 28 | T144: 28 | V144: 149 | W144: - | X144: 0.17399 | Y144: 0.82601
A145: 6253 | B145: ZEBU - 69 kV (A) | C145: 69 | D145: Ponta | E145: 5815 | F145: 4833 | G145: 5976 | H145: 5218 | I145: 13.365 | J145: 13.365 | K145: 13.365 | L145: 12.36 | M145: 12.36 | N145: 12.36 | O145: 12.36 | P145: 12.36 | Q145: 12.36 | R145: 13.5 | S145: 13.5 | T145: 13.5 | V145: 150 | W145: 0.03635 | X145: 0.17413 | Y145: 0.78952
A146: 5713 | B146: ITABAIANA - 69 kV (A) | C146: 69 | D146: Fora Ponta | E146: 6206 | F146: 5146 | G146: 1069 | H146: 926 | I146: 161 | J146: 161 | K146: 161 | L146: 161 | M146: 161 | N146: 161 | O146: 161 | P146: 161 | Q146: 161 | R146: 161 | S146: 161 | T146: 161 | V146: 151 | W146: 0.02735 | X146: 0.28351 | Y146: 0.68915
A147: 5723 | B147: JARDIM SE - 69 kV (A) | C147: 69 | D147: Fora Ponta | E147: 6036 | F147: 5057 | G147: 1641 | H147: 1063 | I147: 202 | J147: 202 | K147: 202 | L147: 196 | M147: 196 | N147: 196 | O147: 196 | P147: 196 | Q147: 196 | R147: 196 | S147: 196 | T147: 196 | V147: 152 | W147: 0.00215 | X147: 0.1412 | Y147: 0.85665
A148: 5743 | B148: N.S.SOCORRO - 69 kV (A) | C148: 69 | D148: Fora Ponta | E148: 6133 | F148: 5159 | G148: 900 | H148: 918 | I148: 133 | J148: 133 | K148: 133 | L148: 130 | M148: 130 | N148: 130 | O148: 130 | P148: 130 | Q148: 130 | R148: 130 | S148: 130 | T148: 130 | V148: 153 | W148: 0.03606 | X148: 0.17601 | Y148: 0.78793
A149: 5293 | B149: PENEDO - 69 kV (A) | C149: 69 | D149: Fora Ponta | E149: 8099 | F149: 6272 | G149: 920 | H149: 1281 | I149: 42 | J149: 42 | K149: 42 | L149: 41 | M149: 41 | N149: 41 | O149: 41 | P149: 41 | Q149: 41 | R149: 41 | S149: 41 | T149: 41 | V149: 154 | W149: 0.12913 | X149: 0.26626 | Y149: 0.60462
A150: 6253 | B150: ZEBU - 69 kV (A) | C150: 69 | D150: Fora Ponta | E150: 5705 | F150: 4467 | G150: 5976 | H150: 5218 | I150: 17.5 | J150: 17.5 | K150: 17.5 | L150: 16.5 | M150: 16.5 | N150: 16.5 | O150: 16.5 | P150: 16.5 | Q150: 16.5 | R150: 18 | S150: 18 | T150: 18 | V150: 155 | W150: 0.04008 | X150: 0.23225 | Y150: 0.72768
V151: 156 | W151: - | X151: 0.35985 | Y151: 0.64015
V152: 157 | W152: - | X152: 0.15963 | Y152: 0.84037
V153: 158 | W153: - | X153: 0.33049 | Y153: 0.66951
V154: 160 | W154: 0.1013 | X154: 0.22818 | Y154: 0.67051
V155: 161 | W155: - | X155: 0.28355 | Y155: 0.71645
V156: 163 | W156: 0.03507 | X156: 0.1664 | Y156: 0.79853
V157: 164 | W157: - | X157: 0.12897 | Y157: 0.87103
B441: Transmissora | C441: Indice de atualização | D441: ENCARGO DE CONEXÃO repassável | E441: Instalações com Estabelecimento de RAP que entraram em operação | F441: PA para repasse a tarifa | G441: PA Qualidade DIT | H441: ENCARGO DE CONEXÃO ou PA não rapassável a tarifa (REN 67/2004 ou 68/2004) | I441: PA Empreendimento Autorizado sem estabelecimento prévio de RAP | J441: Contrato
B442: CHESF | C442: IPCA | D442: 1284678.19 | E442: 0 | F442: 332544.65 | G442: 0 | H442: 0 | I442: 0 | J442: 005/2012
B443: CHESF | C443: IPCA | D443: 7517750.41 | E443: 0 | F443: 3394760.54 | G443: 0 | H443: 0 | I443: 0 | J443: 061/2001
B462: Empresa | C462: idsgtag | D462: dtConv | E462: VlrMontante | F462: VlrTarOutros | G462: VlrTarB4a | H462: VlrTarB4b
B463: ESE - ENERGISA SE | C463: 155 | D463: 20566 | E463: 0
B469: Tabela de Financeiros para o cálculo da Neutralidade | G469: Tabela de Financeiros para o cálculo da Neutralidade de RB | M469: Tabela de Financeiros para o cálculo da Neutralidade CVA processamento
B470: Grupo Tarifa | C470: Detalhe Grupo | D470: Valor | E470: Percentual | G470: Tipo | H470: Detalhe | I470: Posto | J470: Unidade | K470: Valor | M470: Grupo Tarifa | N470: Detalhe Grupo | O470: Valor | P470: Percentual
D471: -805907.099 | G471: CUSTO | H471: CONEXÃO D | J471: R$ | K471: 0 | M471: ENCARGO | N471: CDE | O471: 2502765.68
B472: ENCARGO | C472: CDE | D472: -970396.9109 | G472: CUSTO | H472: CONEXÃO T | J472: R$ | K472: 9134822.105 | M472: ENCARGO | N472: CDE Energia | O472: -3427356.713
B473: ENCARGO | C473: CDE Energia | D473: -118119.3553 | G473: CUSTO | H473: EUSD | J473: R$ | K473: 0 | M473: ENCARGO | N473: ESS/ERR | O473: -3236781.406
B474: ENCARGO | C474: ESS/ERR | D474: 13893290.35 | G474: CUSTO | H474: EUST - CI | J474: R$ | K474: 1e-06 | M474: ENCARGO | N474: PROINFA | O474: 1202221.468
B475: ENCARGO | C475: ONS | D475: 2615.826647 | G475: CUSTO | H475: EUST - FR | J475: R$ | K475: 17435584.92 | M475: ENERGIA | N475: ENERGIA REQUERIDA SEM PERDAS | O475: 45951633.6
B476: ENCARGO | C476: PROINFA | D476: 1351656.592 | G476: CUSTO | H476: EUST - ITAIPU | J476: R$ | K476: 0 | M476: ENERGIA | N476: PERDAS NA RB (sobre as perdas na D) | O476: 144806.1731
B477: ENCARGO | C477: TFSEE | D477: 39062.21547 | G477: CUSTO | H477: EUST - RB | J477: R$ | K477: 79578575.27 | M477: ENERGIA | N477: PERDAS NA RB (sobre o mercado cativo) | O477: 1083351.721
B478: ENERGIA | C478: ENERGIA REQUERIDA SEM PERDAS | D478: -45840855.24 | G478: CUSTO | H478: TRANSPORTE ITAIPU | J478: R$ | K478: 0 | M478: ENERGIA | N478: PERDAS NÃO TÉCNICAS | O478: 1432320.746
B479: ENERGIA | C479: PERDAS NA RB (sobre as perdas na D) | D479: -144457.0801 | G479: CUSTO | H479: TUSDg ONS (A2) | J479: R$ | K479: 0 | M479: ENERGIA | N479: PERDAS TÉCNICAS | O479: 3959853.555
B480: ENERGIA | C480: PERDAS NA RB (sobre o mercado cativo) | D480: -1080740.02 | G480: CUSTO | H480: TUSDg T (A2) | J480: R$ | K480: 0 | M480: TRANSPORTE TERCEIROS | N480: EUST - RB | O480: 24692189.22
B481: ENERGIA | C481: PERDAS NÃO TÉCNICAS | D481: -1428867.764 | G481: PARÂMETRO | I481: FORA PONTA | J481: MW | K481: 6667.5
B482: ENERGIA | C482: PERDAS TÉCNICAS | D482: -3950307.298 | G482: PARÂMETRO | I482: PONTA | J482: MW | K482: 6033.675
B483: TRANSPORTE TERCEIROS | C483: EUST - RB | D483: -17174832.8 | G483: PARÂMETRO | H483: EUST - FR | I483: FORA PONTA | J483: R$ | K483: 9207096
B484: Parcela B | D484: -67820066.67 | G484: PARÂMETRO | H484: EUST - FR | I484: PONTA | J484: R$ | K484: 8228488.92
G485: PARÂMETRO | H485: EUST - RB | I485: FORA PONTA | J485: R$ | K485: 41698027.5
G486: PARÂMETRO | H486: EUST - RB | I486: PONTA | J486: R$ | K486: 37880547.77
B561: Grupo Tarifa | C561: Detalhe Grupo | D561: Det3 | E561: Valor | G561: Grupo Tarifa | H561: Detalhe Grupo | I561: Det3 | J561: Valor
B562: ENCARGO | C562: CDE | D562: Covid CVA Saldo a Compensar | E562: -3261998.435
B563: ENCARGO | C563: CDE | D563: Covid Neutralidade | E563: -677662.272
B564: ENCARGO | C564: ESS/ERR | D564: Covid CVA Saldo a Compensar | E564: 13950146.23
B565: ENCARGO | C565: ESS/ERR | D565: Covid Neutralidade | E565: -306685.69
B566: ENCARGO | C566: ONS | D566: Covid Neutralidade | E566: -951.8514047
B567: ENCARGO | C567: PROINFA | D567: Covid CVA Saldo a Compensar | E567: 682270.332
B568: ENCARGO | C568: PROINFA | D568: Covid Neutralidade | E568: -265777.6174
B569: ENCARGO | C569: TFSEE | D569: Covid Neutralidade | E569: -14214.02473
B570: ENERGIA | C570: ENERGIA REQUERIDA SEM PERDAS | D570: Covid CVA Saldo a Compensar | E570: -40274623.56
B571: ENERGIA | C571: ENERGIA REQUERIDA SEM PERDAS | D571: Covid Demais Componentes | E571: -4106087.302
B572: ENERGIA | C572: PERDAS NA RB (sobre as perdas na D) | D572: Covid CVA Saldo a Compensar | E572: -126916.3608
B573: ENERGIA | C573: PERDAS NA RB (sobre as perdas na D) | D573: Covid Demais Componentes | E573: -12939.4048
B574: ENERGIA | C574: PERDAS NA RB (sobre o mercado cativo) | D574: Covid CVA Saldo a Compensar | E574: -949511.0257
B575: ENERGIA | C575: PERDAS NA RB (sobre o mercado cativo) | D575: Covid Demais Componentes | E575: -96804.75747
B576: ENERGIA | C576: PERDAS NÃO TÉCNICAS | D576: Covid CVA Saldo a Compensar | E576: -1255367.314
B577: ENERGIA | C577: PERDAS NÃO TÉCNICAS | D577: Covid Demais Componentes | E577: -127987.4852
B578: ENERGIA | C578: PERDAS TÉCNICAS | D578: Covid CVA Saldo a Compensar | E578: -3470640.732
B579: ENERGIA | C579: PERDAS TÉCNICAS | D579: Covid Demais Componentes | E579: -353839.5292
B580: TRANSPORTE TERCEIROS | C580: EUST - RB | D580: Covid CVA Saldo a Compensar | E580: -4104040.692

Sheet Entrada
A1: Entrada de parâmetros para cálculo tarifário
B4: Energia | D4: Últ. Atulização | F4: Parâmetros para Revisão | P4: ="Caso de OR para a empresa é: " &IF(BD!C53=4,"caso 1","caso 3") -> Caso de OR para a empresa é: caso 3
D6: 44333 | F6: CAPEX - Ativos de Distribuição | J6: Custo Operacional Real do(s) último(s) ano(s) | P6: Outras Receitas
B7: Montante de Geração Própria | D7: 44333 | F7: (1) Ativo Imobilizado em Serviço (Valor Novo de Reposição) | G7: =G71*VLOOKUP(DATE(YEAR(CAPA!$C$10),MONTH(CAPA!$C$10)-1,1),Índices!$B$135:$D$638,3,0)/VLOOKUP(DATE(YEAR($G$70),MONTH($G$70)-1,1),Índices!$B$135:$D$638,3,0) ->  | J7: Ano do Custo Operacional | L7: 2018 | M7: 2019 | P7: Tipo de Receita | Q7: ='VPB e Fator X'!G163 -> 2021-09-01 | R7: ='VPB e Fator X'!H163 -> 2021-08-01 | S7: ='VPB e Fator X'!I163 -> 2021-07-01 | T7: ='VPB e Fator X'!J163 -> 2021-06-01 | U7: ='VPB e Fator X'!K163 -> 2021-05-01 | V7: ='VPB e Fator X'!L163 -> 2021-04-01 | W7: ='VPB e Fator X'!M163 -> 2021-03-01 | X7: ='VPB e Fator X'!N163 -> 2021-02-01 | Y7: ='VPB e Fator X'!O163 -> 2021-01-01 | Z7: ='VPB e Fator X'!P163 -> 2020-12-01 | AA7: ='VPB e Fator X'!Q163 -> 2020-11-01 | AB7: ='VPB e Fator X'!R163 -> 2020-10-01 | AC7: ='VPB e Fator X'!S163 -> 2020-09-01 | AD7: ='VPB e Fator X'!T163 -> 2020-08-01 | AE7: ='VPB e Fator X'!U163 -> 2020-07-01 | AF7: ='VPB e Fator X'!V163 -> 2020-06-01 | AG7: ='VPB e Fator X'!W163 -> 2020-05-01 | AH7: ='VPB e Fator X'!X163 -> 2020-04-01 | AI7: ='VPB e Fator X'!Y163 -> 2020-03-01 | AJ7: ='VPB e Fator X'!Z163 -> 2020-02-01 | AK7: ='VPB e Fator X'!AA163 -> 2020-01-01 | AL7: ='VPB e Fator X'!AB163 -> 2019-12-01 | AM7: ='VPB e Fator X'!AC163 -> 2019-11-01 | AN7: ='VPB e Fator X'!AD163 -> 2019-10-01 | AO7: ='VPB e Fator X'!AE163 -> 2019-09-01 | AP7: ='VPB e Fator X'!AF163 -> 2019-08-01 | AQ7: ='VPB e Fator X'!AG163 -> 2019-07-01 | AR7: ='VPB e Fator X'!AH163 -> 2019-06-01 | AS7: ='VPB e Fator X'!AI163 -> 2019-05-01 | AT7: ='VPB e Fator X'!AJ163 -> 2019-04-01 | AU7: ='VPB e Fator X'!AK163 -> 2019-03-01 | AV7: ='VPB e Fator X'!AL163 -> 2019-02-01 | AW7: ='VPB e Fator X'!AM163 -> 2019-01-01 | AX7: ='VPB e Fator X'!AN163 -> 2018-12-01 | AY7: ='VPB e Fator X'!AO163 -> 2018-11-01 | AZ7: ='VPB e Fator X'!AP163 -> 2018-10-01 | BA7: ='VPB e Fator X'!AQ163 -> 2018-09-01 | BB7: ='VPB e Fator X'!AR163 -> 2018-08-01 | BC7: ='VPB e Fator X'!AS163 -> 2018-07-01 | BD7: ='VPB e Fator X'!AT163 -> 2018-06-01
B8: Custo médio da Geração Própria | D8: 44333 | F8: (2) Índice de Aproveitamento Integral | G8: =G72*VLOOKUP(DATE(YEAR(CAPA!$C$10),MONTH(CAPA!$C$10)-1,1),Índices!$B$135:$D$638,3,0)/VLOOKUP(DATE(YEAR($G$70),MONTH($G$70)-1,1),Índices!$B$135:$D$638,3,0) ->  | J8: CONTA PESSOAL | P8: Serviços Cobráveis
D9: 44333 | F9: (3) Obrigações Especiais Bruta | G9: =G73*VLOOKUP(DATE(YEAR(CAPA!$C$10),MONTH(CAPA!$C$10)-1,1),Índices!$B$135:$D$638,3,0)/VLOOKUP(DATE(YEAR($G$70),MONTH($G$70)-1,1),Índices!$B$135:$D$638,3,0) ->  | J9: BMP - 610530501; 610550501; 610532501; 610552501 | K9: Remuneração | P9: Arrecadação de convênios ou valores pela fatura
D10: 44333 | F10: (4) Bens Totalmente Depreciados | G10: =G74*VLOOKUP(DATE(YEAR(CAPA!$C$10),MONTH(CAPA!$C$10)-1,1),Índices!$B$135:$D$638,3,0)/VLOOKUP(DATE(YEAR($G$70),MONTH($G$70)-1,1),Índices!$B$135:$D$638,3,0) ->  | J10: BMP - 610530502; 610550502; 610532502; 610552502 | K10: Encargos | P10: Arrecadação de faturas de terceiros por estrutura própria
F11: (5) Base de Remuneração Bruta = (1)-(2)-(3)-(4) | G11: =G7-G8-G9-G10 ->  | J11: BMP - 610530503; 610550503; 610532503; 610552503 | K11: Previdência Privada - Corrente | P11: Veiculação de publicidade
F12: (6) Depreciação Acumulada | G12: =G76*VLOOKUP(DATE(YEAR(CAPA!$C$10),MONTH(CAPA!$C$10)-1,1),Índices!$B$135:$D$638,3,0)/VLOOKUP(DATE(YEAR($G$70),MONTH($G$70)-1,1),Índices!$B$135:$D$638,3,0) ->  | J12: BMP - 610530508; 610550508; 610532508; 610552508 | K12: Outros Benefícios | P12: Aluguel ou cessão onerosa de imóveis e espaços físicos
F13: (7) AIS Líquido (Valor de Mercado em Uso) | G13: =G7-G12 ->  | J13: BMP - 610530506; 610550506; 610532506; 610552506 | K13: Despesas Rescisórias | P13: Compartilhamento de infraestrutura
F14: (8) Índice de Aproveitamento Depreciado | G14: =G78*VLOOKUP(DATE(YEAR(CAPA!$C$10),MONTH(CAPA!$C$10)-1,1),Índices!$B$135:$D$638,3,0)/VLOOKUP(DATE(YEAR($G$70),MONTH($G$70)-1,1),Índices!$B$135:$D$638,3,0) ->  | J14: BMP - 610530507; 610550507; 610532507; 610552507 | K14: Participação nos Lucros e Resultados - PLR | P14: Serviços de avaliação técnica e aferição de medidores.
F15: (9) Valor da Base de Remuneração (VBR) | G15: =G13-G14 ->  | J15: BMP - 610530599; 610550599; 610532599; 610552599 | K15: Outros | P15: Operacionalização de serviço de créditos tributários
F16: (10) Almoxarifado em Operação | G16: =G80*VLOOKUP(DATE(YEAR(CAPA!$C$10),MONTH(CAPA!$C$10)-1,1),Índices!$B$135:$D$638,3,0)/VLOOKUP(DATE(YEAR($G$70),MONTH($G$70)-1,1),Índices!$B$135:$D$638,3,0) ->  | J16: BMP - 610530510; 610550510; 610532510; 610552510 | K16: (-) Créditos de Tributos Recuperáveis | P16: Elaboração de projeto, construção, operação, manutenção ou reforma de:
F17: (11) Ativo Diferido | G17: =G81*VLOOKUP(DATE(YEAR(CAPA!$C$10),MONTH(CAPA!$C$10)-1,1),Índices!$B$135:$D$638,3,0)/VLOOKUP(DATE(YEAR($G$70),MONTH($G$70)-1,1),Índices!$B$135:$D$638,3,0) ->  | J17: BMP - 6105306; 6105506; 6105326; 6105526 | K17: Administradores | P17: (1) redes de distribuição de energia elétrica destinadas à regularização fundiária de interesse específico e ao atendimento dos empreendimentos de múltiplas unidades consumidoras;
F18: (12) Obrigações Especiais Líquida | G18: =G82*VLOOKUP(DATE(YEAR(CAPA!$C$10),MONTH(CAPA!$C$10)-1,1),Índices!$B$135:$D$638,3,0)/VLOOKUP(DATE(YEAR($G$70),MONTH($G$70)-1,1),Índices!$B$135:$D$638,3,0) ->  | K18: Subtotal | L18: =SUM(L9:L17) -> 0 | M18: =SUM(M9:M17) -> 0 | P18: (2) redes de energia elétrica destinadas ao acesso dos sistemas de distribuição ou transmissão;
F19: (13) Terrenos e Servidões | G19: =G83*VLOOKUP(DATE(YEAR(CAPA!$C$10),MONTH(CAPA!$C$10)-1,1),Índices!$B$135:$D$638,3,0)/VLOOKUP(DATE(YEAR($G$70),MONTH($G$70)-1,1),Índices!$B$135:$D$638,3,0) ->  | J19: CONTA MATERIAIS | P19: (3) subestações de energia;
F20: (14) Base de Rem. Líquida Total = (1)-(6)-(8)+(10)+(11)-(12)+(13) | G20: =G15+G16+G17-G18+G19 ->  | J20: BMP - 610530701; 610550701; 610532701; 610552701 | K20: Materiais | P20: (4) instalações elétricas internas de unidades consumidoras;
F21: (15) Saldo RGR PLPT | G21: =G85*VLOOKUP(DATE(YEAR(CAPA!$C$10),MONTH(CAPA!$C$10)-1,1),Índices!$B$135:$D$638,3,0)/VLOOKUP(DATE(YEAR($G$70),MONTH($G$70)-1,1),Índices!$B$135:$D$638,3,0) ->  | J21: BMP - 610530799; 610550799; 610532799; 610552799 | K21: Outros | P21: (5) banco de capacitores:
F22: (16) Saldo RGR Demais Investimentos | G22: =G86*VLOOKUP(DATE(YEAR(CAPA!$C$10),MONTH(CAPA!$C$10)-1,1),Índices!$B$135:$D$638,3,0)/VLOOKUP(DATE(YEAR($G$70),MONTH($G$70)-1,1),Índices!$B$135:$D$638,3,0) ->  | J22: BMP - 610530710; 610550710; 610532710; 610552710 | K22: (-) Créditos de Tributos Recuperáveis | P22: (6) padrões de entrada de unidades consumidoras atendidas em baixa tensão;
F23: (17) Taxa de Depreciação | G23: =G87 -> 0 | K23: Subtotal | L23: =SUM(L20:L22) -> 0 | M23: =SUM(M20:M22) -> 0 | P23: (7) sistemas de medição de energia elétrica;
F24: (18) Quota de Reintegração Regulatória = (5) * (17) | G24: =G23*G11 ->  | J24: CONTA TERCEIROS | P24: (8) geradores, incluindo-se unidades de microgeração e minigeração distribuída;
J25: RIT - RP 800 - Célula F20 | K25: Manut. e Conserv. Bens e Instalações vinculadas ao Serviço Concedido | P25: (9) sistemas de iluminação pública.
F26: Gasto do Conselho de Consumidores | J26: RIT - RP 800 - Célula F21 | K26: Auditoria e Consultoria | P26: Eficientização do consumo de energia elétrica e instalação de cogeração qualificada, desde que não enquadráveis nos projetos de Pesquisa e Desenvolvimento (P&D) ou de Eficiência Energética estabelecidos em lei
F27: =Indexador!D132 -> Despesa 2021 | H27: 44333 | J27: RIT - RP 800 - Célula F22 | K27: Serviços Jurídicos | P27: Serviços de comunicação de dados
F28: =Indexador!E132 -> Despesa 2020 | H28: 44333 | J28: RIT - RP 800 - Célula F23 | K28: Serviços de Informática | P28: Serviços de consultoria
F29: =Indexador!F132 -> Despesa 2019 | H29: 44333 | J29: RIT - RP 800 - Célula F26 | K29: Viagens (Passagens Aéreas, etc) | P29: Receita proveniente da comercialização de resultados de projetos de P&D
F30: =Indexador!G132 -> Despesa 2018 | H30: 44333 | J30: RIT - RP 800 - Célula F27 | K30: Transportes (inclui Fretes)
F31: =Indexador!H132 -> Despesa 2017 | H31: 44333 | J31: RIT - RP 800 - Célula F28 | K31: Propaganda e Publicidade (exceto Publicações Oficiais) | P31: Ultrapassagem de demanda e Excedente de reativos
F32: Perdas Regulatórias | J32: RIT - RP 800 - Célula F29 | K32: Publicações Oficiais | P32: Tipo de Receita | Q32: 2020-10-01 | R32: 2020-09-01 | S32: 2020-08-01 | T32: 2020-07-01 | U32: 2020-06-01 | V32: 2020-05-01 | W32: 2020-04-01 | X32: 2020-03-01 | Y32: 2020-02-01 | Z32: 2020-01-01 | AA32: 2019-12-01 | AB32: 2019-11-01 | AC32: 2019-10-01 | AD32: 2019-09-01 | AE32: 2019-08-01 | AF32: 2019-07-01 | AG32: 2019-06-01 | AH32: 2019-05-01 | AI32: 2019-04-01 | AJ32: 2019-03-01 | AK32: 2019-02-01 | AL32: 2019-01-01 | AM32: 2018-12-01 | AN32: 2018-11-01 | AO32: 2018-10-01 | AP32: 2018-09-01 | AQ32: 2018-08-01 | AR32: 2018-07-01 | AS32: 2018-06-01 | AT32: 2018-05-01 | AU32: 2018-04-01 | AV32: 2018-03-01 | AW32: 2018-02-01 | AX32: 2018-01-01 | AY32: 2017-12-01 | AZ32: 2017-11-01 | BA32: 2017-10-01 | BB32: 2017-09-01 | BC32: 2017-08-01 | BD32: 2017-07-01 | BE32: 2017-06-01 | BF32: 2017-05-01 | BG32: 2017-04-01 | BH32: 2017-03-01 | BI32: 2017-02-01 | BJ32: 2017-01-01 | BK32: 2016-12-01 | BL32: 2016-11-01
F33: Perdas Não Técnicas | H33: 44301 | J33: RIT - RP 800 - Célula F30 | K33: Serviço de Engenharia e Supervisão de Obras | P33: Ultrapassagem de demanda
F34: Perdas Técnicas | H34: 44301 | J34: RIT - RP 800 - Célula F31 | K34: Gestão Comercial | P34: Excedente de reativos
J35: RIT - RP 800 - Célula F32 | K35: Outros Serviços Terceirizados
F36: Dados da Revisão Anterior - Componente Pd | J36: RIT - RP 800 - Célula F33 | K36: (-) Créditos de Tributos Recuperáveis | P36: Receitas Irrecuperáveis | Q36: Meses
F37: Data Base Ativos e Consumidores | H37: 44301 | J37: RIT - RP 800 - Célula F34 | K37: Transferências da Administração Central | P37: Faturamento Total | Q37: 49 | R37: 50 | S37: 51 | T37: 52 | U37: 53 | V37: 54 | W37: 55 | X37: 56 | Y37: 57 | Z37: 58 | AA37: 59 | AB37: 60
F38: Mercado AT (MWh) | H38: 44301 | K38: Subtotal | L38: =SUM(L25:L37) -> 0 | M38: =SUM(M25:M37) -> 0 | P38: 1.Residencial
F39: Mercado MT (MWh) | H39: 44301 | J39: CONTA SEGUROS | P39: 2.Industrial
F40: Mercado BT (MWh) | H40: 44301 | J40: BMP - 610531001; 610551001; 610533001; 610553001 | K40: Seguros | P40: 3.Comercial
F41: Número de unidades consumidoras | H41: 44301 | J41: BMP - 610531099; 610551099; 610533099; 610553099 | K41: Outros | P41: 4.Rural
J42: BMP - 610531010; 610551010; 610533010; 610553010 | K42: (-) Créditos de Tributos Recuperáveis | P42: 5.Poder Público
F43: OPEX | K43: Subtotal | L43: =SUM(L40:L42) -> 0 | M43: =SUM(M40:M42) -> 0 | P43: 6.Iluminação Pública
F44: Extensão de redes subterrâneas (Km) | H44: 44301 | J44: CONTA TRIBUTOS | P44: 7.Serviço Público
F45: Extensão de rede de distribuição aérea (Km) | H45: 44301 | J45: BMP - 6105316; 6105516; 6105336; 6105536 | K45: Tributos
F46: Extensão de rede de alta tensão (Km) | H46: 44301 | K46: (+) Créditos de Tributos Recuperáveis | L46: =L45 -> 0 | M46: =M45 -> 0 | P46: Receitas Irrecuperáveis | Q46: Meses
F47: ="% PNT / BT Real de "&IF(MONTH(LnkTxtDRPData)>6,YEAR(LnkTxtDRPData)-1,YEAR(LnkTxtDRPData)-2) & " (Medido)" -> % PNT / BT Real de 2020 (Medido) | H47: 44301 | J47: CONTA OUTROS | P47: Faturamento não recebido até dez do ano anterior | Q47: 49 | R47: 50 | S47: 51 | T47: 52 | U47: 53 | V47: 54 | W47: 55 | X47: 56 | Y47: 57 | Z47: 58 | AA47: 59 | AB47: 60
F48: ="% PNT / BT Real de "&IF(MONTH(LnkTxtDRPData)>6,YEAR(LnkTxtDRPData)-1,YEAR(LnkTxtDRPData)-2)-1 & " (Medido)" -> % PNT / BT Real de 2019 (Medido) | H48: 44301 | J48: BMP - 610531901; 610551901; 610533901; 610553901 | K48: Indenização por Perdas e Danos | P48: 1.Residencial
F49: ="% PNT / BT Real de "&IF(MONTH(LnkTxtDRPData)>6,YEAR(LnkTxtDRPData)-1,YEAR(LnkTxtDRPData)-2)-2 & " (Medido)" -> % PNT / BT Real de 2018 (Medido) | H49: 44301 | J49: BMP - 610531902; 610551902; 610533902; 610553902 | K49: Consumo Próprio de Energia | P49: 2.Industrial
F50: ="DEC Apurado "&IF(MONTH(LnkTxtDRPData)>3,YEAR(LnkTxtDRPData)-1,YEAR(LnkTxtDRPData)-2) -> DEC Apurado 2021 | H50: 44301 | J50: BMP - 610531905 | K50: Despesas com Conselho de Consumidores | P50: 3.Comercial
F51: ="DEC Apurado "&IF(MONTH(LnkTxtDRPData)>3,YEAR(LnkTxtDRPData)-1,YEAR(LnkTxtDRPData)-2)-1 -> DEC Apurado 2020 | H51: 44301 | J51: BMP - 610531903; 610551903; 610533903; 610553903 | K51: Taxa de Arrecadação | P51: 4.Rural
F52: ="DEC Apurado "&IF(MONTH(LnkTxtDRPData)>3,YEAR(LnkTxtDRPData)-1,YEAR(LnkTxtDRPData)-2)-2 -> DEC Apurado 2019 | H52: 44301 | J52: BMP - 610531904; 610551904; 610533904; 610553904 | K52: Taxas Bancárias | P52: 5.Poder Público
F53: Meta de % PNT / BT (Medido) | H53: 44301 | J53: BMP - 610531910; 610551910; 610533910; 610553910 | K53: (-) Créditos de Tributos Recuperáveis | P53: 6.Iluminação Pública
F54: DEC 8 anos (Limite V8) | H54: 44301 | K54: Subtotal | L54: =SUM(L48:L53) -> 0 | M54: =SUM(M48:M53) -> 0 | P54: 7.Serviço Público
J55: Demais
K56: Condenações Trabalhistas | P56: Previsão CCEE | Q56: =DATE(YEAR(LnkTxtDRPData),MONTH(LnkTxtDRPData),DAY(1)) -> 2022-04-01 | R56: =DATE(YEAR(Q56),MONTH(Q56)+1,DAY(1)) -> 2022-05-01 | S56: =DATE(YEAR(R56),MONTH(R56)+1,DAY(1)) -> 2022-06-01 | T56: 2022-07-01 | U56: 2022-08-01 | V56: 2022-09-01 | W56: 2022-10-01 | X56: 2022-11-01 | Y56: 2022-12-01 | Z56: 2023-01-01 | AA56: 2023-02-01 | AB56: 2023-03-01
F57: Dados da última Revisão Tarifária | K57: Gastos com CCEE | P57: GSF | AC57: PMO abril/21
F58: Custos Operacionais (CO3) | H58: 44301 | J58: BMP - 611511401 | K58: Perdas na Alienação e Desativação | P58: PLD
F59: Receitas Irrecuperáveis - Encargos Setoriais (Vi) | H59: 44301 | J59: BMP - 611112103 | K59: Ganhos na Alienação de Materiais
F60: Demais Receitas Irrecuperáveis (Vse) | H60: 44301
F61: Remuneração do Capital (RC) | H61: 44301
F62: Quota de Reintegração Regulatória (QRR) | H62: 44301
F63: Custo anual das instalações móveis e imóveis (CAIMI) | H63: 44301
H64: 44309
F65: Índice de Produtividade + Mecanismo de Qualidade (Pd+Q) | H65: 44301
F66: Outras Receitas (OR) (inserir o valor positivo) | H66: 44301
F67: Componente T - Última Revisão | H67: 44301
F70: Base de Ativios - SFF
F71: (1) Ativo Imobilizado em Serviço (Valor Novo de Reposição)
F72: (2) Índice de Aproveitamento Integral
F73: (3) Obrigações Especiais Bruta
F74: (4) Bens Totalmente Depreciados
F75: (5) Base de Remuneração Bruta = (1)-(2)-(3)-(4) | G75: =G71-G72-G73-G74 -> 0 | H75: =G75*(Índices!$D$389/Índices!$D$341)/1000 -> 0
F76: (6) Depreciação Acumulada
F77: (7) AIS Líquido (Valor de Mercado em Uso) | G77: =G71-G76 -> 0
F78: (8) Índice de Aproveitamento Depreciado
F79: (9) Valor da Base de Remuneração (VBR) | G79: =G77-G78 -> 0
F80: (10) Almoxarifado em Operação
F81: (11) Ativo Diferido
F82: (12) Obrigações Especiais Líquida
F83: (13) Terrenos e Servidões
F84: (14) Base de Rem. Líquida Total = (9)+(10)+(11)-(12)+(13) | G84: =G79+G80+G81-G82+G83 -> 0 | H84: =G84*(Índices!$D$389/Índices!$D$341)/1000 -> 0
F85: (15) Saldo RGR PLPT | G85: =G106*F112 -> 0
F86: (16) Saldo RGR Demais Investimentos
F87: (17) Taxa de Depreciação
F88: (18) Quota de Reintegração Regulatória = (5) * (17) | G88: =G87*G75 -> 0
F91: Base de Ativios - Ciclo anterior
F92: (1) Ativo Imobilizado em Serviço (Valor Novo de Reposição) | H92: =G7/G92-1 -> 
F93: (2) Índice de Aproveitamento Integral | H93: =G8/G93-1 -> 
F94: (3) Obrigações Especiais Bruta
F95: (4) Bens Totalmente Depreciados
F96: (5) Base de Remuneração Bruta = (1)-(2)-(3)-(4) | G96: =G92-G93-G94-G95 -> 0 | J96: =G96*(Índices!$D$389/Índices!$D$341)/1000 -> 0
F97: (6) Depreciação Acumulada
F98: (7) AIS Líquido (Valor de Mercado em Uso) | G98: =G92-G97 -> 0
F99: (8) Índice de Aproveitamento Depreciado
F100: (9) Valor da Base de Remuneração (VBR) | G100: =G98-G99 -> 0
F101: (10) Almoxarifado em Operação
F102: (11) Ativo Diferido
F103: (12) Obrigações Especiais Líquida
F104: (13) Terrenos e Servidões
F105: (14) Base de Rem. Líquida Total = (1)-(6)-(8)+(10)+(11)-(12)+(13) | G105: =G100+G101+G102-G103+G104 -> 0 | J105: =G105*(Índices!$D$389/Índices!$D$341)/1000 -> 0
F106: (15) Saldo RGR PLPT
F107: (16) Saldo RGR Demais Investimentos
F108: (17) Taxa de Depreciação
F109: (18) Quota de Reintegração Regulatória = (5) * (17) | G109: =G96*G108 -> 0

Sheet Resultado
B1: =CAPA!C7&" "&CAPA!B6&"/"&YEAR(CAPA!$C$10) -> Reajuste ESE/2022
B2: Resultado | F2: Parâmetros a serem considerados para os Reajustes subsequentes
B4: RA1 | D4: =D39+D44 -> 1636706580 | F4: FATOR X | K4: Última versão enviada: | L4: 22
B5: RA0 | D5: =Mercado!D24 -> 1470814999 | F5: Componente T do Fator X | G5: ='VPB e Fator X'!C36 ->  | K5: Data de envio | L5: 2022-04-13T11:55:05
B6: Índice de Reposição/Reajuste (Anexo II) | D6: =D4/D5-1 -> 0.1127888828 | F6: Componente Pd do Fator X | G6: ='VPB e Fator X'!C33 -> 0.004748821798
B7: Componentes Financeiros | D7: =Financeiros!E8 -> 0.008354577684 | K7: Efeito Consumidor
B8: Índice de Reposição/Reajuste com Financeiros (Anexo I) | D8: =D6+D7 -> 0.1211434605 | F8: PERDAS | K8: Efeito Grupo A - Alta tensão | L8: 0.1475832226
F9: Perdas Não Técnicas | G9: =Entrada!G33 -> 0 | K9: Efeito Grupo B - Baixa tensão | L9: 0.1688474482
C10: DRA | D10: DRP | F10: Perdas Técnicas | G10: =Entrada!G34 -> 0 | K10: Efeito tarifário médio AT+BT | L10: 0.1624356761
B11: TOTAL (Parcela A + Parcela B) | C11: =C44+C39 -> 1470814999 | D11: =D44+D39 -> 1636706580 | K11: Tarifa B1 - Residencial (R$) | L11: 677.9853425
D12: =D11+Financeiros!D8/(1+Mercado!G13) -> 1648994618 | H12: 198563.52
K13: Subvenção da CDE para descontos tarifários (Valores anuais)
H14: =H12/D5 -> 0.0001350023763 | K14: Subsídio Carga Fonte Incentivada | L14: 31480968.01
K15: Subsídio Geração Fonte Incentivada | L15: 4596021.162
B16: Parcela A | F16: Formação da Parcela B e Reposicionamento (Resumo) | K16: Subsídio Distribuição | L16: 0
K17: Subsídio Água, Esgoto e Saneamento | L17: 2215811.235
C18: DRA | D18: DRP | K18: Subsídio Rural | L18: 2763888.514
B19: ENCARGOS | C19: =SUM(C20:C28) -> 134565939.3 | D19: =SUM(D20:D28) -> 197364466.8 | F19: Custo de Administração, Operação e Manutenção (CAOM) | G19: =SUM(G20:G22) ->  | K19: Subsídio Irrigante/Aquicultor | L19: 6665979.825
B20: Reserva Global de Reversão – RGR | C20: 0 | D20: =Encargos!C16 -> 0 | F20: Custos Operacionais (CO) | G20: ='VPB e Fator X'!C121 -> 
B21: Conta de Consumo de Combustíveis – CCC | C21: 0 | D21: =Encargos!C9 -> 0 | F21: Receitas Irrecuperáveis - Encargos Setoriais (Vi) | G21: ='VPB e Fator X'!C201 -> 0 | K21: Versão de Mercado
B22: Taxa de Fisc. de Serviços de E.E. – TFSEE | C22: =Mercado!I66 -> 2536299.633 | D22: =Encargos!C17 -> 2819440.257 | F22: Demais Receitas Irrecuperáveis (Vse) | G22: ='VPB e Fator X'!C205 -> 0 | K22: Status de Sincronização de BDL | L22: Trabalha na pasta de rede
B23: Conta de Desenvolvimento Energético – CDE | C23: =Mercado!H66+Mercado!AA66+Mercado!AB66+Mercado!AC66+Mercado!AD66 -> 68723239.52 | D23: =Encargos!C10 -> 99732813.2 | F23: Custo Anual dos Ativos (CAA) | G23: =SUM(G24:G26) ->  | K23: Última Sincronização
B24: Compensação financeira - CFURH | C24: =Mercado!J66 -> 0 | D24: =Encargos!C11 -> 0 | F24: Remuneração do Capital (RC) | G24: ='VPB e Fator X'!C95 -> 
B25: Encargos Serv. Sist. - ESS e Energ. Reserv. - EER | C25: =Mercado!F66 -> 26142446.23 | D25: =Encargos!C12 -> 44173415.51 | F25: Quota de Reintegração Regulatória (QRR) | G25: ='VPB e Fator X'!C77 -> 
B26: PROINFA | C26: =Mercado!G66 -> 23721875.1 | D26: =Encargos!C13 -> 35275305.42 | F26: Custo anual das instalações móveis e imóveis (CAIMI) | G26: ='VPB e Fator X'!C67 -> 
B27: P&D e Eficiência Energética | C27: =Mercado!D66 -> 13366975.29 | D27: =Encargos!C15 -> 15291061.72 | F27: Parcela B (VPB) | G27: =SUM(G23,G19) -> 
B28: Contribuição ONS | C28: =Mercado!E66 -> 75103.54878 | D28: =Encargos!C14 -> 72430.71429 | F28: Índice de Produtividade da Parcela B | G28: ='VPB e Fator X'!C33 -> 0.004748821798
B29: TRANSPORTE | C29: =SUM(C30:C37) -> 104639087.4 | D29: =SUM(D30:D37) -> 94162567.93 | F29: Mecanismo de Incentivo à Qualidade | G29: ='VPB1'!F42 -> 0.0008563441726
B30: Rede Básica | C30: ='RB e Conexão'!D6 -> 78397187.75 | D30: ='RB e Conexão'!E6 -> 66354216.57 | F30: Parcela B com ajustes | G30: =(1-G28-G29)*G27 -> 
B31: Rede Básica Fronteira | C31: ='RB e Conexão'!D7 -> 17107077.56 | D31: ='RB e Conexão'!E7 -> 14020374.31 | F31: 2. Outras Receitas (OR) | G31: ='VPB e Fator X'!D186 -> 0
B32: Rede Básica ONS (A2) | C32: =VLOOKUP("TUSDg ONS DRA",TUSDG[],2,FALSE) -> 0 | D32: =VLOOKUP("TUSDg ONS DRP",TUSDG[],2,FALSE) -> 0 | F32: Ultrapassagem de Demanda | G32: ='VPB e Fator X'!D193 -> 0
B33: Rede Básica Export. (A2) | C33: =VLOOKUP("TUSDg Export DRA",TUSDG[],2,FALSE) -> 0 | D33: =VLOOKUP("TUSDg Export DRP",TUSDG[],2,FALSE) -> 0 | F33: Excedente de Reativos | G33: ='VPB e Fator X'!D194 -> 0
B34: MUST Itaipu | C34: ='RB e Conexão'!D8 -> 0 | D34: ='RB e Conexão'!E8 -> 0 | F34: Parcela B deduzidas as outras receitas | G34: =G30-G31-G32-G33 -> 
B35: Transporte de Itaipu | C35: =SUMPRODUCT(itaiputransporte[Potência],itaiputransporte[Tarifa DRA]) -> 0 | D35: =SUMPRODUCT(itaiputransporte[Potência],itaiputransporte[Tarifa DRP]) -> 0
B36: Conexão | C36: =IF(YEAR(CAPA!C10)=2013,Entrada!C46,BD!C40) -> 9134822.105 | D36: ='RB e Conexão'!E9 -> 13787977.05 | F36: Receita Requerida (RR) | G36: =G30+D39 -> 
B37: Uso do sistema de distribuição e CCD | C37: =CUSD!C14 -> 0 | D37: =CUSD!D14+CUSD!E14 -> 0 | F37: Outras Receitas (OR) | G37: =G31 -> 0
B38: ENERGIA | C38: =Energia!C15 -> 628194569.7 | D38: =Energia!D15 -> 672453144.3 | F38: Receita Verificada (RV) | G38: =Mercado!D24 -> 1470814999
B39: VPA (ENCARGO + TRANSPORTE + ENERGIA) | C39: =C38+C29+C19 -> 867399596.4 | D39: =D19+D29+D38 -> 963980179.1
B41: Parcela B
C43: VPB0 | D43: VPB1
B44: ="Parcela B "&IF(CAPA!C7="Revisão","(menos Outras Receitas)",) -> Parcela B | C44: ='VPB1'!C10 -> 603415402.5 | D44: ='VPB1'!C12 -> 672726400.5

Sheet NT Revisao (hidden)
B2: Tabelas
B4: Custo Operacional
B5: Receitas Irrecuperáveis
B6: Remuneração do Capital e Quota de Reintegração
B7: CAIMI
B8: Parcela B Ajustada
B9: Outras Receitas
B10: Cálculo das Perdas
B11: Energia Requerida
B12: Transmissão
B13: Encargos Setoriais
B18: Custo Operacional | E18: Voltar
B19: Limites de Eficiência
B20: Descrição | C20: Limite Inferior | D20: Centro | E20: Limite Superior
B21: 1. Eficiência | C21: ='VPB e Fator X'!C133 ->  | D21: ='VPB e Fator X'!C131 ->  | E21: ='VPB e Fator X'!C132 -> 
B22: 2. OPEX Benchmarking (Atualizado) - R$ | C22: ='VPB e Fator X'!C136 ->  | D22: =(E22+C22)/2 ->  | E22: ='VPB e Fator X'!C135 -> 
B24: Comparação com intervalo de CO eficientes
B25: Descrição | C25: Valor
B26: 3. OPEX nas tarifas - R$ | C26: ='VPB e Fator X'!C111 -> 
B27: 4. Meta estudo de eficiência - R$ | C27: ='VPB e Fator X'!C114 -> 
B28: 5. Variação Anual (%) | C28: ='VPB e Fator X'!C115 -> 
B29: 6. Meta da eficiência aplicado o limite de 5% a.a. | C29: ='VPB e Fator X'!C117 -> 
B31: Avaliação do prêmio de eficiência
B32: Descrição | C32: Reais
B33: 7. OPEX Real - R$ | C33: ='VPB e Fator X'!C118 -> 0
B34: 8. Meta OPEX | C34: ='VPB e Fator X'!C114 -> 
B35: 9. Relação OPEX Real / Meta OPEX | C35: ='VPB e Fator X'!C119 -> 
B36: 10. Meta OPEX aplicada a regra de compartilhamento | C36: ='VPB e Fator X'!C120 -> 
B38: 11. Número de anos no ciclo | C38: 4
B39: 12. OPEX na revisão [ = 3. + (10. - 3.) / 11.] | C39: ='VPB e Fator X'!C121 -> 
G41: Receitas Irrecuperáveis | J41: Voltar
G42: Descrição | H42: Receita Base (R$) | I42: % RI | J42: RI (R$)
G43: Encargos Setoriais | H43: ='VPB e Fator X'!C202/(1-'VPB e Fator X'!C203) -> 271827669.3 | I43: ='VPB e Fator X'!C204 ->  | J43: =Resultado!G21 -> 0
G44: Restante da Receita | H44: =SUM('VPB e Fator X'!C206:C208,'VPB e Fator X'!C26)/(1-'VPB e Fator X'!C203) ->  | I44: ='VPB e Fator X'!C209 ->  | J44: =Resultado!G22 -> 0
G45: Total | H45: =SUM(H43:H44) ->  | I45: =J45/H45 ->  | J45: =SUM(J43:J44) -> 0
L47: Remuneração do Capital e Quota de Reintegração | M47: Voltar
L48: Descrição | N48: Colunas1
L49: (1) Ativo Imobilizado em Serviço (Valor Novo de Reposição) | M49: ='VPB e Fator X'!C71 ->  | N49: =IF(M49=0,0,1) -> 
L50: (2) Índice de Aproveitamento Integral | M50: ='VPB e Fator X'!C72 -> 
L51: (3) Obrigações Especiais Bruta | M51: ='VPB e Fator X'!C73 -> 
L52: (4) Bens Totalmente Depreciados | M52: ='VPB e Fator X'!C74 -> 
L53: (5) Base de Remuneração Bruta = (1)-(2)-(3)-(4) | M53: ='VPB e Fator X'!C75 -> 
L54: (6) Depreciação Acumulada | M54: ='VPB e Fator X'!C82 -> 
L55: (7) AIS Líquido (Valor de Mercado em Uso) | M55: ='VPB e Fator X'!C83 -> 
L56: (8) Índice de Aproveitamento Depreciado | M56: ='VPB e Fator X'!C84 -> 
L57: (9) Valor da Base de Remuneração (VBR) = (1)-(6)-(8) | M57: ='VPB e Fator X'!C85 -> 
L58: (10) Almoxarifado em Operação | M58: ='VPB e Fator X'!C86 -> 
L59: (11) Ativo Diferido | M59: ='VPB e Fator X'!C87 -> 
L60: (12) Obrigações Especiais Líquida | M60: ='VPB e Fator X'!C88 -> 
L61: (13) Terrenos e Servidões | M61: ='VPB e Fator X'!C89 -> 
L62: (14) Base de Remuneração Líquida Total = (9)+(10)+(11)-(12)+(13) | M62: ='VPB e Fator X'!C90 -> 
L63: (15) Base de Remuneração Ativos Concessionária | M63: =M62-M69-M72 ->  | N63: =IF(M63=0,0,1) -> 
L64: (16) WACC | M64: ='VPB e Fator X'!F81 -> 0.1082749759 | N64: =IF(M63=0,0,1) -> 
L65: (17) Remuneração Ativos Concessionária | M65: =M63*M64 -> 
L66: (18) Base Obrigações Especiais | M66: ='VPB e Fator X'!G91 ->  | N66: =IF(M66=0,0,1) -> 
L67: (19) Taxa de Remuneração das Obrigações Especiais | M67: ='VPB e Fator X'!G95/'VPB e Fator X'!G91 ->  | N67: =IF(M66=0,0,1) -> 
L68: (20) Remuneração de Obrigações Especiais | M68: =M66*M67 ->  | N68: =IF(M68=0,0,1) -> 
L69: (21) Saldo RGR/PLPT | M69: ='VPB e Fator X'!C91 -> 
L70: (22) Taxa RGR/PLPT | M70: ='VPB e Fator X'!F82 -> 0.00677460118 | N70: =IF(M69=0,0,1) -> 
L71: (23) Remuneração RGR/PLPT | M71: =M69*M70 ->  | N71: =IF(M71=0,0,1) -> 
L72: (24) Saldo RGR/Demais Investimentos | M72: ='VPB e Fator X'!C92 ->  | N72: =IF(M72=0,0,1) -> 
L73: (25) Saldo RGR/Demais Investimentos | M73: ='VPB e Fator X'!H83 -> 0 | N73: =IF(M72=0,0,1) -> 
L74: (26) Remuneração RGR Demais Investimentos | M74: =M72*M73 ->  | N74: =IF(M74=0,0,1) -> 
L75: (21) Remuneração do Capital = (17)+(20) | M75: =M65+M68++M71+M74 -> 
L76: (16) Saldo RGR Demais Investimentos | M76: ='VPB e Fator X'!C92 -> 
L77: (22) Taxa de Depreciação | M77: ='VPB e Fator X'!C76 -> 0 | N77: 0
L78: (23) Quota de Reintegração Regulatória = (5) * (22) | M78: ='VPB e Fator X'!C77 -> 
O80: CAIMI | P80: Voltar
O81: Descrição | P81: Valores (R$)
O82: ='VPB e Fator X'!B60 -> (1) Base de Anuidade Regulatória (BAR) | P82: ='VPB e Fator X'!C60 -> 
O83: ='VPB e Fator X'!B61 -> (2) Base de Anuidade - Infraestrutura de imóveis e móveis administrativos (BARA) | P83: ='VPB e Fator X'!C61 -> 
O84: ='VPB e Fator X'!B62 -> (3) Base de Anuidade - Veículos (BARV) | P84: ='VPB e Fator X'!C62 -> 
O85: ='VPB e Fator X'!B63 -> (4) Base de Anuidade - Sistemas de Informática (BARI) | P85: ='VPB e Fator X'!C63 -> 
O86: ='VPB e Fator X'!B64 -> (5) Anuidade - Infraestrutura de imóveis e móveis administrativos (CAL) | P86: ='VPB e Fator X'!C64 -> 
O87: ='VPB e Fator X'!B65 -> (6) Anuidade - Veículos (CAV) | P87: ='VPB e Fator X'!C65 -> 
O88: ='VPB e Fator X'!B66 -> (7) Anuidade - Sistemas de Informática (CAI) | P88: ='VPB e Fator X'!C66 -> 
O89: ='VPB e Fator X'!B67 -> (8) CAIMI = (5)+(6)+(7) | P89: ='VPB e Fator X'!C67 -> 
R91: Parcela B ajustada | S91: Voltar
R92: Descrição | S92: Valores
R93: =Resultado!F19 -> Custo de Administração, Operação e Manutenção (CAOM) | S93: =Resultado!G19 -> 
R94: =Resultado!F20 -> Custos Operacionais (CO) | S94: =Resultado!G20 -> 
R95: =Resultado!F21 -> Receitas Irrecuperáveis - Encargos Setoriais (Vi) | S95: =Resultado!G21 -> 0
R96: =Resultado!F22 -> Demais Receitas Irrecuperáveis (Vse) | S96: =Resultado!G22 -> 0
R97: =Resultado!F23 -> Custo Anual dos Ativos (CAA) | S97: =Resultado!G23 -> 
R98: =Resultado!F24 -> Remuneração do Capital (RC) | S98: =Resultado!G24 -> 
R99: =Resultado!F25 -> Quota de Reintegração Regulatória (QRR) | S99: =Resultado!G25 -> 
R100: =Resultado!F26 -> Custo anual das instalações móveis e imóveis (CAIMI) | S100: =Resultado!G26 -> 
R101: =Resultado!F27 -> Parcela B (VPB) | S101: =Resultado!G27 -> 
R102: =Resultado!F28 -> Índice de Produtividade da Parcela B | S102: =Resultado!G28 -> 0.004748821798
R103: =Resultado!F29 -> Mecanismo de Incentivo à Qualidade | S103: =Resultado!G29 -> 0.0008563441726
R104: =Resultado!F30 -> Parcela B com ajustes | S104: =Resultado!G30 -> 
U106: Outras Receitas | W106: Voltar | X106: Colunas1
U107: Descrição das atividades | V107: Compartilhamento | W107: Receita Regulatória | X107: =IF(W107=0,0,1) -> 1
U108: Serviços Cobráveis | V108: 0.6 | W108: ='VPB e Fator X'!D165 -> 0 | X108: 0
U109: ='VPB e Fator X'!B166 -> Arrecadação de convênios ou valores pela fatura e arredação por terceiros | V109: 0.6 | W109: ='VPB e Fator X'!D166 -> 0 | X109: 0
U110: ='VPB e Fator X'!B167 -> Receita proveniente da comercialização de resultados de projetos de P&D | V110: 0.5 | W110: ='VPB e Fator X'!D167 -> 0 | X110: 0
U111: ='VPB e Fator X'!B168 -> Veiculação de publicidade | V111: 0.6 | W111: ='VPB e Fator X'!D168 -> 0 | X111: 0
U112: ='VPB e Fator X'!B169 -> Aluguel ou cessão onerosa de imóveis e espaços físicos | V112: 0.6 | W112: ='VPB e Fator X'!D169 -> 0 | X112: 0
U113: ='VPB e Fator X'!B170 -> Compartilhamento de infraestrutura (Média 24 meses) | V113: 0.6 | W113: ='VPB e Fator X'!D170 -> 0 | X113: 0
U114: ='VPB e Fator X'!B171 -> Serviços de avaliação técnica e aferição de medidores. | V114: 0.6 | W114: ='VPB e Fator X'!D171 -> 0 | X114: 0
U115: ='VPB e Fator X'!B172 -> Operacionalização de serviço de créditos tributários | V115: 0.6 | W115: ='VPB e Fator X'!D172 -> 0 | X115: 0
U116: Elaboração de projeto, construção, operação, manutenção ou reforma de: | X116: 1
U117: (1) redes de distribuição de energia elétrica destinadas à regularização fundiária de interesse específico e ao atendimento dos empreendimentos de múltiplas unidades consumidoras; | V117: 0.6 | W117: ='VPB e Fator X'!D174 -> 0 | X117: 0
U118: (2) redes de energia elétrica destinadas ao acesso dos sistemas de distribuição ou transmissão; | V118: 0.6 | W118: ='VPB e Fator X'!D175 -> 0 | X118: 0
U119: (3) subestações de energia; | V119: 0.6 | W119: ='VPB e Fator X'!D176 -> 0 | X119: 0
U120: (4) instalações elétricas internas de unidades consumidoras; | V120: 0.6 | W120: ='VPB e Fator X'!D177 -> 0 | X120: 0
U121: (5) banco de capacitores: | V121: 0.6 | W121: ='VPB e Fator X'!D178 -> 0 | X121: =IF(W121=0,0,1) -> 0
U122: (6) padrões de entrada de unidades consumidoras atendidas em baixa tensão; | V122: 0.6 | W122: ='VPB e Fator X'!D179 -> 0 | X122: =IF(W121=0,0,1) -> 0
U123: (7) sistemas de medição de energia elétrica; | V123: 0.6 | W123: ='VPB e Fator X'!D180 -> 0 | X123: 0
U124: (8) geradores, incluindo-se unidades de microgeração e minigeração distribuída; | V124: 0.3 | W124: ='VPB e Fator X'!D181 -> 0 | X124: =IF(W124=0,0,1) -> 0
U125: (9) sistemas de iluminação pública. | V125: 0.6 | W125: ='VPB e Fator X'!D182 -> 0 | X125: =IF(W124=0,0,1) -> 0
U126: Eficientização do consumo de energia elétrica e instalação de cogeração qualificada, desde que não enquadráveis nos projetos de Pesquisa e Desenvolvimento (P&D) ou de Eficiência Energética estabelecidos em lei | V126: 0.3 | W126: ='VPB e Fator X'!D183 -> 0 | X126: =IF(W126=0,0,1) -> 0
U127: Serviços de comunicação de dados | V127: 0.3 | W127: ='VPB e Fator X'!D184 -> 0 | X127: 0
U128: Serviços de consultoria | V128: 0.6 | W128: ='VPB e Fator X'!D185 -> 0 | X128: =IF(W127=0,0,1) -> 0
U129: Total | W129: =SUM(W108:W128) -> 0 | X129: =IF(W129=0,0,1) -> 0
Y131: UDER | AA131: Voltar
Y132: Descrição | Z132: Média Anual | AA132: Média Anual Corrigido SELIC
Y133: Ultrapassagem de Demanda - UD | Z133: =SUM(Entrada!Q33:BL33)/4 -> 0 | AA133: ='VPB e Fator X'!D193 -> 0
Y134: Excedente de Reativos - ER | Z134: =SUM(Entrada!Q34:BL34)/4 -> 0 | AA134: ='VPB e Fator X'!D194 -> 0
Y135: UDER | Z135: =SUM(Z133:Z134) -> 0 | AA135: =SUM(AA133:AA134) -> 0
X136: =IF(W136=0,0,1) -> 0
X137: =IF(W137=0,0,1) -> 0
AC138: Calculo das Perdas | AD138: Voltar
AC139: Cálculo do Ponto de Partida
AC140: Descrição | AD140: Perda Não Técnica (% BT)
AC141: Meta Ciclo Anterior Faturada | AD141: 0.1317
AC142: Ajuste Medido x Faturado | AD142: 0.02633245462
X143: =IF(W143=0,0,1) -> 0 | AC143: Meta Ciclo anterior Medida | AD143: 0.1580324546
AC144: Média Histórica Medida | AD144: 0.1975119271
AC145: Ponto de Partida Medido | AD145: 0.1580324546
AC147: Cálculo do Ponto de Partida e Chegada após análise de flexibilização
AC148: Descrição | AD148: Modelo C | AE148: Modelo G | AF148: Modelo K
AC149: Empresa Benchmark | AD149: CEMAR | AE149: CEMAR | AF149: CEMAR
AC150: PNT/BT Benchmark | AD150: 0.124338444 | AE150: 0.124338444 | AF150: 0.124338444
AC151: PNT/BT CELPE - Referência ciclo anterior | AD151: 0.1739783884 | AE151: 0.1739783884 | AF151: 0.1739783884
AC152: Probabilidade de Comparação | AD152: 0.524485392 | AE152: 0.7610241883 | AF152: 0.2585737374
AC153: PNT/BT Meta baseada em cada Benchmark | AD153: 0.1479429627 | AE153: 0.13620119 | AF153: 0.1611428025
AC154: PNT/BT Média dos Benchmarks (medido) | AE154: =AVERAGE(AD153:AF153) -> 0.1484289851
AC155: Ponto de Partida | AE155: 0.1580324546
AC156: Ponta de Chegada | AE156: 0.1580324546
AC157: PNT/BT Meta (medido) | AE157: =MIN(AE156:AF156) -> 0.1580324546
AC159: Trajetória
AC160: Descrição | AD160: Ponto Partida | AE160: =YEAR(CAPA!C10) -> 2022 | AF160: =AE160+1 -> 2023 | AG160: =AF160+1 -> 2024 | AH160: =AG160+1 -> 2025
AC161: Trajetória PNT/BT Medido | AD161: 0.1580324546 | AE161: 0.1580324546 | AF161: 0.1580324546 | AG161: 0.1580324546 | AH161: 0.1580324546
AC162: Velocidade de Redução (a.a) | AD162: 0 | AE162: 0 | AF162: 0 | AG162: 0 | AH162: 0
AC163: Limite de Redução (a.a) | AD163: Não se aplica | AE163: Não se aplica | AF163: Não se aplica | AG163: Não se aplica | AH163: Não se aplica
AC164: Diferença entre medido e faturado | AD164: =AD142 -> 0.02633245462 | AE164: =AD164 -> 0.02633245462 | AF164: =AE164 -> 0.02633245462 | AG164: 0.02633245462 | AH164: 0.02633245462
AC165: Referencial Regulatório PNT/BT | AD165: =AD161-AD164 -> 0.1317 | AE165: =AE161-AE164 -> 0.1317 | AF165: 0.1317 | AG165: 0.1317 | AH165: 0.1317
AC166: Referencial Regulatório PT/Einj | AD166: =LnkTxtPT -> 0 | AE166: =LnkTxtPT -> 0 | AF166: =LnkTxtPT -> 0 | AG166: =LnkTxtPT -> 0 | AH166: =LnkTxtPT -> 0
AJ168: Energia Requerida | AK168: Voltar
AJ169: Descrição | AK169: Energia (MWh)
AJ170: Perdas na Rede Básica | AK170: =Energia!I18+Energia!I19 -> 78209.03538
AJ171: Perdas na Distribuição | AK171: =AK172+AK173 -> 354809.6749
AJ172: Perdas Técnicas | AK172: =Energia!I17 -> 266241.0298
AJ173: Perdas Não Técnicas | AK173: =Energia!I16 -> 88568.64505
AJ174: Energia Vendida | AK174: =Energia!D6 -> 2674169.726
AJ175: Energia Requerida | AK175: =SUM(AK170:AK171,AK174) -> 3107188.436
AM177: Transmissão | AN177: Voltar
AM178: Descrição | AN178: Valor (R$) | AO178: Colunas1
AM179: Rede Básica | AN179: =Resultado!D30 -> 66354216.57 | AO179: =IF(AN179=0,0,1) -> 1
AM180: Rede Básica Fronteira | AN180: =Resultado!D31 -> 14020374.31 | AO180: =IF(AN180=0,0,1) -> 1
AM181: Rede Básica ONS (A2) | AN181: =Resultado!D32 -> 0 | AO181: 0
AM182: Rede Básica Export. (A2) | AN182: =Resultado!D33 -> 0 | AO182: 0
AM183: MUST Itaipu | AN183: =Resultado!D34 -> 0 | AO183: 0
AM184: Transporte de Itaipu | AN184: =Resultado!D35 -> 0 | AO184: 0
AM185: Conexão | AN185: =Resultado!D36 -> 13787977.05 | AO185: 1
AM186: Uso do sistema de distribuição | AN186: =Resultado!D37 -> 0 | AO186: 0
AM187: Total | AN187: =SUM(AN179:AN186) -> 94162567.93
AP189: Encargos Setoriais | AQ189: Voltar
AP190: Descrição | AQ190: Valor (R$) | AR190: Dispositivo Legal | AS190: Colunas1
AP191: Taxa de Fisc. de Serviços de E.E. – TFSEE | AQ191: =Resultado!D22 -> 2819440.257 | AR191: Conforme módulo 5.5 do PRORET | AS191: =IF(AQ191=0,0,1) -> 1
AP192: Conta de Desenvolvimento Energético – CDE | AQ192: =Resultado!D23 -> 99732813.2 | AR192: =Encargos!D10 -> NT 294/2021 - valor provisório Quota 2022 e Previsão-2022 | AS192: 1
AP193: Compensação financeira - CFURH | AQ193: =Resultado!D24 -> 0 | AR193: =Encargos!D11 -> 0 | AS193: 0
AP194: Encargos Serv. Sist. - ESS e Energ. Reserv. - EER | AQ194: =Resultado!D25 -> 44173415.51 | AR194: =Encargos!D12 -> Desp 226/2022 | AS194: 1
AP195: PROINFA | AQ195: =Resultado!D26 -> 35275305.42 | AR195: =Encargos!D13 -> ReH 2.995/2021 | AS195: 1
AP196: P&D, Efic.Energ e Ressarc.ICMS Sist.Isol. | AQ196: =Resultado!D27 -> 15291061.72 | AR196: Res. Normativa nº 316/2008 | AS196: 1
AP197: ONS | AQ197: =Resultado!D28 -> 72430.71429 | AR197: =Encargos!D14 -> Contribuição 2021 | AS197: 1
AP198: Total | AQ198: =SUM(AQ191:AQ197) -> 197364466.8
AT200: TabRevAvalRTE
AT201: Descrição | AU201: Receita Verificada (R$) | AV201: Receita Requerida (R$) | AW201: Variação | AX201: Participação na Revisão | AY201: Participação na Receita
AT202: PARCELA A | AU202: =AU203+AU213+AU222 -> 848501482.7 | AV202: =AV203+AV213+AV222 -> 963980179.1 | AW202: =IF(ISERROR(AV202/AU202-1),0,AV202/AU202-1) -> 0.136097224 | AX202: =IF(ISERROR((AV202-AU202)/$AU$230),0,(AV202-AU202)/$AU$230) -> 0.07851340679 | AY202: =IF(ISERROR(AV202/($AV$230)),0,AV202/($AV$230)) -> 0.5889755629
AT203: Encargos Setoriais | AU203: =SUM(AU204:AU212) -> 115667825.6 | AV203: =SUM(AV204:AV212) -> 197364466.8 | AW203: =IF(ISERROR(AV203/AU203-1),0,AV203/AU203-1) -> 0.7063039421 | AX203: 0.055545151 | AY203: 0.1205863466 | AZ203: Colunas1 | BA203: =SUM(AU204:AU205,AU209:AU212) -> 115667825.6 | BB203: =SUM(AV204:AV205,AV209:AV212) -> 178535225.8 | BC203: =BB203/BA203-1 -> 0.543516746
AT204: Taxa de Fisc. de Serviços de E.E. – TFSEE | AU204: =SUM(DADOS_MercadoBase[TFSEE]) -> 2536299.633 | AV204: =Resultado!D22 -> 2819440.257 | AW204: =IF(ISERROR(AV204/AU204-1),0,AV204/AU204-1) -> 0.1116353209 | AX204: 0.0001925059398 | AY204: 0.001722630246 | AZ204: =IF(SUM(AU204:AV204)<>0,1,0) -> 1
AT205: Conta de Desenvolvimento Energético – CDE (USO) | AU205: =SUM(DADOS_MercadoBase[CDE],DADOS_MercadoBase[RTE_CDE_E]) -> 49825125.81 | AV205: =Encargos!G22 -> 80903572.19 | AW205: =IF(ISERROR(AV205/AU205-1),0,AV205/AU205-1) -> 0.6237504848 | AX205: 0.0211300853 | AY205: 0.04943071239 | AZ205: 1
AT206: Conta de Desenv. Energético – CDE Conta-Covid (TUSD) | AU206: =SUM(DADOS_MercadoBase[CDE_E_Dec],DADOS_MercadoBase[RTE_CDE_E_Dec]) -> 0 | AV206: =Encargos!G23 -> 9196083.994 | AW206: 0 | AX206: 0.006252373004 | AY206: 0.005618651571 | AZ206: 1
AT207: Conta de Desenv. Energético – CDE Conta-Covid (TE) | AU207: =SUM(DADOS_MercadoBase[CDE_E_ACR],DADOS_MercadoBase[RTE_CDE_E_ACR]) -> 0 | AV207: =Encargos!G24 -> 9633157.01 | AW207: =IF(ISERROR(AV207/AU207-1),0,AV207/AU207-1) -> 0 | AX207: 0.006549536833 | AY207: 0.005885695781 | AZ207: 1
AT208: Compensação financeira - CFURH | AU208: =SUM(DADOS_MercadoBase[CFURH]) -> 0 | AV208: =Resultado!D24 -> 0 | AW208: 0 | AX208: 0 | AY208: 0 | AZ208: 0
AT209: Encargos Serv. Sist. - ESS e Energ. Reserv. - EER | AU209: =SUM(DADOS_MercadoBase[ESSERR]) -> 26142446.23 | AV209: =Resultado!D25 -> 44173415.51 | AW209: 0.6897200482 | AX209: 0.01225916875 | AY209: 0.02698920873 | AZ209: 1
AT210: PROINFA | AU210: =SUM(DADOS_MercadoBase[PROINFA]) -> 23721875.1 | AV210: =Resultado!D26 -> 35275305.42 | AW210: 0.4870369763 | AX210: 0.007855121364 | AY210: 0.02155261417 | AZ210: 1
AT211: P&D, Efic.Energ e Ressarc.ICMS Sist.Isol. | AU211: =SUM(DADOS_MercadoBase[PeD],DADOS_MercadoBase[RTE_PeD]) -> 13366975.29 | AV211: =Resultado!D27 -> 15291061.72 | AW211: 0.1439432924 | AX211: 0.001308177054 | AY211: 0.009342579736 | AZ211: 1
AT212: ONS | AU212: =Resultado!C28 -> 75103.54878 | AV212: =Resultado!D28 -> 72430.71429 | AW212: -0.03558865773 | AX212: -1.817247236e-06 | AY212: 4.42539397e-05 | AZ212: 1
AT213: Custos de Transmissão | AU213: =SUM(AU214:AU221) -> 104639087.4 | AV213: =SUM(AV214:AV221) -> 94162567.93 | AW213: -0.1001205165 | AX213: -0.007122934894 | AY213: 0.05753173422 | AZ213: 1
AT214: Rede Básica | AU214: ='RB e Conexão'!D6 -> 78397187.75 | AV214: =Resultado!D30 -> 66354216.57 | AW214: -0.1536148364 | AX214: -0.008187957818 | AY214: 0.04054130252 | AZ214: 1
AT215: Rede Básica Fronteira | AU215: ='RB e Conexão'!D7 -> 17107077.56 | AV215: =Resultado!D31 -> 14020374.31 | AW215: -0.1804342816 | AX215: -0.002098634602 | AY215: 0.008566211247 | AZ215: 1
AT216: Rede Básica ONS (A2) | AU216: =VLOOKUP("TUSDg ONS DRA",TUSDG[#Data],2,FALSE) -> 0 | AV216: =Resultado!D32 -> 0 | AW216: 0 | AX216: 0 | AY216: 0 | AZ216: 0
AT217: Rede Básica Export. (A2) | AU217: =VLOOKUP("TUSDg Export DRA",TUSDG[#Data],2,FALSE) -> 0 | AV217: =Resultado!D33 -> 0 | AW217: 0 | AX217: 0 | AY217: 0 | AZ217: 0
AT218: MUST Itaipu | AU218: =SUM(DADOS_MercadoBase[TUST_ITAIPU]) -> 0 | AV218: =Resultado!D34 -> 0 | AW218: 0 | AX218: 0 | AY218: 0 | AZ218: 0
AT219: Transporte de Itaipu | AU219: =SUMPRODUCT(itaiputransporte[Potência],itaiputransporte[Tarifa DRA]) -> 0 | AV219: =Resultado!D35 -> 0 | AW219: 0 | AX219: 0 | AY219: 0 | AZ219: 0
AT220: Conexão | AU220: ='RB e Conexão'!D9 -> 9134822.105 | AV220: =Resultado!D36 -> 13787977.05 | AW220: 0.509386487 | AX220: 0.003163657526 | AY220: 0.008424220455 | AZ220: 1
AT221: Uso do sistema de distribuição | AU221: =CUSD!C14 -> 0 | AV221: =Resultado!D37 -> 0 | AW221: 0 | AX221: 0 | AY221: 0 | AZ221: 0
... 69 more rows

Sheet Apresentação
B2: Efeito Médio | L2: Efeito Médio CP x Final | U2: Composição Tarifária - Tributos | Z2: Composição Tarifária - ICMS & PIS/COFINS | AD2: Composição Tarifária - sem Tributos
Z18: Composição da Receita com Tributos | AD18: Composição da Receita sem Tributos - Encargos Segregados
U19: =Z19 -> Custo de Distribuição | W19: =AB19 -> 2.090492329e-11 | Z19: =AD19 -> Custo de Distribuição | AB19: =AF19/$AB$25 -> 2.090492329e-11 | AD19: Custo de Distribuição | AF19: =IF(CAPA!C7="Reajuste",'Votos e NTs'!BO266,'NT Revisao'!AV223) -> 0.04712421212
U20: =Z20 -> Custo de Energia | W20: =AB20 -> 0.298309102 | Z20: =AD20 -> Custo de Energia | AB20: =AF20/AB25 -> 0.298309102 | AD20: Custo de Energia | AF20: =IF(CAPA!C8="Reajuste",'Votos e NTs'!BO265,'NT Revisao'!AV222) -> 672453144.3 | AN20: ='NT Revisao'!AT224 -> Custos Operacionais | AQ20: ='NT Revisao'!AX224 -> 0
U21: =Z21 -> Custo de Transporte | W21: =AB21 -> 0.04177175959 | Z21: Custo de Transporte | AB21: =AF21/$AB$25 -> 0.04177175959 | AD21: Custo de Transporte | AF21: =IF(CAPA!C8="Reajuste",'Votos e NTs'!BO256,'NT Revisao'!AV213) -> 94162567.93 | AN21: ='NT Revisao'!AT225 -> Anuidades | AQ21: ='NT Revisao'!AX225 -> 0
U22: =Z22 -> Encargos Setoriais | W22: =AB22 -> 0.3859838079 | Z22: Encargos Setoriais | AB22: =SUM(AF22:AF25/$AB$25) -> 0.3859838079 | AD22: PROINFA | AF22: =IF(CAPA!C9="Reajuste",'Votos e NTs'!BO253,'NT Revisao'!AV210) -> 35275305.42 | AN22: ='NT Revisao'!AT226 -> Remuneração | AQ22: ='NT Revisao'!AX226 -> 0
C23: Impacto da RTA na Tarifa | M23: Impacto da RTA na Tarifa | P23: CP 003/21 | Q23: Final | U23: Tributos | W23: =AB23+AB24 -> 0.2739353306 | Z23: ='Votos e NTs'!O29 -> ICMS | AB23: =Mercado!G9 -> 0.2368660456 | AD23: CDE | AF23: =IF(CAPA!C10="Reajuste",SUM('Votos e NTs'!BL248:BL250),SUM('NT Revisao'!AV205:AV207)) -> 99732813.2 | AN23: ='NT Revisao'!AT227 -> Depreciação | AQ23: ='NT Revisao'!AX227 -> 0
C24: Encargos Setoriais | F24: =IF(CAPA!C7="Reajuste",'Votos e NTs'!BO246,'NT Revisao'!AX203) -> 0.04269641494 | M24: Encargos Setoriais | P24: ='AP x Final'!I4 ->  | Q24: =F24 -> 0.04269641494 | Z24: ='Votos e NTs'!O30 -> PIS/COFINS | AB24: =Mercado!G10 -> 0.03706928502 | AD24: ESS/EER | AF24: =IF(CAPA!C11="Reajuste",'Votos e NTs'!BO252,'NT Revisao'!AV209) -> 44173415.51 | AN24: ='NT Revisao'!AT228 -> Receitas Irrecuperáveis | AQ24: ='NT Revisao'!AX228 -> 0
C25: Transporte | F25: =IF(CAPA!C7="Reajuste",'Votos e NTs'!BO256,'NT Revisao'!AX213) -> -0.007122934894 | M25: Custos de Transporte | P25: ='AP x Final'!I14 ->  | Q25: -0.007122934894 | Z25: TOTAL com Impostos | AB25: =AF26/(1-AB23-AB24) -> 2254215979 | AD25: Outros | AF25: =AF26-SUM(AF19:AF24) -> 690909333.1 | AN25: ='NT Revisao'!AT229 -> Outras Receitas + Exc. Reativos + Ult. Demanda | AQ25: ='NT Revisao'!AX229 -> 0
C26: Compra de Energia | F26: =IF(CAPA!C7="Reajuste",'Votos e NTs'!BO265,'NT Revisao'!AX222) -> 0.03009119068 | M26: Custos de Compra de Energia | P26: ='AP x Final'!I23 ->  | Q26: 0.03009119068 | AD26: TOTAL | AF26: =IF(CAPA!C13="Reajuste",'Votos e NTs'!BO267,'NT Revisao'!AV230) -> 1636706580 | AN26: Parcela B | AQ26: =SUM(AQ20:AQ25) -> 0
C27: Distribuição | F27: =IF(CAPA!C7="Reajuste",'Votos e NTs'!BO266,'NT Revisao'!AX223) -> 0.04712421212 | M27: Distribuição | P27: ='AP x Final'!I24 ->  | Q27: =F27 -> 0.04712421212
C28: Componentes Financeiros | F28: =IF(CAPA!C7="Reajuste",'Votos e NTs'!BO269,'NT Revisao'!AX232) -> 0.008354577684 | M28: Componentes Financeiros | P28: ='AP x Final'!I34 ->  | Q28: =F28 -> 0.008354577684
C29: Retirada dos Financeiros Anteriores | F29: =F30-SUM(F24:F28) -> 0.04129221553 | M29: Retirada dos Financeiros Anteriores | P29: =P30-SUM(P24:P28) ->  | Q29: =F29 -> 0.04129221553
C30: Efeito Médio Consumidor | F30: =Resultado!L10 -> 0.1624356761 | M30: Efeito Médio Consumidor | P30: ='AP x Final'!I73 -> 0 | Q30: =SUM(Q24:Q29) -> 0.1624356761
C34: Efeito Subgrupo
C35: GRUPO | D35: EFEITO
C36: Grupo A | D36: =Resultado!L8 -> 0.1475832226
C37: Grupo B | D37: =Resultado!L9 -> 0.1688474482
C38: Grupos A+B | D38: =Resultado!L10 -> 0.1624356761
F40: Compra de Energia
F41: Contratos | G41: Montantes (MWh) | J41: Preço (R$/MWh) | M41: Impacto Processo
G42: Processo Anterior | H42: Processo Atual | I42: Variação | J42: Processo Anterior | K42: Processo Atual | L42: Variação | N42: Colunas1
F43: CCEAR | G43: =(SUM('Votos e NTs'!BS327:BS330)+'Votos e NTs'!BS$339*SUM('Votos e NTs'!BS327:BS330)/SUM('Votos e NTs'!BS$327:BS$338)) -> 1443218.903 | H43: =(SUM('Votos e NTs'!BT327:BT330)+'Votos e NTs'!BT$339*SUM('Votos e NTs'!BT327:BT330)/SUM('Votos e NTs'!BT$327:BT$338)) -> 1471321.753 | I43: =IFERROR(H43/G43-1,"") -> 0.01947234034 | J43: =IFERROR(SUM('Votos e NTs'!BY327:BY330)/SUM('Votos e NTs'!BS327:BS330),"") -> 254.8744824 | K43: =IFERROR(SUM('Votos e NTs'!BZ327:BZ330)/SUM('Votos e NTs'!BT327:BT330),"") -> 273.9594279 | L43: =IFERROR(K43/J43-1,"") -> 0.07487978121 | M43: =SUM('Votos e NTs'!CE346:CE349) -> 0.01969403366 | N43: =IF(G43+H43=0,0,1) -> 1
F44: Ajuste - CCEAR | G44: =('Votos e NTs'!BS334+'Votos e NTs'!BS$339*'Votos e NTs'!BS334/SUM('Votos e NTs'!BS$327:BS$338)) -> 0 | H44: =('Votos e NTs'!BT334+'Votos e NTs'!BT$339*'Votos e NTs'!BT334/SUM('Votos e NTs'!BT$327:BT$338)) -> 0 | J44: =IFERROR('Votos e NTs'!BY334/'Votos e NTs'!BS334,"") ->  | K44: =IFERROR('Votos e NTs'!BZ334/'Votos e NTs'!BT334,"") ->  | L44: =IFERROR(K44/J44-1,"") ->  | M44: ='Votos e NTs'!CE353 -> 0 | N44: 0
F45: Madeira e Belo Monte | G45: =('Votos e NTs'!BS331+'Votos e NTs'!BS$339*'Votos e NTs'!BS331/SUM('Votos e NTs'!BS$327:BS$338)) -> 455624.8383 | H45: =('Votos e NTs'!BT331+'Votos e NTs'!BT$339*'Votos e NTs'!BT331/SUM('Votos e NTs'!BT$327:BT$338)) -> 455553.9533 | I45: -0.0001555774507 | J45: =IFERROR('Votos e NTs'!BY331/'Votos e NTs'!BS331,"") -> 145.7130199 | K45: =IFERROR('Votos e NTs'!BZ331/'Votos e NTs'!BT331,"") -> 160.9862496 | L45: =IFERROR(K45/J45-1,"") -> 0.1048171923 | M45: ='Votos e NTs'!CE350 -> 0.004671485691 | N45: 1
F46: Cota Angra I e Angra II | G46: =('Votos e NTs'!BS332+'Votos e NTs'!BS$339*'Votos e NTs'!BS332/SUM('Votos e NTs'!BS$327:BS$338)) -> 107844.9391 | H46: =('Votos e NTs'!BT332+'Votos e NTs'!BT$339*'Votos e NTs'!BT332/SUM('Votos e NTs'!BT$327:BT$338)) -> 98289.53796 | I46: -0.08860314853 | J46: =IFERROR('Votos e NTs'!BY332/'Votos e NTs'!BS332,"") -> 249.64 | K46: =IFERROR('Votos e NTs'!BZ332/'Votos e NTs'!BT332,"") -> 349.15 | L46: =IFERROR(K46/J46-1,"") -> 0.3986140042 | M46: ='Votos e NTs'!CE351 -> 0.006110212569 | N46: 1
F47: Cotas Lei n º 12.783/2013 | G47: =('Votos e NTs'!BS333+'Votos e NTs'!BS$339*'Votos e NTs'!BS333/SUM('Votos e NTs'!BS$327:BS$338)) -> 812867.675 | H47: =('Votos e NTs'!BT333+'Votos e NTs'!BT$339*'Votos e NTs'!BT333/SUM('Votos e NTs'!BT$327:BT$338)) -> 660438.7623 | I47: -0.1875199586 | J47: =IFERROR('Votos e NTs'!BY333/'Votos e NTs'!BS333,"") -> 114.7263804 | K47: =IFERROR('Votos e NTs'!BZ333/'Votos e NTs'!BT333,"") -> 122.649011 | L47: =IFERROR(K47/J47-1,"") -> 0.06905674691 | M47: ='Votos e NTs'!CE352 -> 0.01237788616 | N47: 1
F48: Itaipu | G48: =('Votos e NTs'!BS335+'Votos e NTs'!BS$339*'Votos e NTs'!BS335/SUM('Votos e NTs'!BS$327:BS$338)) -> 0 | H48: =('Votos e NTs'!BT335+'Votos e NTs'!BT$339*'Votos e NTs'!BT335/SUM('Votos e NTs'!BT$327:BT$338)) -> 0 | J48: =IFERROR('Votos e NTs'!BY335/'Votos e NTs'!BS335,"") ->  | K48: =IFERROR('Votos e NTs'!BZ335/'Votos e NTs'!BT335,"") ->  | M48: ='Votos e NTs'!CE354 -> 0 | N48: 0
F49: Bilateral | G49: =('Votos e NTs'!BS336+'Votos e NTs'!BS$339*'Votos e NTs'!BS336/SUM('Votos e NTs'!BS$327:BS$338)) -> 102746.6175 | H49: =('Votos e NTs'!BT336+'Votos e NTs'!BT$339*'Votos e NTs'!BT336/SUM('Votos e NTs'!BT$327:BT$338)) -> 0 | I49: -1 | J49: =IFERROR('Votos e NTs'!BY336/'Votos e NTs'!BS336,"") -> 404.9082477 | K49: =IFERROR('Votos e NTs'!BZ336/'Votos e NTs'!BT336,"") ->  | M49: ='Votos e NTs'!CE355 -> -0.01349786001 | N49: 1
F50: Geração Própria | G50: =('Votos e NTs'!BS337+'Votos e NTs'!BS$339*'Votos e NTs'!BS337/SUM('Votos e NTs'!BS$327:BS$338)) -> 0 | H50: =('Votos e NTs'!BT337+'Votos e NTs'!BT$339*'Votos e NTs'!BT337/SUM('Votos e NTs'!BT$327:BT$338)) -> 0 | J50: =IFERROR('Votos e NTs'!BY337/'Votos e NTs'!BS337,"") ->  | K50: =IFERROR('Votos e NTs'!BZ337/'Votos e NTs'!BT337,"") ->  | M50: ='Votos e NTs'!CE356 -> 0 | N50: 0
F51: Montante de Reposição | G51: =('Votos e NTs'!BS338+'Votos e NTs'!BS$339*'Votos e NTs'!BS338/SUM('Votos e NTs'!BS$327:BS$338)) -> 0 | H51: =('Votos e NTs'!BT338+'Votos e NTs'!BT$339*'Votos e NTs'!BT338/SUM('Votos e NTs'!BT$327:BT$338)) -> 0 | J51: =IFERROR('Votos e NTs'!BY338/'Votos e NTs'!BS338,"") ->  | K51: =IFERROR('Votos e NTs'!BZ338/'Votos e NTs'!BT338,"") ->  | M51: ='Votos e NTs'!CE357 -> 0 | N51: 0
F52: Proinfa | G52: ='Votos e NTs'!BS339 -> 60587.30906 | H52: ='Votos e NTs'!BT339 -> 55270.67351 | I52: -0.08775163709 | J52: =IFERROR('Votos e NTs'!BY339/'Votos e NTs'!BS339,"") -> 0 | K52: =IFERROR('Votos e NTs'!BZ339/'Votos e NTs'!BT339,"") -> 0 | M52: ='Votos e NTs'!CE358 -> 0.0007354326037 | N52: 1
F53: Total | G53: =SUM(G43:G52) -> 2982890.282 | H53: =SUM(H43:H52) -> 2740874.68 | I53: -0.08113459746 | J53: ='Votos e NTs'!BV341 -> 202.6487008 | K53: ='Votos e NTs'!BW341 -> 216.4185269 | L53: 0.06794924469 | M53: =SUM(M43:M52) -> 0.03009119068
O55: Encargos Setoriais
O56: Encargos Setoriais | P56: Processo Anterior (mil R$) | Q56: Processo Atual (mil R$) | R56: Impacto Processo | S56: Colunas1
O57: TFSEE | P57: ='Votos e NTs'!BL247/1000 -> 2536.299633 | Q57: ='Votos e NTs'!BM247/1000 -> 2819.440257 | R57: ='Votos e NTs'!BO247 -> 0.0001925059398 | S57: =IF(P57+Q57=0,0,1) -> 1
O58: CDE (USO) | P58: ='Votos e NTs'!BL248/1000 -> 49825.12581 | Q58: ='Votos e NTs'!BM248/1000 -> 80903.57219 | R58: ='Votos e NTs'!BO248 -> 0.0211300853 | S58: 1
O59: CDE Conta Covid (TUSD) | P59: ='Votos e NTs'!BL249/1000 -> 9741.31036 | Q59: ='Votos e NTs'!BM249/1000 -> 9196.083994 | R59: ='Votos e NTs'!BO249 -> -0.0003706967678 | S59: 1
O60: CDE Conta Covid (TE) | P60: ='Votos e NTs'!BL250/1000 -> 9156.803348 | Q60: ='Votos e NTs'!BM250/1000 -> 9633.15701 | R60: ='Votos e NTs'!BO250 -> 0.00032387055 | S60: 1
O61: Compensação financeira - CFURH | P61: ='Votos e NTs'!BL251/1000 -> 0 | Q61: ='Votos e NTs'!BM251/1000 -> 0 | R61: ='Votos e NTs'!BO251 -> 0 | S61: 0
O62: ESS/EER | P62: ='Votos e NTs'!BL252/1000 -> 26142.44623 | Q62: ='Votos e NTs'!BM252/1000 -> 44173.41551 | R62: ='Votos e NTs'!BO252 -> 0.01225916875 | S62: 1
O63: PROINFA | P63: ='Votos e NTs'!BL253/1000 -> 23721.8751 | Q63: ='Votos e NTs'!BM253/1000 -> 35275.30542 | R63: ='Votos e NTs'!BO253 -> 0.007855121364 | S63: 1
O64: P&D | P64: ='Votos e NTs'!BL254/1000 -> 13366.97529 | Q64: ='Votos e NTs'!BM254/1000 -> 15291.06172 | R64: ='Votos e NTs'!BO254 -> 0.001308177054 | S64: 1
O65: ONS | P65: ='Votos e NTs'!BL255/1000 -> 75.10354878 | Q65: ='Votos e NTs'!BM255/1000 -> 72.43071429 | R65: ='Votos e NTs'!BO255 -> -1.817247236e-06 | S65: 1
O66: Total de Encargos | P66: =SUM(P57:P65) -> 134565.9393 | Q66: =SUM(Q57:Q65) -> 197364.4668 | R66: =SUM(R57:R65) -> 0.04269641494
T68: Custos de Transporte
T69: Custos de Transporte | U69: Processo Anterior (mil R$) | V69: Processo Atual (mil R$) | W69: Impacto Processo | X69: Colunas1
T70: Rede Básica | U70: ='Votos e NTs'!BL257/1000 -> 78397.18775 | V70: ='Votos e NTs'!BM257/1000 -> 66354.21657 | W70: ='Votos e NTs'!BO257 -> -0.008187957818 | X70: =IF(U70+V70=0,0,1) -> 1
T71: Rede Básica Fronteira | U71: ='Votos e NTs'!BL258/1000 -> 17107.07756 | V71: ='Votos e NTs'!BM258/1000 -> 14020.37431 | W71: ='Votos e NTs'!BO258 -> -0.002098634602 | X71: 1
T72: Rede Básica ONS (A2) | U72: ='Votos e NTs'!BL259/1000 -> 0 | V72: ='Votos e NTs'!BM259/1000 -> 0 | W72: ='Votos e NTs'!BO259 -> 0 | X72: 0
T73: Rede Básica Export. (A2) | U73: ='Votos e NTs'!BL260/1000 -> 0 | V73: ='Votos e NTs'!BM260/1000 -> 0 | W73: ='Votos e NTs'!BO260 -> 0 | X73: 0
T74: MUST Itaipu | U74: ='Votos e NTs'!BL261/1000 -> 0 | V74: ='Votos e NTs'!BM261/1000 -> 0 | W74: ='Votos e NTs'!BO261 -> 0 | X74: 0
T75: Transporte de Itaipu | U75: ='Votos e NTs'!BL262/1000 -> 0 | V75: ='Votos e NTs'!BM262/1000 -> 0 | W75: ='Votos e NTs'!BO262 -> 0 | X75: 0
T76: Conexão | U76: ='Votos e NTs'!BL263/1000 -> 9134.822105 | V76: ='Votos e NTs'!BM263/1000 -> 13787.97705 | W76: ='Votos e NTs'!BO263 -> 0.003163657526 | X76: 1
T77: Uso do sistema de distribuição | U77: ='Votos e NTs'!BL264/1000 -> 0 | V77: ='Votos e NTs'!BM264/1000 -> 0 | W77: ='Votos e NTs'!BO264 -> 0 | X77: 0
T78: Total do Transporte | U78: =SUM(U70:U77) -> 104639.0874 | V78: =SUM(V70:V77) -> 94162.56793 | W78: =SUM(W70:W77) -> -0.007122934894
Y80: Parcela B - Reajuste
Y81: Descrição | AA81: Valor | AB81: Referência
Y82: (1) Parcela B Processo Anterior (mil R$) | AA82: ='Votos e NTs'!AQ143/1000 -> 603415.4025 | AB82: TUSD fio B aplicada ao Mercado
Y83: (2) Fator DR1/Fator PB | AA83: ='VPB1'!C38 -> 134565939.3 | AB83: SGT/ANEEL
Y84: (3) Parcela B Processo Anterior sem UDEROR (mil R$) | AA84: =AA82*AA83 -> 8.119916044e+13 | AB84: SGT/ANEEL
Y85: (4) IPCA | AA85: =LnkTxtIPCA -> 0.1129941213 | AB85: Indicador econômico oficial
Y86: (5) Fator X | AA86: =SUM(AA87:AA89) -> 0.03284073547 | AB86: Pd + T + Q
Y87: (5.1) Componente Pd do Fator X | AA87: ='VPB1'!F40 -> 0.01029596792 | AB87: ='Votos e NTs'!AR147 -> REH 2.387/2018
Y88: (5.2) Componente T do Fator X | AA88: ='VPB1'!F41 -> 0.02168842337 | AB88: ='Votos e NTs'!AR148 -> PRORET 2.5
Y89: (5.3) Componente Q do Fator X | AA89: ='VPB1'!F42 -> 0.0008563441726 | AB89: ='Votos e NTs'!AR149 -> 0
Y90: (6) UDEROR | AA90: =SUM(AA91:AA93) -> 0 | AB90: UD + ER + OR
Y91: (6.1) Outras Receitas (OR) | AA91: ='Votos e NTs'!AQ170/1000 -> 0 | AB91: Valores fiscalizados - SFF
Y92: (6.2) Excedente de Reativos (ER) | AA92: ='Votos e NTs'!AQ171/1000 -> 0 | AB92: Valores fiscalizados - SFF
Y93: (6.3) Ultrapassagem de Demanda (UD) | AA93: ='Votos e NTs'!AQ172/1000 -> 0 | AB93: Valores fiscalizados - SFF
Y94: (7) ONS | AB94: 0
Y95: Parcela B Atual (mil R$) | AA95: =AA84*(1+AA85-AA86)-AA90 -> 8.770754808e+13
AD97: Financeiros
AD98: Componentes Financeiros | AF98: Valor (mil R$) | AG98: Impacto Processo
AD99: CVA em processamento - Energia | AF99: =SUMIFS(Financeiros[Valor],Financeiros[idDet1],19,Financeiros[id_Grupo_TARIFA],2,Financeiros[idDet2],60,Financeiros[idDet3],999)/1000 -> 49455.06952 | AG99: =1000*AF99/Financeiros!$D$5 -> 0.03362426244
AD100: CVA em processamento -Transporte | AF100: =SUMIFS(Financeiros[Valor],Financeiros[idDet1],19,Financeiros[id_Grupo_TARIFA],1,Financeiros[idDet2],60,Financeiros[idDet3],999)/1000 -> 4564.144441 | AG100: =1000*AF100/Financeiros!$D$5 -> 0.003103139718
AD101: CVA em processamento - Encargos Setoriais | AF101: =SUMIFS(Financeiros[Valor],Financeiros[idDet1],19,Financeiros[id_Grupo_TARIFA],3,Financeiros[idDet2],60,Financeiros[idDet3],999)/1000 -> 101265.6716 | AG101: =1000*AF101/Financeiros!$D$5 -> 0.06885004005
AD102: Saldo a Compensar CVA-Ano Anterior + Ajustes | AF102: =SUMIFS(Financeiros[Valor],Financeiros[idDet1],19,Financeiros[idDet2],64, Financeiros[idDet3],999)/1000 -> 1207.011111 | AG102: =1000*AF102/Financeiros!$D$5 -> 0.0008206410135
AD103: Neutralidade de Parcela A - Encargos Setoriais | AF103: =SUMIFS(Financeiros[Valor],Financeiros[idDet1],20,Financeiros[idDet2],60,Financeiros[idDet3],999)/1000 -> -2735.200946 | AG103: =1000*AF103/Financeiros!$D$5 -> -0.001859649887
AD104: Sobrecontratação/exposição de energia | AF104: =SUMIFS(Financeiros[Valor],Financeiros[idDet1],22,Financeiros[id_Grupo_TARIFA],2,Financeiros[idDet2],60,Financeiros[idDet3],106)/1000+SUMIFS(Financeiros[Valor],Financeiros[idDet1],22,Financeiros[id_Grupo_TARIFA],2,Financeiros[idDet2],60,Financeiros[idDet3],101)/1000 -> 1790.936789 | AG104: =1000*AF104/Financeiros!$D$5 -> 0.001217649256
AD105: Previsão de Risco Hidrológico | AF105: =SUMIFS(Financeiros[Valor],Financeiros[idDet1],22,Financeiros[id_Grupo_TARIFA],2,Financeiros[idDet2],60,Financeiros[idDet3],220)/1000 -> 33862.36864 | AG105: =1000*AF105/Financeiros!$D$5 -> 0.02302286057
AD106: Reversão do Risco Hidrológico | AF106: =SUMIFS(Financeiros[Valor],Financeiros[idDet1],22,Financeiros[id_Grupo_TARIFA],2,Financeiros[idDet2],62,Financeiros[idDet3],220)/1000 -> -21001.90072 | AG106: =1000*AF106/Financeiros!$D$5 -> -0.01427909067
AD107: Reperfilamento de RBSE | AF107: =SUMIFS(Financeiros[Valor],Financeiros[idDet1],22,Financeiros[id_Grupo_TARIFA],1,Financeiros[idDet2],60,Financeiros[idDet3],999)/1000 -> 14159.52662 | AG107: =1000*AF107/Financeiros!$D$5 -> 0.009626993624
AD108: ICMS não compesando na compra de energia | AF108: ='Votos e NTs'!AZ183/1000 -> 0 | AG108: =1000*AF108/Financeiros!$D$5 -> 0
AD109: Reversão Conta-Covid - CVA em processamento | AF109: =SUMIFS(Financeiros[Valor],Financeiros[idDet1],19,Financeiros[idDet2],60,Financeiros[idDet3],233)/1000 -> 0 | AG109: =1000*AF109/Financeiros!$D$5 -> 0
AD110: Reversão Conta-Covid - Saldo a Compensar | AF110: =SUMIFS(Financeiros[Valor],Financeiros[idDet1],19,Financeiros[idDet2],64,Financeiros[idDet3],236)/1000 -> 0 | AG110: =1000*AF110/Financeiros!$D$5 -> 0
AD111: Reversão Conta-Covid - Neutralidade de Parcela A | AF111: =SUMIFS(Financeiros[Valor],Financeiros[idDet1],20,Financeiros[idDet2],60,Financeiros[idDet3],234)/1000 -> 0 | AG111: =1000*AF111/Financeiros!$D$5 -> 0
AD112: Reversão Conta-Covid - Sobrecontratação | AF112: =SUMIFS(Financeiros[Valor],Financeiros[idDet1],22,Financeiros[idDet2],60,Financeiros[idDet3],235)/1000 -> 0 | AG112: =1000*AF112/Financeiros!$D$5 -> 0
AD113: Reversão Conta Covid - Postergação | AF113: =SUMIFS(Financeiros[Valor],Financeiros[idDet1],22,Financeiros[idDet2],60,Financeiros[idDet3],196)/1000-AF114-AF115 ->  | AG113: =1000*AF113/Financeiros!$D$5 -> 
AD114: Prorrogação de Tarifas (abr/20 a jun/20) | AF114: =(#REF!+#REF!)/1000 ->  | AG114: =1000*AF114/Financeiros!$D$5 -> 
AD115: Diferimento CELPE | AF115: ='Votos e NTs'!AZ195/1000 -> -810.5916472 | AG115: =1000*AF115/Financeiros!$D$5 -> -0.0005511173382
AD116: Demais Financeiros | AF116: =AF117-SUM(AF99:AF115) ->  | AG116: =1000*AF116/Financeiros!$D$5 -> 
AD117: Total | AF117: ='Votos e NTs'!AZ224/1000 -> 12465.99808 | AG117: =SUM(AG99:AG116) -> 
AI119: B1 x Inflação
AJ120: Variação
AI121: IGP-M | AJ121: ='Votos e NTs'!$AB$38 -> 1.43910317
AI122: IPCA | AJ122: ='Votos e NTs'!$AC$38 -> 0.8331432253
AI123: Tarifa B1 | AJ123: ='Votos e NTs'!$AA$38 -> 0.9168914656
AL125: Financeiros
AL126: Resultado Bandeiras Tarifárias | AM126: Valor (mil R$) | AN126: Impacto Processo
AL127: Usinas com contrato por disponibilidade - CCEAR-D | AM127: -66519.46164 | AN127: -0.01144423021
AL128: Risco Hidrológico das usinas que repactuaram | AM128: 128197.3185 | AN128: 0.02205549458
AL129: Risco Hidrológico das usinas cotistas - CCGF | AM129: 103147.5557 | AN129: 0.01774584977
AL130: Risco Hidrológico da UHE ITAIPU | AM130: 87452.43744 | AN130: 0.01504560924
AL131: Encargos de Energia de Reserva - EER e de Serviço do Sistema - ESS | AM131: -102050.9453 | AN131: -0.01755718527
AL132: Resultado Mercado de Curto Prazo - MCP | AM132: 28529.54764 | AN132: 0.004908318602
AL133: Custo Total | AM133: 178756.4523 | AN133: 0.03075385671
AL134: Recolhimento pelas Bandeiras Tarifárias | AM134: -162443.7101 | AN134: -0.0279473581
AL135: Previsão do Risco Hidrológico no Processo Tarifário de 2018 | AM135: -162780.8718 | AN135: -0.02800536451
AL136: Receita Total | AM136: =AM134+AM135 -> -325224.5819 | AN136: =AN135+AN134 -> -0.05595272261
AL137: Custo não coberto antecipadamente | AM137: -146468.1296 | AN137: -0.0251988659
AP139: Remuneração do Capital
AP140: Descrição | AQ140: Ciclo Anterior | AR140: Ciclo Atual
AP141: Base Líquida (mil R$) | AQ141: ='Avaliação Parcela B'!J125/1000 ->  | AR141: ='Avaliação Parcela B'!K125/1000 -> 
AP142: Remuneração | AQ142: ='Avaliação Parcela B'!G126 ->  | AR142: ='Avaliação Parcela B'!H126 -> 
AT144: Quota de Reintegração
AT145: Descrição | AU145: Ciclo Anterior | AV145: Ciclo Atual
AT146: Base Bruta (mil R$) | AU146: ='Avaliação Parcela B'!J158/1000 ->  | AV146: ='Avaliação Parcela B'!K158/1000 -> 
AT147: Depreciação | AU147: ='Avaliação Parcela B'!G159 ->  | AV147: ='Avaliação Parcela B'!H159 -> 
AX149: Parcela B - Revisão
AX150: Descrição | AY150: Processo Anterior (mil R$) | AZ150: Processo Atual (mil R$) | BA150: Variação | BB150: Participação na Revisão
AX151: ='NT Revisao'!AT224 -> Custos Operacionais | AY151: ='NT Revisao'!AU224 ->  | AZ151: ='NT Revisao'!AV224 ->  | BA151: ='NT Revisao'!AW222 -> 0.07045360901 | BB151: ='NT Revisao'!AX224 -> 0
AX152: ='NT Revisao'!AT225 -> Anuidades | AY152: ='NT Revisao'!AU225 ->  | AZ152: ='NT Revisao'!AV225 ->  | BA152: ='NT Revisao'!AW223 -> 0.08100882107 | BB152: ='NT Revisao'!AX225 -> 0
AX153: ='NT Revisao'!AT226 -> Remuneração | AY153: ='NT Revisao'!AU226 ->  | AZ153: ='NT Revisao'!AV226 ->  | BA153: ='NT Revisao'!AW224 -> 0 | BB153: ='NT Revisao'!AX226 -> 0
AX154: ='NT Revisao'!AT227 -> Depreciação | AY154: ='NT Revisao'!AU227 ->  | AZ154: ='NT Revisao'!AV227 ->  | BA154: ='NT Revisao'!AW225 -> 0 | BB154: ='NT Revisao'!AX227 -> 0
AX155: ='NT Revisao'!AT228 -> Receitas Irrecuperáveis | AY155: ='NT Revisao'!AU228 ->  | AZ155: ='NT Revisao'!AV228 -> 0 | BA155: ='NT Revisao'!AW226 -> 0 | BB155: ='NT Revisao'!AX228 -> 0
AX156: Out.Receitas+Exc.Reativos+Ult.Demanda | AY156: ='NT Revisao'!AU229 ->  | AZ156: ='NT Revisao'!AV229 -> 0 | BA156: ='NT Revisao'!AW227 -> 0 | BB156: ='NT Revisao'!AX229 -> 0
AX157: ='NT Revisao'!AN220 -> 0 | AY157: ='NT Revisao'!AP220/1000 -> 0 | AZ157: ='NT Revisao'!AQ220/1000 -> 0 | BA157: ='NT Revisao'!AR220 -> 0 | BB157: ='NT Revisao'!AS220 -> 0
AX158: PARCELA B | AY158: =SUM(AY151:AY157) ->  | AZ158: =SUM(AZ151:AZ157) ->  | BA158: ='NT Revisao'!AW229 -> 0 | BB158: =SUM(BB151:BB156) -> 0
BD162: Enel RJ | BE162: 683.87 | BG162: 1 | BH162: Enel RJ | BJ162: 714.44
BD163: Celpa | BE163: 683.6 | BG163: 2 | BH163: Celpa | BJ163: 703.21
BD164: AmE | BE164: 664.84 | BG164: =BG163+1 -> 3 | BH164: EMS | BJ164: 700.36
BD165: Light | BE165: 663.1 | BG165: =BG164+1 -> 4 | BH165: Light | BJ165: 694.05
BD166: ENF | BE166: 649.89 | BG166: 5 | BH166: AmE | BJ166: 693.49
BD167: Eflul | BE167: 648.12 | BG167: 6 | BH167: EMT | BJ167: 690.12
BD168: EFLJC | BE168: 639.05 | BG168: 7 | BH168: ENF | BJ168: 662.44
BD169: Sulgipe | BE169: 636.31 | BG169: 8 | BH169: Forcel | BJ169: 654.63
BD170: Cemar | BE170: 630.18 | BG170: 9 | BH170: ETO | BJ170: 647.35
BD171: Cemig-D | BE171: 628.33 | BG171: 10 | BH171: Cemig | BJ171: 644.23
BD172: EMT | BE172: 626.84 | BG172: 11 | BH172: Eflul | BJ172: 641.69
BD173: Forcel | BE173: 619.01 | BG173: 12 | BH173: EFLJC | BJ173: 639.85
BD174: Roraima Energia | BE174: 617.77 | BG174: 13 | BH174: Celpe 2021 | BI174: Celpe 2021 | BJ174: 628.4189439
BD175: EMS | BE175: 608.65 | BG175: 14 | BH175: Cemar | BJ175: 628.21
BD176: Hidropan | BE176: 600.74 | BG176: 15 | BH176: EMG | BJ176: 627.73
BD177: ETO | BE177: 600.08 | BG177: 16 | BH177: Coelba | BJ177: 624.64
BD178: EMG | BE178: 595.83 | BG178: 17 | BH178: Sulgipe | BJ178: 619.22
BD179: Ceron | BE179: 576.82 | BG179: 18 | BH179: Hidropan | BJ179: 602.62
BD180: Chesp | BE180: 573.14 | BG180: 19 | BH180: CPFL Paulista | BJ180: 601.57
BD181: Uhenpal | BE181: 572.49 | BG181: 20 | BH181: Chesp | BJ181: 599.53
BD182: Eletroacre | BE182: 569.84 | BG182: 21 | BH182: Enel CE | BJ182: 594.36
BD183: Cepisa | BE183: 569.48 | BG183: 22 | BH183: ELFSM | BJ183: 593.39
BD184: RGE | BE184: 560.27 | BG184: 23 | BH184: RGE (agrupada) | BJ184: 589.57
BD185: Cocel | BE185: 557.12 | BG185: 24 | BH185: ESE | BJ185: 585.6
BD186: Coelba | BE186: 552.13 | BG186: 25 | BH186: Ceal | BJ186: 583.31
BD187: Celpe | BE187: 549.33 | BG187: 26 | BH187: Eletroacre | BJ187: 581.91
BD188: CPFL Santa Cruz | BE188: 547.69 | BG188: 27 | BH188: Cepisa | BJ188: 581.82
BD189: EPB | BE189: 545.4 | BG189: 28 | BH189: Roraima Energia | BJ189: 574.69
BD190: Eletrocar | BE190: 541.57 | BG190: 29 | BH190: Celpe 2020 | BI190: Celpe 2020 | BJ190: 574.34
BD191: CEA | BE191: 537.18 | BG191: 30 | BH191: Uhenpal | BJ191: 571.71
BD192: Ceal | BE192: 535.25 | BG192: 31 | BH192: CPFL Santa Cruz | BJ192: 564.97
BD193: Celg-D | BE193: 533.68 | BG193: 32 | BH193: Cosern | BJ193: 563.55
BD194: Elektro | BE194: 531.87 | BG194: 33 | BH194: EPB | BJ194: 562.11
BD195: ESE | BE195: 530.72 | BG195: 34 | BH195: Cocel | BJ195: 561.58
BD196: Enel CE | BE196: 529.49 | BG196: 35 | BH196: Eletrocar | BJ196: 561.45
BD197: EDP ES | BE197: 525.81 | BG197: 36 | BH197: EDP ES | BJ197: 557
BD198: EDP SP | BE198: 525.73 | BG198: 37 | BH198: Elektro | BJ198: 555.05
BD199: CPFL Paulista | BE199: 523.02 | BG199: 38 | BH199: CEEE-D | BJ199: 548.97
BD200: CEB-DIS | BE200: 518.01 | BG200: 39 | BH200: Enel GO | BJ200: 547.39
BD201: ELFSM | BE201: 517.96 | BG201: 40 | BH201: EDP SP | BJ201: 546.11
BD202: Copel-DIS | BE202: 517.61 | BG202: 41 | BH202: Demei | BJ202: 537.88
BD203: Eletropaulo | BE203: 515.59 | BG203: 42 | BH203: Enel SP | BJ203: 534.19
BD204: CEEE-D | BE204: 515.07 | BG204: 43 | BH204: CPFL Piratininga | BJ204: 533.55
BD205: Ienergia | BE205: 510.62 | BG205: 44 | BH205: MuxEnergia | BJ205: 527.79
BD206: DMED | BE206: 507.42 | BG206: 45 | BH206: DMED | BJ206: 525.57
BD207: Demei | BE207: 507.03 | BG207: 46 | BH207: CEB-DIS | BJ207: 514.78
BD208: Cosern | BE208: 505.53 | BG208: 47 | BH208: Ceron | BJ208: 514.38
BD209: EBO | BE209: 497.66 | BG209: =BG208+1 -> 48 | BH209: ESS (agrupada) | BJ209: 513.89
BD210: Sul Sudeste | BE210: 497.35 | BG210: 49 | BH210: Copel-DIS | BJ210: 512.77
BD211: CPFL Piratininga | BE211: 490.18 | BG211: 50 | BH211: Ienergia | BJ211: 512.48
BD212: MuxEnergia | BE212: 485.22 | BG212: 51 | BH212: Cooperaliança | BJ212: 512
BD213: Celesc-DIS | BE213: 469.78 | BG213: 52 | BH213: Celesc-DIS | BJ213: 505.99
BD214: Cooperaliança | BE214: 467.6 | BG214: 53 | BH214: CEA | BJ214: 505.25
BG215: 54 | BH215: EBO | BJ215: 497.66
CE218: DEC | CV218: FEC
CG219: =CH219-1 -> 2013 | CH219: 2014 | CI219: 2015 | CJ219: 2016 | CK219: 2017 | CL219: 2018 | CM219: 2019 | CN219: 2020 | CO219: =CP219-1 -> 2021 | CP219: =YEAR(CAPA!$C$10) -> 2022 | CQ219: =CP219+1 -> 2023 | CR219: =CQ219+1 -> 2024 | CS219: 2025 | CT219: 2026 | CX219: =CY219-1 -> 2013 | CY219: 2014 | CZ219: 2015 | DA219: 2016 | DB219: 2017 | DC219: 2018 | DD219: 2019 | DE219: 2020 | DF219: =DG219-1 -> 2021 | DG219: =YEAR(CAPA!$C$10) -> 2022 | DH219: =DG219+1 -> 2023 | DI219: =DH219+1 -> 2024 | DJ219: 2025 | DK219: 2026
CE220: DEC Apurado | CH220: 23.76 | CI220: 25.51 | CJ220: 19.31 | CK220: 15.8 | CL220: 16.98 | CM220: 12.51 | CN220: 11.96 | CO220: 12.41 | CV220: FEC Apurado | CY220: 8.87 | CZ220: 8.84 | DA220: 8.12 | DB220: 7.13 | DC220: 7.56 | DD220: 8.97 | DE220: 5.69 | DF220: 5.56
CE221: DEC Limite | CH221: 16.39 | CI221: 16.39 | CJ221: 15.48 | CK221: 14.71 | CL221: 13.91 | CM221: 13.82 | CN221: 13.67 | CO221: 13.35 | CP221: 13.22 | CV221: FEC Limite | CY221: 12.48 | CZ221: 12.05 | DA221: 11.04 | DB221: 10.19 | DC221: 9.35 | DD221: 9.26 | DE221: 8.7 | DF221: 8.33 | DG221: 8.1
CE222: DEC Limite Proposto | CQ222: 12.92 | CR222: 12.33 | CS222: 11.86 | CT222: 11.48 | CV222: FEC Limite Proposto | DH222: 8.05 | DI222: 7.25 | DJ222: 7.05 | DK222: 6.68
DM242: Parcela B / Mercado
DM244: Grandes
DM245: Reg | DN245: Distribuidora | DO245: PB/Mcdo | DP245: Média | DQ245: Parcela B | DR245: Mercado | DS245: Proc.Tar
DM246: N | DN246: ETO | DO246: =DQ246/DR246 -> 265.4071894 | DP246: =$DP$282 -> 157.1340272 | DQ246: 639963261.2 | DR246: 2411250.662 | DS246: 2020
DM247: N | DN247: Eletroacre | DO247: =DQ247/DR247 -> 262.1465373 | DP247: 157.1340272 | DQ247: 287816729.4 | DR247: 1097923.064 | DS247: 2020
DM248: CO | DN248: EMT | DO248: =DQ248/DR248 -> 246.7591507 | DP248: 157.1340272 | DQ248: 2384063093 | DR248: 9661498.209 | DS248: 2021
DM249: N | DN249: Equatorial PA | DO249: 238.5668194 | DP249: 157.1340272 | DQ249: 2059159218 | DR249: 8631373.062 | DS249: 2020
DM250: N | DN250: Cemar | DO250: 234.2860346 | DP250: 157.1340272 | DQ250: 1473020968 | DR250: 6287276.026 | DS250: 2020
DM251: CO | DN251: EMS | DO251: =DQ251/DR251 -> 233.1547235 | DP251: 157.1340272 | DQ251: 1338673092 | DR251: 5741565.396 | DS251: 2021
DM252: NE | DN252: Equatorial PI | DO252: =DQ252/DR252 -> 225.4201543 | DP252: 157.1340272 | DQ252: 847371044 | DR252: 3759074.012 | DS252: 2020
DM253: NE | DN253: Coelba | DO253: =DQ253/DR253 -> 223.125744 | DP253: 157.1340272 | DQ253: 4496925221 | DR253: 20154219.5 | DS253: 2021
DM254: N | DN254: CEA | DO254: =DQ254/DR254 -> 202.1486891 | DP254: 157.1340272 | DQ254: 208334410.9 | DR254: 1030599.861 | DS254: 2020
... 49 more rows

Sheet AP x Final (hidden)
C1: Prencher valores conforme CP | F1: Prencher valores conforme CP
B2: Descrição | C2: CP 003/21 Receita Verificada (R$) | D2: Final Receita Verificada (R$) | E2: Variação Receita Verificada Final/CP | F2: CP 003/21 Receita Requerida (R$) | G2: Final Receita Requerida (R$) | H2: Variação Receita Requerida Final/CP | I2: CP 003/21 Participação na Revisão % | J2: Final Participação na Revisão % | K2: Variação Total | M2: Variação de Custos | N2: Variação de Receita Verificada | O2: Simulação sem var. mercado
B3: PARCELA A [Encargos+Transmissão+Energia] | C3: =C4+C14+C23 -> 0 | D3: =D4+D14+D23 -> 848501482.7 | E3: =IF(ISERROR(D3/C3-1),"-",D3/C3-1) -> - | F3: =F4+F14+F23 -> 0 | G3: =G4+G14+G23 -> 963980179.1 | H3: =IF(ISERROR(G3/F3-1),"-",G3/F3-1) -> - | I3: =IFERROR((F3-C3)/$C$32,"") ->  | J3: =IFERROR((G3-D3)/$D$32,"") ->  | K3: =J3-I3 ->  | L3: =IF(G3+D3<>0,1,0) -> 1 | M3: =(G3-C3)/$C$32-I3 ->  | N3: =K3-M3 ->  | O3: =(G3-C3)/$C$32 -> 
B4: Encargos Setoriais | C4: =SUM(C5:C13) -> 0 | D4: =SUM(D5:D13) -> 115667825.6 | E4: =IF(ISERROR(D4/C4-1),"-",D4/C4-1) -> - | F4: =SUM(F5:F13) -> 0 | G4: =SUM(G5:G13) -> 197364466.8 | H4: =IF(ISERROR(G4/F4-1),"-",G4/F4-1) -> - | K4: =J4-I4 ->  | L4: 1 | N4: =K4-M4 -> 
B5: Taxa de Fisc. de Serviços de E.E. – TFSEE | D5: ='NT Revisao'!AU204 -> 2536299.633 | E5: =IF(ISERROR(D5/C5-1),"-",D5/C5-1) -> - | G5: ='NT Revisao'!AV204 -> 2819440.257 | H5: =IF(ISERROR(G5/F5-1),"-",G5/F5-1) -> - | L5: 1 | N5: =K5-M5 -> 
B6: Conta de Desenvolvimento Energético – CDE (USO) | D6: ='NT Revisao'!AU205 -> 49825125.81 | E6: =IF(ISERROR(D6/C6-1),"-",D6/C6-1) -> - | G6: ='NT Revisao'!AV205 -> 80903572.19 | H6: =IF(ISERROR(G6/F6-1),"-",G6/F6-1) -> - | L6: 1
B7: Conta de Desenvolvimento Energético – CDE Conta-Covid (TUSD) | D7: ='NT Revisao'!AU206 -> 0 | E7: - | G7: ='NT Revisao'!AV206 -> 9196083.994 | H7: =IF(ISERROR(G7/F7-1),"-",G7/F7-1) -> - | L7: 1
B8: Conta de Desenvolvimento Energético – CDE Conta-Covid (TE) | D8: ='NT Revisao'!AU207 -> 0 | G8: ='NT Revisao'!AV207 -> 9633157.01 | H8: =IF(ISERROR(G8/F8-1),"-",G8/F8-1) -> - | L8: 1
B9: Compensação financeira - CFURH | D9: ='NT Revisao'!AU208 -> 0 | E9: - | G9: ='NT Revisao'!AV208 -> 0 | H9: =IF(ISERROR(G9/F9-1),"-",G9/F9-1) -> - | L9: 0
B10: Encargos Serv. Sist. - ESS e Energ. Reserv. - EER | D10: ='NT Revisao'!AU209 -> 26142446.23 | E10: - | G10: ='NT Revisao'!AV209 -> 44173415.51 | H10: - | K10: =J10-I10 ->  | L10: 1
B11: PROINFA | D11: ='NT Revisao'!AU210 -> 23721875.1 | E11: - | G11: ='NT Revisao'!AV210 -> 35275305.42 | H11: - | K11: =J11-I11 ->  | L11: 1
B12: P&D, Efic.Energ | D12: ='NT Revisao'!AU211 -> 13366975.29 | E12: - | G12: ='NT Revisao'!AV211 -> 15291061.72 | H12: - | K12: =J12-I12 ->  | L12: 1
B13: ONS | D13: ='NT Revisao'!AU212 -> 75103.54878 | E13: - | G13: ='NT Revisao'!AV212 -> 72430.71429 | H13: - | L13: 1
B14: Custos de Transmissão | C14: =SUM(C15:C22) -> 0 | D14: =SUM(D15:D22) -> 104639087.4 | E14: - | F14: =SUM(F15:F22) -> 0 | G14: =SUM(G15:G22) -> 94162567.93 | H14: - | K14: =J14-I14 ->  | L14: 1
B15: Rede Básica | D15: ='NT Revisao'!AU214 -> 78397187.75 | E15: =IF(ISERROR(D15/C15-1),"-",D15/C15-1) -> - | G15: ='NT Revisao'!AV214 -> 66354216.57 | H15: - | K15: =J15-I15 ->  | L15: 1
B16: Rede Básica Fronteira | D16: ='NT Revisao'!AU215 -> 17107077.56 | E16: - | G16: ='NT Revisao'!AV215 -> 14020374.31 | H16: - | K16: =J16-I16 ->  | L16: 1
B17: Rede Básica ONS (A2) | D17: ='NT Revisao'!AU216 -> 0 | E17: - | G17: ='NT Revisao'!AV216 -> 0 | H17: - | L17: 0
B18: Rede Básica Export. (A2) | D18: ='NT Revisao'!AU217 -> 0 | E18: - | G18: ='NT Revisao'!AV217 -> 0 | H18: - | L18: 0
B19: MUST Itaipu | D19: ='NT Revisao'!AU218 -> 0 | E19: - | G19: ='NT Revisao'!AV218 -> 0 | H19: - | K19: =J19-I19 ->  | L19: 0
B20: Transporte de Itaipu | D20: ='NT Revisao'!AU219 -> 0 | E20: - | G20: ='NT Revisao'!AV219 -> 0 | H20: - | K20: =J20-I20 ->  | L20: 0
B21: Conexão | D21: ='NT Revisao'!AU220 -> 9134822.105 | E21: - | G21: ='NT Revisao'!AV220 -> 13787977.05 | H21: - | K21: =J21-I21 ->  | L21: 1
B22: Uso do sistema de distribuição | D22: ='NT Revisao'!AU221 -> 0 | E22: - | G22: ='NT Revisao'!AV221 -> 0 | H22: =IF(ISERROR(G22/F22-1),"-",G22/F22-1) -> - | K22: =J22-I22 ->  | L22: 0 | U22: mix CP | V22: mix Final | W22: D preço
B23: Custo de Aquisição de Energia | D23: ='NT Revisao'!AU222 -> 628194569.7 | E23: - | G23: ='NT Revisao'!AV222 -> 672453144.3 | H23: - | L23: 1 | M23: =(G23-C23)/$C$32-I23 ->  | Q23: =M23-R23 ->  | R23: =W24-I23 ->  | S23: =N23 ->  | U23: =C77 -> 0 | V23: =Energia!D14 -> 216.4185269 | W23: =V23/U23-1 -> 
B24: PARCELA B | C24: =SUM(C25:C30) -> 0 | D24: =SUM(D25:D30) ->  | E24: - | F24: =SUM(F25:F30) -> 0 | G24: =SUM(G25:G30) ->  | H24: =IF(ISERROR(G24/F24-1),"-",G24/F24-1) -> - | Q24: D mcdo Custo | R24: D mix Custo | S24: D mcdo RA0 | W24: =(F23*(1+W23)-C23)/C32 -> 
B25: Custos Operacionais | D25: ='NT Revisao'!AU224 ->  | E25: - | G25: ='NT Revisao'!AV224 ->  | H25: -
B26: Anuidades | D26: ='NT Revisao'!AU225 ->  | E26: - | G26: ='NT Revisao'!AV225 ->  | H26: -
B27: Remuneração | D27: ='NT Revisao'!AU226 ->  | E27: - | G27: ='NT Revisao'!AV226 ->  | H27: - | K27: =J27-I27 ->  | M27: =(G27-C27)/$C$32-I27 -> 
B28: Depreciação | D28: ='NT Revisao'!AU227 ->  | E28: - | G28: ='NT Revisao'!AV227 ->  | H28: -
B29: Receitas Irrecuperáveis | D29: ='NT Revisao'!AU228 ->  | E29: =IF(ISERROR(D29/C29-1),"-",D29/C29-1) -> - | G29: ='NT Revisao'!AV228 -> 0 | H29: =IF(ISERROR(G29/F29-1),"-",G29/F29-1) -> - | K29: =J29-I29 ->  | L29: =IF(G29+D29<>0,1,0) ->  | N29: =K29-M29 -> 
B30: Outras ReceitasOR, UD e ER | D30: ='NT Revisao'!AU229 ->  | E30: =IF(ISERROR(D30/C30-1),"-",D30/C30-1) -> - | G30: ='NT Revisao'!AV229 -> 0 | H30: -
B32: Reposicionamento Tarifário | C32: =C24+C3 -> 0 | D32: =D24+D3 ->  | E32: =IF(ISERROR(D32/C32-1),"-",D32/C32-1) -> - | F32: =F24+F3 -> 0 | G32: =G24+G3 ->  | H32: - | I32: =IFERROR((F32-C32)/$C$32,"") ->  | J32: =IFERROR((G32-D32)/$D$32,"") ->  | K32: =J32-I32 ->  | M32: =(G32-C32)/$C$32-I32 ->  | O32: =(G32-C32)/$C$32 -> 
L33: 0
B34: Componentes Financeiros do Processo Atual | F34: =SUM(F35:F71) -> 0 | G34: =SUM(G35:G71) -> 24121955.99 | I34: =SUM(I35:I71) ->  | J34: =SUM(J35:J71) ->  | K34: =J34-I34 ->  | L34: 1 | M34: =G34/$C$32-I34 ->  | N34: =K34-M34 ->  | O34: =G34/$C$32 -> 
B35: ='NT Revisao'!AT233 -> CVA em processamento - Energia | G35: ='NT Revisao'!AV233 -> 49455069.52 | I35: =F35/$C$75 ->  | J35: =G35/$D$32 ->  | K35: =J35-I35 ->  | L35: 1 | M35: =G35/$C$32-I35 ->  | N35: =K35-M35 ->  | O35: =G35/$C$32 -> 
B36: ='NT Revisao'!AT234 -> CVA em processamento -Transporte | G36: ='NT Revisao'!AV234 -> 4564144.441 | J36: =G36/$D$32 ->  | K36: =J36-I36 ->  | L36: 1 | O36: =G36/$C$32 -> 
B37: ='NT Revisao'!AT235 -> CVA em processamento - Encargos Setoriais | G37: ='NT Revisao'!AV235 -> 102507585.1 | L37: 1
B38: ='NT Revisao'!AT236 -> Saldo a Compensar CVA-Ano Anterior + Ajustes | G38: ='NT Revisao'!AV236 -> 1207011.111 | L38: 1
B39: ='NT Revisao'!AT237 -> Neutralidade de Parcela A - Encargos Setoriais | G39: ='NT Revisao'!AV237 -> -2205933.65 | L39: 1
B40: ='NT Revisao'!AT238 -> Sobrecontratação/exposição de energia | G40: ='NT Revisao'!AV238 -> 1790936.789 | L40: 1
B41: ='NT Revisao'!AT239 -> Garantias financeiras na contratação regulada de energia (CCEAR) | G41: ='NT Revisao'!AV239 -> 448342.4496 | J41: =G41/$D$32 ->  | K41: =J41-I41 ->  | L41: 1
B42: ='NT Revisao'!AT240 -> Previsão de Risco Hidrológico | G42: ='NT Revisao'!AV240 -> 33862368.64 | L42: 1
B43: ='NT Revisao'!AT241 -> Ajuste ref. equilíbrio econômico-financeiro TUSDg | G43: ='NT Revisao'!AV241 -> 0 | L43: 0
B44: ='NT Revisao'!AT242 -> Repasse de ultrapassagem de Supridas/Permissionárias de Energia | G44: ='NT Revisao'!AV242 -> 0 | L44: 0
B45: ='NT Revisao'!AT243 -> Ajuste CUSD | G45: ='NT Revisao'!AV243 -> 0 | L45: 0
B46: ='NT Revisao'!AT244 -> Repasse de compensação DIC/FIC | G46: ='NT Revisao'!AV244 -> 0 | L46: 0
B47: ='NT Revisao'!AT245 -> Compensação ref. acordos bilaterais de CCEAR | G47: ='NT Revisao'!AV245 -> 196828.1392 | L47: 1
B48: ='NT Revisao'!AT246 -> Conselho de Consumidores | G48: ='NT Revisao'!AV246 -> 0 | L48: 0
B49: ='NT Revisao'!AT247 -> Reversão do Risco Hidrológico | G49: ='NT Revisao'!AV247 -> -35052230.52 | J49: =G49/$D$32 ->  | K49: =J49-I49 ->  | L49: 1
B50: ='NT Revisao'!AT248 -> Ressarcimento de P&D | G50: ='NT Revisao'!AV248 -> 0 | L50: 0
B51: ='NT Revisao'!AT249 -> Modicidade Tarifária (RENs 414/2010 e 376/2009) | G51: ='NT Revisao'!AV249 -> 0 | L51: 0
B52: ='NT Revisao'!AT250 -> ICMS não compesando na compra de energia | G52: ='NT Revisao'!AV250 -> 0 | L52: 0
B53: ='NT Revisao'!AT251 -> Reversão do reperfilamento de custos de Transporte | G53: ='NT Revisao'!AV251 -> 14159526.62 | L53: 1
B54: ='NT Revisao'!AT252 -> Reversão Conta-Covid - CVA em processamento - Energia | G54: ='NT Revisao'!AV252 -> 0 | J54: =G54/$D$32 ->  | K54: =J54-I54 ->  | L54: 0 | M54: =G54/$C$32-I54 ->  | N54: =K54-M54 ->  | O54: =G54/$C$32 -> 
B55: ='NT Revisao'!AT253 -> Reversão Conta-Covid - CVA em processamento -Transporte | G55: ='NT Revisao'!AV253 -> 0 | L55: =IF(G56+D55<>0,1,0) -> 0 | M55: =G56/$C$32-I55 ->  | O55: =G56/$C$32 -> 
B56: ='NT Revisao'!AT254 -> Reversão Conta-Covid - CVA em processamento - Encargos Setoriais | G56: ='NT Revisao'!AV254 -> 0 | L56: =IF(G57+D56<>0,1,0) -> 0 | M56: =G57/$C$32-I56 ->  | O56: =G57/$C$32 -> 
B57: ='NT Revisao'!AT255 -> Reversão Conta-Covid - Saldo a Compensar CVA-Ano Anterior + Ajustes | G57: ='NT Revisao'!AV255 -> 0 | J57: =G57/$D$32 ->  | K57: =J57-I57 ->  | L57: =IF(G58+D57<>0,1,0) -> 0 | M57: =G58/$C$32-I57 ->  | O57: =G58/$C$32 -> 
B58: ='NT Revisao'!AT256 -> Reversão Conta-Covid - Neutralidade de Parcela A | G58: ='NT Revisao'!AV256 -> 0 | L58: =IF(G59+D58<>0,1,0) -> 0 | M58: =G59/$C$32-I58 ->  | O58: =G59/$C$32 -> 
B59: ='NT Revisao'!AT257 -> Reversão Conta-Covid - Sobrecontratação | G59: ='NT Revisao'!AV257 -> 0 | L59: =IF(G60+D59<>0,1,0) -> 0 | M59: =G60/$C$32-I59 ->  | N59: =K59-M59 ->  | O59: =G60/$C$32 -> 
B60: ='NT Revisao'!AT258 -> Reversão Conta Covid - Parcela B | G60: ='NT Revisao'!AV258 -> 0 | L60: 0
B61: ='NT Revisao'!AT259 -> Reversão Conta Covid - Diferimento | G61: ='NT Revisao'!AV258 -> 0 | L61: 0
B62: ='NT Revisao'!AT260 -> Reversão Conta Covid - Postergação | G62: ='NT Revisao'!AV260 -> 0 | L62: 1
B63: ='NT Revisao'!AT261 -> Neutralidade de Financeiros e Encargo Covid | G63: ='NT Revisao'!AV261 -> -600101.1388 | L63: 1
B64: ='NT Revisao'!AT262 -> Custo distribuidora - Spread Conta Covid - Art 4º - REN 952/2021 | G64: ='NT Revisao'!AV262 -> -810591.6472 | L64: 1
B65: ='NT Revisao'!AT263 -> Arrecadação de encargo CDE Covid dos consumidores migrantes (Ofício Circular 20/2021) | F65: 0 | G65: ='NT Revisao'!AV264 -> 2071181.54 | L65: 1
B66: ='NT Revisao'!AT264 -> Finaceiro de Bandeira Escassez Hídrica - Energia | F66: 0 | G66: ='NT Revisao'!AV265 -> -67050450.17 | L66: 1 | O66: =K66-N66 -> 
B67: ='NT Revisao'!AT265 -> Finaceiro de Bandeira Escassez Hídrica - ESS/EER | F67: 0 | G67: ='NT Revisao'!AV266 -> -62845427.48 | L67: 1
B68: ='NT Revisao'!AN257 -> 0 | F68: 0 | G68: ='NT Revisao'!AV267 -> -81348011.7 | L68: =IF(G68+D68<>0,1,0) -> 1
B69: ='NT Revisao'!AN258 -> 0 | F69: 0 | G69: ='NT Revisao'!AV268 -> 14050329.8 | L69: 1
B70: ='NT Revisao'!AN259 -> 0 | F70: 0 | G70: ='NT Revisao'!AV269 -> 49721378.16 | L70: 1
B72: Efeito da retirada dos Componentes Financeiros do Processo Anterior | I72: =I73-I32-I34 ->  | J72: =J73-J32-J34 ->  | K72: =J72-I72 ->  | L72: 1 | O72: =J72-I72 -> 
B73: Efeito Médio a ser percebido pelos Consumidores | I73: =I75 -> 0 | J73: =LnkTxtEfeito -> 0.1624356761 | K73: =J73-I73 -> 0.1624356761 | L73: 1 | M73: =((G32+G34)/C32-1)-((F32+F34)/C32-1) ->  | N73: =K73-M73 ->  | O73: =K73-N73 -> 
B75: Base de Financeiros CP | F75: Efeito médio versão CP
B77: Mix Compra de Energia CP

Sheet Mercado
B2: DADOS DE MERCADO DE ENERGIA E RECEITA VERIFICADA | G2: Anexo II | H2: =Resultado!$D$6 -> 0.1127888828
G3: Anexo I | H3: =Resultado!$D$8 -> 0.1211434605
M5: TipoMercado | R5: AnoMes
D6: Dados de Mercado | M6: Regular | R6: =DATE(YEAR(R8),MONTH(R8)-1,1) -> 44287
R7: AnoMes
B8: Descrição | C8: MERCADO (MWh) | D8: RECEITA (R$) | F8: DESCRIÇÃO | G8: POR DENTRO | J8: Critérios | L8: Para º de consumidores | R8: =DATE(YEAR(R10),MONTH(R10)-1,1) -> 44317
B9: FORNECIMENTO | C9: =SUM(C10:C16) -> 2376578.999 | D9: =SUM(D10:D16) -> 1297594610 | F9: ICMS | G9: =SUM(INDIRECT("DADOS_MercadoBase[ICMS]"))/SUM(INDIRECT("DADOS_MercadoBase[ICMS]"),INDIRECT("DADOS_MercadoBase[PisPasep]"),INDIRECT("DADOS_MercadoBase[Cofins]"),INDIRECT("DADOS_MercadoBase[FinTotAj]")) -> 0.2368660456 | J9: Subgrupo | K9: OPÇÃO | M9: AnoMes | N9: Subgrupo | O9: OPÇÃO | R9: AnoMes
B10: A1 | C10: =DSUM(Mercado_Receita!A:AAA,"TUSD_E",J9:K10) -> 0 | D10: =DSUM(Mercado_Receita!A:AAA,"total",J9:K10) -> 0 | F10: PIS/COFINS | G10: =SUM( INDIRECT("DADOS_MercadoBase[Cofins]"), INDIRECT("DADOS_MercadoBase[PisPasep]"))/SUM( INDIRECT("DADOS_MercadoBase[ICMS]"), INDIRECT("DADOS_MercadoBase[PisPasep]"), INDIRECT("DADOS_MercadoBase[Cofins]"), INDIRECT("DADOS_MercadoBase[FinTotAj]")) -> 0.03706928502 | J10: A1 | K10: Cativo | M10: =DMAX(MercadoBase,"AnoMes",M5:M6) -> 44593 | N10: A1 | O10: Suprimento | R10: =DATE(YEAR(R12),MONTH(R12)-1,1) -> 44348
B11: A2 | C11: =DSUM(Mercado_Receita!A:AAA,"TUSD_E",J11:K12) -> 0 | D11: =DSUM(Mercado_Receita!A:AAA,"total",J11:K12) -> 0 | J11: Subgrupo | K11: OPÇÃO | M11: AnoMes | N11: Subgrupo | O11: OPÇÃO | P11: Subgrupo | R11: AnoMes
B12: A3 | C12: =DSUM(Mercado_Receita!A:AAA,"TUSD_E",J13:K14) -> 90474.053 | D12: =DSUM(Mercado_Receita!A:AAA,"total",J13:K14) -> 29891809.03 | F12: MWh Ano Anterior | G12: =BD!C45 -> 3197727.015 | J12: A2 | K12: Cativo | M12: =$M$10 -> 44593 | N12: A2 | O12: Livre | P12: A1 | R12: =DATE(YEAR(R14),MONTH(R14)-1,1) -> 44378
B13: A3a | C13: =DSUM(Mercado_Receita!A:AAA,"TUSD_E",J15:K16) -> 0 | D13: =DSUM(Mercado_Receita!A:AAA,"total",J15:K16) -> 0 | F13: Variação | G13: =C24/G12-1 -> 0.01448236975 | J13: Subgrupo | K13: OPÇÃO | M13: AnoMes | N13: Subgrupo | O13: OPÇÃO | R13: AnoMes
B14: A4 | C14: =DSUM(Mercado_Receita!A:AAA,"TUSD_E",J17:K18) -> 477250.607 | D14: =DSUM(Mercado_Receita!A:AAA,"total",J17:K18) -> 238720290.8 | F14: R$ Ano Anterior | G14: =BD!C46 -> 1461570444 | J14: ="=A3" -> =A3 | K14: Cativo | M14: =$M$10 -> 44593 | N14: ="=A3" -> =A3 | O14: Distribuição | R14: =DATE(YEAR(R16),MONTH(R16)-1,1) -> 44409
B15: As | C15: =DSUM(Mercado_Receita!A:AAA,"TUSD_E",J19:K20) -> 0 | D15: =DSUM(Mercado_Receita!A:AAA,"total",J19:K20) -> 0 | F15: Variação | G15: =D24/G14-1 -> 0.006325083389 | J15: Subgrupo | K15: OPÇÃO | M15: AnoMes | N15: Subgrupo | O15: OPÇÃO | R15: AnoMes
B16: BT | C16: =DSUM(Mercado_Receita!A:AAA,"TUSD_E",J21:K22) -> 1808854.339 | D16: =DSUM(Mercado_Receita!A:AAA,"total",J21:K22) -> 1028982510 | J16: ="=A3a" -> =A3a | K16: Cativo | M16: =$M$10 -> 44593 | N16: ="=A3a" -> =A3a | O16: Geração | R16: =DATE(YEAR(R18),MONTH(R18)-1,1) -> 44440
B17: SUPRIMENTO (Mercado TE) | C17: =DSUM(Mercado_Receita!A:AAA,"TE_E",O9:P10) -> 297590.727 | D17: =DSUM(Mercado_Receita!A:AAA,"total",O9:P10) -> 68953705.77 | F17: Itens RTE (Anualizado) | J17: Subgrupo | K17: OPÇÃO | M17: AnoMes | N17: Subgrupo | O17: OPÇÃO | R17: AnoMes
B18: LIVRES A1 | C18: =DSUM(Mercado_Receita!A:AAA,"TUSD_E",O11:P12) -> 0 | D18: =DSUM(Mercado_Receita!A:AAA,"total",O11:P12) -> 1276118.997 | F18: Energia | J18: A4 | K18: Cativo | M18: =$M$10 -> 44593 | N18: A4 | O18: Livre | R18: =DATE(YEAR(R20),MONTH(R20)-1,1) -> 44470
B19: DEMAIS LIVRES | C19: =DSUM(Mercado_Receita!A:AAA,"TUSD_E",O19:P20)+DSUM(Mercado_Receita!A:AAA,"TUSD_E",O17:P18)-C18 -> 523196.383 | D19: =DSUM(Mercado_Receita!A:AAA,"total",O19:P20)+DSUM(Mercado_Receita!A:AAA,"TOTAL",O17:P18)-D18 -> 92586311.19 | F19: CDE Uso | J19: Subgrupo | K19: OPÇÃO | M19: AnoMes | N19: Subgrupo | O19: OPÇÃO | R19: AnoMes
B20: DISTRIBUIÇÃO | C20: =DSUM(Mercado_Receita!A:AAA,"TUSD_E",O13:P14) -> 46671.571 | D20: =DSUM(Mercado_Receita!A:AAA,"total",O13:P14) -> 6824038.13 | F20: CDE Energia | J20: AS | K20: Cativo | M20: =$M$10 -> 44593 | N20: AS | O20: erc | R20: =DATE(YEAR(R22),MONTH(R22)-1,1) -> 44501
B21: GERADOR | D21: =DSUM(Mercado_Receita!A:AAA,"total",O15:P16) -> 7938714.72 | F21: CUSD | J21: Subgrupo | K21: OPÇÃO | M21: AnoMes | N21: Subgrupo | R21: AnoMes
B22: CDE Baixa Renda | F22: P&D | J22: ="=B*" -> =B* | K22: Cativo | M22: =$M$10 -> 44593 | N22: ="=B*" -> =B* | R22: =DATE(YEAR(R24),MONTH(R24)-1,1) -> 44531
B23: AJUSTE ECONÔMICO - BOLHA | D23: ='VPB1'!C51 -> -4358499.773 | J23: Subclasse | K23: OPÇÃO | R23: AnoMes
B24: TOTAL | C24: =SUM(C10:C23) -> 3244037.68 | D24: =SUM(D10:D23) -> 1470814999 | J24: ="=Residencial baixa renda*" -> =Residencial baixa renda* | K24: Cativo | R24: =DATE(YEAR(R26),MONTH(R26)-1,1) -> 44562
B25: ENERGIA DESTINADA APE/PIE | F25: 1 | J25: Classe | L25: AnoMes | R25: AnoMes
B26: MERCADO TOTAL BAIXA RENDA | C26: =DSUM(Mercado_Receita!A:AAA,"TUSD_E",J23:K24) -> 292337.116 | J26: Residencial | L26: =$M$10 -> 44593 | R26: =DATE(YEAR(R28),MONTH(R28)-1,1) -> 44593
J27: Classe | L27: AnoMes | R27: AnoMes
J28: Industrial | L28: 44593 | R28: =B65 -> 44621
B29: DESCRIÇÃO - Tipo | C29: RECEITA (R$) | D29: % Total | J29: Classe | L29: AnoMes
B30: Residencial | C30: =DSUM(Mercado_Receita!A:AAA,"total",J25:K26) -> 712420757.7 | D30: =IFERROR(C30/$C$38,0) -> 0.4843714255 | J30: Comercial | L30: 44593
B31: Industrial | C31: =DSUM(Mercado_Receita!A:AAA,"total",J27:K28) -> 168433123.4 | D31: =IFERROR(C31/$C$38,0) -> 0.1145168655 | J31: Classe | L31: AnoMes
B32: Comercial | C32: =DSUM(Mercado_Receita!A:AAA,"total",J29:K30) -> 246858116.9 | D32: 0.167837639 | J32: Rural | L32: 44593
B33: Rural | C33: =DSUM(Mercado_Receita!A:AAA,"total",J31:K32) -> 60637502.04 | D33: 0.04122714419 | J33: Classe | L33: AnoMes
B34: Iluminação Pública | C34: =DSUM(Mercado_Receita!A:AAA,"total",J33:K34) -> 65684581.94 | D34: 0.04465862939 | J34: Iluminação Pública | L34: 44593
B35: Poder Público | C35: =DSUM(Mercado_Receita!A:AAA,"total",J35:K36) -> 68490402.19 | D35: 0.046566293 | J35: Classe | L35: AnoMes
B36: Serviço Público | C36: =DSUM(Mercado_Receita!A:AAA,"total",J37:K38) -> 66215961.64 | D36: 0.04501991187 | J36: Poder Público | L36: 44593
B37: Demais | C37: =D24-SUM(C30:C36) -> 82074553.15 | D37: 0.0558020915 | J37: Classe | L37: AnoMes
B38: TOTAL | C38: =SUM(C30:C37) -> 1470814999 | D38: =SUM(D30:D37) -> 1 | J38: Serviço público | L38: 44593
J39: Classe | L39: AnoMes
B40: nº de consumidores | E40: Classe | F40: nº de consumidores | G40: MWh mensal | J40: * | L40: 44593
B41: A1 | C41: =DSUM(Mercado_Receita!A:AAA,"UC",L9:N10) -> 0 | E41: Residencial | F41: =DSUM(Mercado_Receita!$A:$AAA,"UC",$J$25:$L$26) -> 748777 | G41: =DSUM(Mercado_Receita!$A:$AAA,"TUSD_E",$J$25:$L$26) -> 106116.325
B42: A2 | C42: =DSUM(Mercado_Receita!A:AAA,"UC",L11:N12) -> 0 | E42: Industrial | F42: =DSUM(Mercado_Receita!$A:$AAA,"UC",$J$27:$L$28) -> 1104 | G42: =DSUM(Mercado_Receita!$A:$AAA,"TUSD_E",$J$27:$L$28) -> 62797.96
B43: A3 | C43: =DSUM(Mercado_Receita!A:AAA,"UC",L13:N14) -> 13 | E43: Comercial | F43: =DSUM(Mercado_Receita!$A:$AAA,"UC",$J$29:$L$30) -> 45581 | G43: =DSUM(Mercado_Receita!$A:$AAA,"TUSD_E",$J$29:$L$30) -> 37400.743
B44: A3a | C44: =DSUM(Mercado_Receita!A:AAA,"UC",L15:N16) -> 0 | E44: Rural | F44: =DSUM(Mercado_Receita!$A:$AAA,"UC",$J$31:$L$32) -> 22197 | G44: =DSUM(Mercado_Receita!$A:$AAA,"TUSD_E",$J$31:$L$32) -> 14440.389
B45: A4 | C45: =DSUM(Mercado_Receita!A:AAA,"UC",L17:N18) -> 1336 | E45: Iluminação Pública | F45: =DSUM(Mercado_Receita!$A:$AAA,"UC",$J$33:$L$34) -> 1217 | G45: =DSUM(Mercado_Receita!$A:$AAA,"TUSD_E",$J$33:$L$34) -> 15015.512
B46: As | C46: =DSUM(Mercado_Receita!A:AAA,"UC",L19:N20) -> 0 | E46: Poder Público | F46: =DSUM(Mercado_Receita!$A:$AAA,"UC",$J$35:$L$36) -> 5209 | G46: =DSUM(Mercado_Receita!$A:$AAA,"TUSD_E",$J$35:$L$36) -> 10426.338
B47: BT | C47: =DSUM(Mercado_Receita!A:AAA,"UC",L21:N22) -> 824408 | E47: Serviço Público | F47: =DSUM(Mercado_Receita!$A:$AAA,"UC",$J$37:$L$38) -> 1562 | G47: =DSUM(Mercado_Receita!$A:$AAA,"TUSD_E",$J$37:$L$38) -> 8457.112
E48: Demais | F48: =DSUM(Mercado_Receita!A:AAA,"UC",$J$39:$L$40)-SUM(F$41:F$47) -> 110 | G48: =DSUM(Mercado_Receita!B:AAB,"TUSD_E",$J$39:$L$40)-SUM(G$41:G$47) -> 5551.83
E49: ="Fonte: SAMP - "&TEXT(L26,"mmmm/aa") -> Fonte: SAMP - fevereiro/22
B52: Arrecadação dos Encargos
B53: Competência | D53: PeD | E53: ONS | F53: ESSERR | G53: PROINFA | H53: CDE | I53: TFSEE | J53: CFURH | K53: CVA_Energia | L53: CVA_RB | M53: CVA_CDE | N53: CVA_CFURH | O53: CVA_TranItaipu | P53: CVA_ESSERR | Q53: CVA_PROINFA | R53: Fator Selic | S53: RTE_Energia | T53: RTE_CDE_USO | U53: RTE_CDE_E | V53: RTE_CUSD | W53: RTE_PeD | X53: CVA_CDE_E | Y53: CVA_CCC | Z53: DISTRIBUICAO | AA53: cDE_E_ACR | AB53: CDE_E_Dec | AC53: covidteeco | AD53: covidtusdeco | AE53: CVA_CovidTe_ou_CVA_CDE_E
B54: =DATE(YEAR(B55),MONTH(B55)-1,1) -> 44287 | D54: =DSUM(MercadoBase,D$53,INDIRECT("r"&5+2*(ROW()-54)&":r"&6+2*(ROW()-54))) -> 1229578.939 | E54: 6626.591247 | F54: 2466771.484 | G54: 2103354.197 | H54: 4419470.188 | I54: 225470.9968 | J54: 0 | K54: 4804705.193 | L54: 2241977.721 | M54: 231022.9787 | N54: 0 | O54: 0 | P54: -295360.7666 | Q54: 111261.8171 | R54: =VLOOKUP(CAPA!$C$15,Índices!B:F,5,FALSE)/VLOOKUP(DATE(YEAR(B54),MONTH(B54),1),Índices!B:F,5,FALSE) -> 1.062211809 | S54: =DSUM(MercadoBase,S$53,INDIRECT("r"&5+2*(ROW()-54)&":r"&6+2*(ROW()-54))) -> 0 | T54: 0 | U54: 0 | V54: 0 | W54: 0 | X54: =AE54 -> -312751.0262 | Y54: 0 | Z54: =DSUM(MercadoBase,Z$53,INDIRECT("r"&5+2*(ROW()-54)&":r"&6+2*(ROW()-54))) -> 53612376.32 | AA54: =DSUM(MercadoBase,AA$53,INDIRECT("r"&5+2*(ROW()-54)&":r"&6+2*(ROW()-54))) -> 0 | AB54: 0 | AC54: =DSUM(MercadoBase,AC$53,INDIRECT("r"&5+2*(ROW()-54)&":r"&6+2*(ROW()-54))) -> 864025.5462 | AD54: =DSUM(MercadoBase,AD$53,INDIRECT("r"&5+2*(ROW()-54)&":r"&6+2*(ROW()-54))) -> 864050.6175 | AE54: -312751.0262
B55: 44317 | D55: 1124823.973 | E55: 6090.240386 | F55: 2254528.772 | G55: 1912508.503 | H55: 4021048.677 | I55: 206092.1277 | J55: 0 | K55: 4394200.313 | L55: 2109045.653 | M55: 210195.9292 | N55: 0 | O55: 0 | P55: -269947.7234 | Q55: 101166.5898 | R55: =VLOOKUP(CAPA!$C$15,Índices!B:F,5,FALSE)/VLOOKUP(DATE(YEAR(B55),MONTH(B55),1),Índices!B:F,5,FALSE) -> 1.059348113 | S55: 0 | T55: 0 | U55: 0 | V55: 0 | W55: 0 | X55: =AE55 -> -285841.7132 | Y55: 0 | Z55: 49753773.05 | AA55: 0 | AB55: 0 | AC55: 789684.195 | AD55: 786155.2278 | AE55: -285841.7132
B56: 44348 | D56: 1083149.002 | E56: 5958.176992 | F56: 2174196.681 | G56: 1875269.932 | H56: 3937002.165 | I56: 201035.5046 | J56: 0 | K56: 4241165.656 | L56: 2063367.059 | M56: 205802.4895 | N56: 0 | O56: 0 | P56: -260329.0992 | Q56: 99196.76894 | R56: =VLOOKUP(CAPA!$C$15,Índices!B:F,5,FALSE)/VLOOKUP(DATE(YEAR(B56),MONTH(B56),1),Índices!B:F,5,FALSE) -> 1.056097667 | S56: 0 | T56: 0 | U56: 0 | V56: 0 | W56: 0 | X56: -275656.7633 | Y56: 0 | Z56: 48328766.98 | AA56: 0 | AB56: 0 | AC56: 761546.6155 | AD56: 769723.2942 | AE56: -275656.7633
B57: 44378 | D57: 1066256.588 | E57: 5877.102964 | F57: 2141593.341 | G57: 1846596.434 | H57: 3872349.399 | I57: 197652.1571 | J57: 0 | K57: 4176790.274 | L57: 2041632.192 | M57: 202422.8368 | N57: 0 | O57: 0 | P57: -256425.3134 | Q57: 97680.01749 | R57: =VLOOKUP(CAPA!$C$15,Índices!B:F,5,FALSE)/VLOOKUP(DATE(YEAR(B57),MONTH(B57),1),Índices!B:F,5,FALSE) -> 1.052355321 | S57: 0 | T57: 0 | U57: 0 | V57: 0 | W57: 0 | X57: -271523.1303 | Y57: 0 | Z57: 47642547.06 | AA57: 0 | AB57: 0 | AC57: 750126.7824 | AD57: 757083.032 | AE57: -271523.1303
B58: 44409 | D58: 1017451.852 | E58: 5578.07466 | F58: 2011054.043 | G58: 1745786.512 | H58: 3693546.803 | I58: 191229.0735 | J58: 0 | K58: 3932813.887 | L58: 1951495.677 | M58: 193076.1263 | N58: 0 | O58: 0 | P58: -240795.0909 | Q58: 92347.44197 | R58: =VLOOKUP(CAPA!$C$15,Índices!B:F,5,FALSE)/VLOOKUP(DATE(YEAR(B58),MONTH(B58),1),Índices!B:F,5,FALSE) -> 1.047870931 | S58: 0 | T58: 0 | U58: 0 | V58: 0 | W58: 0 | X58: -254972.6311 | Y58: 0 | Z58: 45815437.55 | AA58: 0 | AB58: 0 | AC58: 704403.3382 | AD58: 722125.3364 | AE58: -254972.6311
B59: 44440 | D59: 1045105.074 | E59: 5996.37594 | F59: 2055231.096 | G59: 1909321.428 | H59: 3989035.264 | I59: 199811.9951 | J59: 0 | K59: 4028709.53 | L59: 2052297.889 | M59: 208522.463 | N59: 0 | O59: 0 | P59: -246084.6641 | Q59: 100998.0021 | R59: =VLOOKUP(CAPA!$C$15,Índices!B:F,5,FALSE)/VLOOKUP(DATE(YEAR(B59),MONTH(B59),1),Índices!B:F,5,FALSE) -> 1.04325973 | S59: 0 | T59: 0 | U59: 0 | V59: 0 | W59: 0 | X59: -260573.6439 | Y59: 0 | Z59: 47484077.44 | AA59: 0 | AB59: 0 | AC59: 719877.0466 | AD59: 779896.2855 | AE59: -260573.6439
B60: 44470 | D60: 1099899.203 | E60: 6267.924752 | F60: 2178182.695 | G60: 1985570.054 | H60: 4157400.953 | I60: 209460.2354 | J60: 0 | K60: 4261935.528 | L60: 2119735.296 | M60: 217323.5956 | N60: 0 | O60: 0 | P60: -260806.3676 | Q60: 105031.3507 | R60: =VLOOKUP(CAPA!$C$15,Índices!B:F,5,FALSE)/VLOOKUP(DATE(YEAR(B60),MONTH(B60),1),Índices!B:F,5,FALSE) -> 1.038271855 | S60: 0 | T60: 0 | U60: 0 | V60: 0 | W60: 0 | X60: -276162.1323 | Y60: 0 | Z60: 49405659.97 | AA60: 0 | AB60: 0 | AC60: 762942.7796 | AD60: 812813.4614 | AE60: -276162.1323
B61: 44501 | D61: 1120997.624 | E61: 6368.655606 | F61: 2228437.252 | G61: 2022830.054 | H61: 4232665.016 | I61: 212715.5029 | J61: 0 | K61: 4357812.12 | L61: 2153471.724 | M61: 221257.9423 | N61: 0 | O61: 0 | P61: -266823.6353 | Q61: 107002.3051 | R61: =VLOOKUP(CAPA!$C$15,Índices!B:F,5,FALSE)/VLOOKUP(DATE(YEAR(B61),MONTH(B61),1),Índices!B:F,5,FALSE) -> 1.032215341 | S61: 0 | T61: 0 | U61: 0 | V61: 0 | W61: 0 | X61: -282533.6849 | Y61: 0 | Z61: 50111546.13 | AA61: 0 | AB61: 0 | AC61: 780545.2293 | AD61: 827528.3384 | AE61: -282533.6849
B62: 44531 | D62: 1177431.41 | E62: 6572.686666 | F62: 2304342.093 | G62: 2102738.932 | H62: 4413393.11 | I62: 222481.2634 | J62: 0 | K62: 4518057.376 | L62: 2237176.706 | M62: 230705.3061 | N62: 0 | O62: 0 | P62: -275912.1594 | Q62: 111229.2712 | R62: =VLOOKUP(CAPA!$C$15,Índices!B:F,5,FALSE)/VLOOKUP(DATE(YEAR(B62),MONTH(B62),1),Índices!B:F,5,FALSE) -> 1.024337335 | S62: 0 | T62: 0 | U62: 0 | V62: 0 | W62: 0 | X62: -292157.3234 | Y62: 0 | Z62: 52948986.71 | AA62: 0 | AB62: 0 | AC62: 807132.0948 | AD62: 862862.4881 | AE62: -292157.3234
B63: 44562 | D63: 1177915.207 | E63: 6563.51003 | F63: 2313299.187 | G63: 2069385.894 | H63: 4356411.508 | I63: 222772.8561 | J63: 0 | K63: =DSUM(MercadoBase,K$53,INDIRECT("r"&5+2*(ROW()-54)&":r"&6+2*(ROW()-54)))*IF(VLOOKUP("MesesAdin",TabPostergacao[#All],2,FALSE)>2,0,1) -> 4531821.635 | L63: =DSUM(MercadoBase,L$53,INDIRECT("r"&5+2*(ROW()-54)&":r"&6+2*(ROW()-54)))*IF(VLOOKUP("MesesAdin",TabPostergacao[#All],2,FALSE)>2,0,1) -> 2228227.843 | M63: =DSUM(MercadoBase,M$53,INDIRECT("r"&5+2*(ROW()-54)&":r"&6+2*(ROW()-54)))*IF(VLOOKUP("MesesAdin",TabPostergacao[#All],2,FALSE)>2,0,1) -> 227726.655 | N63: =DSUM(MercadoBase,N$53,INDIRECT("r"&5+2*(ROW()-54)&":r"&6+2*(ROW()-54)))*IF(VLOOKUP("MesesAdin",TabPostergacao[#All],2,FALSE)>2,0,1) -> 0 | O63: =DSUM(MercadoBase,O$53,INDIRECT("r"&5+2*(ROW()-54)&":r"&6+2*(ROW()-54)))*IF(VLOOKUP("MesesAdin",TabPostergacao[#All],2,FALSE)>2,0,1) -> 0 | P63: =DSUM(MercadoBase,P$53,INDIRECT("r"&5+2*(ROW()-54)&":r"&6+2*(ROW()-54)))*IF(VLOOKUP("MesesAdin",TabPostergacao[#All],2,FALSE)>2,0,1) -> -276984.6439 | Q63: =DSUM(MercadoBase,Q$53,INDIRECT("r"&5+2*(ROW()-54)&":r"&6+2*(ROW()-54)))*IF(VLOOKUP("MesesAdin",TabPostergacao[#All],2,FALSE)>2,0,1) -> 109464.9846 | R63: =VLOOKUP(CAPA!$C$15,Índices!B:F,5,FALSE)/VLOOKUP(DATE(YEAR(B63),MONTH(B63),1),Índices!B:F,5,FALSE) -> 1.016890945 | S63: 0 | T63: 0 | U63: 0 | V63: 0 | W63: 0 | X63: -293292.9536 | Y63: 0 | Z63: 53088580.6 | AA63: 0 | AB63: 0 | AC63: 810269.4581 | AD63: 851722.0151 | AE63: -293292.9536
B64: 44593 | D64: 1112183.21 | E64: 6602.104768 | F64: 2007404.793 | G64: 2074256.58 | H64: 4366401.364 | I64: 223788.9605 | J64: 0 | K64: =DSUM(MercadoBase,K$53,INDIRECT("r"&5+2*(ROW()-54)&":r"&6+2*(ROW()-54)))*IF(VLOOKUP("MesesAdin",TabPostergacao[#All],2,FALSE)>1,0,1) -> 4007971.774 | L64: =DSUM(MercadoBase,L$53,INDIRECT("r"&5+2*(ROW()-54)&":r"&6+2*(ROW()-54)))*IF(VLOOKUP("MesesAdin",TabPostergacao[#All],2,FALSE)>1,0,1) -> 2234209.418 | M64: =DSUM(MercadoBase,M$53,INDIRECT("r"&5+2*(ROW()-54)&":r"&6+2*(ROW()-54)))*IF(VLOOKUP("MesesAdin",TabPostergacao[#All],2,FALSE)>1,0,1) -> 228248.8639 | N64: =DSUM(MercadoBase,N$53,INDIRECT("r"&5+2*(ROW()-54)&":r"&6+2*(ROW()-54)))*IF(VLOOKUP("MesesAdin",TabPostergacao[#All],2,FALSE)>1,0,1) -> 0 | O64: =DSUM(MercadoBase,O$53,INDIRECT("r"&5+2*(ROW()-54)&":r"&6+2*(ROW()-54)))*IF(VLOOKUP("MesesAdin",TabPostergacao[#All],2,FALSE)>1,0,1) -> 0 | P64: =DSUM(MercadoBase,P$53,INDIRECT("r"&5+2*(ROW()-54)&":r"&6+2*(ROW()-54)))*IF(VLOOKUP("MesesAdin",TabPostergacao[#All],2,FALSE)>1,0,1) -> -240358.1452 | Q64: =DSUM(MercadoBase,Q$53,INDIRECT("r"&5+2*(ROW()-54)&":r"&6+2*(ROW()-54)))*IF(VLOOKUP("MesesAdin",TabPostergacao[#All],2,FALSE)>1,0,1) -> 109722.6309 | R64: =VLOOKUP(CAPA!$C$15,Índices!B:F,5,FALSE)/VLOOKUP(DATE(YEAR(B64),MONTH(B64),1),Índices!B:F,5,FALSE) -> 1.009270539 | S64: 0 | T64: 0 | U64: 0 | V64: 0 | W64: 0 | X64: -254509.9589 | Y64: 0 | Z64: 53047621.49 | AA64: 0 | AB64: 0 | AC64: 703125.131 | AD64: 853675.1318 | AE64: -254509.9589
B65: =DATE(YEAR(CAPA!C10),MONTH(CAPA!C10)-1,1) -> 44621 | D65: 1112183.21 | E65: 6602.104768 | F65: 2007404.793 | G65: 2074256.58 | H65: 4366401.364 | I65: 223788.9605 | J65: 0 | K65: =DSUM(MercadoBase,K$53,INDIRECT("r"&5+2*(ROW()-54)&":r"&6+2*(ROW()-54)))*IF(VLOOKUP("MesesAdin",TabPostergacao[#All],2,FALSE)>0,0,1) -> 4007971.774 | L65: =DSUM(MercadoBase,L$53,INDIRECT("r"&5+2*(ROW()-54)&":r"&6+2*(ROW()-54)))*IF(VLOOKUP("MesesAdin",TabPostergacao[#All],2,FALSE)>0,0,1) -> 2234209.418 | M65: =DSUM(MercadoBase,M$53,INDIRECT("r"&5+2*(ROW()-54)&":r"&6+2*(ROW()-54)))*IF(VLOOKUP("MesesAdin",TabPostergacao[#All],2,FALSE)>0,0,1) -> 228248.8639 | N65: =DSUM(MercadoBase,N$53,INDIRECT("r"&5+2*(ROW()-54)&":r"&6+2*(ROW()-54)))*IF(VLOOKUP("MesesAdin",TabPostergacao[#All],2,FALSE)>0,0,1) -> 0 | O65: =DSUM(MercadoBase,O$53,INDIRECT("r"&5+2*(ROW()-54)&":r"&6+2*(ROW()-54)))*IF(VLOOKUP("MesesAdin",TabPostergacao[#All],2,FALSE)>0,0,1) -> 0 | P65: =DSUM(MercadoBase,P$53,INDIRECT("r"&5+2*(ROW()-54)&":r"&6+2*(ROW()-54)))*IF(VLOOKUP("MesesAdin",TabPostergacao[#All],2,FALSE)>0,0,1) -> -240358.1452 | Q65: =DSUM(MercadoBase,Q$53,INDIRECT("r"&5+2*(ROW()-54)&":r"&6+2*(ROW()-54)))*IF(VLOOKUP("MesesAdin",TabPostergacao[#All],2,FALSE)>0,0,1) -> 109722.6309 | R65: =VLOOKUP(CAPA!$C$15,Índices!B:F,5,FALSE)/VLOOKUP(DATE(YEAR(B65),MONTH(B65),1),Índices!B:F,5,FALSE) -> 1 | S65: 0 | T65: 0 | U65: 0 | V65: 0 | W65: 0 | X65: -254509.9589 | Y65: 0 | Z65: 53047621.49 | AA65: 0 | AB65: 0 | AC65: =DSUM(MercadoBase,AC$53,INDIRECT("r"&5+2*(ROW()-54)&":r"&6+2*(ROW()-54))) -> 703125.131 | AD65: 853675.1318 | AE65: -254509.9589
B66: Total Bruto | D66: =SUM(D54:D65) -> 13366975.29 | E66: 75103.54878 | F66: 26142446.23 | G66: 23721875.1 | H66: 49825125.81 | I66: 2536299.633 | J66: 0 | K66: 51263955.06 | L66: 25666846.6 | M66: 2604554.05 | N66: 0 | O66: 0 | P66: -3130185.754 | Q66: 1254823.811 | S66: =SUM(S54:S65) -> 0 | T66: 0 | U66: 0 | V66: 0 | W66: 0 | X66: -3314484.92 | Y66: 0 | Z66: 604286994.8 | AA66: 0 | AB66: 0 | AC66: 9156803.348 | AD66: 9741310.36 | AE66: -3314484.92
B67: Total Atualizado pelo SELIC | D67: =SUMPRODUCT(D54:D65,$R$54:$R$65) -> 13857800.16 | E67: 77822.6961 | F67: 27117899.55 | G67: 24580794.94 | H67: 51628624.76 | I67: 2628102.886 | J67: 0 | K67: 53169957.87 | L67: 26599631.27 | M67: 2698829.989 | N67: 0 | O67: 0 | P67: -3246982.402 | Q67: 1300258.376 | R67: 12.90516885 | S67: 0 | T67: 0 | U67: 0 | V67: 0 | W67: 0 | X67: -3438158.324 | Y67: 0 | Z67: 626210298.5 | AA67: 0 | AB67: 0 | AC67: =SUMPRODUCT(AC54:AC65,$R$54:$R$65) -> 9498471.23 | AD67: 10093912.44 | AE67: -3438158.324
B71: =B53 -> Competência | C71: 0 | D71: PeD | E71: ONS | F71: ESSERR | G71: PROINFA | H71: CDE | I71: TFSEE | J71: CFURH | K71: CVA_Energia | L71: CVA_RB | M71: CVA_CDE | N71: CVA_CFURH | O71: CVA_TranItaipu | P71: CVA_ESSERR | Q71: CVA_PROINFA | R71: Fator Selic | S71: RTE_Energia | T71: RTE_CDE_USO | U71: RTE_CDE_E | V71: RTE_CUSD | W71: RTE_PeD | X71: CVA_CDE_E | Y71: CVA_CCC | Z71: DISTRIBUICAO | AA71: cDE_E_ACR | AB71: CDE_E_Dec | AC71: covidteeco | AD71: covidtusdeco | AE71: CVA_CovidTe_ou_CVA_CDE_E | AF71: Fator Selic
AF72: =IFERROR(VLOOKUP(CAPA!$C$15,Índices!B:F,5,FALSE)/VLOOKUP(DATE(YEAR(B72),MONTH(B72),1),Índices!B:F,5,FALSE),0) -> 0
AF73: =IFERROR(VLOOKUP(CAPA!$C$15,Índices!B:F,5,FALSE)/VLOOKUP(DATE(YEAR(B73),MONTH(B73),1),Índices!B:F,5,FALSE),0) -> 0
AF74: =IFERROR(VLOOKUP(CAPA!$C$15,Índices!B:F,5,FALSE)/VLOOKUP(DATE(YEAR(B74),MONTH(B74),1),Índices!B:F,5,FALSE),0) -> 0
B75: Total Bruto | D75: =SUM(D72:D74) -> 0 | E75: 0 | F75: 0 | G75: 0 | H75: 0 | I75: 0 | J75: 0 | K75: 0 | L75: 0 | M75: 0 | N75: 0 | O75: 0 | P75: 0 | Q75: 0 | R75: 0 | S75: 0 | T75: 0 | U75: 0 | V75: 0 | W75: 0 | X75: 0 | Y75: 0 | Z75: 0 | AA75: 0 | AB75: 0 | AC75: =SUM(AC72:AC74) -> 0 | AD75: 0 | AE75: 0
B76: Total Atualizado pelo SELIC | D76: =SUMPRODUCT(D72:D74,$AF$72:$AF$74) -> 0 | E76: 0 | F76: 0 | G76: 0 | H76: 0 | I76: 0 | J76: 0 | K76: 0 | L76: 0 | M76: 0 | N76: 0 | O76: 0 | P76: 0 | Q76: 0 | S76: =SUMPRODUCT(S72:S74,$AF$72:$AF$74) -> 0 | T76: 0 | U76: 0 | V76: 0 | W76: 0 | X76: 0 | Y76: 0 | Z76: 0 | AA76: 0 | AB76: 0 | AC76: =SUMPRODUCT(AC72:AC74,$AF$72:$AF$74) -> 0 | AD76: 0 | AE76: 0

Sheet Mercado_Receita
A1: Código | B1: TipoMercado | C1: Modalidade | D1: Subgrupo | E1: Classe | F1: Subclasse | G1: Detalhe | H1: Agente | I1: Posto | J1: OPÇÃO | K1: AnoMes | L1: D | M1: Daj | N1: TUSD_E | O1: TUSD_Eaj | P1: TE_E | Q1: TE_Eaj | R1: TUSD/KW | S1: TUSD/MWh | T1: TE | U1: ReceitaD | V1: ReceitaE | W1: Total | X1: Total com Tar de aplicação | Y1: CCC | Z1: CDE | AA1: CFURH | AB1: Conexao_D | AC1: Conexao_T | AD1: CUSD | AE1: DISTRIBUICAO | AF1: EnergiaRevenda | AG1: ESSERR | AH1: ITAIPU | AI1: ONS | AJ1: OUTROS | AK1: PeD | AL1: PROINFA | AM1: RGR | AN1: TFSEE | AO1: TUST_FR | AP1: TUST_RB | AQ1: TUSDG_ONS | AR1: TUSDG_T | AS1: TUST_CI | AT1: TUST_ITAIPU | AU1: CVA_CCC | AV1: CVA_CDE | AW1: CVA_PROINFA | AX1: CVA_TranItaipu | AY1: CVA_ESSERR | AZ1: CVA_CFURH | BA1: CVA_CDE_E | BB1: CVA_Energia | BC1: CVA_RB | BD1: perdasnt | BE1: perdasrb_d | BF1: perdasrb_c | BG1: perdastec | BH1: RI | BI1: PisPasep | BJ1: Cofins | BK1: ICMS | BL1: UC | BM1: total_dummy | BN1: Subs_CarFI | BO1: Subs_GerFI | BP1: Subs_Dist | BQ1: Subs_AguaEsgoto | BR1: Subs_Rural | BS1: Subs_Irrigante | BT1: Subs_BaixaRenda | BU1: CDE_E | BV1: DespesaEnergia | BW1: RTE_CUSD | BX1: RTE_Energia | BY1: RTE_CDE_USO | BZ1: RTE_CDE_E | CA1: RTE_PeD | CB1: Dif_Subs_Car | CC1: Dif_Subs_Ger | CD1: Dif_Subs_D | CE1: Dif_Subs_Agua | CF1: Dif_Subs_Ru | CG1: Dif_Subs_Irr | CH1: dif_subs_baixa | CI1: FinTotAj | CJ1: FinAj | CK1: RTE_CDE_E_Dec | CL1: RTE_CDE_E_ACR | CM1: CDE_E_Dec | CN1: CDE_E_ACR | CO1: FinPostTUSD | CP1: FinPostTE | CQ1: FinPostQtddias | CR1: FinCT_Geral | CS1: finCT_TUST_FR | CT1: finCT_TUST_RB | CU1: FINCT_TUSDG_ONS | CV1: FINCT_TUSDG_T | CW1: FINCT_TUST_CI | CX1: FINCT_TUST_ITAIPU | CY1: FinCT_Itaipu | CZ1: FinCT_CUSD | DA1: FinCT_Conexao_D | DB1: FinCT_Conexao_T | DC1: FinCT_EnergiaRevenda | DD1: FINCT_perdasrb_c | DE1: FINCT_perdasrb_d | DF1: FinCT_perdasnt | DG1: FinCT_perdastec | DH1: FinCT_CCC | DI1: FinCT_CDE | DJ1: FinCT_CDE_E | DK1: FinCT_CFURH | DL1: FinCT_ONS | DM1: FinCT_ESSERR | DN1: FinCT_Ped | DO1: finCT_PROINFA | DP1: finCT_TFSEE | DQ1: FINCT_Liminar | DR1: FinCT_Posterg | DS1: FINCT_RGR | DT1: Tipo_ato | DU1: DIST_D | DV1: DIST_E | DW1: FIN_RI | DX1: FINCT_RI | DY1: Fin_TUSD | DZ1: Fin_TE | EA1: CVA_TUSD | EB1: CVA_TE | EC1: FinCT_ParcelaB | ED1: CVA_EnergiaRevenda | EE1: CVA_perdasnt | EF1: CVA_perdasrb_d | EG1: CVA_perdasrb_c | EH1: CVA_perdastec | EI1: CVA_TUST_RB | EJ1: CVA_TUST_FR | EK1: CVA_TUSDG_ONS | EL1: CVA_TUSDG_T | EM1: CVA_TUST_CI | EN1: CVA_TUST_ITAIPU | EO1: CVA_liminar | EP1: covidTusdEco | EQ1: covidTeEco | ER1: CVA_CovidTusd | ES1: CVA_CovidTe_ou_CVA_CDE_E | ET1: FinCT_CDECOVIDTUSD | EU1: FinCT_CDECOVIDTE_ou_FinCT_CDE_E | EV1: idsreag | EW1: FinCTAn3En | EX1: An3En | EY1: CVA_An3En | EZ1: Fin_An3En | FA1: FIN_CFURH | FB1: TEAngra | FC1: TUSDAngra | FD1: teCheia | FE1: tusdcheia | FF1: AngraIII_TE | FG1: AngraIII_TUSD | FH1: AngraIII_Desc_TE | FI1: AngraIII_Desc_TUSD
A2: 29 | B2: Regular | C2: Azul | D2: A3 | E2: Industrial | F2: Não se aplica | G2: Não se aplica | H2: Não se aplica | I2: Fora ponta | J2: CATIVO | K2: 2021-04-01 | L2: 10839 | M2: 10839 | N2: 3980.952 | O2: 3980.952 | P2: 3980.952 | Q2: 3980.952 | R2: 11.27 | S2: 34.28 | T2: 219.75 | U2: 122155.53 | V2: 1011281.237 | W2: 1133436.767 | X2: 1153386.388 | Y2: 0 | Z2: 59514.04781 | AA2: 0 | AB2: 0 | AC2: 5819.205978 | AD2: 0 | AE2: 27669.2815 | AF2: 792066.2341 | AG2: 40255.90179 | AH2: 0 | AI2: 100.0768034 | AJ2: 0 | AK2: 9543.034876 | AL2: 39269.50175 | AN2: 656.5420306 | AO2: 15153.8199 | AP2: 73562.78542 | AQ2: 0 | AR2: 0 | AS2: 1.489155591e-09 | AT2: 0 | AU2: 0 | AV2: 3111.031869 | AW2: 2077.251719 | AX2: 0 | AY2: -4820.071128 | AZ2: 0 | BB2: 68613.43431 | BC2: 22580.28314 | BD2: 8572.20874 | BE2: 523.3863686 | BF2: 19661.89441 | BG2: 15404.7725 | BH2: 0 | BI2: 0 | BJ2: 0 | BK2: 0 | BL2: 0 | BV2: 836228.4961 | CI2: 1153385.871 | CJ2: 19949.07494 | CO2: 9758.38416 | CP2: 10191.23712 | CQ2: 30 | CR2: -62491.98816 | CS2: -3.274180926e-11 | CT2: -15876.49107 | CU2: 0 | CV2: 0 | CW2: 0 | CX2: 0 | CY2: 0 | CZ2: 0 | DA2: 0 | DB2: 0 | DC2: -64833.19891 | DD2: -1609.390044 | DE2: -42.84087754 | DF2: -701.6631822 | DG2: -1260.930761 | DH2: 0 | DI2: -1206.239857 | DK2: 0 | DL2: 3.597057664 | DM2: 20689.271 | DN2: 0 | DO2: 2335.452371 | DP2: 10.44610946 | DQ2: 0 | DR2: -709.9398987 | DU2: 27669.2815 | DV2: 0 | DW2: 0 | DX2: 0 | DY2: -19992.25896 | DZ2: -46497.51936 | EA2: 29750.64312 | EB2: 56688.75648 | EC2: -3229.263672 | ED2: 64989.87391 | EE2: 703.3588115 | EF2: 42.94440621 | EG2: 1613.279273 | EH2: 1263.977909 | EI2: 18723.31022 | EJ2: 3856.972916 | EK2: 0 | EL2: 0 | EM2: 0 | EN2: 0 | EO2: 0 | EP2: 11635.5915 | EQ2: 14100.26334 | ER2: 0 | ES2: -5103.867412 | ET2: 0 | EU2: -175.8980984 | EV2: 155 | EW2: 0 | EX2: 0 | EY2: 0 | FA2: 0 | FB2: -66.40645249 | FD2: -66.40645249 | FF2: 0 | FG2: 0 | FH2: 0 | FI2: 0
A3: 1748 | B3: Regular | C3: Azul | D3: A3 | E3: Industrial | F3: Não se aplica | G3: Não se aplica | H3: Não se aplica | I3: Fora ponta | J3: LIVRE | K3: 2021-04-01 | L3: 34410 | M3: 34410 | N3: 0 | O3: 0 | P3: 0 | Q3: 0 | R3: 11.27 | U3: 387800.7 | W3: 387800.7 | X3: 398811.9 | Y3: 0 | Z3: 0 | AA3: 0 | AB3: 0 | AC3: 18473.92543 | AD3: 0 | AE3: 87840.2045 | AI3: 0 | AJ3: 0 | AK3: 0 | AL3: 0 | AN3: 0 | AO3: 48108.03051 | AP3: 233535.884 | AQ3: 0 | AR3: 0 | AU3: 0 | AV3: 0 | AW3: 0 | AZ3: 0 | BB3: 0 | BC3: 71684.43056 | BD3: 0 | BE3: 0 | BG3: 0 | BH3: 0 | BI3: 0 | BJ3: 0 | BK3: 0 | BL3: 0 | BV3: 0 | CI3: 398811.9 | CJ3: 11011.17 | CO3: 11011.2 | CP3: 0 | CQ3: 30 | CR3: -50402.25646 | CS3: -9.458744898e-11 | CT3: -50402.25646 | CU3: 0 | CV3: 0 | CZ3: 0 | DA3: 0 | DB3: 0 | DE3: 0 | DF3: 0 | DG3: 0 | DH3: 0 | DI3: 0 | DK3: 0 | DL3: 0 | DN3: 0 | DO3: 0 | DP3: 0 | DQ3: 0 | DR3: -212.1565483 | DU3: 87840.2045 | DW3: 0 | DX3: 0 | DY3: -60561.6 | EA3: 71572.8 | EC3: -10251.77258 | EE3: 0 | EF3: 0 | EH3: 0 | EI3: 59439.90264 | EJ3: 12244.52791 | EK3: 0 | EL3: 0 | EO3: 0 | EP3: 0 | ER3: 0 | ET3: 0 | EV3: 155 | FA3: 0 | FB3: -66.40645249 | FD3: -66.40645249 | FF3: 0 | FG3: 0 | FH3: 0 | FI3: 0
A4: 1772 | B4: Regular | C4: Azul | D4: A3 | E4: Industrial | F4: Não se aplica | G4: Fonte incentivada | H4: Não se aplica | I4: Fora ponta | J4: LIVRE | K4: 2021-04-01 | L4: 1500 | M4: 752.883405 | N4: 0 | O4: 0 | P4: 0 | Q4: 0 | R4: 11.27 | U4: 16905 | W4: 16905 | X4: 17385 | Y4: 0 | Z4: 0 | AA4: 0 | AB4: 0 | AC4: 805.3149707 | AD4: 0 | AE4: 3829.128357 | AI4: 0 | AJ4: 0 | AK4: 0 | AL4: 0 | AN4: 0 | AO4: 2097.124259 | AP4: 10180.29137 | AQ4: 0 | AR4: 0 | AU4: 0 | AV4: 0 | AW4: 0 | AZ4: 0 | BB4: 0 | BC4: 3124.866197 | BD4: 0 | BE4: 0 | BG4: 0 | BH4: 0 | BI4: 0 | BJ4: 0 | BK4: 0 | BL4: 0 | BN4: 8659.081336 | BV4: 0 | CI4: 8725.8792 | CJ4: 240.8532256 | CO4: 480 | CP4: 0 | CQ4: 30 | CR4: -2197.134109 | CS4: -4.547473509e-12 | CT4: -2197.134109 | CU4: 0 | CV4: 0 | CZ4: 0 | DA4: 0 | DB4: 0 | DE4: 0 | DF4: 0 | DG4: 0 | DH4: 0 | DI4: 0 | DK4: 0 | DL4: 0 | DN4: 0 | DO4: 0 | DP4: 0 | DQ4: 0 | DR4: -9.248323812 | DU4: 3829.128357 | DW4: 0 | DX4: 0 | DY4: -2640 | EA4: 3120 | EC4: -446.8950556 | EE4: 0 | EF4: 0 | EH4: 0 | EI4: 2591.102992 | EJ4: 533.7632045 | EK4: 0 | EL4: 0 | EO4: 0 | EP4: 0 | ER4: 0 | ET4: 0 | EV4: 155 | FA4: 0 | FB4: -66.40645249 | FD4: -66.40645249 | FF4: 0 | FG4: 0 | FH4: 0 | FI4: 0
A5: 157 | B5: Regular | C5: Azul | D5: A3 | E5: Industrial | F5: Não se aplica | G5: Não se aplica | H5: Não se aplica | I5: Fora ponta | J5: CATIVO | K5: 2021-05-01 | L5: 10942 | M5: 10942 | N5: 4029.835 | O5: 4029.835 | P5: 4029.835 | Q5: 4029.835 | R5: 11.27 | S5: 34.28 | T5: 219.75 | U5: 123316.34 | V5: 1023698.985 | W5: 1147015.325 | X5: 1167200.282 | Y5: 0 | Z5: 60244.83411 | AA5: 0 | AB5: 0 | AC5: 5874.504273 | AD5: 0 | AE5: 27932.21498 | AF5: 801792.1926 | AG5: 40750.21301 | AH5: 0 | AI5: 101.3056689 | AJ5: 0 | AK5: 9660.215935 | AL5: 39751.70075 | AN5: 664.603857 | AO5: 15297.82243 | AP5: 74261.8321 | AQ5: 0 | AR5: 0 | AS5: 1.507441266e-09 | AT5: 0 | AU5: 0 | AV5: 3149.232925 | AW5: 2102.758758 | AX5: 0 | AY5: -4879.257859 | AZ5: 0 | BB5: 69455.95401 | BC5: 22794.85728 | BD5: 8677.468808 | BE5: 529.8131469 | BF5: 19903.32721 | BG5: 15593.93115 | BH5: 0 | BI5: 0 | BJ5: 0 | BK5: 0 | BL5: 0 | BV5: 846496.7329 | CI5: 1167201.573 | CJ5: 20186.21775 | CO5: 9868.5793 | CP5: 10316.3776 | CQ5: 31 | CR5: -63215.26015 | CS5: -3.092281986e-11 | CT5: -16027.36095 | CU5: 0 | CV5: 0 | CW5: 0 | CX5: 0 | CY5: 0 | CZ5: 0 | DA5: 0 | DB5: 0 | DC5: -65629.30026 | DD5: -1629.152104 | DE5: -43.36693026 | DF5: -710.2790613 | DG5: -1276.414012 | DH5: 0 | DI5: -1221.051546 | DK5: 0 | DL5: 3.641226739 | DM5: 20943.31919 | DN5: 0 | DO5: 2364.129913 | DP5: 10.57437958 | DQ5: 0 | DR5: -718.4718604 | DU5: 27932.21498 | DV5: 0 | DW5: 0 | DX5: 0 | DY5: -20184.78205 | DZ5: -47068.4728 | EA5: 30053.36135 | EB5: 57384.8504 | EC5: -3259.950466 | ED5: 65787.89911 | EE5: 711.9955117 | EF5: 43.47173017 | EG5: 1633.08909 | EH5: 1279.498576 | EI5: 18901.23263 | EJ5: 3893.624656 | EK5: 0 | EL5: 0 | EM5: 0 | EN5: 0 | EO5: 0 | EP5: 11778.46753 | EQ5: 14273.40363 | ER5: 0 | ES5: -5166.538942 | ET5: 0 | EU5: -178.0579905 | EV5: 155 | EW5: 0 | EX5: 0 | EY5: 0 | FA5: 0 | FB5: -66.40645249 | FD5: -66.40645249 | FF5: 0 | FG5: 0 | FH5: 0 | FI5: 0
A6: 1815 | B6: Regular | C6: Azul | D6: A3 | E6: Industrial | F6: Não se aplica | G6: Não se aplica | H6: Não se aplica | I6: Fora ponta | J6: LIVRE | K6: 2021-05-01 | L6: 34444 | M6: 34444 | N6: 0 | O6: 0 | P6: 0 | Q6: 0 | R6: 11.27 | U6: 388183.88 | W6: 388183.88 | X6: 399205.96 | Y6: 0 | Z6: 0 | AA6: 0 | AB6: 0 | AC6: 18492.17923 | AD6: 0 | AE6: 87926.99807 | AI6: 0 | AJ6: 0 | AK6: 0 | AL6: 0 | AN6: 0 | AO6: 48155.56532 | AP6: 233766.6372 | AQ6: 0 | AR6: 0 | AU6: 0 | AV6: 0 | AW6: 0 | AZ6: 0 | BB6: 0 | BC6: 71755.26086 | BD6: 0 | BE6: 0 | BG6: 0 | BH6: 0 | BI6: 0 | BJ6: 0 | BK6: 0 | BL6: 0 | BV6: 0 | CI6: 399205.96 | CJ6: 11022.05 | CO6: 11022.08 | CP6: 0 | CQ6: 31 | CR6: -50452.05816 | CS6: -9.458744898e-11 | CT6: -50452.05816 | CU6: 0 | CV6: 0 | CZ6: 0 | DA6: 0 | DB6: 0 | DE6: 0 | DF6: 0 | DG6: 0 | DH6: 0 | DI6: 0 | DK6: 0 | DL6: 0 | DN6: 0 | DO6: 0 | DP6: 0 | DQ6: 0 | DR6: -212.3661769 | DU6: 87926.99807 | DW6: 0 | DX6: 0 | DY6: -60621.44 | EA6: 71643.52 | EC6: -10261.9022 | EE6: 0 | EF6: 0 | EH6: 0 | EI6: 59498.63431 | EJ6: 12256.62654 | EK6: 0 | EL6: 0 | EO6: 0 | EP6: 0 | ER6: 0 | ET6: 0 | EV6: 155 | FA6: 0 | FB6: -66.40645249 | FD6: -66.40645249 | FF6: 0 | FG6: 0 | FH6: 0 | FI6: 0
A7: 1839 | B7: Regular | C7: Azul | D7: A3 | E7: Industrial | F7: Não se aplica | G7: Fonte incentivada | H7: Não se aplica | I7: Fora ponta | J7: LIVRE | K7: 2021-05-01 | L7: 1500 | M7: 754.02549 | N7: 0 | O7: 0 | P7: 0 | Q7: 0 | R7: 11.27 | U7: 16905 | W7: 16905 | X7: 17385 | Y7: 0 | Z7: 0 | AA7: 0 | AB7: 0 | AC7: 805.3149707 | AD7: 0 | AE7: 3829.128357 | AI7: 0 | AJ7: 0 | AK7: 0 | AL7: 0 | AN7: 0 | AO7: 2097.124259 | AP7: 10180.29137 | AQ7: 0 | AR7: 0 | AU7: 0 | AV7: 0 | AW7: 0 | AZ7: 0 | BB7: 0 | BC7: 3124.866197 | BD7: 0 | BE7: 0 | BG7: 0 | BH7: 0 | BI7: 0 | BJ7: 0 | BK7: 0 | BL7: 0 | BN7: 8645.844571 | BV7: 0 | CI7: 8739.2077 | CJ7: 241.3104277 | CO7: 480 | CP7: 0 | CQ7: 31 | CR7: -2197.134109 | CS7: -4.547473509e-12 | CT7: -2197.134109 | CU7: 0 | CV7: 0 | CZ7: 0 | DA7: 0 | DB7: 0 | DE7: 0 | DF7: 0 | DG7: 0 | DH7: 0 | DI7: 0 | DK7: 0 | DL7: 0 | DN7: 0 | DO7: 0 | DP7: 0 | DQ7: 0 | DR7: -9.248323812 | DU7: 3829.128357 | DW7: 0 | DX7: 0 | DY7: -2640 | EA7: 3120 | EC7: -446.8950556 | EE7: 0 | EF7: 0 | EH7: 0 | EI7: 2591.102992 | EJ7: 533.7632045 | EK7: 0 | EL7: 0 | EO7: 0 | EP7: 0 | ER7: 0 | ET7: 0 | EV7: 155 | FA7: 0 | FB7: -66.40645249 | FD7: -66.40645249 | FF7: 0 | FG7: 0 | FH7: 0 | FI7: 0
A8: 302 | B8: Regular | C8: Azul | D8: A3 | E8: Industrial | F8: Não se aplica | G8: Não se aplica | H8: Não se aplica | I8: Fora ponta | J8: CATIVO | K8: 2021-06-01 | L8: 10325 | M8: 10325 | N8: 3862.712 | O8: 3862.712 | P8: 3862.712 | Q8: 3862.712 | R8: 11.27 | S8: 34.28 | T8: 219.75 | U8: 116362.75 | V8: 981244.7294 | W8: 1097607.479 | X8: 1116903.107 | Y8: 0 | Z8: 57746.39499 | AA8: 0 | AB8: 0 | AC8: 5543.251381 | AD8: 0 | AE8: 26357.16685 | AF8: 768540.7278 | AG8: 39060.2436 | AH8: 0 | AI8: 97.10437843 | AJ8: 0 | AK8: 9259.593015 | AL8: 38103.14107 | AN8: 637.041788 | AO8: 14435.20532 | AP8: 70074.33891 | AQ8: 0 | AR8: 0 | AS8: 1.444925528e-09 | AT8: 0 | AU8: 0 | AV8: 3018.629748 | AW8: 2015.554356 | AX8: 0 | AY8: -4676.908083 | AZ8: 0 | BB8: 66575.51663 | BC8: 21509.49565 | BD8: 8317.601811 | BE8: 507.8410407 | BF8: 19077.90787 | BG8: 14947.2286 | BH8: 0 | BI8: 0 | BJ8: 0 | BK8: 0 | BL8: 0 | BV8: 811391.3071 | CI8: 1116902.591 | CJ8: 19295.08134 | CO8: 9407.08496 | CP8: 9888.54272 | CQ8: 30 | CR8: -60354.55623 | CS8: -3.092281986e-11 | CT8: -15123.60645 | CU8: 0 | CV8: 0 | CW8: 0 | CX8: 0 | CY8: 0 | CZ8: 0 | DA8: 0 | DB8: 0 | DC8: -62907.55966 | DD8: -1561.588845 | DE8: -41.56844186 | DF8: -680.8227765 | DG8: -1223.479304 | DH8: 0 | DI8: -1170.412798 | DK8: 0 | DL8: 3.490219878 | DM8: 20074.76989 | DN8: 0 | DO8: 2266.086077 | DP8: 10.13584499 | DQ8: 0 | DR8: -687.6694696 | DU8: 26357.16685 | DV8: 0 | DW8: 0 | DX8: 0 | DY8: -19060.42376 | DZ8: -45116.47616 | EA8: 28467.50872 | EB8: 55005.01888 | EC8: -3076.127633 | ED8: 63059.58118 | EE8: 682.4680432 | EF8: 41.66889558 | EG8: 1565.362558 | EH8: 1226.435947 | EI8: 17835.4256 | EJ8: 3674.070058 | EK8: 0 | EL8: 0 | EM8: 0 | EN8: 0 | EO8: 0 | EP8: 11289.9977 | EQ8: 13681.46524 | ER8: 0 | ES8: -4952.27521 | ET8: 0 | EU8: -170.6736719 | EV8: 155 | EW8: 0 | EX8: 0 | EY8: 0 | FA8: 0 | FB8: -66.40645249 | FD8: -66.40645249 | FF8: 0 | FG8: 0 | FH8: 0 | FI8: 0
A9: 1882 | B9: Regular | C9: Azul | D9: A3 | E9: Industrial | F9: Não se aplica | G9: Não se aplica | H9: Não se aplica | I9: Fora ponta | J9: LIVRE | K9: 2021-06-01 | L9: 34262 | M9: 34262 | N9: 0 | O9: 0 | P9: 0 | Q9: 0 | R9: 11.27 | U9: 386132.74 | W9: 386132.74 | X9: 397096.58 | Y9: 0 | Z9: 0 | AA9: 0 | AB9: 0 | AC9: 18394.46768 | AD9: 0 | AE9: 87462.39717 | AI9: 0 | AJ9: 0 | AK9: 0 | AL9: 0 | AN9: 0 | AO9: 47901.11425 | AP9: 232531.4286 | AQ9: 0 | AR9: 0 | AU9: 0 | AV9: 0 | AW9: 0 | AZ9: 0 | BB9: 0 | BC9: 71376.11042 | BD9: 0 | BE9: 0 | BG9: 0 | BH9: 0 | BI9: 0 | BJ9: 0 | BK9: 0 | BL9: 0 | BV9: 0 | CI9: 397096.58 | CJ9: 10963.81 | CO9: 10963.84 | CP9: 0 | CQ9: 30 | CR9: -50185.47256 | CS9: -1.018634066e-10 | CT9: -50185.47256 | CU9: 0 | CV9: 0 | CZ9: 0 | DA9: 0 | DB9: 0 | DE9: 0 | DF9: 0 | DG9: 0 | DH9: 0 | DI9: 0 | DK9: 0 | DL9: 0 | DN9: 0 | DO9: 0 | DP9: 0 | DQ9: 0 | DR9: -211.244047 | DU9: 87462.39717 | DW9: 0 | DX9: 0 | DY9: -60301.12 | EA9: 71264.96 | EC9: -10207.67893 | EE9: 0 | EF9: 0 | EH9: 0 | EI9: 59184.24715 | EJ9: 12191.86328 | EK9: 0 | EL9: 0 | EO9: 0 | EP9: 0 | ER9: 0 | ET9: 0 | EV9: 155 | FA9: 0 | FB9: -66.40645249 | FD9: -66.40645249 | FF9: 0 | FG9: 0 | FH9: 0 | FI9: 0
A10: 1906 | B10: Regular | C10: Azul | D10: A3 | E10: Industrial | F10: Não se aplica | G10: Fonte incentivada | H10: Não se aplica | I10: Fora ponta | J10: LIVRE | K10: 2021-06-01 | L10: 1500 | M10: 750.618645 | N10: 0 | O10: 0 | P10: 0 | Q10: 0 | R10: 11.27 | U10: 16905 | W10: 16905 | X10: 17385 | Y10: 0 | Z10: 0 | AA10: 0 | AB10: 0 | AC10: 805.3149707 | AD10: 0 | AE10: 3829.128357 | AI10: 0 | AJ10: 0 | AK10: 0 | AL10: 0 | AN10: 0 | AO10: 2097.124259 | AP10: 10180.29137 | AQ10: 0 | AR10: 0 | AU10: 0 | AV10: 0 | AW10: 0 | AZ10: 0 | BB10: 0 | BC10: 3124.866197 | BD10: 0 | BE10: 0 | BG10: 0 | BH10: 0 | BI10: 0 | BJ10: 0 | BK10: 0 | BL10: 0 | BN10: 8685.329904 | BV10: 0 | CI10: 8699.6858 | CJ10: 240.1836708 | CO10: 480 | CP10: 0 | CQ10: 30 | CR10: -2197.134109 | CS10: -4.547473509e-12 | CT10: -2197.134109 | CU10: 0 | CV10: 0 | CZ10: 0 | DA10: 0 | DB10: 0 | DE10: 0 | DF10: 0 | DG10: 0 | DH10: 0 | DI10: 0 | DK10: 0 | DL10: 0 | DN10: 0 | DO10: 0 | DP10: 0 | DQ10: 0 | DR10: -9.248323812 | DU10: 3829.128357 | DW10: 0 | DX10: 0 | DY10: -2640 | EA10: 3120 | EC10: -446.8950556 | EE10: 0 | EF10: 0 | EH10: 0 | EI10: 2591.102992 | EJ10: 533.7632045 | EK10: 0 | EL10: 0 | EO10: 0 | EP10: 0 | ER10: 0 | ET10: 0 | EV10: 155 | FA10: 0 | FB10: -66.40645249 | FD10: -66.40645249 | FF10: 0 | FG10: 0 | FH10: 0 | FI10: 0
A11: 442 | B11: Regular | C11: Azul | D11: A3 | E11: Industrial | F11: Não se aplica | G11: Não se aplica | H11: Não se aplica | I11: Fora ponta | J11: CATIVO | K11: 2021-07-01 | L11: 10465 | M11: 10465 | N11: 3960.024 | O11: 3960.024 | P11: 3960.024 | Q11: 3960.024 | R11: 11.27 | S11: 34.28 | T11: 219.75 | U11: 117940.55 | V11: 1005964.897 | W11: 1123905.447 | X11: 1143648.746 | Y11: 0 | Z11: 59201.18043 | AA11: 0 | AB11: 0 | AC11: 5618.414112 | AD11: 0 | AE11: 26714.55217 | AF11: 787902.315 | AG11: 40044.27514 | AH11: 0 | AI11: 99.55069627 | AJ11: 0 | AK11: 9492.866817 | AL11: 39063.06064 | AN11: 653.0905668 | AO11: 14630.93692 | AP11: 71024.49944 | AQ11: 0 | AR11: 0 | AS11: 1.48132705e-09 | AT11: 0 | AU11: 0 | AV11: 3094.677068 | AW11: 2066.331536 | AX11: 0 | AY11: -4794.73185 | AZ11: 0 | BB11: 68252.73115 | BC11: 21801.14983 | BD11: 8527.144347 | BE11: 520.6349087 | BF11: 19558.53116 | BG11: 15323.78909 | BH11: 0 | BI11: 0 | BJ11: 0 | BK11: 0 | BL11: 0 | BV11: 831832.4145 | CI11: 1143647.713 | CJ11: 19742.23668 | CO11: 9605.63792 | CP11: 10137.66144 | CQ11: 31 | CR11: -61699.11014 | CS11: -2.910383046e-11 | CT11: -15328.6723 | CU11: 0 | CV11: 0 | CW11: 0 | CX11: 0 | CY11: 0 | CZ11: 0 | DA11: 0 | DB11: 0 | DC11: -64492.36858 | DD11: -1600.929425 | DE11: -42.61566159 | DF11: -697.974515 | DG11: -1254.302005 | DH11: 0 | DI11: -1199.898613 | DK11: 0 | DL11: 3.578147809 | DM11: 20580.5068 | DN11: 0 | DO11: 2323.174819 | DP11: 10.39119391 | DQ11: 0 | DR11: -704.2531242 | DU11: 26714.55217 | DV11: 0 | DW11: 0 | DX11: 0 | DY11: -19329.20552 | DZ11: -46253.08032 | EA11: 28934.84344 | EB11: 56390.74176 | EC11: -3117.837838 | ED11: 64648.21993 | EE11: 699.6612304 | EF11: 42.718646 | EG11: 1604.798209 | EH11: 1257.333134 | EI11: 18077.26188 | EJ11: 3723.887957 | EK11: 0 | EL11: 0 | EM11: 0 | EN11: 0 | EO11: 0 | EP11: 11574.4228 | EQ11: 14026.13778 | ER11: 0 | ES11: -5077.036208 | ET11: 0 | EU11: -174.9733961 | EV11: 155 | EW11: 0 | EX11: 0 | EY11: 0 | FA11: 0 | FB11: -66.40645249 | FD11: -66.40645249 | FF11: 0 | FG11: 0 | FH11: 0 | FI11: 0
A12: 1949 | B12: Regular | C12: Azul | D12: A3 | E12: Industrial | F12: Não se aplica | G12: Não se aplica | H12: Não se aplica | I12: Fora ponta | J12: LIVRE | K12: 2021-07-01 | L12: 34325 | M12: 34325 | N12: 0 | O12: 0 | P12: 0 | Q12: 0 | R12: 11.27 | U12: 386842.75 | W12: 386842.75 | X12: 397826.75 | Y12: 0 | Z12: 0 | AA12: 0 | AB12: 0 | AC12: 18428.29091 | AD12: 0 | AE12: 87623.22056 | AI12: 0 | AJ12: 0 | AK12: 0 | AL12: 0 | AN12: 0 | AO12: 47989.19347 | AP12: 232959.0008 | AQ12: 0 | AR12: 0 | AU12: 0 | AV12: 0 | AW12: 0 | AZ12: 0 | BB12: 0 | BC12: 71507.3548 | BD12: 0 | BE12: 0 | BG12: 0 | BH12: 0 | BI12: 0 | BJ12: 0 | BK12: 0 | BL12: 0 | BV12: 0 | CI12: 397826.75 | CJ12: 10983.97 | CO12: 10984 | CP12: 0 | CQ12: 31 | CR12: -50277.75219 | CS12: -1.018634066e-10 | CT12: -50277.75219 | CU12: 0 | CV12: 0 | CZ12: 0 | DA12: 0 | DB12: 0 | DE12: 0 | DF12: 0 | DG12: 0 | DH12: 0 | DI12: 0 | DK12: 0 | DL12: 0 | DN12: 0 | DO12: 0 | DP12: 0 | DQ12: 0 | DR12: -211.6324766 | DU12: 87623.22056 | DW12: 0 | DX12: 0 | DY12: -60412 | EA12: 71396 | EC12: -10226.44852 | EE12: 0 | EF12: 0 | EH12: 0 | EI12: 59293.07347 | EJ12: 12214.28133 | EK12: 0 | EL12: 0 | EO12: 0 | EP12: 0 | ER12: 0 | ET12: 0 | EV12: 155 | FA12: 0 | FB12: -66.40645249 | FD12: -66.40645249 | FF12: 0 | FG12: 0 | FH12: 0 | FI12: 0
A13: 1973 | B13: Regular | C13: Azul | D13: A3 | E13: Industrial | F13: Não se aplica | G13: Fonte incentivada | H13: Não se aplica | I13: Fora ponta | J13: LIVRE | K13: 2021-07-01 | L13: 1500 | M13: 784.87662 | N13: 0 | O13: 0 | P13: 0 | Q13: 0 | R13: 11.27 | U13: 16905 | W13: 16905 | X13: 17385 | Y13: 0 | Z13: 0 | AA13: 0 | AB13: 0 | AC13: 805.3149707 | AD13: 0 | AE13: 3829.128357 | AI13: 0 | AJ13: 0 | AK13: 0 | AL13: 0 | AN13: 0 | AO13: 2097.124259 | AP13: 10180.29137 | AQ13: 0 | AR13: 0 | AU13: 0 | AV13: 0 | AW13: 0 | AZ13: 0 | BB13: 0 | BC13: 3124.866197 | BD13: 0 | BE13: 0 | BG13: 0 | BH13: 0 | BI13: 0 | BJ13: 0 | BK13: 0 | BL13: 0 | BN13: 8288.279974 | BV13: 0 | CI13: 9096.7592 | CJ13: 251.1696926 | CO13: 480 | CP13: 0 | CQ13: 31 | CR13: -2197.134109 | CS13: -4.547473509e-12 | CT13: -2197.134109 | CU13: 0 | CV13: 0 | CZ13: 0 | DA13: 0 | DB13: 0 | DE13: 0 | DF13: 0 | DG13: 0 | DH13: 0 | DI13: 0 | DK13: 0 | DL13: 0 | DN13: 0 | DO13: 0 | DP13: 0 | DQ13: 0 | DR13: -9.248323812 | DU13: 3829.128357 | DW13: 0 | DX13: 0 | DY13: -2640 | EA13: 3120 | EC13: -446.8950556 | EE13: 0 | EF13: 0 | EH13: 0 | EI13: 2591.102992 | EJ13: 533.7632045 | EK13: 0 | EL13: 0 | EO13: 0 | EP13: 0 | ER13: 0 | ET13: 0 | EV13: 155 | FA13: 0 | FB13: -66.40645249 | FD13: -66.40645249 | FF13: 0 | FG13: 0 | FH13: 0 | FI13: 0
A14: 596 | B14: Regular | C14: Azul | D14: A3 | E14: Industrial | F14: Não se aplica | G14: Não se aplica | H14: Não se aplica | I14: Fora ponta | J14: CATIVO | K14: 2021-08-01 | L14: 10675 | M14: 10675 | N14: 3964.235 | O14: 3964.235 | P14: 3964.235 | Q14: 3964.235 | R14: 11.27 | S14: 34.28 | T14: 219.75 | U14: 120307.25 | V14: 1007034.617 | W14: 1127341.867 | X14: 1147169.8 | Y14: 0 | Z14: 59264.13363 | AA14: 0 | AB14: 0 | AC14: 5731.158208 | AD14: 0 | AE14: 27250.63014 | AF14: 788740.1525 | AG14: 40086.85732 | AH14: 0 | AI14: 99.65655623 | AJ14: 0 | AK14: 9502.961317 | AL14: 39104.59942 | AN14: 653.7850485 | AO14: 14924.53431 | AP14: 72449.74023 | AQ14: 0 | AR14: 0 | AS14: 1.482902259e-09 | AT14: 0 | AU14: 0 | AV14: 3097.967878 | AW14: 2068.528827 | AX14: 0 | AY14: -4799.830459 | AZ14: 0 | BB14: 68325.30956 | BC14: 22238.6311 | BD14: 8536.211919 | BE14: 521.18854 | BF14: 19579.32926 | BG14: 15340.08406 | BH14: 0 | BI14: 0 | BJ14: 0 | BK14: 0 | BL14: 0 | BV14: 832716.9663 | CI14: 1147171.091 | CJ14: 19829.19375 | CO14: 9679.4913 | CP14: 10148.4416 | CQ14: 31 | CR14: -62056.01819 | CS14: -3.092281986e-11 | CT14: -15636.27107 | CU14: 0 | CV14: 0 | CW14: 0 | CX14: 0 | CY14: 0 | CZ14: 0 | DA14: 0 | DB14: 0 | DC14: -64560.94831 | DD14: -1602.631818 | DE14: -42.66097812 | DF14: -698.7167253 | DG14: -1255.635802 | DH14: 0 | DI14: -1201.174558 | DK14: 0 | DL14: 3.581952731 | DM14: 20602.39164 | DN14: 0 | DO14: 2325.64523 | DP14: 10.40224367 | DQ14: 0 | DR14: -706.2281647 | DU14: 27250.63014 | DV14: 0 | DW14: 0 | DX14: 0 | DY14: -19699.77405 | DZ14: -46302.2648 | EA14: 29379.26535 | EB14: 56450.7064 | EC14: -3180.403146 | ED14: 64716.96539 | EE14: 700.4052343 | EF14: 42.76407204 | EG14: 1606.504715 | EH14: 1258.670154 | EI14: 18440.0163 | EJ14: 3798.614806 | EK14: 0 | EL14: 0 | EM14: 0 | EN14: 0 | EO14: 0 | EP14: 11586.73078 | EQ14: 14041.05285 | ER14: 0 | ES14: -5082.435013 | ET14: 0 | EU14: -175.1594588 | EV14: 155 | EW14: 0 | EX14: 0 | EY14: 0 | FA14: 0 | FB14: -66.40645249 | FD14: -66.40645249 | FF14: 0 | FG14: 0 | FH14: 0 | FI14: 0
A15: 2016 | B15: Regular | C15: Azul | D15: A3 | E15: Industrial | F15: Não se aplica | G15: Não se aplica | H15: Não se aplica | I15: Fora ponta | J15: LIVRE | K15: 2021-08-01 | L15: 34324 | M15: 34324 | N15: 0 | O15: 0 | P15: 0 | Q15: 0 | R15: 11.27 | U15: 386831.48 | W15: 386831.48 | X15: 397815.16 | Y15: 0 | Z15: 0 | AA15: 0 | AB15: 0 | AC15: 18427.75404 | AD15: 0 | AE15: 87620.66781 | AI15: 0 | AJ15: 0 | AK15: 0 | AL15: 0 | AN15: 0 | AO15: 47987.79538 | AP15: 232952.2139 | AQ15: 0 | AR15: 0 | AU15: 0 | AV15: 0 | AW15: 0 | AZ15: 0 | BB15: 0 | BC15: 71505.27156 | BD15: 0 | BE15: 0 | BG15: 0 | BH15: 0 | BI15: 0 | BJ15: 0 | BK15: 0 | BL15: 0 | BV15: 0 | CI15: 397815.16 | CJ15: 10983.65 | CO15: 10983.68 | CP15: 0 | CQ15: 31 | CR15: -50276.28743 | CS15: -1.018634066e-10 | CT15: -50276.28743 | CU15: 0 | CV15: 0 | CZ15: 0 | DA15: 0 | DB15: 0 | DE15: 0 | DF15: 0 | DG15: 0 | DH15: 0 | DI15: 0 | DK15: 0 | DL15: 0 | DN15: 0 | DO15: 0 | DP15: 0 | DQ15: 0 | DR15: -211.626311 | DU15: 87620.66781 | DW15: 0 | DX15: 0 | DY15: -60410.24 | EA15: 71393.92 | EC15: -10226.15059 | EE15: 0 | EF15: 0 | EH15: 0 | EI15: 59291.34607 | EJ15: 12213.92549 | EK15: 0 | EL15: 0 | EO15: 0 | EP15: 0 | ER15: 0 | ET15: 0 | EV15: 155 | FA15: 0 | FB15: -66.40645249 | FD15: -66.40645249 | FF15: 0 | FG15: 0 | FH15: 0 | FI15: 0
A16: 2040 | B16: Regular | C16: Azul | D16: A3 | E16: Industrial | F16: Não se aplica | G16: Fonte incentivada | H16: Não se aplica | I16: Fora ponta | J16: LIVRE | K16: 2021-08-01 | L16: 1500 | M16: 749.76273 | N16: 0 | O16: 0 | P16: 0 | Q16: 0 | R16: 11.27 | U16: 16905 | W16: 16905 | X16: 17385 | Y16: 0 | Z16: 0 | AA16: 0 | AB16: 0 | AC16: 805.3149707 | AD16: 0 | AE16: 3829.128357 | AI16: 0 | AJ16: 0 | AK16: 0 | AL16: 0 | AN16: 0 | AO16: 2097.124259 | AP16: 10180.29137 | AQ16: 0 | AR16: 0 | AU16: 0 | AV16: 0 | AW16: 0 | AZ16: 0 | BB16: 0 | BC16: 3124.866197 | BD16: 0 | BE16: 0 | BG16: 0 | BH16: 0 | BI16: 0 | BJ16: 0 | BK16: 0 | BL16: 0 | BN16: 8695.249959 | BV16: 0 | CI16: 8689.7184 | CJ16: 239.8624329 | CO16: 480 | CP16: 0 | CQ16: 31 | CR16: -2197.134109 | CS16: -4.547473509e-12 | CT16: -2197.134109 | CU16: 0 | CV16: 0 | CZ16: 0 | DA16: 0 | DB16: 0 | DE16: 0 | DF16: 0 | DG16: 0 | DH16: 0 | DI16: 0 | DK16: 0 | DL16: 0 | DN16: 0 | DO16: 0 | DP16: 0 | DQ16: 0 | DR16: -9.248323812 | DU16: 3829.128357 | DW16: 0 | DX16: 0 | DY16: -2640 | EA16: 3120 | EC16: -446.8950556 | EE16: 0 | EF16: 0 | EH16: 0 | EI16: 2591.102992 | EJ16: 533.7632045 | EK16: 0 | EL16: 0 | EO16: 0 | EP16: 0 | ER16: 0 | ET16: 0 | EV16: 155 | FA16: 0 | FB16: -66.40645249 | FD16: -66.40645249 | FF16: 0 | FG16: 0 | FH16: 0 | FI16: 0
A17: 742 | B17: Regular | C17: Azul | D17: A3 | E17: Industrial | F17: Não se aplica | G17: Não se aplica | H17: Não se aplica | I17: Fora ponta | J17: CATIVO | K17: 2021-09-01 | L17: 10672 | M17: 10672 | N17: 3601.923 | O17: 3601.923 | P17: 3601.923 | Q17: 3601.923 | R17: 11.27 | S17: 34.28 | T17: 219.75 | U17: 120273.44 | V17: 914996.4997 | W17: 1035269.94 | X17: 1053596.941 | Y17: 0 | Z17: 53847.67704 | AA17: 0 | AB17: 0 | AC17: 5729.547578 | AD17: 0 | AE17: 27242.97188 | AF17: 716653.0986 | AG17: 36423.11149 | AH17: 0 | AI17: 90.54842661 | AJ17: 0 | AK17: 8634.436388 | AL17: 35530.62723 | AN17: 594.0322416 | AO17: 14920.34006 | AP17: 72429.37965 | AQ17: 0 | AR17: 0 | AS17: 1.34737213e-09 | AT17: 0 | AU17: 0 | AV17: 2814.828524 | AW17: 1879.475247 | AX17: 0 | AY17: -4361.149056 | AZ17: 0 | BB17: 62080.7051 | BC17: 22232.38137 | BD17: 7756.043233 | BE17: 473.5544159 | BF17: 17789.8728 | BG17: 13938.0742 | BH17: 0 | BI17: 0 | BJ17: 0 | BK17: 0 | BL17: 0 | BV17: 756610.6433 | CI17: 1053596.166 | CJ17: 18326.19671 | CO17: 9106.07834 | CP17: 9220.92288 | CQ17: 30 | CR17: -57809.08244 | CS17: -3.092281986e-11 | CT17: -15631.87681 | CU17: 0 | CV17: 0 | CW17: 0 | CX17: 0 | CY17: 0 | CZ17: 0 | DA17: 0 | DB17: 0 | DC17: -58660.38835 | DD17: -1456.158983 | DE17: -38.76197004 | DF17: -634.8573794 | DG17: -1140.876733 | DH17: 0 | DI17: -1091.392984 | DK17: 0 | DL17: 3.25457949 | DM17: 18719.4322 | DN17: 0 | DO17: 2113.092449 | DP17: 9.451528661 | DQ17: 0 | DR17: -647.6791915 | DU17: 27242.97188 | DV17: 0 | DW17: 0 | DX17: 0 | DY17: -19611.16229 | DZ17: -42070.46064 | EA17: 28717.24063 | EB17: 51291.38352 | EC17: -3179.509356 | ED17: 58802.14622 | EE17: 636.3915668 | EF17: 38.85564167 | EG17: 1459.677916 | EH17: 1143.633759 | EI17: 18434.83409 | EJ17: 3797.547279 | EK17: 0 | EL17: 0 | EM17: 0 | EN17: 0 | EO17: 0 | EP17: 10527.75935 | EQ17: 12757.7682 | ER17: 0 | ES17: -4617.924914 | ET17: 0 | EU17: -159.1507273 | EV17: 155 | EW17: 0 | EX17: 0 | EY17: 0 | FA17: 0 | FB17: -66.40645249 | FD17: -66.40645249 | FF17: 0 | FG17: 0 | FH17: 0 | FI17: 0
A18: 2083 | B18: Regular | C18: Azul | D18: A3 | E18: Industrial | F18: Não se aplica | G18: Não se aplica | H18: Não se aplica | I18: Fora ponta | J18: LIVRE | K18: 2021-09-01 | L18: 34304 | M18: 34304 | N18: 0 | O18: 0 | P18: 0 | Q18: 0 | R18: 11.27 | U18: 386606.08 | W18: 386606.08 | X18: 397583.36 | Y18: 0 | Z18: 0 | AA18: 0 | AB18: 0 | AC18: 18417.0165 | AD18: 0 | AE18: 87569.61276 | AI18: 0 | AJ18: 0 | AK18: 0 | AL18: 0 | AN18: 0 | AO18: 47959.83373 | AP18: 232816.4767 | AQ18: 0 | AR18: 0 | AU18: 0 | AV18: 0 | AW18: 0 | AZ18: 0 | BB18: 0 | BC18: 71463.60668 | BD18: 0 | BE18: 0 | BG18: 0 | BH18: 0 | BI18: 0 | BJ18: 0 | BK18: 0 | BL18: 0 | BV18: 0 | CI18: 397583.36 | CJ18: 10977.25 | CO18: 10977.28 | CP18: 0 | CQ18: 30 | CR18: -50246.99231 | CS18: -1.018634066e-10 | CT18: -50246.99231 | CU18: 0 | CV18: 0 | CZ18: 0 | DA18: 0 | DB18: 0 | DE18: 0 | DF18: 0 | DG18: 0 | DH18: 0 | DI18: 0 | DK18: 0 | DL18: 0 | DN18: 0 | DO18: 0 | DP18: 0 | DQ18: 0 | DR18: -211.503 | DU18: 87569.61276 | DW18: 0 | DX18: 0 | DY18: -60375.04 | EA18: 71352.32 | EC18: -10220.19199 | EE18: 0 | EF18: 0 | EH18: 0 | EI18: 59256.79803 | EJ18: 12206.80865 | EK18: 0 | EL18: 0 | EO18: 0 | EP18: 0 | ER18: 0 | ET18: 0 | EV18: 155 | FA18: 0 | FB18: -66.40645249 | FD18: -66.40645249 | FF18: 0 | FG18: 0 | FH18: 0 | FI18: 0
A19: 2107 | B19: Regular | C19: Azul | D19: A3 | E19: Industrial | F19: Não se aplica | G19: Fonte incentivada | H19: Não se aplica | I19: Fora ponta | J19: LIVRE | K19: 2021-09-01 | L19: 11100 | M19: 5550.657564 | N19: 0 | O19: 0 | P19: 0 | Q19: 0 | R19: 11.27 | U19: 125097 | W19: 125097 | X19: 128649 | Y19: 0 | Z19: 0 | AA19: 0 | AB19: 0 | AC19: 5959.330783 | AD19: 0 | AE19: 28335.54984 | AI19: 0 | AJ19: 0 | AK19: 0 | AL19: 0 | AN19: 0 | AO19: 15518.71952 | AP19: 75334.15612 | AQ19: 0 | AR19: 0 | AU19: 0 | AV19: 0 | AW19: 0 | AZ19: 0 | BB19: 0 | BC19: 23124.00986 | BD19: 0 | BE19: 0 | BG19: 0 | BH19: 0 | BI19: 0 | BJ19: 0 | BK19: 0 | BL19: 0 | BN19: 64316.87883 | BV19: 0 | CI19: 64332.1494 | CJ19: 1776.208654 | CO19: 3552 | CP19: 0 | CQ19: 30 | CR19: -16258.79241 | CS19: -3.456079867e-11 | CT19: -16258.79241 | CU19: 0 | CV19: 0 | CZ19: 0 | DA19: 0 | DB19: 0 | DE19: 0 | DF19: 0 | DG19: 0 | DH19: 0 | DI19: 0 | DK19: 0 | DL19: 0 | DN19: 0 | DO19: 0 | DP19: 0 | DQ19: 0 | DR19: -68.43759621 | DU19: 28335.54984 | DW19: 0 | DX19: 0 | DY19: -19536 | EA19: 23088 | EC19: -3307.023412 | EE19: 0 | EF19: 0 | EH19: 0 | EI19: 19174.16214 | EJ19: 3949.847714 | EK19: 0 | EL19: 0 | EO19: 0 | EP19: 0 | ER19: 0 | ET19: 0 | EV19: 155 | FA19: 0 | FB19: -66.40645249 | FD19: -66.40645249 | FF19: 0 | FG19: 0 | FH19: 0 | FI19: 0
A20: 878 | B20: Regular | C20: Azul | D20: A3 | E20: Industrial | F20: Não se aplica | G20: Não se aplica | H20: Não se aplica | I20: Fora ponta | J20: CATIVO | K20: 2021-10-01 | L20: 11408 | M20: 11408 | N20: 3525.763 | O20: 3525.763 | P20: 3525.763 | Q20: 3525.763 | R20: 11.27 | S20: 34.28 | T20: 219.75 | U20: 128568.16 | V20: 895649.5749 | W20: 1024217.735 | X20: 1042464.954 | Y20: 0 | Z20: 52709.1077 | AA20: 0 | AB20: 0 | AC20: 6124.68879 | AD20: 0 | AE20: 29121.79753 | AF20: 701499.9985 | AG20: 35652.97171 | AH20: 0 | AI20: 88.63384705 | AJ20: 0 | AK20: 8451.867612 | AL20: 34779.35838 | AN20: 581.4718689 | AO20: 15949.32903 | AP20: 77424.50928 | AQ20: 0 | AR20: 0 | AS20: 1.318882942e-09 | AT20: 0 | AU20: 0 | AV20: 2755.311055 | AW20: 1839.735132 | AX20: 0 | AY20: -4268.935782 | AZ20: 0 | BB20: 60768.05447 | BC20: 23765.64905 | BD20: 7592.04743 | BE20: 463.5414577 | BF20: 17413.71908 | BG20: 13643.36392 | BH20: 0 | BI20: 0 | BJ20: 0 | BK20: 0 | BL20: 0 | BV20: 740612.6704 | CI20: 1042464.179 | CJ20: 18246.41431 | CO20: 9221.26554 | CP20: 9025.95328 | CQ20: 31 | CR20: -57995.33707 | CS20: -3.274180926e-11 | CT20: -16709.93728 | CU20: 0 | CV20: 0 | CW20: 0 | CX20: 0 | CY20: 0 | CZ20: 0 | DA20: 0 | DB20: 0 | DC20: -57420.05779 | DD20: -1425.369577 | DE20: -37.94237683 | DF20: -621.4337892 | DG20: -1116.753737 | DH20: 0 | DI20: -1068.316286 | DK20: 0 | DL20: 3.185763812 | DM20: 18323.62364 | DN20: 0 | DO20: 2068.412671 | DP20: 9.251683072 | DQ20: 0 | DR20: -639.9136036 | DU20: 29121.79753 | DV20: 0 | DW20: 0 | DX20: 0 | DY20: -20889.00549 | DZ20: -41180.91184 | EA20: 30110.27103 | EB20: 50206.86512 | EC20: -3398.785863 | ED20: 57558.81829 | EE20: 622.9355374 | EF20: 38.03406785 | EG20: 1428.814105 | EH20: 1119.452469 | EI20: 19706.20196 | EJ20: 4059.447092 | EK20: 0 | EL20: 0 | EM20: 0 | EN20: 0 | EO20: 0 | EP20: 10305.15766 | EQ20: 12488.01462 | ER20: 0 | ES20: -4520.282304 | ET20: 0 | EU20: -155.7856028 | EV20: 155 | EW20: 0 | EX20: 0 | EY20: 0 | FA20: 0 | FB20: -66.40645249 | FD20: -66.40645249 | FF20: 0 | FG20: 0 | FH20: 0 | FI20: 0
A21: 2150 | B21: Regular | C21: Azul | D21: A3 | E21: Industrial | F21: Não se aplica | G21: Não se aplica | H21: Não se aplica | I21: Fora ponta | J21: LIVRE | K21: 2021-10-01 | L21: 34372 | M21: 34372 | N21: 0 | O21: 0 | P21: 0 | Q21: 0 | R21: 11.27 | U21: 387372.44 | W21: 387372.44 | X21: 398371.48 | Y21: 0 | Z21: 0 | AA21: 0 | AB21: 0 | AC21: 18453.52411 | AD21: 0 | AE21: 87743.19991 | AI21: 0 | AJ21: 0 | AK21: 0 | AL21: 0 | AN21: 0 | AO21: 48054.90336 | AP21: 233277.9833 | AQ21: 0 | AR21: 0 | AU21: 0 | AV21: 0 | AW21: 0 | AZ21: 0 | BB21: 0 | BC21: 71605.26728 | BD21: 0 | BE21: 0 | BG21: 0 | BH21: 0 | BI21: 0 | BJ21: 0 | BK21: 0 | BL21: 0 | BV21: 0 | CI21: 398371.48 | CJ21: 10999.01 | CO21: 10999.04 | CP21: 0 | CQ21: 31 | CR21: -50346.59573 | CS21: -1.018634066e-10 | CT21: -50346.59573 | CU21: 0 | CV21: 0 | CZ21: 0 | DA21: 0 | DB21: 0 | DE21: 0 | DF21: 0 | DG21: 0 | DH21: 0 | DI21: 0 | DK21: 0 | DL21: 0 | DN21: 0 | DO21: 0 | DP21: 0 | DQ21: 0 | DR21: -211.9222574 | DU21: 87743.19991 | DW21: 0 | DX21: 0 | DY21: -60494.72 | EA21: 71493.76 | EC21: -10240.45123 | EE21: 0 | EF21: 0 | EH21: 0 | EI21: 59374.26137 | EJ21: 12231.00591 | EK21: 0 | EL21: 0 | EO21: 0 | EP21: 0 | ER21: 0 | ET21: 0 | EV21: 155 | FA21: 0 | FB21: -66.40645249 | FD21: -66.40645249 | FF21: 0 | FG21: 0 | FH21: 0 | FI21: 0
A22: 2174 | B22: Regular | C22: Azul | D22: A3 | E22: Industrial | F22: Não se aplica | G22: Fonte incentivada | H22: Não se aplica | I22: Fora ponta | J22: LIVRE | K22: 2021-10-01 | L22: 11100 | M22: 5551.218336 | N22: 0 | O22: 0 | P22: 0 | Q22: 0 | R22: 11.27 | U22: 125097 | W22: 125097 | X22: 128649 | Y22: 0 | Z22: 0 | AA22: 0 | AB22: 0 | AC22: 5959.330783 | AD22: 0 | AE22: 28335.54984 | AI22: 0 | AJ22: 0 | AK22: 0 | AL22: 0 | AN22: 0 | AO22: 15518.71952 | AP22: 75334.15612 | AQ22: 0 | AR22: 0 | AU22: 0 | AV22: 0 | AW22: 0 | AZ22: 0 | BB22: 0 | BC22: 23124.00986 | BD22: 0 | BE22: 0 | BG22: 0 | BH22: 0 | BI22: 0 | BJ22: 0 | BK22: 0 | BL22: 0 | BN22: 64310.37949 | BV22: 0 | CI22: 64338.6398 | CJ22: 1776.379153 | CO22: 3552 | CP22: 0 | CQ22: 31 | CR22: -16258.79241 | CS22: -3.456079867e-11 | CT22: -16258.79241 | CU22: 0 | CV22: 0 | CZ22: 0 | DA22: 0 | DB22: 0 | DE22: 0 | DF22: 0 | DG22: 0 | DH22: 0 | DI22: 0 | DK22: 0 | DL22: 0 | DN22: 0 | DO22: 0 | DP22: 0 | DQ22: 0 | DR22: -68.43759621 | DU22: 28335.54984 | DW22: 0 | DX22: 0 | DY22: -19536 | EA22: 23088 | EC22: -3307.023412 | EE22: 0 | EF22: 0 | EH22: 0 | EI22: 19174.16214 | EJ22: 3949.847714 | EK22: 0 | EL22: 0 | EO22: 0 | EP22: 0 | ER22: 0 | ET22: 0 | EV22: 155 | FA22: 0 | FB22: -66.40645249 | FD22: -66.40645249 | FF22: 0 | FG22: 0 | FH22: 0 | FI22: 0
A23: 1020 | B23: Regular | C23: Azul | D23: A3 | E23: Industrial | F23: Não se aplica | G23: Não se aplica | H23: Não se aplica | I23: Fora ponta | J23: CATIVO | K23: 2021-11-01 | L23: 13314 | M23: 13314 | N23: 3538.707 | O23: 3538.707 | P23: 3538.707 | Q23: 3538.707 | R23: 11.27 | S23: 34.28 | T23: 219.75 | U23: 150048.78 | V23: 898937.7392 | W23: 1048986.519 | X23: 1067897.246 | Y23: 0 | Z23: 52902.61665 | AA23: 0 | AB23: 0 | AC23: 7147.97568 | AD23: 0 | AE23: 33987.34329 | AF23: 704075.3888 | AG23: 35783.86312 | AH23: 0 | AI23: 88.95924513 | AJ23: 0 | AK23: 8482.896633 | AL23: 34907.04252 | AN23: 583.6066045 | AO23: 18614.07493 | AP23: 90360.26618 | AQ23: 0 | AR23: 0 | AS23: 1.323724907e-09 | AT23: 0 | AU23: 0 | AV23: 2765.426524 | AW23: 1846.489282 | AX23: 0 | AY23: -4284.608164 | AZ23: 0 | BB23: 60991.14993 | BC23: 27736.31236 | BD23: 7619.919826 | BE23: 465.2432399 | BF23: 17477.64941 | BG23: 13693.45229 | BH23: 0 | BI23: 0 | BJ23: 0 | BK23: 0 | BL23: 0 | BV23: 743331.6536 | CI23: 1067898.021 | CJ23: 18911.47149 | CO23: 9851.63706 | CP23: 9059.08992 | CQ23: 30 | CR23: -60938.73167 | CS23: -4.001776688e-11 | CT23: -19501.76235 | CU23: 0 | CV23: 0 | CW23: 0 | CX23: 0 | CY23: 0 | CZ23: 0 | DA23: 0 | DB23: 0 | DC23: -57630.86187 | DD23: -1430.602482 | DE23: -38.08167324 | DF23: -623.7152355 | DG23: -1120.853633 | DH23: 0 | DI23: -1072.238355 | DK23: 0 | DL23: 3.197459586 | DM23: 18390.89447 | DN23: 0 | DO23: 2076.006356 | DP23: 9.285648426 | DQ23: 0 | DR23: -653.7562069 | DU23: 33987.34329 | DV23: 0 | DW23: 0 | DX23: 0 | DY23: -24246.54261 | DZ23: -41332.09776 | EA23: 34098.17967 | EB23: 50391.18768 | EC23: -3966.640514 | ED23: 57770.1318 | EE23: 625.222497 | EF23: 38.17370088 | EG23: 1434.059656 | EH23: 1123.562272 | EI23: 22998.63016 | EJ23: 4737.682203 | EK23: 0 | EL23: 0 | EM23: 0 | EN23: 0 | EO23: 0 | EP23: 10342.9906 | EQ23: 12533.86139 | ER23: 0 | ES23: -4536.877445 | ET23: 0 | EU23: -156.3575326 | EV23: 155 | EW23: 0 | EX23: 0 | EY23: 0 | FA23: 0 | FB23: -66.40645249 | FD23: -66.40645249 | FF23: 0 | FG23: 0 | FH23: 0 | FI23: 0
A24: 2217 | B24: Regular | C24: Azul | D24: A3 | E24: Industrial | F24: Não se aplica | G24: Não se aplica | H24: Não se aplica | I24: Fora ponta | J24: LIVRE | K24: 2021-11-01 | L24: 29000 | M24: 29000 | N24: 0 | O24: 0 | P24: 0 | Q24: 0 | R24: 11.27 | U24: 326830 | W24: 326830 | X24: 336110 | Y24: 0 | Z24: 0 | AA24: 0 | AB24: 0 | AC24: 15569.42277 | AD24: 0 | AE24: 74029.81489 | AI24: 0 | AJ24: 0 | AK24: 0 | AL24: 0 | AN24: 0 | AO24: 40544.40235 | AP24: 196818.9664 | AQ24: 0 | AR24: 0 | AU24: 0 | AV24: 0 | AW24: 0 | AZ24: 0 | BB24: 0 | BC24: 60414.07981 | BD24: 0 | BE24: 0 | BG24: 0 | BH24: 0 | BI24: 0 | BJ24: 0 | BK24: 0 | BL24: 0 | BV24: 0 | CI24: 336110 | CJ24: 9279.97 | CO24: 9280 | CP24: 0 | CQ24: 30 | CR24: -42477.9261 | CS24: -8.003553376e-11 | CT24: -42477.9261 | CU24: 0 | CV24: 0 | CZ24: 0 | DA24: 0 | DB24: 0 | DE24: 0 | DF24: 0 | DG24: 0 | DH24: 0 | DI24: 0 | DK24: 0 | DL24: 0 | DN24: 0 | DO24: 0 | DP24: 0 | DQ24: 0 | DR24: -178.800927 | DU24: 74029.81489 | DW24: 0 | DX24: 0 | DY24: -51040 | EA24: 60320 | EC24: -8639.971075 | EE24: 0 | EF24: 0 | EH24: 0 | EI24: 50094.65785 | EJ24: 10319.42195 | EK24: 0 | EL24: 0 | EO24: 0 | EP24: 0 | ER24: 0 | ET24: 0 | EV24: 155 | FA24: 0 | FB24: -66.40645249 | FD24: -66.40645249 | FF24: 0 | FG24: 0 | FH24: 0 | FI24: 0
A25: 2241 | B25: Regular | C25: Azul | D25: A3 | E25: Industrial | F25: Não se aplica | G25: Fonte incentivada | H25: Não se aplica | I25: Fora ponta | J25: LIVRE | K25: 2021-11-01 | L25: 16522 | M25: 14758.48749 | N25: 0 | O25: 0 | P25: 0 | Q25: 0 | R25: 11.27 | U25: 186202.94 | W25: 186202.94 | X25: 191489.98 | Y25: 0 | Z25: 0 | AA25: 0 | AB25: 0 | AC25: 8870.275963 | AD25: 0 | AE25: 42176.57247 | AI25: 0 | AJ25: 0 | AK25: 0 | AL25: 0 | AN25: 0 | AO25: 23099.12467 | AP25: 112132.516 | AQ25: 0 | AR25: 0 | AU25: 0 | AV25: 0 | AW25: 0 | AZ25: 0 | BB25: 0 | BC25: 34419.35954 | BD25: 0 | BE25: 0 | BG25: 0 | BH25: 0 | BI25: 0 | BJ25: 0 | BK25: 0 | BL25: 0 | BN25: 20439.11004 | BV25: 0 | CI25: 171050.8991 | CJ25: 4722.715133 | CO25: 5287.04 | CP25: 0 | CQ25: 30 | CR25: -24200.69983 | CS25: -5.456968211e-11 | CT25: -24200.69983 | CU25: 0 | CV25: 0 | CZ25: 0 | DA25: 0 | DB25: 0 | DE25: 0 | DF25: 0 | DG25: 0 | DH25: 0 | DI25: 0 | DK25: 0 | DL25: 0 | DN25: 0 | DO25: 0 | DP25: 0 | DQ25: 0 | DR25: -101.867204 | DU25: 42176.57247 | DW25: 0 | DX25: 0 | DY25: -29078.72 | EA25: 34365.76 | EC25: -4922.400073 | EE25: 0 | EF25: 0 | EH25: 0 | EI25: 28540.13576 | EJ25: 5879.223777 | EK25: 0 | EL25: 0 | EO25: 0 | EP25: 0 | ER25: 0 | ET25: 0 | EV25: 155 | FA25: 0 | FB25: -66.40645249 | FD25: -66.40645249 | FF25: 0 | FG25: 0 | FH25: 0 | FI25: 0
A26: 1161 | B26: Regular | C26: Azul | D26: A3 | E26: Industrial | F26: Não se aplica | G26: Não se aplica | H26: Não se aplica | I26: Fora ponta | J26: CATIVO | K26: 2021-12-01 | L26: 10912 | M26: 10912 | N26: 3660.768 | O26: 3660.768 | P26: 3660.768 | Q26: 3660.768 | R26: 11.27 | S26: 34.28 | T26: 219.75 | U26: 122978.24 | V26: 929944.895 | W26: 1052923.135 | X26: 1071570.555 | Y26: 0 | Z26: 54727.39228 | AA26: 0 | AB26: 0 | AC26: 5858.397973 | AD26: 0 | AE26: 27855.63242 | AF26: 728361.1367 | AG26: 37018.15974 | AH26: 0 | AI26: 92.02772591 | AJ26: 0 | AK26: 8775.498096 | AL26: 36111.09488 | AN26: 603.7370097 | AO26: 15255.87994 | AP26: 74058.22627 | AQ26: 0 | AR26: 0 | AS26: 1.369384292e-09 | AT26: 0 | AU26: 0 | AV26: 2860.814677 | AW26: 1910.180435 | AX26: 0 | AY26: -4432.397613 | AZ26: 0 | BB26: 63094.9242 | BC26: 22732.35996 | BD26: 7882.754538 | BE26: 481.2909248 | BF26: 18080.50785 | BG26: 14165.78201 | BH26: 0 | BI26: 0 | BJ26: 0 | BK26: 0 | BL26: 0 | BV26: 768971.472 | CI26: 1071571.071 | CJ26: 18647.90586 | CO26: 9275.85344 | CP26: 9371.56608 | CR26: -58849.67741 | CS26: -3.092281986e-11 | CT26: -15983.41826 | CU26: 0 | CV26: 0 | CW26: 0 | CX26: 0 | CY26: 0 | CZ26: 0 | DA26: 0 | DB26: 0 | DC26: -59618.72937 | DD26: -1479.948407 | DE26: -39.39522848 | DF26: -645.229112 | DG26: -1159.515357 | DH26: 0 | DI26: -1109.223188 | DK26: 0 | DL26: 3.307749902 | DM26: 19025.25356 | DN26: 0 | DO26: 2147.614266 | DP26: 9.605939292 | DQ26: 0 | DR26: -658.6651662 | DU26: 27855.63242 | DV26: 0 | DW26: 0 | DX26: 0 | DY26: -20047.09664 | DZ26: -42757.77024 | EA26: 29322.95008 | EB26: 52129.33632 | EC26: -3251.012565 | ED26: 59762.80315 | EE26: 646.7883636 | EF26: 39.49043043 | EG26: 1483.52483 | EH26: 1162.317426 | EI26: 18849.41057 | EJ26: 3882.949392 | EK26: 0 | EL26: 0 | EM26: 0 | EN26: 0 | EO26: 0 | EP26: 10699.75248 | EQ26: 12966.19322 | ER26: 0 | ES26: -4693.368445 | ET26: 0 | EU26: -161.7507897 | EV26: 155 | EW26: 0 | EX26: 0 | EY26: 0 | FA26: 0 | FB26: -66.40645249 | FD26: -66.40645249 | FF26: 0 | FG26: 0 | FH26: 0 | FI26: 0
A27: 2284 | B27: Regular | C27: Azul | D27: A3 | E27: Industrial | F27: Não se aplica | G27: Não se aplica | H27: Não se aplica | I27: Fora ponta | J27: LIVRE | K27: 2021-12-01 | L27: 29000 | M27: 29000 | N27: 0 | O27: 0 | P27: 0 | Q27: 0 | R27: 11.27 | U27: 326830 | W27: 326830 | X27: 336110 | Y27: 0 | Z27: 0 | AA27: 0 | AB27: 0 | AC27: 15569.42277 | AD27: 0 | AE27: 74029.81489 | AI27: 0 | AJ27: 0 | AK27: 0 | AL27: 0 | AN27: 0 | AO27: 40544.40235 | AP27: 196818.9664 | AQ27: 0 | AR27: 0 | AU27: 0 | AV27: 0 | AW27: 0 | AZ27: 0 | BB27: 0 | BC27: 60414.07981 | BD27: 0 | BE27: 0 | BG27: 0 | BH27: 0 | BI27: 0 | BJ27: 0 | BK27: 0 | BL27: 0 | BV27: 0 | CI27: 336110 | CJ27: 9279.97 | CO27: 9280 | CP27: 0 | CR27: -42477.9261 | CS27: -8.003553376e-11 | CT27: -42477.9261 | CU27: 0 | CV27: 0 | CZ27: 0 | DA27: 0 | DB27: 0 | DE27: 0 | DF27: 0 | DG27: 0 | DH27: 0 | DI27: 0 | DK27: 0 | DL27: 0 | DN27: 0 | DO27: 0 | DP27: 0 | DQ27: 0 | DR27: -178.800927 | DU27: 74029.81489 | DW27: 0 | DX27: 0 | DY27: -51040 | EA27: 60320 | EC27: -8639.971075 | EE27: 0 | EF27: 0 | EH27: 0 | EI27: 50094.65785 | EJ27: 10319.42195 | EK27: 0 | EL27: 0 | EO27: 0 | EP27: 0 | ER27: 0 | ET27: 0 | EV27: 155 | FA27: 0 | FB27: -66.40645249 | FD27: -66.40645249 | FF27: 0 | FG27: 0 | FH27: 0 | FI27: 0
A28: 2308 | B28: Regular | C28: Azul | D28: A3 | E28: Industrial | F28: Não se aplica | G28: Fonte incentivada | H28: Não se aplica | I28: Fora ponta | J28: LIVRE | K28: 2021-12-01 | L28: 16610 | M28: 14474.6576 | N28: 0 | O28: 0 | P28: 0 | Q28: 0 | R28: 11.27 | U28: 187194.7 | W28: 187194.7 | X28: 192509.9 | Y28: 0 | Z28: 0 | AA28: 0 | AB28: 0 | AC28: 8917.521108 | AD28: 0 | AE28: 42401.21467 | AI28: 0 | AJ28: 0 | AK28: 0 | AL28: 0 | AN28: 0 | AO28: 23222.15596 | AP28: 112729.7597 | AQ28: 0 | AR28: 0 | AU28: 0 | AV28: 0 | AW28: 0 | AZ28: 0 | BB28: 0 | BC28: 34602.68502 | BD28: 0 | BE28: 0 | BG28: 0 | BH28: 0 | BI28: 0 | BJ28: 0 | BK28: 0 | BL28: 0 | BN28: 24748.61842 | BV28: 0 | CI28: 167761.3094 | CJ28: 4631.888253 | CO28: 5315.2 | CP28: 0 | CR28: -24329.59836 | CS28: -4.729372449e-11 | CT28: -24329.59836 | CU28: 0 | CV28: 0 | CZ28: 0 | DA28: 0 | DB28: 0 | DE28: 0 | DF28: 0 | DG28: 0 | DH28: 0 | DI28: 0 | DK28: 0 | DL28: 0 | DN28: 0 | DO28: 0 | DP28: 0 | DQ28: 0 | DR28: -102.4097723 | DU28: 42401.21467 | DW28: 0 | DX28: 0 | DY28: -29233.6 | EA28: 34548.8 | EC28: -4948.617916 | EE28: 0 | EF28: 0 | EH28: 0 | EI28: 28692.14713 | EJ28: 5910.537885 | EK28: 0 | EL28: 0 | EO28: 0 | EP28: 0 | ER28: 0 | ET28: 0 | EV28: 155 | FA28: 0 | FB28: -66.40645249 | FD28: -66.40645249 | FF28: 0 | FG28: 0 | FH28: 0 | FI28: 0
A29: 1306 | B29: Regular | C29: Azul | D29: A3 | E29: Industrial | F29: Não se aplica | G29: Não se aplica | H29: Não se aplica | I29: Fora ponta | J29: CATIVO | K29: 2022-01-01 | L29: 10869 | M29: 10869 | N29: 3110.219 | O29: 3110.219 | P29: 3110.219 | Q29: 3110.219 | R29: 11.27 | S29: 34.28 | T29: 219.75 | U29: 122493.63 | V29: 790088.9326 | W29: 912582.5626 | X29: 928936.9492 | Y29: 0 | Z29: 46496.84856 | AA29: 0 | AB29: 0 | AC29: 5835.312277 | AD29: 0 | AE29: 27745.86407 | AF29: 618821.6916 | AG29: 31450.93701 | AH29: 0 | AI29: 78.18752285 | AJ29: 0 | AK29: 7455.736313 | AL29: 30680.28714 | AN29: 512.9399947 | AO29: 15195.76238 | AP29: 73766.39125 | AQ29: 0 | AR29: 0 | AS29: 1.163440306e-09 | AT29: 0 | AU29: 0 | AV29: 2430.571991 | AW29: 1622.905216 | AX29: 0 | AY29: -3765.80195 | AZ29: 0 | BB29: 53605.97341 | BC29: 22642.78046 | BD29: 6697.253947 | BE29: 408.9087806 | BF29: 15361.35014 | BG29: 12035.36644 | BH29: 0 | BI29: 0 | BJ29: 0 | BK29: 0 | BL29: 0 | BV29: 653324.5709 | CI29: 928937.2074 | CJ29: 16354.61483 | CO29: 8392.22602 | CP29: 7962.16064 | CQ29: 31 | CR29: -52339.96475 | CS29: -3.274180926e-11 | CT29: -15920.43375 | CU29: 0 | CV29: 0 | CW29: 0 | CX29: 0 | CY29: 0 | CZ29: 0 | DA29: 0 | DB29: 0 | DC29: -50652.56931 | DD29: -1257.3765 | DE29: -33.47051442 | DF29: -548.1920306 | DG29: -985.1339105 | DH29: 0 | DI29: -942.4052642 | DK29: 0 | DL29: 2.810291882 | DM29: 16164.01397 | DN29: 0 | DO29: 1824.630977 | DP29: 8.161286074 | DQ29: 0 | DR29: -569.4604173 | DU29: 27745.86407 | DV29: 0 | DW29: 0 | DX29: 0 | DY29: -19844.79037 | DZ29: -36327.35792 | EA29: 28237.01639 | EB29: 44289.51856 | EC29: -3238.201573 | ED29: 50774.97559 | EE29: 549.5167838 | EF29: 33.55139879 | EG29: 1260.415058 | EH29: 987.5145713 | EI29: 18775.13228 | EJ29: 3867.64818 | EK29: 0 | EL29: 0 | EM29: 0 | EN29: 0 | EO29: 0 | EP29: 9090.598873 | EQ29: 11016.18581 | ER29: 0 | ES29: -3987.524944 | ET29: 0 | EU29: -137.4248189 | EV29: 155 | EW29: 0 | EX29: 0 | EY29: 0 | FA29: 0 | FB29: -66.40645249 | FD29: -66.40645249 | FF29: 0 | FG29: 0 | FH29: 0 | FI29: 0
A30: 1307 | B30: Refaturamento - Regular | C30: Azul | D30: A3 | E30: Industrial | F30: Não se aplica | G30: Não se aplica | H30: Não se aplica | I30: Fora ponta | J30: CATIVO | K30: 2022-01-01 | L30: 0 | M30: 0 | N30: 56 | O30: 56 | P30: 56 | Q30: 56 | S30: 34.28 | T30: 219.75 | V30: 14225.68 | W30: 14225.68 | X30: 14457.52 | Y30: 0 | Z30: 837.1833363 | AA30: 0 | AB30: 0 | AC30: 0 | AD30: 0 | AE30: 0 | AF30: 11141.98541 | AG30: 566.2792468 | AH30: 0 | AI30: 1.407779092 | AJ30: 0 | AK30: 134.2417475 | AL30: 552.4035703 | AN30: 9.235568204 | AO30: 0 | AP30: 0 | AQ30: 0 | AR30: 0 | AS30: 2.094793233e-11 | AT30: 0 | AU30: 0 | AV30: 43.76284483 | AW30: 29.22067292 | AX30: 0 | AY30: -67.80387785 | AZ30: 0 | BB30: 965.1842879 | BC30: 0 | BD30: 120.5851488 | BE30: 7.362469239 | BF30: 276.5836129 | BG30: 216.6987344 | BH30: 0 | BI30: 0 | BJ30: 0 | BK30: 0 | BL30: 0 | BV30: 11763.21538 | CI30: 14457.52 | CJ30: 231.81 | CO30: 88.48 | CP30: 143.36 | CQ30: 31 | CR30: -655.7395913 | CS30: 0 | CT30: 0 | CU30: 0 | CV30: 0 | CW30: 0 | CX30: 0 | CY30: 0 | CZ30: 0 | DA30: 0 | DB30: 0 | DC30: -912.0077657 | DD30: -22.63926881 | DE30: -0.6026420671 | DF30: -9.870286856 | DG30: -17.73749662 | DH30: 0 | DI30: -16.96816038 | DK30: 0 | DL30: 0.05059976336 | DM30: 291.035706 | DN30: 0 | DO30: 32.85277813 | DP30: 0.1469452859 | DQ30: 0 | DR30: -9.046641258 | DV30: 0 | DW30: 0 | DX30: 0 | DY30: -12.88 | DZ30: -654.08 | EA30: 101.36 | EB30: 797.44 | EC30: 0 | ED30: 914.2117109 | EE30: 9.894139253 | EF30: 0.6040984035 | EG30: 22.69397855 | EH30: 17.7803608 | EI30: 0 | EJ30: 0 | EK30: 0 | EL30: 0 | EM30: 0 | EN30: 0 | EO30: 0 | EP30: 163.6777143 | EQ30: 198.348221 | ER30: 0 | ES30: -71.7960365 | ET30: 0 | EU30: -2.474356262 | EV30: 155 | EW30: 0 | EX30: 0 | EY30: 0 | FA30: 0 | FB30: -66.40645249 | FD30: -66.40645249 | FF30: 0 | FG30: 0 | FH30: 0 | FI30: 0
A31: 2351 | B31: Regular | C31: Azul | D31: A3 | E31: Industrial | F31: Não se aplica | G31: Não se aplica | H31: Não se aplica | I31: Fora ponta | J31: LIVRE | K31: 2022-01-01 | L31: 34485 | M31: 34485 | N31: 0 | O31: 0 | P31: 0 | Q31: 0 | R31: 11.27 | U31: 388645.95 | W31: 388645.95 | X31: 399681.15 | Y31: 0 | Z31: 0 | AA31: 0 | AB31: 0 | AC31: 18514.19118 | AD31: 0 | AE31: 88031.66092 | AI31: 0 | AJ31: 0 | AK31: 0 | AL31: 0 | AN31: 0 | AO31: 48212.88672 | AP31: 234044.8985 | AQ31: 0 | AR31: 0 | AU31: 0 | AV31: 0 | AW31: 0 | AZ31: 0 | BB31: 0 | BC31: 71840.67387 | BD31: 0 | BE31: 0 | BG31: 0 | BH31: 0 | BI31: 0 | BJ31: 0 | BK31: 0 | BL31: 0 | BV31: 0 | CI31: 399681.15 | CJ31: 11035.17 | CO31: 11035.2 | CP31: 0 | CQ31: 31 | CR31: -50512.11316 | CS31: -1.018634066e-10 | CT31: -50512.11316 | CU31: 0 | CV31: 0 | CZ31: 0 | DA31: 0 | DB31: 0 | DE31: 0 | DF31: 0 | DG31: 0 | DH31: 0 | DI31: 0 | DK31: 0 | DL31: 0 | DN31: 0 | DO31: 0 | DP31: 0 | DQ31: 0 | DR31: -212.6189644 | DU31: 88031.66092 | DW31: 0 | DX31: 0 | DY31: -60693.6 | EA31: 71728.8 | EC31: -10274.11733 | EE31: 0 | EF31: 0 | EH31: 0 | EI31: 59569.45779 | EJ31: 12271.21607 | EK31: 0 | EL31: 0 | EO31: 0 | EP31: 0 | ER31: 0 | ET31: 0 | EV31: 155 | FA31: 0 | FB31: -66.40645249 | FD31: -66.40645249 | FF31: 0 | FG31: 0 | FH31: 0 | FI31: 0
A32: 2375 | B32: Regular | C32: Azul | D32: A3 | E32: Industrial | F32: Não se aplica | G32: Fonte incentivada | H32: Não se aplica | I32: Fora ponta | J32: LIVRE | K32: 2022-01-01 | L32: 11100 | M32: 10350.29512 | N32: 0 | O32: 0 | P32: 0 | Q32: 0 | R32: 11.27 | U32: 125097 | W32: 125097 | X32: 128649 | Y32: 0 | Z32: 0 | AA32: 0 | AB32: 0 | AC32: 5959.330783 | AD32: 0 | AE32: 28335.54984 | AI32: 0 | AJ32: 0 | AK32: 0 | AL32: 0 | AN32: 0 | AO32: 15518.71952 | AP32: 75334.15612 | AQ32: 0 | AR32: 0 | AU32: 0 | AV32: 0 | AW32: 0 | AZ32: 0 | BB32: 0 | BC32: 23124.00986 | BD32: 0 | BE32: 0 | BG32: 0 | BH32: 0 | BI32: 0 | BJ32: 0 | BK32: 0 | BL32: 0 | BN32: 8689.079536 | BV32: 0 | CI32: 119959.977 | CJ32: 3312.120975 | CO32: 3552 | CP32: 0 | CQ32: 31 | CR32: -16258.79241 | CS32: -3.456079867e-11 | CT32: -16258.79241 | CU32: 0 | CV32: 0 | CZ32: 0 | DA32: 0 | DB32: 0 | DE32: 0 | DF32: 0 | DG32: 0 | DH32: 0 | DI32: 0 | DK32: 0 | DL32: 0 | DN32: 0 | DO32: 0 | DP32: 0 | DQ32: 0 | DR32: -68.43759621 | DU32: 28335.54984 | DW32: 0 | DX32: 0 | DY32: -19536 | EA32: 23088 | EC32: -3307.023412 | EE32: 0 | EF32: 0 | EH32: 0 | EI32: 19174.16214 | EJ32: 3949.847714 | EK32: 0 | EL32: 0 | EO32: 0 | EP32: 0 | ER32: 0 | ET32: 0 | EV32: 155 | FA32: 0 | FB32: -66.40645249 | FD32: -66.40645249 | FF32: 0 | FG32: 0 | FH32: 0 | FI32: 0
A33: 1470 | B33: Regular | C33: Azul | D33: A3 | E33: Industrial | F33: Não se aplica | G33: Não se aplica | H33: Não se aplica | I33: Fora ponta | J33: CATIVO | K33: 2022-02-01 | L33: 10836 | M33: 10836 | N33: 3208.081 | O33: 3208.081 | P33: 3208.081 | Q33: 3208.081 | R33: 11.27 | S33: 34.28 | T33: 219.75 | U33: 122121.72 | V33: 814948.8164 | W33: 937070.5364 | X33: 953819.5118 | Y33: 0 | Z33: 47959.85634 | AA33: 0 | AB33: 0 | AC33: 5817.595348 | AD33: 0 | AE33: 27661.62325 | AF33: 638292.709 | AG33: 32440.53022 | AH33: 0 | AI33: 80.64766709 | AJ33: 0 | AK33: 7690.328561 | AL33: 31645.63211 | AN33: 529.07948 | AO33: 15149.62565 | AP33: 73542.42484 | AQ33: 0 | AR33: 0 | AS33: 1.200047566e-09 | AT33: 0 | AU33: 0 | AV33: 2507.049125 | AW33: 1673.969385 | AX33: 0 | AY33: -3884.291648 | AZ33: 0 | BB33: 55292.66742 | BC33: 22574.03341 | BD33: 6907.980801 | BE33: 421.7749585 | BF33: 15844.68988 | BG33: 12414.05522 | BH33: 0 | BI33: 0 | BJ33: 0 | BK33: 0 | BL33: 0 | BV33: 673881.2099 | CI33: 953819.2536 | CJ33: 16748.68717 | CO33: 8536.28798 | CP33: 8212.68736 | CQ33: 29 | CR33: -53437.55615 | CS33: -3.274180926e-11 | CT33: -15872.0968 | CU33: 0 | CV33: 0 | CW33: 0 | CX33: 0 | CY33: 0 | CZ33: 0 | DA33: 0 | DB33: 0 | DC33: -52246.33545 | DD33: -1296.939431 | DE33: -34.52365295 | DF33: -565.4407094 | DG33: -1016.130819 | DH33: 0 | DI33: -972.0577305 | DK33: 0 | DL33: 2.898716776 | DM33: 16672.60926 | DN33: 0 | DO33: 1882.042381 | DP33: 8.41807821 | DQ33: 0 | DR33: -585.0662829 | DU33: 27661.62325 | DV33: 0 | DW33: 0 | DX33: 0 | DY33: -19809.21863 | DZ33: -37470.38608 | EA33: 28345.50661 | EB33: 45683.07344 | EC33: -3228.369882 | ED33: 52372.59321 | EE33: 566.8071455 | EF33: 34.60708233 | EG33: 1300.073596 | EH33: 1018.586387 | EI33: 18718.12802 | EJ33: 3855.90539 | EK33: 0 | EL33: 0 | EM33: 0 | EN33: 0 | EO33: 0 | EP33: 9376.631524 | EQ33: 11362.80641 | ER33: 0 | ES33: -4112.991082 | ET33: 0 | EU33: -141.7488448 | EV33: 155 | EW33: 0 | EX33: 0 | EY33: 0 | FA33: 0 | FB33: -66.40645249 | FD33: -66.40645249 | FF33: 0 | FG33: 0 | FH33: 0 | FI33: 0
A34: 2418 | B34: Regular | C34: Azul | D34: A3 | E34: Industrial | F34: Não se aplica | G34: Não se aplica | H34: Não se aplica | I34: Fora ponta | J34: LIVRE | K34: 2022-02-01 | L34: 29000 | M34: 29000 | N34: 0 | O34: 0 | P34: 0 | Q34: 0 | R34: 11.27 | U34: 326830 | W34: 326830 | X34: 336110 | Y34: 0 | Z34: 0 | AA34: 0 | AB34: 0 | AC34: 15569.42277 | AD34: 0 | AE34: 74029.81489 | AI34: 0 | AJ34: 0 | AK34: 0 | AL34: 0 | AN34: 0 | AO34: 40544.40235 | AP34: 196818.9664 | AQ34: 0 | AR34: 0 | AU34: 0 | AV34: 0 | AW34: 0 | AZ34: 0 | BB34: 0 | BC34: 60414.07981 | BD34: 0 | BE34: 0 | BG34: 0 | BH34: 0 | BI34: 0 | BJ34: 0 | BK34: 0 | BL34: 0 | BV34: 0 | CI34: 336110 | CJ34: 9279.97 | CO34: 9280 | CP34: 0 | CQ34: 29 | CR34: -42477.9261 | CS34: -8.003553376e-11 | CT34: -42477.9261 | CU34: 0 | CV34: 0 | CZ34: 0 | DA34: 0 | DB34: 0 | DE34: 0 | DF34: 0 | DG34: 0 | DH34: 0 | DI34: 0 | DK34: 0 | DL34: 0 | DN34: 0 | DO34: 0 | DP34: 0 | DQ34: 0 | DR34: -178.800927 | DU34: 74029.81489 | DW34: 0 | DX34: 0 | DY34: -51040 | EA34: 60320 | EC34: -8639.971075 | EE34: 0 | EF34: 0 | EH34: 0 | EI34: 50094.65785 | EJ34: 10319.42195 | EK34: 0 | EL34: 0 | EO34: 0 | EP34: 0 | ER34: 0 | ET34: 0 | EV34: 155 | FA34: 0 | FB34: -66.40645249 | FD34: -66.40645249 | FF34: 0 | FG34: 0 | FH34: 0 | FI34: 0
A35: 2445 | B35: Regular | C35: Azul | D35: A3 | E35: Industrial | F35: Não se aplica | G35: Fonte incentivada | H35: Não se aplica | I35: Fora ponta | J35: LIVRE | K35: 2022-02-01 | L35: 16543 | M35: 14361.89908 | N35: 0 | O35: 0 | P35: 0 | Q35: 0 | R35: 11.27 | U35: 186439.61 | W35: 186439.61 | X35: 191733.37 | Y35: 0 | Z35: 0 | AA35: 0 | AB35: 0 | AC35: 8881.550373 | AD35: 0 | AE35: 42230.18027 | AI35: 0 | AJ35: 0 | AK35: 0 | AL35: 0 | AN35: 0 | AO35: 23128.48441 | AP35: 112275.0401 | AQ35: 0 | AR35: 0 | AU35: 0 | AV35: 0 | AW35: 0 | AZ35: 0 | BB35: 0 | BC35: 34463.10766 | BD35: 0 | BE35: 0 | BG35: 0 | BH35: 0 | BI35: 0 | BJ35: 0 | BK35: 0 | BL35: 0 | BN35: 25278.95962 | BV35: 0 | CI35: 166454.421 | CJ35: 4595.78833 | CO35: 5293.76 | CP35: 0 | CQ35: 29 | CR35: -24231.45971 | CS35: -5.09317033e-11 | CT35: -24231.45971 | CU35: 0 | CV35: 0 | CZ35: 0 | DA35: 0 | DB35: 0 | DE35: 0 | DF35: 0 | DG35: 0 | DH35: 0 | DI35: 0 | DK35: 0 | DL35: 0 | DN35: 0 | DO35: 0 | DP35: 0 | DQ35: 0 | DR35: -101.9966805 | DU35: 42230.18027 | DW35: 0 | DX35: 0 | DY35: -29115.68 | EA35: 34409.44 | EC35: -4928.656603 | EE35: 0 | EF35: 0 | EH35: 0 | EI35: 28576.4112 | EJ35: 5886.696462 | EK35: 0 | EL35: 0 | EO35: 0 | EP35: 0 | ER35: 0 | ET35: 0 | EV35: 155 | FA35: 0 | FB35: -66.40645249 | FD35: -66.40645249 | FF35: 0 | FG35: 0 | FH35: 0 | FI35: 0
A36: 1626 | B36: PROJETADO | C36: Azul | D36: A3 | E36: Industrial | F36: Não se aplica | G36: Não se aplica | H36: Não se aplica | I36: Fora ponta | J36: CATIVO | K36: 2022-03-01 | L36: 10836 | M36: 10836 | N36: 3208.081 | O36: 3208.081 | P36: 3208.081 | Q36: 3208.081 | R36: 11.27 | S36: 34.28 | T36: 219.75 | U36: 122121.72 | V36: 814948.8164 | W36: 937070.5364 | X36: 953819.5118 | Y36: 0 | Z36: 47959.85634 | AA36: 0 | AB36: 0 | AC36: 5817.595348 | AD36: 0 | AE36: 27661.62325 | AF36: 638292.709 | AG36: 32440.53022 | AH36: 0 | AI36: 80.64766709 | AJ36: 0 | AK36: 7690.328561 | AL36: 31645.63211 | AN36: 529.07948 | AO36: 15149.62565 | AP36: 73542.42484 | AQ36: 0 | AR36: 0 | AS36: 1.200047566e-09 | AT36: 0 | AU36: 0 | AV36: 2507.049125 | AW36: 1673.969385 | AX36: 0 | AY36: -3884.291648 | AZ36: 0 | BB36: 55292.66742 | BC36: 22574.03341 | BD36: 6907.980801 | BE36: 421.7749585 | BF36: 15844.68988 | BG36: 12414.05522 | BH36: 0 | BI36: 0 | BJ36: 0 | BK36: 0 | BL36: 0 | BV36: 673881.2099 | CI36: 953819.2536 | CJ36: 16748.68717 | CO36: 8536.28798 | CP36: 8212.68736 | CQ36: 31 | CR36: -53437.55615 | CS36: -3.274180926e-11 | CT36: -15872.0968 | CU36: 0 | CV36: 0 | CW36: 0 | CX36: 0 | CY36: 0 | CZ36: 0 | DA36: 0 | DB36: 0 | DC36: -52246.33545 | DD36: -1296.939431 | DE36: -34.52365295 | DF36: -565.4407094 | DG36: -1016.130819 | DH36: 0 | DI36: -972.0577305 | DK36: 0 | DL36: 2.898716776 | DM36: 16672.60926 | DN36: 0 | DO36: 1882.042381 | DP36: 8.41807821 | DQ36: 0 | DR36: -585.0662829 | DU36: 27661.62325 | DV36: 0 | DW36: 0 | DX36: 0 | DY36: -19809.21863 | DZ36: -37470.38608 | EA36: 28345.50661 | EB36: 45683.07344 | EC36: -3228.369882 | ED36: 52372.59321 | EE36: 566.8071455 | EF36: 34.60708233 | EG36: 1300.073596 | EH36: 1018.586387 | EI36: 18718.12802 | EJ36: 3855.90539 | EK36: 0 | EL36: 0 | EM36: 0 | EN36: 0 | EO36: 0 | EP36: 9376.631524 | EQ36: 11362.80641 | ER36: 0 | ES36: -4112.991082 | ET36: 0 | EU36: -141.7488448 | EV36: 155 | EW36: 0 | EX36: 0 | EY36: 0 | FA36: 0 | FB36: -66.40645249 | FD36: -66.40645249 | FF36: 0 | FG36: 0 | FH36: 0 | FI36: 0
A37: 2491 | B37: PROJETADO | C37: Azul | D37: A3 | E37: Industrial | F37: Não se aplica | G37: Não se aplica | H37: Não se aplica | I37: Fora ponta | J37: LIVRE | K37: 2022-03-01 | L37: 29000 | M37: 29000 | N37: 0 | O37: 0 | P37: 0 | Q37: 0 | R37: 11.27 | U37: 326830 | W37: 326830 | X37: 336110 | Y37: 0 | Z37: 0 | AA37: 0 | AB37: 0 | AC37: 15569.42277 | AD37: 0 | AE37: 74029.81489 | AI37: 0 | AJ37: 0 | AK37: 0 | AL37: 0 | AN37: 0 | AO37: 40544.40235 | AP37: 196818.9664 | AQ37: 0 | AR37: 0 | AU37: 0 | AV37: 0 | AW37: 0 | AZ37: 0 | BB37: 0 | BC37: 60414.07981 | BD37: 0 | BE37: 0 | BG37: 0 | BH37: 0 | BI37: 0 | BJ37: 0 | BK37: 0 | BL37: 0 | BV37: 0 | CI37: 336110 | CJ37: 9279.97 | CO37: 9280 | CP37: 0 | CQ37: 31 | CR37: -42477.9261 | CS37: -8.003553376e-11 | CT37: -42477.9261 | CU37: 0 | CV37: 0 | CZ37: 0 | DA37: 0 | DB37: 0 | DE37: 0 | DF37: 0 | DG37: 0 | DH37: 0 | DI37: 0 | DK37: 0 | DL37: 0 | DN37: 0 | DO37: 0 | DP37: 0 | DQ37: 0 | DR37: -178.800927 | DU37: 74029.81489 | DW37: 0 | DX37: 0 | DY37: -51040 | EA37: 60320 | EC37: -8639.971075 | EE37: 0 | EF37: 0 | EH37: 0 | EI37: 50094.65785 | EJ37: 10319.42195 | EK37: 0 | EL37: 0 | EO37: 0 | EP37: 0 | ER37: 0 | ET37: 0 | EV37: 155 | FA37: 0 | FB37: -66.40645249 | FD37: -66.40645249 | FF37: 0 | FG37: 0 | FH37: 0 | FI37: 0
A38: 2518 | B38: PROJETADO | C38: Azul | D38: A3 | E38: Industrial | F38: Não se aplica | G38: Fonte incentivada | H38: Não se aplica | I38: Fora ponta | J38: LIVRE | K38: 2022-03-01 | L38: 16543 | M38: 14361.89908 | N38: 0 | O38: 0 | P38: 0 | Q38: 0 | R38: 11.27 | U38: 186439.61 | W38: 186439.61 | X38: 191733.37 | Y38: 0 | Z38: 0 | AA38: 0 | AB38: 0 | AC38: 8881.550373 | AD38: 0 | AE38: 42230.18027 | AI38: 0 | AJ38: 0 | AK38: 0 | AL38: 0 | AN38: 0 | AO38: 23128.48441 | AP38: 112275.0401 | AQ38: 0 | AR38: 0 | AU38: 0 | AV38: 0 | AW38: 0 | AZ38: 0 | BB38: 0 | BC38: 34463.10766 | BD38: 0 | BE38: 0 | BG38: 0 | BH38: 0 | BI38: 0 | BJ38: 0 | BK38: 0 | BL38: 0 | BN38: 25278.95962 | BV38: 0 | CI38: 166454.421 | CJ38: 4595.78833 | CO38: 5293.76 | CP38: 0 | CQ38: 31 | CR38: -24231.45971 | CS38: -5.09317033e-11 | CT38: -24231.45971 | CU38: 0 | CV38: 0 | CZ38: 0 | DA38: 0 | DB38: 0 | DE38: 0 | DF38: 0 | DG38: 0 | DH38: 0 | DI38: 0 | DK38: 0 | DL38: 0 | DN38: 0 | DO38: 0 | DP38: 0 | DQ38: 0 | DR38: -101.9966805 | DU38: 42230.18027 | DW38: 0 | DX38: 0 | DY38: -29115.68 | EA38: 34409.44 | EC38: -4928.656603 | EE38: 0 | EF38: 0 | EH38: 0 | EI38: 28576.4112 | EJ38: 5886.696462 | EK38: 0 | EL38: 0 | EO38: 0 | EP38: 0 | ER38: 0 | ET38: 0 | EV38: 155 | FA38: 0 | FB38: -66.40645249 | FD38: -66.40645249 | FF38: 0 | FG38: 0 | FH38: 0 | FI38: 0
A39: 30 | B39: Regular | C39: Azul | D39: A3 | E39: Industrial | F39: Não se aplica | G39: Não se aplica | H39: Não se aplica | I39: Não se aplica | J39: CATIVO | K39: 2021-04-01 | L39: 0 | M39: 0 | N39: 0 | O39: 0 | P39: 0 | Q39: 0 | AA39: 0 | AZ39: 0 | BI39: 9921.01 | BJ39: 45699.74 | BK39: 326455.54 | BL39: 6 | CJ39: -0.03 | CO39: 0 | CP39: 0 | CQ39: 30 | DK39: 0 | EV39: 155 | FA39: 0 | FB39: -66.40645249 | FD39: -66.40645249 | FF39: 0 | FG39: 0 | FH39: 0 | FI39: 0
A40: 1750 | B40: Regular | C40: Azul | D40: A3 | E40: Industrial | F40: Não se aplica | G40: Não se aplica | H40: Não se aplica | I40: Não se aplica | J40: LIVRE | K40: 2021-04-01 | L40: 0 | M40: 0 | N40: 17535.516 | O40: 17535.516 | P40: 0 | Q40: 0 | S40: 34.28 | V40: 601117.4885 | W40: 601117.4885 | X40: 628823.6038 | Y40: 0 | Z40: 262150.7462 | AA40: 0 | AB40: 0 | AC40: 0 | AD40: 0 | AE40: 0 | AI40: 440.8237999 | AJ40: 0 | AK40: 3553.072955 | AL40: 172976.458 | AN40: 2891.972393 | AO40: 0 | AP40: 0 | AQ40: 0 | AR40: 0 | AU40: 0 | AV40: 13703.64403 | AW40: 9149.992454 | AZ40: 0 | BB40: 8854.996709 | BC40: 0 | BD40: 37759.33583 | BE40: 2305.44102 | BG40: 67855.78792 | BH40: 0 | BI40: 65625.08 | BJ40: 0 | BK40: 385174.09 | BL40: 5 | BV40: 107920.5648 | CI40: 628823.7472 | CJ40: 27706.22872 | CO40: 27706.11528 | CP40: 0 | CQ40: 30 | CR40: -3797.774023 | CS40: 0 | CT40: 0 | CU40: 0 | CV40: 0 | CZ40: 0 | DA40: 0 | DB40: 0 | DE40: -188.7078502 | DF40: -3090.724519 | DG40: -5554.217066 | DH40: 0 | DI40: -5313.311567 | DK40: 0 | DL40: 15.84451714 | DN40: 0 | DO40: 10287.32887 | DP40: 46.01359664 | DQ40: 0 | DR40: -328.761585 | DV40: 0 | DW40: 0 | DX40: 0 | DY40: -4033.16868 | EA40: 31739.28396 | EC40: 0 | EE40: 3098.193521 | EF40: 189.1638789 | EH40: 5567.639309 | EI40: 0 | EJ40: 0 | EK40: 0 | EL40: 0 | EO40: 0 | EP40: 51253.09246 | ER40: 0 | ET40: 0 | EV40: 155 | FA40: 0 | FB40: -66.40645249 | FD40: -66.40645249 | FF40: 0 | FG40: 0 | FH40: 0 | FI40: 0
A41: 1751 | B41: Refaturamento - Regular | C41: Azul | D41: A3 | E41: Industrial | F41: Não se aplica | G41: Não se aplica | H41: Não se aplica | I41: Não se aplica | J41: LIVRE | K41: 2021-04-01 | L41: 0 | M41: 0 | N41: -8611.025 | O41: -8611.025 | P41: 0 | Q41: 0 | S41: 34.28 | V41: -295185.937 | W41: -295185.937 | X41: -308791.3565 | Y41: 0 | Z41: -128732.2614 | AA41: 0 | AB41: 0 | AC41: 0 | AD41: 0 | AE41: 0 | AI41: -216.4718028 | AJ41: 0 | AK41: -1744.778999 | AL41: -84942.15989 | AN41: -1420.137655 | AO41: 0 | AP41: 0 | AQ41: 0 | AR41: 0 | AU41: 0 | AV41: -6729.338409 | AW41: -4493.213303 | AZ41: 0 | BB41: -4348.352112 | BC41: 0 | BD41: -18542.17377 | BE41: -1132.114405 | BG41: -33321.39677 | BH41: 0 | BI41: 0 | BJ41: 0 | BK41: 0 | BL41: 0 | BV41: -52995.68494 | CI41: -308791.5358 | CJ41: -13605.6288 | CO41: -13605.4195 | CP41: 0 | CQ41: 30 | CR41: 1864.942387 | CS41: 0 | CT41: 0 | CU41: 0 | CV41: 0 | CZ41: 0 | DA41: 0 | DB41: 0 | DE41: 92.66724832 | DF41: 1517.737266 | DG41: 2727.464764 | DH41: 0 | DI41: 2609.165236 | DK41: 0 | DL41: -7.780639774 | DN41: 0 | DO41: -5051.71596 | DP41: -22.59552733 | DQ41: 0 | DR41: 161.442311 | DV41: 0 | DW41: 0 | DX41: 0 | DY41: 1980.53575 | EA41: -15585.95525 | EC41: 0 | EE41: -1521.405008 | EF41: -92.89118669 | EH41: -2734.055917 | EI41: 0 | EJ41: 0 | EK41: 0 | EL41: 0 | EO41: 0 | EP41: -25168.44446 | ER41: 0 | ET41: 0 | EV41: 155 | FA41: 0 | FB41: -66.40645249 | FD41: -66.40645249 | FF41: 0 | FG41: 0 | FH41: 0 | FI41: 0
A42: 1769 | B42: Refaturamento - Regular | C42: Azul | D42: A3 | E42: Industrial | F42: Não se aplica | G42: APE | H42: Não se aplica | I42: Não se aplica | J42: LIVRE APE | K42: 2021-04-01 | L42: 0 | M42: 0 | N42: 8611.025 | O42: 8611.025 | P42: 0 | Q42: 0 | S42: 6.53 | V42: 56229.99325 | W42: 56229.99325 | X42: 56229.99325 | Y42: 0 | Z42: 0 | AA42: 0 | AB42: 0 | AC42: 0 | AD42: 0 | AE42: 0 | AI42: 216.4718028 | AJ42: 0 | AK42: 1617.182581 | AL42: 0 | AN42: 1420.137655 | AO42: 0 | AP42: 0 | AQ42: 0 | AR42: 0 | AU42: 0 | AV42: 0 | AW42: 0 | AZ42: 0 | BB42: 4348.352112 | BC42: 0 | BD42: 18542.17377 | BE42: 1132.114405 | BG42: 33321.39677 | BH42: 0 | BI42: 0 | BJ42: 0 | BK42: 0 | BL42: 0 | BV42: 52995.68494 | CI42: 56230.0259 | CJ42: 0.002650000002 | CO42: 0 | CP42: 0 | CQ42: 30 | CR42: -4307.493111 | CS42: 0 | CT42: 0 | CU42: 0 | CV42: 0 | CZ42: 0 | DA42: 0 | DB42: 0 | DE42: -92.66724832 | DF42: -1517.737266 | DG42: -2727.464764 | DH42: 0 | DI42: 0 | DK42: 0 | DL42: 7.780639774 | DN42: 0 | DO42: 0 | DP42: 22.59552733 | DQ42: 0 | DR42: -30.76027176 | DV42: 0 | DW42: 0 | DX42: 0 | DY42: -4305.5125 | EA42: 4305.5125 | EC42: 0 | EE42: 1521.405008 | EF42: 92.89118669 | EH42: 2734.055917 | EI42: 0 | EJ42: 0 | EK42: 0 | EL42: 0 | EO42: 0 | EP42: 0 | ER42: 0 | ET42: 0 | EV42: 155 | FA42: 0 | FB42: -66.40645249 | FD42: -66.40645249 | FF42: 0 | FG42: 0 | FH42: 0 | FI42: 0
A43: 1774 | B43: Regular | C43: Azul | D43: A3 | E43: Industrial | F43: Não se aplica | G43: Fonte incentivada | H43: Não se aplica | I43: Não se aplica | J43: LIVRE | K43: 2021-04-01 | L43: 0 | M43: 0 | N43: 370.195 | O43: 370.195 | P43: 0 | Q43: 0 | S43: 34.28 | V43: 12690.2846 | W43: 12690.2846 | X43: 13275.1927 | Y43: 0 | Z43: 5534.305093 | AA43: 0 | AB43: 0 | AC43: 0 | AD43: 0 | AE43: 0 | AI43: 9.30629966 | AJ43: 0 | AK43: 75.00947464 | AL43: 3651.732852 | AN43: 61.05287806 | AO43: 0 | AP43: 0 | AQ43: 0 | AR43: 0 | AU43: 0 | AV43: 289.2997561 | AW43: 193.1669109 | AZ43: 0 | BB43: 186.9392099 | BC43: 0 | BD43: 797.1431995 | BE43: 48.67052321 | BG43: 1432.514071 | BH43: 0 | BI43: 2065.95 | BJ43: 0 | BK43: 20431.02 | BL43: 1 | BV43: 2278.327793 | CI43: 13275.372 | CJ43: 585.0574 | CO43: 584.9081 | CP43: 0 | CQ43: 30 | CR43: -80.17539687 | CS43: 0 | CT43: 0 | CU43: 0 | CV43: 0 | CZ43: 0 | DA43: 0 | DB43: 0 | DE43: -3.983840715 | DF43: -65.24876505 | DG43: -117.2559386 | DH43: 0 | DI43: -112.1701452 | DK43: 0 | DL43: 0.3344960607 | DN43: 0 | DO43: 217.1773964 | DP43: 0.9714001806 | DQ43: 0 | DR43: -6.94053685 | DV43: 0 | DW43: 0 | DX43: 0 | DY43: -85.14485 | EA43: 670.05295 | EC43: 0 | EE43: 65.4064443 | EF43: 3.993468008 | EH43: 117.5392976 | EI43: 0 | EJ43: 0 | EK43: 0 | EL43: 0 | EO43: 0 | EP43: 1082.01199 | ER43: 0 | ET43: 0 | EV43: 155 | FA43: 0 | FB43: -66.40645249 | FD43: -66.40645249 | FF43: 0 | FG43: 0 | FH43: 0 | FI43: 0
A44: 158 | B44: Regular | C44: Azul | D44: A3 | E44: Industrial | F44: Não se aplica | G44: Não se aplica | H44: Não se aplica | I44: Não se aplica | J44: CATIVO | K44: 2021-05-01 | L44: 0 | M44: 0 | N44: 0 | O44: 0 | P44: 0 | Q44: 0 | AA44: 0 | AZ44: 0 | BI44: 11470.77 | BJ44: 52838.64 | BK44: 377452.2 | BL44: 6 | CJ44: -0.03 | CO44: 0 | CP44: 0 | CQ44: 31 | DK44: 0 | EV44: 155 | FA44: 0 | FB44: -66.40645249 | FD44: -66.40645249 | FF44: 0 | FG44: 0 | FH44: 0 | FI44: 0
A45: 1817 | B45: Regular | C45: Azul | D45: A3 | E45: Industrial | F45: Não se aplica | G45: Não se aplica | H45: Não se aplica | I45: Não se aplica | J45: LIVRE | K45: 2021-05-01 | L45: 0 | M45: 0 | N45: 16297.62 | O45: 16297.62 | P45: 0 | Q45: 0 | S45: 34.28 | V45: 558682.4136 | W45: 558682.4136 | X45: 584432.6532 | Y45: 0 | Z45: 243644.5694 | AA45: 0 | AB45: 0 | AC45: 0 | AD45: 0 | AE45: 0 | AI45: 409.7044408 | AJ45: 0 | AK45: 3302.248583 | AL45: 160765.4192 | AN45: 2687.817519 | AO45: 0 | AP45: 0 | AQ45: 0 | AR45: 0 | AU45: 0 | AV45: 12736.25384 | AW45: 8504.061131 | AZ45: 0 | BB45: 8229.890211 | BC45: 0 | BD45: 35093.76667 | BE45: 2142.691534 | BG45: 63065.60048 | BH45: 0 | BI45: 64140.81 | BJ45: 0 | BK45: 376462.44 | BL45: 5 | BV45: 100302.0587 | CI45: 584432.6532 | CJ45: 25750.2096 | CO45: 25750.2396 | CP45: 0 | CQ45: 31 | CR45: -3529.67531 | CS45: 0 | CT45: 0 | CU45: 0 | CV45: 0 | CZ45: 0 | DA45: 0 | DB45: 0 | DE45: -175.3862751 | DF45: -2872.539008 | DG45: -5162.124636 | DH45: 0 | DI45: -4938.225534 | DK45: 0 | DL45: 14.72599492 | DN45: 0 | DO45: 9561.108819 | DP45: 42.76532911 | DQ45: 0 | DR45: -305.5531063 | DV45: 0 | DW45: 0 | DX45: 0 | DY45: -3748.4526 | EA45: 29498.6922 | EC45: 0 | EE45: 2879.480746 | EF45: 175.8101111 | EH45: 5174.599354 | EI45: 0 | EJ45: 0 | EK45: 0 | EL45: 0 | EO45: 0 | EP45: 47634.94982 | ER45: 0 | ET45: 0 | EV45: 155 | FA45: 0 | FB45: -66.40645249 | FD45: -66.40645249 | FF45: 0 | FG45: 0 | FH45: 0 | FI45: 0
A46: 1818 | B46: Refaturamento - Regular | C46: Azul | D46: A3 | E46: Industrial | F46: Não se aplica | G46: Não se aplica | H46: Não se aplica | I46: Não se aplica | J46: LIVRE | K46: 2021-05-01 | L46: 0 | M46: 0 | N46: -9286.588 | O46: -9286.588 | P46: 0 | Q46: 0 | S46: 34.28 | V46: -318344.2366 | W46: -318344.2366 | X46: -333017.0457 | Y46: 0 | Z46: -138831.7272 | AA46: 0 | AB46: 0 | AC46: 0 | AD46: 0 | AE46: 0 | AI46: -233.4547218 | AJ46: 0 | AK46: -1881.662602 | AL46: -91606.14941 | AN46: -1531.552087 | AO46: 0 | AP46: 0 | AQ46: 0 | AR46: 0 | AU46: 0 | AV46: -7257.276958 | AW46: -4845.720544 | AZ46: 0 | BB46: -4689.49452 | BC46: 0 | BD46: -19996.86779 | BE46: -1220.932473 | BG46: -35935.56904 | BH46: 0 | BI46: 0 | BJ46: 0 | BK46: 0 | BL46: 0 | BV46: -57153.3693 | CI46: -333017.1174 | CJ46: -14672.91076 | CO46: -14672.80904 | CP46: 0 | CQ46: 31 | CR46: 2011.2532 | CS46: 0 | CT46: 0 | CU46: 0 | CV46: 0 | CZ46: 0 | DA46: 0 | DB46: 0 | DE46: 99.93729623 | DF46: 1636.808705 | DG46: 2941.443272 | DH46: 0 | DI46: 2813.862759 | DK46: 0 | DL46: -8.391056344 | DN46: 0 | DO46: -5448.039556 | DP46: -24.36822016 | DQ46: 0 | DR46: 174.1079869 | DV46: 0 | DW46: 0 | DX46: 0 | DY46: 2135.91524 | EA46: -16808.72428 | EC46: 0 | EE46: -1640.764194 | EF46: -100.1788033 | EH46: -2948.551522 | EI46: 0 | EJ46: 0 | EK46: 0 | EL46: 0 | EO46: 0 | EP46: -27142.99103 | ER46: 0 | ET46: 0 | EV46: 155 | FA46: 0 | FB46: -66.40645249 | FD46: -66.40645249 | FF46: 0 | FG46: 0 | FH46: 0 | FI46: 0
A47: 1836 | B47: Refaturamento - Regular | C47: Azul | D47: A3 | E47: Industrial | F47: Não se aplica | G47: APE | H47: Não se aplica | I47: Não se aplica | J47: LIVRE APE | K47: 2021-05-01 | L47: 0 | M47: 0 | N47: 9286.588 | O47: 9286.588 | P47: 0 | Q47: 0 | S47: 6.53 | V47: 60641.41964 | W47: 60641.41964 | X47: 60641.41964 | Y47: 0 | Z47: 0 | AA47: 0 | AB47: 0 | AC47: 0 | AD47: 0 | AE47: 0 | AI47: 233.4547218 | AJ47: 0 | AK47: 1744.05583 | AL47: 0 | AN47: 1531.552087 | AO47: 0 | AP47: 0 | AQ47: 0 | AR47: 0 | AU47: 0 | AV47: 0 | AW47: 0 | AZ47: 0 | BB47: 4689.49452 | BC47: 0 | BD47: 19996.86779 | BE47: 1220.932473 | BG47: 35935.56904 | BH47: 0 | BI47: 0 | BJ47: 0 | BK47: 0 | BL47: 0 | BV47: 57153.3693 | CI47: 60641.4327 | CJ47: -0.01694 | CO47: 0 | CP47: 0 | CQ47: 31 | CR47: -4645.429997 | CS47: 0 | CT47: 0 | CU47: 0 | CV47: 0 | CZ47: 0 | DA47: 0 | DB47: 0 | DE47: -99.93729623 | DF47: -1636.808705 | DG47: -2941.443272 | DH47: 0 | DI47: 0 | DK47: 0 | DL47: 8.391056344 | DN47: 0 | DO47: 0 | DP47: 24.36822016 | DQ47: 0 | DR47: -33.17351542 | DV47: 0 | DW47: 0 | DX47: 0 | DY47: -4643.294 | EA47: 4643.294 | EC47: 0 | EE47: 1640.764194 | EF47: 100.1788033 | EH47: 2948.551522 | EI47: 0 | EJ47: 0 | EK47: 0 | EL47: 0 | EO47: 0 | EP47: 0 | ER47: 0 | ET47: 0 | EV47: 155 | FA47: 0 | FB47: -66.40645249 | FD47: -66.40645249 | FF47: 0 | FG47: 0 | FH47: 0 | FI47: 0
A48: 1841 | B48: Regular | C48: Azul | D48: A3 | E48: Industrial | F48: Não se aplica | G48: Fonte incentivada | H48: Não se aplica | I48: Não se aplica | J48: LIVRE | K48: 2021-05-01 | L48: 0 | M48: 0 | N48: 324.179 | O48: 324.179 | P48: 0 | Q48: 0 | S48: 34.28 | V48: 11112.85612 | W48: 11112.85612 | X48: 11625.05894 | Y48: 0 | Z48: 4846.379586 | AA48: 0 | AB48: 0 | AC48: 0 | AD48: 0 | AE48: 0 | AI48: 8.149507469 | AJ48: 0 | AK48: 65.68564264 | AL48: 3197.814947 | AN48: 53.46387973 | AO48: 0 | AP48: 0 | AQ48: 0 | AR48: 0 | AU48: 0 | AV48: 253.3392013 | AW48: 169.1558665 | AZ48: 0 | BB48: 163.7022816 | BC48: 0 | BD48: 698.0566601 | BE48: 42.62067706 | BG48: 1254.449625 | BH48: 0 | BI48: 2142.2 | BJ48: 0 | BK48: 21185.09 | BL48: 1 | BV48: 1995.126962 | CI48: 11625.0948 | CJ48: 512.20868 | CO48: 512.20282 | CP48: 0 | CQ48: 31 | CR48: -70.20943011 | CS48: 0 | CT48: 0 | CU48: 0 | CV48: 0 | CZ48: 0 | DA48: 0 | DB48: 0 | DE48: -3.488641119 | DF48: -57.13820933 | DG48: -102.6807842 | DH48: 0 | DI48: -98.2271654 | DK48: 0 | DL48: 0.2929175123 | DN48: 0 | DO48: 190.1817993 | DP48: 0.85065314 | DQ48: 0 | DR48: -6.077813842 | DV48: 0 | DW48: 0 | DX48: 0 | DY48: -74.56117 | EA48: 586.76399 | EC48: 0 | EE48: 57.27628873 | EF48: 3.49707172 | EH48: 102.9289211 | EI48: 0 | EJ48: 0 | EK48: 0 | EL48: 0 | EO48: 0 | EP48: 947.515674 | ER48: 0 | ET48: 0 | EV48: 155 | FA48: 0 | FB48: -66.40645249 | FD48: -66.40645249 | FF48: 0 | FG48: 0 | FH48: 0 | FI48: 0
A49: 303 | B49: Regular | C49: Azul | D49: A3 | E49: Industrial | F49: Não se aplica | G49: Não se aplica | H49: Não se aplica | I49: Não se aplica | J49: CATIVO | K49: 2021-06-01 | L49: 0 | M49: 0 | N49: 0 | O49: 0 | P49: 0 | Q49: 0 | AA49: 0 | AZ49: 0 | BI49: 11609.19 | BJ49: 53476.23 | BK49: 382006.93 | BL49: 6 | CJ49: -0.03 | CO49: 0 | CP49: 0 | CQ49: 30 | DK49: 0 | EV49: 155 | FA49: 0 | FB49: -66.40645249 | FD49: -66.40645249 | FF49: 0 | FG49: 0 | FH49: 0 | FI49: 0
A50: 1884 | B50: Regular | C50: Azul | D50: A3 | E50: Industrial | F50: Não se aplica | G50: Não se aplica | H50: Não se aplica | I50: Não se aplica | J50: LIVRE | K50: 2021-06-01 | L50: 0 | M50: 0 | N50: 16579.49 | O50: 16579.49 | P50: 0 | Q50: 0 | S50: 34.28 | V50: 568344.9172 | W50: 568344.9172 | X50: 594540.5114 | Y50: 0 | Z50: 247858.442 | AA50: 0 | AB50: 0 | AC50: 0 | AD50: 0 | AE50: 0 | AI50: 416.790346 | AJ50: 0 | AK50: 3359.361511 | AL50: 163545.8834 | AN50: 2734.303762 | AO50: 0 | AP50: 0 | AQ50: 0 | AR50: 0 | AU50: 0 | AV50: 12956.52943 | AW50: 8651.140257 | AZ50: 0 | BB50: 8372.227506 | BC50: 0 | BD50: 35700.71909 | BE50: 2179.749734 | BG50: 64156.33034 | BH50: 0 | BI50: 72847.39 | BJ50: 0 | BK50: 427564.2 | BL50: 5 | BV50: 102036.7992 | CI50: 594540.5114 | CJ50: 26195.5642 | CO50: 26195.5942 | CP50: 0 | CQ50: 30 | CR50: -3590.721621 | CS50: 0 | CT50: 0 | CU50: 0 | CV50: 0 | CZ50: 0 | DA50: 0 | DB50: 0 | DE50: -178.4196094 | DF50: -2922.22004 | DG50: -5251.404425 | DH50: 0 | DI50: -5023.632951 | DK50: 0 | DL50: 14.98068341 | DN50: 0 | DO50: 9726.469758 | DP50: 43.50496247 | DQ50: 0 | DR50: -310.8376971 | DV50: 0 | DW50: 0 | DX50: 0 | DY50: -3813.2827 | EA50: 30008.8769 | EC50: 0 | EE50: 2929.281836 | EF50: 178.8507757 | EH50: 5264.094895 | EI50: 0 | EJ50: 0 | EK50: 0 | EL50: 0 | EO50: 0 | EP50: 48458.80406 | ER50: 0 | ET50: 0 | EV50: 155 | FA50: 0 | FB50: -66.40645249 | FD50: -66.40645249 | FF50: 0 | FG50: 0 | FH50: 0 | FI50: 0
A51: 1885 | B51: Refaturamento - Regular | C51: Azul | D51: A3 | E51: Industrial | F51: Não se aplica | G51: Não se aplica | H51: Não se aplica | I51: Não se aplica | J51: LIVRE | K51: 2021-06-01 | L51: 0 | M51: 0 | N51: -8567.431 | O51: -8567.431 | P51: 0 | Q51: 0 | S51: 34.28 | V51: -293691.5347 | W51: -293691.5347 | X51: -307228.0757 | Y51: 0 | Z51: -128080.5441 | AA51: 0 | AB51: 0 | AC51: 0 | AD51: 0 | AE51: 0 | AI51: -215.375897 | AJ51: 0 | AK51: -1735.945916 | AL51: -84512.13344 | AN51: -1412.948095 | AO51: 0 | AP51: 0 | AQ51: 0 | AR51: 0 | AU51: 0 | AV51: -6695.270597 | AW51: -4470.466053 | AZ51: 0 | BB51: -4326.338233 | BC51: 0 | BD51: -18448.30254 | BE51: -1126.382986 | BG51: -33152.70454 | BH51: 0 | BI51: 0 | BJ51: 0 | BK51: 0 | BL51: 0 | BV51: -52727.39007 | CI51: -307228.0398 | CJ51: -13536.53512 | CO51: -13536.54098 | CP51: 0 | CQ51: 30 | CR51: 1855.500967 | CS51: 0 | CT51: 0 | CU51: 0 | CV51: 0 | CZ51: 0 | DA51: 0 | DB51: 0 | DE51: 92.198113 | DF51: 1510.0536 | DG51: 2713.656757 | DH51: 0 | DI51: 2595.956129 | DK51: 0 | DL51: -7.741249665 | DN51: 0 | DO51: -5026.141246 | DP51: -22.48113567 | DQ51: 0 | DR51: 160.6249965 | DV51: 0 | DW51: 0 | DX51: 0 | DY51: 1970.50913 | EA51: -15507.05011 | EC51: 0 | EE51: -1513.702774 | EF51: -92.42091766 | EH51: -2720.214542 | EI51: 0 | EJ51: 0 | EK51: 0 | EL51: 0 | EO51: 0 | EP51: -25041.02721 | ER51: 0 | ET51: 0 | EV51: 155 | FA51: 0 | FB51: -66.40645249 | FD51: -66.40645249 | FF51: 0 | FG51: 0 | FH51: 0 | FI51: 0
A52: 1903 | B52: Refaturamento - Regular | C52: Azul | D52: A3 | E52: Industrial | F52: Não se aplica | G52: APE | H52: Não se aplica | I52: Não se aplica | J52: LIVRE APE | K52: 2021-06-01 | L52: 0 | M52: 0 | N52: 8567.431 | O52: 8567.431 | P52: 0 | Q52: 0 | S52: 6.53 | V52: 55945.32443 | W52: 55945.32443 | X52: 55945.32443 | Y52: 0 | Z52: 0 | AA52: 0 | AB52: 0 | AC52: 0 | AD52: 0 | AE52: 0 | AI52: 215.375897 | AJ52: 0 | AK52: 1608.995465 | AL52: 0 | AN52: 1412.948095 | AO52: 0 | AP52: 0 | AQ52: 0 | AR52: 0 | AU52: 0 | AV52: 0 | AW52: 0 | AZ52: 0 | BB52: 4326.338233 | BC52: 0 | BD52: 18448.30254 | BE52: 1126.382986 | BG52: 33152.70454 | BH52: 0 | BI52: 0 | BJ52: 0 | BK52: 0 | BL52: 0 | BV52: 52727.39007 | CI52: 55945.3179 | CJ52: -0.03653000001 | CO52: 0 | CP52: 0 | CQ52: 30 | CR52: -4285.686084 | CS52: 0 | CT52: 0 | CU52: 0 | CV52: 0 | CZ52: 0 | DA52: 0 | DB52: 0 | DE52: -92.198113 | DF52: -1510.0536 | DG52: -2713.656757 | DH52: 0 | DI52: 0 | DK52: 0 | DL52: 7.741249665 | DN52: 0 | DO52: 0 | DP52: 22.48113567 | DQ52: 0 | DR52: -30.60454543 | DV52: 0 | DW52: 0 | DX52: 0 | DY52: -4283.7155 | EA52: 4283.7155 | EC52: 0 | EE52: 1513.702774 | EF52: 92.42091766 | EH52: 2720.214542 | EI52: 0 | EJ52: 0 | EK52: 0 | EL52: 0 | EO52: 0 | EP52: 0 | ER52: 0 | ET52: 0 | EV52: 155 | FA52: 0 | FB52: -66.40645249 | FD52: -66.40645249 | FF52: 0 | FG52: 0 | FH52: 0 | FI52: 0
A53: 1908 | B53: Regular | C53: Azul | D53: A3 | E53: Industrial | F53: Não se aplica | G53: Fonte incentivada | H53: Não se aplica | I53: Não se aplica | J53: LIVRE | K53: 2021-06-01 | L53: 0 | M53: 0 | N53: 327.908 | O53: 327.908 | P53: 0 | Q53: 0 | S53: 34.28 | V53: 11240.68624 | W53: 11240.68624 | X53: 11758.78088 | Y53: 0 | Z53: 4902.127026 | AA53: 0 | AB53: 0 | AC53: 0 | AD53: 0 | AE53: 0 | AI53: 8.243250473 | AJ53: 0 | AK53: 66.4412183 | AL53: 3234.599106 | AN53: 54.07886962 | AO53: 0 | AP53: 0 | AQ53: 0 | AR53: 0 | AU53: 0 | AV53: 256.2533379 | AW53: 171.1016503 | AZ53: 0 | BB53: 165.5853333 | BC53: 0 | BD53: 706.086339 | BE53: 43.11093863 | BG53: 1268.879439 | BH53: 0 | BI53: 2464.64 | BJ53: 0 | BK53: 24373.9 | BL53: 1 | BV53: 2018.076717 | CI53: 11758.8526 | CJ53: 518.13636 | CO53: 518.09464 | CP53: 0 | CQ53: 30 | CR53: -71.01704247 | CS53: 0 | CT53: 0 | CU53: 0 | CV53: 0 | CZ53: 0 | DA53: 0 | DB53: 0 | DE53: -3.528770624 | DF53: -57.79546469 | DG53: -103.8619114 | DH53: 0 | DI53: -99.35706308 | DK53: 0 | DL53: 0.2962869144 | DN53: 0 | DO53: 192.3694423 | DP53: 0.8604381216 | DQ53: 0 | DR53: -6.147726353 | DV53: 0 | DW53: 0 | DX53: 0 | DY53: -75.41884 | EA53: 593.51348 | EC53: 0 | EE53: 57.93513239 | EF53: 3.537298202 | EH53: 104.1129027 | EI53: 0 | EJ53: 0 | EK53: 0 | EL53: 0 | EO53: 0 | EP53: 958.4148561 | ER53: 0 | ET53: 0 | EV53: 155 | FA53: 0 | FB53: -66.40645249 | FD53: -66.40645249 | FF53: 0 | FG53: 0 | FH53: 0 | FI53: 0
A54: 443 | B54: Regular | C54: Azul | D54: A3 | E54: Industrial | F54: Não se aplica | G54: Não se aplica | H54: Não se aplica | I54: Não se aplica | J54: CATIVO | K54: 2021-07-01 | L54: 0 | M54: 0 | N54: 0 | O54: 0 | P54: 0 | Q54: 0 | AA54: 0 | AZ54: 0 | BI54: 12736.45 | BJ54: 58668.73 | BK54: 419099.33 | BL54: 6 | CJ54: -0.03 | CO54: 0 | CP54: 0 | CQ54: 31 | DK54: 0 | EV54: 155 | FA54: 0 | FB54: -66.40645249 | FD54: -66.40645249 | FF54: 0 | FG54: 0 | FH54: 0 | FI54: 0
A55: 1951 | B55: Regular | C55: Azul | D55: A3 | E55: Industrial | F55: Não se aplica | G55: Não se aplica | H55: Não se aplica | I55: Não se aplica | J55: LIVRE | K55: 2021-07-01 | L55: 0 | M55: 0 | N55: 16228.864 | O55: 16228.864 | P55: 0 | Q55: 0 | S55: 34.28 | V55: 556325.4579 | W55: 556325.4579 | X55: 581967.063 | Y55: 0 | Z55: 242616.6876 | AA55: 0 | AB55: 0 | AC55: 0 | AD55: 0 | AE55: 0 | AI55: 407.9759898 | AJ55: 0 | AK55: 3288.317137 | AL55: 160087.186 | AN55: 2676.47822 | AO55: 0 | AP55: 0 | AQ55: 0 | AR55: 0 | AU55: 0 | AV55: 12682.52245 | AW55: 8468.184406 | AZ55: 0 | BB55: 8195.170152 | BC55: 0 | BD55: 34945.71394 | BE55: 2133.652 | BG55: 62799.54087 | BH55: 0 | BI55: 72307.97 | BJ55: 0 | BK55: 424398.12 | BL55: 5 | BV55: 99878.90681 | CI55: 581966.9196 | CJ55: 25641.43168 | CO55: 25641.60512 | CP55: 0 | CQ55: 31 | CR55: -3514.784403 | CS55: 0 | CT55: 0 | CU55: 0 | CV55: 0 | CZ55: 0 | DA55: 0 | DB55: 0 | DE55: -174.6463598 | DF55: -2860.420411 | DG55: -5140.346791 | DH55: 0 | DI55: -4917.392269 | DK55: 0 | DL55: 14.66386925 | DN55: 0 | DO55: 9520.772648 | DP55: 42.58491179 | DQ55: 0 | DR55: -304.2640463 | DV55: 0 | DW55: 0 | DX55: 0 | DY55: -3732.63872 | EA55: 29374.24384 | EC55: 0 | EE55: 2867.332863 | EF55: 175.0684077 | EH55: 5152.768881 | EI55: 0 | EJ55: 0 | EK55: 0 | EL55: 0 | EO55: 0 | EP55: 47433.98866 | ER55: 0 | ET55: 0 | EV55: 155 | FA55: 0 | FB55: -66.40645249 | FD55: -66.40645249 | FF55: 0 | FG55: 0 | FH55: 0 | FI55: 0
A56: 1952 | B56: Refaturamento - Regular | C56: Azul | D56: A3 | E56: Industrial | F56: Não se aplica | G56: Não se aplica | H56: Não se aplica | I56: Não se aplica | J56: LIVRE | K56: 2021-07-01 | L56: 0 | M56: 0 | N56: -8502.183 | O56: -8502.183 | P56: 0 | Q56: 0 | S56: 34.28 | V56: -291454.8332 | W56: -291454.8332 | X56: -304888.2824 | Y56: 0 | Z56: -127105.1059 | AA56: 0 | AB56: 0 | AC56: 0 | AD56: 0 | AE56: 0 | AI56: -213.7356333 | AJ56: 0 | AK56: -1722.725267 | AL56: -83868.50437 | AN56: -1402.187339 | AO56: 0 | AP56: 0 | AQ56: 0 | AR56: 0 | AU56: 0 | AV56: -6644.280631 | AW56: -4436.419795 | AZ56: 0 | BB56: -4293.389626 | BC56: 0 | BD56: -18307.80362 | BE56: -1117.804657 | BG56: -32900.21956 | BH56: 0 | BI56: 0 | BJ56: 0 | BK56: 0 | BL56: 0 | BV56: -52325.82783 | CI56: -304888.1748 | CJ56: -13433.37156 | CO56: -13433.44914 | CP56: 0 | CQ56: 31 | CR56: 1841.369808 | CS56: 0 | CT56: 0 | CU56: 0 | CV56: 0 | CZ56: 0 | DA56: 0 | DB56: 0 | DE56: 91.4959489 | DF56: 1498.553306 | DG56: 2692.990039 | DH56: 0 | DI56: 2576.185798 | DK56: 0 | DL56: -7.682293712 | DN56: 0 | DO56: -4987.863066 | DP56: -22.30992342 | DQ56: 0 | DR56: 159.4017056 | DV56: 0 | DW56: 0 | DX56: 0 | DY56: 1955.50209 | EA56: -15388.95123 | EC56: 0 | EE56: -1502.174688 | EF56: -91.71705672 | EH56: -2699.497881 | EI56: 0 | EJ56: 0 | EK56: 0 | EL56: 0 | EO56: 0 | EP56: -24850.31929 | ER56: 0 | ET56: 0 | EV56: 155 | FA56: 0 | FB56: -66.40645249 | FD56: -66.40645249 | FF56: 0 | FG56: 0 | FH56: 0 | FI56: 0
A57: 1970 | B57: Refaturamento - Regular | C57: Azul | D57: A3 | E57: Industrial | F57: Não se aplica | G57: APE | H57: Não se aplica | I57: Não se aplica | J57: LIVRE APE | K57: 2021-07-01 | L57: 0 | M57: 0 | N57: 8502.183 | O57: 8502.183 | P57: 0 | Q57: 0 | S57: 6.53 | V57: 55519.25499 | W57: 55519.25499 | X57: 55519.25499 | Y57: 0 | Z57: 0 | AA57: 0 | AB57: 0 | AC57: 0 | AD57: 0 | AE57: 0 | AI57: 213.7356333 | AJ57: 0 | AK57: 1596.741648 | AL57: 0 | AN57: 1402.187339 | AO57: 0 | AP57: 0 | AQ57: 0 | AR57: 0 | AU57: 0 | AV57: 0 | AW57: 0 | AZ57: 0 | BB57: 4293.389626 | BC57: 0 | BD57: 18307.80362 | BE57: 1117.804657 | BG57: 32900.21956 | BH57: 0 | BI57: 0 | BJ57: 0 | BK57: 0 | BL57: 0 | BV57: 52325.82783 | CI57: 55519.2354 | CJ57: -0.04959000001 | CO57: 0 | CP57: 0 | CQ57: 31 | CR57: -4253.047077 | CS57: 0 | CT57: 0 | CU57: 0 | CV57: 0 | CZ57: 0 | DA57: 0 | DB57: 0 | DE57: -91.4959489 | DF57: -1498.553306 | DG57: -2692.990039 | DH57: 0 | DI57: 0 | DK57: 0 | DL57: 7.682293712 | DN57: 0 | DO57: 0 | DP57: 22.30992342 | DQ57: 0 | DR57: -30.37146677 | DV57: 0 | DW57: 0 | DX57: 0 | DY57: -4251.0915 | EA57: 4251.0915 | EC57: 0 | EE57: 1502.174688 | EF57: 91.71705672 | EH57: 2699.497881 | EI57: 0 | EJ57: 0 | EK57: 0 | EL57: 0 | EO57: 0 | EP57: 0 | ER57: 0 | ET57: 0 | EV57: 155 | FA57: 0 | FB57: -66.40645249 | FD57: -66.40645249 | FF57: 0 | FG57: 0 | FH57: 0 | FI57: 0
A58: 1975 | B58: Regular | C58: Azul | D58: A3 | E58: Industrial | F58: Não se aplica | G58: Fonte incentivada | H58: Não se aplica | I58: Não se aplica | J58: LIVRE | K58: 2021-07-01 | L58: 0 | M58: 0 | N58: 364.523 | O58: 364.523 | P58: 0 | Q58: 0 | S58: 34.28 | V58: 12495.84844 | W58: 12495.84844 | X58: 13071.79478 | Y58: 0 | Z58: 5449.510381 | AA58: 0 | AB58: 0 | AC58: 0 | AD58: 0 | AE58: 0 | AI58: 9.163711749 | AJ58: 0 | AK58: 73.86020536 | AL58: 3595.782262 | AN58: 60.11744693 | AO58: 0 | AP58: 0 | AQ58: 0 | AR58: 0 | AU58: 0 | AV58: 284.8672051 | AW58: 190.2072742 | AZ58: 0 | BB58: 184.0749919 | BC58: 0 | BD58: 784.9296466 | BE58: 47.92481026 | BG58: 1410.565585 | BH58: 0 | BI58: 2515.66 | BJ58: 0 | BK58: 24878.41 | BL58: 1 | BV58: 2243.420042 | CI58: 13071.6872 | CJ58: 575.80876 | CO58: 575.94634 | CP58: 0 | CQ58: 31 | CR58: -78.94697711 | CS58: 0 | CT58: 0 | CU58: 0 | CV58: 0 | CZ58: 0 | DA58: 0 | DB58: 0 | DE58: -3.922801683 | DF58: -64.24904599 | DG58: -115.4593836 | DH58: 0 | DI58: -110.4515129 | DK58: 0 | DL58: 0.3293710275 | DN58: 0 | DO58: 213.8498793 | DP58: 0.9565167224 | DQ58: 0 | DR58: -6.83419634 | DV58: 0 | DW58: 0 | DX58: 0 | DY58: -83.84029 | EA58: 659.78663 | EC58: 0 | EE58: 64.40430934 | EF58: 3.93228147 | EH58: 115.7384011 | EI58: 0 | EJ58: 0 | EK58: 0 | EL58: 0 | EO58: 0 | EP58: 1065.433776 | ER58: 0 | ET58: 0 | EV58: 155 | FA58: 0 | FB58: -66.40645249 | FD58: -66.40645249 | FF58: 0 | FG58: 0 | FH58: 0 | FI58: 0
A59: 597 | B59: Regular | C59: Azul | D59: A3 | E59: Industrial | F59: Não se aplica | G59: Não se aplica | H59: Não se aplica | I59: Não se aplica | J59: CATIVO | K59: 2021-08-01 | L59: 0 | M59: 0 | N59: 0 | O59: 0 | P59: 0 | Q59: 0 | AA59: 0 | AZ59: 0 | BI59: 13405.31 | BJ59: 61746.32 | BK59: 436163.87 | BL59: 6 | CJ59: -0.03 | CO59: 0 | CP59: 0 | CQ59: 31 | DK59: 0 | EV59: 155 | FA59: 0 | FB59: -66.40645249 | FD59: -66.40645249 | FF59: 0 | FG59: 0 | FH59: 0 | FI59: 0
A60: 2018 | B60: Regular | C60: Azul | D60: A3 | E60: Industrial | F60: Não se aplica | G60: Não se aplica | H60: Não se aplica | I60: Não se aplica | J60: LIVRE | K60: 2021-08-01 | L60: 0 | M60: 0 | N60: 16190.949 | O60: 16190.949 | P60: 0 | Q60: 0 | S60: 34.28 | V60: 555025.7317 | W60: 555025.7317 | X60: 580607.4311 | Y60: 0 | Z60: 242049.8697 | AA60: 0 | AB60: 0 | AC60: 0 | AD60: 0 | AE60: 0 | AI60: 407.0228479 | AJ60: 0 | AK60: 3280.634742 | AL60: 159713.1792 | AN60: 2670.225246 | AO60: 0 | AP60: 0 | AQ60: 0 | AR60: 0 | AU60: 0 | AV60: 12652.89266 | AW60: 8448.400445 | AZ60: 0 | BB60: 8176.024025 | BC60: 0 | BD60: 34864.07134 | BE60: 2128.667214 | BG60: 62652.82422 | BH60: 0 | BI60: 72236.8 | BJ60: 0 | BK60: 423980.44 | BL60: 5 | BV60: 99645.56277 | CI60: 580607.467 | CJ60: 25581.70528 | CO60: 25581.69942 | CP60: 0 | CQ60: 31 | CR60: -3506.572919 | CS60: 0 | CT60: 0 | CU60: 0 | CV60: 0 | CZ60: 0 | DA60: 0 | DB60: 0 | DE60: -174.2383388 | DF60: -2853.737698 | DG60: -5128.337555 | DH60: 0 | DI60: -4905.903916 | DK60: 0 | DL60: 14.6296105 | DN60: 0 | DO60: 9498.529557 | DP60: 42.48542196 | DQ60: 0 | DR60: -303.5532035 | DV60: 0 | DW60: 0 | DX60: 0 | DY60: -3723.91827 | EA60: 29305.61769 | EC60: 0 | EE60: 2860.634001 | EF60: 174.6594007 | EH60: 5140.730624 | EI60: 0 | EJ60: 0 | EK60: 0 | EL60: 0 | EO60: 0 | EP60: 47323.17008 | ER60: 0 | ET60: 0 | EV60: 155 | FA60: 0 | FB60: -66.40645249 | FD60: -66.40645249 | FF60: 0 | FG60: 0 | FH60: 0 | FI60: 0
A61: 2019 | B61: Refaturamento - Regular | C61: Azul | D61: A3 | E61: Industrial | F61: Não se aplica | G61: Não se aplica | H61: Não se aplica | I61: Não se aplica | J61: LIVRE | K61: 2021-08-01 | L61: 0 | M61: 0 | N61: -8514.05 | O61: -8514.05 | P61: 0 | Q61: 0 | S61: 34.28 | V61: -291861.634 | W61: -291861.634 | X61: -305313.833 | Y61: 0 | Z61: -127282.514 | AA61: 0 | AB61: 0 | AC61: 0 | AD61: 0 | AE61: 0 | AI61: -214.0339568 | AJ61: 0 | AK61: -1725.129776 | AL61: -83985.5646 | AN61: -1404.144455 | AO61: 0 | AP61: 0 | AQ61: 0 | AR61: 0 | AU61: 0 | AV61: -6653.554447 | AW61: -4442.611969 | AZ61: 0 | BB61: -4299.382164 | BC61: 0 | BD61: -18333.3569 | BE61: -1119.364843 | BG61: -32946.14034 | BH61: 0 | BI61: 0 | BJ61: 0 | BK61: 0 | BL61: 0 | BV61: -52398.86209 | CI61: -305313.833 | CJ61: -13452.229 | CO61: -13452.199 | CP61: 0 | CQ61: 31 | CR61: 1843.939917 | CS61: 0 | CT61: 0 | CU61: 0 | CV61: 0 | CZ61: 0 | DA61: 0 | DB61: 0 | DE61: 91.62365521 | DF61: 1500.644925 | DG61: 2696.748805 | DH61: 0 | DI61: 2579.781533 | DK61: 0 | DL61: -7.693016344 | DN61: 0 | DO61: -4994.824922 | DP61: -22.3410627 | DQ61: 0 | DR61: 159.624192 | DV61: 0 | DW61: 0 | DX61: 0 | DY61: 1958.2315 | EA61: -15410.4305 | EC61: 0 | EE61: -1504.271363 | EF61: -91.84507164 | EH61: -2703.26573 | EI61: 0 | EJ61: 0 | EK61: 0 | EL61: 0 | EO61: 0 | EP61: -24885.00435 | ER61: 0 | ET61: 0 | EV61: 155 | FA61: 0 | FB61: -66.40645249 | FD61: -66.40645249 | FF61: 0 | FG61: 0 | FH61: 0 | FI61: 0
A62: 2037 | B62: Refaturamento - Regular | C62: Azul | D62: A3 | E62: Industrial | F62: Não se aplica | G62: APE | H62: Não se aplica | I62: Não se aplica | J62: LIVRE APE | K62: 2021-08-01 | L62: 0 | M62: 0 | N62: 8514.05 | O62: 8514.05 | P62: 0 | Q62: 0 | S62: 6.53 | V62: 55596.7465 | W62: 55596.7465 | X62: 55596.7465 | Y62: 0 | Z62: 0 | AA62: 0 | AB62: 0 | AC62: 0 | AD62: 0 | AE62: 0 | AI62: 214.0339568 | AJ62: 0 | AK62: 1598.970315 | AL62: 0 | AN62: 1404.144455 | AO62: 0 | AP62: 0 | AQ62: 0 | AR62: 0 | AU62: 0 | AV62: 0 | AW62: 0 | AZ62: 0 | BB62: 4299.382164 | BC62: 0 | BD62: 18333.3569 | BE62: 1119.364843 | BG62: 32946.14034 | BH62: 0 | BI62: 0 | BJ62: 0 | BK62: 0 | BL62: 0 | BV62: 52398.86209 | CI62: 55596.7465 | CJ62: -0.03000000001 | CO62: 0 | CP62: 0 | CQ62: 31 | CR62: -4258.983306 | CS62: 0 | CT62: 0 | CU62: 0 | CV62: 0 | CZ62: 0 | DA62: 0 | DB62: 0 | DE62: -91.62365521 | DF62: -1500.644925 | DG62: -2696.748805 | DH62: 0 | DI62: 0 | DK62: 0 | DL62: 7.693016344 | DN62: 0 | DO62: 0 | DP62: 22.3410627 | DQ62: 0 | DR62: -30.41385802 | DV62: 0 | DW62: 0 | DX62: 0 | DY62: -4257.025 | EA62: 4257.025 | EC62: 0 | EE62: 1504.271363 | EF62: 91.84507164 | EH62: 2703.26573 | EI62: 0 | EJ62: 0 | EK62: 0 | EL62: 0 | EO62: 0 | EP62: 0 | ER62: 0 | ET62: 0 | EV62: 155 | FA62: 0 | FB62: -66.40645249 | FD62: -66.40645249 | FF62: 0 | FG62: 0 | FH62: 0 | FI62: 0
A63: 2042 | B63: Regular | C63: Azul | D63: A3 | E63: Industrial | F63: Não se aplica | G63: Fonte incentivada | H63: Não se aplica | I63: Não se aplica | J63: LIVRE | K63: 2021-08-01 | L63: 0 | M63: 0 | N63: 414.504 | O63: 414.504 | P63: 0 | Q63: 0 | S63: 34.28 | V63: 14209.19712 | W63: 14209.19712 | X63: 14864.11344 | Y63: 0 | Z63: 6196.711458 | AA63: 0 | AB63: 0 | AC63: 0 | AD63: 0 | AE63: 0 | AI63: 10.42017973 | AJ63: 0 | AK63: 83.98743169 | AL63: 4088.812313 | AN63: 68.36035648 | AO63: 0 | AP63: 0 | AQ63: 0 | AR63: 0 | AU63: 0 | AV63: 323.9263256 | AW63: 216.2872465 | AZ63: 0 | BB63: 209.314146 | BC63: 0 | BD63: 892.5540452 | BE63: 54.49594552 | BG63: 1603.973075 | BH63: 0 | BI63: 2585.3 | BJ63: 0 | BK63: 25567.06 | BL63: 1 | BV63: 2551.023065 | CI63: 14863.97 | CJ63: 654.74288 | CO63: 654.91632 | CP63: 0 | CQ63: 31 | CR63: -89.77166818 | CS63: 0 | CT63: 0 | CU63: 0 | CV63: 0 | CZ63: 0 | DA63: 0 | DB63: 0 | DE63: -4.460670489 | DF63: -73.05845327 | DG63: -131.290416 | DH63: 0 | DI63: -125.5958991 | DK63: 0 | DL63: 0.3745322199 | DN63: 0 | DO63: 243.1715705 | DP63: 1.087668014 | DQ63: 0 | DR63: -7.771256463 | DV63: 0 | DW63: 0 | DX63: 0 | DY63: -95.33592 | EA63: 750.25224 | EC63: 0 | EE63: 73.2350053 | EF63: 4.471450083 | EH63: 131.6076906 | EI63: 0 | EJ63: 0 | EK63: 0 | EL63: 0 | EO63: 0 | EP63: 1211.519059 | ER63: 0 | ET63: 0 | EV63: 155 | FA63: 0 | FB63: -66.40645249 | FD63: -66.40645249 | FF63: 0 | FG63: 0 | FH63: 0 | FI63: 0
A64: 743 | B64: Regular | C64: Azul | D64: A3 | E64: Industrial | F64: Não se aplica | G64: Não se aplica | H64: Não se aplica | I64: Não se aplica | J64: CATIVO | K64: 2021-09-01 | L64: 0 | M64: 0 | N64: 0 | O64: 0 | P64: 0 | Q64: 0 | AA64: 0 | AZ64: 0 | BI64: 13221.87 | BJ64: 60904.36 | BK64: 434540.6 | BL64: 6 | CJ64: -0.03 | CO64: 0 | CP64: 0 | CQ64: 30 | DK64: 0 | EV64: 155 | FA64: 0 | FB64: -66.40645249 | FD64: -66.40645249 | FF64: 0 | FG64: 0 | FH64: 0 | FI64: 0
A65: 2085 | B65: Regular | C65: Azul | D65: A3 | E65: Industrial | F65: Não se aplica | G65: Não se aplica | H65: Não se aplica | I65: Não se aplica | J65: LIVRE | K65: 2021-09-01 | L65: 0 | M65: 0 | N65: 16741.626 | O65: 16741.626 | P65: 0 | Q65: 0 | S65: 34.28 | V65: 573902.9393 | W65: 573902.9393 | X65: 600354.7084 | Y65: 0 | Z65: 250282.327 | AA65: 0 | AB65: 0 | AC65: 0 | AD65: 0 | AE65: 0 | AI65: 420.8662687 | AJ65: 0 | AK65: 3392.213755 | AL65: 165145.2496 | AN65: 2761.043371 | AO65: 0 | AP65: 0 | AQ65: 0 | AR65: 0 | AU65: 0 | AV65: 13083.23537 | AW65: 8735.742454 | AZ65: 0 | BB65: 8454.102128 | BC65: 0 | BD65: 36049.84755 | BE65: 2201.066186 | BG65: 64783.73509 | BH65: 0 | BI65: 73991.04 | BJ65: 0 | BK65: 428898.24 | BL65: 5 | BV65: 103034.6488 | CI65: 600354.8518 | CJ65: 26451.88252 | CO65: 26451.76908 | CP65: 0 | CQ65: 30 | CR65: -3625.836407 | CS65: 0 | CT65: 0 | CU65: 0 | CV65: 0 | CZ65: 0 | DA65: 0 | DB65: 0 | DE65: -180.1644303 | DF65: -2950.79734 | DG65: -5302.759545 | DH65: 0 | DI65: -5072.760624 | DK65: 0 | DL65: 15.12718418 | DN65: 0 | DO65: 9821.587937 | DP65: 43.93041105 | DQ65: 0 | DR65: -313.8774759 | DV65: 0 | DW65: 0 | DX65: 0 | DY65: -3850.57398 | EA65: 30302.34306 | EC65: 0 | EE65: 2957.928196 | EF65: 180.5998132 | EH65: 5315.574119 | EI65: 0 | EJ65: 0 | EK65: 0 | EL65: 0 | EO65: 0 | EP65: 48932.69781 | ER65: 0 | ET65: 0 | EV65: 155 | FA65: 0 | FB65: -66.40645249 | FD65: -66.40645249 | FF65: 0 | FG65: 0 | FH65: 0 | FI65: 0
A66: 2086 | B66: Refaturamento - Regular | C66: Azul | D66: A3 | E66: Industrial | F66: Não se aplica | G66: Não se aplica | H66: Não se aplica | I66: Não se aplica | J66: LIVRE | K66: 2021-09-01 | L66: 0 | M66: 0 | N66: -8410.017 | O66: -8410.017 | P66: 0 | Q66: 0 | S66: 34.28 | V66: -288295.3828 | W66: -288295.3828 | X66: -301583.2096 | Y66: 0 | Z66: -125727.2516 | AA66: 0 | AB66: 0 | AC66: 0 | AD66: 0 | AE66: 0 | AI66: -211.4186803 | AJ66: 0 | AK66: -1704.050451 | AL66: -82959.34673 | AN66: -1386.987243 | AO66: 0 | AP66: 0 | AQ66: 0 | AR66: 0 | AU66: 0 | AV66: -6572.254803 | AW66: -4388.327785 | AZ66: 0 | BB66: -4246.848103 | BC66: 0 | BD66: -18109.34199 | BE66: -1105.687347 | BG66: -32543.57214 | BH66: 0 | BI66: 0 | BJ66: 0 | BK66: 0 | BL66: 0 | BV66: -51758.60148 | CI66: -301583.3172 | CJ66: -13287.96444 | CO66: -13287.82686 | CP66: 0 | CQ66: 30 | CR66: 1821.408854 | CS66: 0 | CT66: 0 | CU66: 0 | CV66: 0 | CZ66: 0 | DA66: 0 | DB66: 0 | DE66: 90.50410767 | DF66: 1482.308576 | DG66: 2663.797287 | DH66: 0 | DI66: 2548.259236 | DK66: 0 | DL66: -7.599015537 | DN66: 0 | DO66: -4933.79326 | DP66: -22.06807772 | DQ66: 0 | DR66: 157.6737473 | DV66: 0 | DW66: 0 | DX66: 0 | DY66: 1934.30391 | EA66: -15222.13077 | EC66: 0 | EE66: -1485.890702 | EF66: -90.72281862 | EH66: -2670.234582 | EI66: 0 | EJ66: 0 | EK66: 0 | EL66: 0 | EO66: 0 | EP66: -24580.935 | ER66: 0 | ET66: 0 | EV66: 155 | FA66: 0 | FB66: -66.40645249 | FD66: -66.40645249 | FF66: 0 | FG66: 0 | FH66: 0 | FI66: 0
A67: 2104 | B67: Refaturamento - Regular | C67: Azul | D67: A3 | E67: Industrial | F67: Não se aplica | G67: APE | H67: Não se aplica | I67: Não se aplica | J67: LIVRE APE | K67: 2021-09-01 | L67: 0 | M67: 0 | N67: 8410.017 | O67: 8410.017 | P67: 0 | Q67: 0 | S67: 6.53 | V67: 54917.41101 | W67: 54917.41101 | X67: 54917.41101 | Y67: 0 | Z67: 0 | AA67: 0 | AB67: 0 | AC67: 0 | AD67: 0 | AE67: 0 | AI67: 211.4186803 | AJ67: 0 | AK67: 1579.43253 | AL67: 0 | AN67: 1386.987243 | AO67: 0 | AP67: 0 | AQ67: 0 | AR67: 0 | AU67: 0 | AV67: 0 | AW67: 0 | AZ67: 0 | BB67: 4246.848103 | BC67: 0 | BD67: 18109.34199 | BE67: 1105.687347 | BG67: 32543.57214 | BH67: 0 | BI67: 0 | BJ67: 0 | BK67: 0 | BL67: 0 | BV67: 51758.60148 | CI67: 54917.4306 | CJ67: -0.01041 | CO67: 0 | CP67: 0 | CQ67: 30 | CR67: -4206.942878 | CS67: 0 | CT67: 0 | CU67: 0 | CV67: 0 | CZ67: 0 | DA67: 0 | DB67: 0 | DE67: -90.50410767 | DF67: -1482.308576 | DG67: -2663.797287 | DH67: 0 | DI67: 0 | DK67: 0 | DL67: 7.599015537 | DN67: 0 | DO67: 0 | DP67: 22.06807772 | DQ67: 0 | DR67: -30.04223172 | DV67: 0 | DW67: 0 | DX67: 0 | DY67: -4205.0085 | EA67: 4205.0085 | EC67: 0 | EE67: 1485.890702 | EF67: 90.72281862 | EH67: 2670.234582 | EI67: 0 | EJ67: 0 | EK67: 0 | EL67: 0 | EO67: 0 | EP67: 0 | ER67: 0 | ET67: 0 | EV67: 155 | FA67: 0 | FB67: -66.40645249 | FD67: -66.40645249 | FF67: 0 | FG67: 0 | FH67: 0 | FI67: 0
A68: 2109 | B68: Regular | C68: Azul | D68: A3 | E68: Industrial | F68: Não se aplica | G68: Fonte incentivada | H68: Não se aplica | I68: Não se aplica | J68: LIVRE | K68: 2021-09-01 | L68: 0 | M68: 0 | N68: 6877.103 | O68: 6877.103 | P68: 0 | Q68: 0 | S68: 34.28 | V68: 235747.0908 | W68: 235747.0908 | X68: 246612.9136 | Y68: 0 | Z68: 102810.6435 | AA68: 0 | AB68: 0 | AC68: 0 | AD68: 0 | AE68: 0 | AI68: 172.8828896 | AJ68: 0 | AK68: 1393.449082 | AL68: 67838.14733 | AN68: 1134.177746 | AO68: 0 | AP68: 0 | AQ68: 0 | AR68: 0 | AU68: 0 | AV68: 5374.314133 | AW68: 3588.456739 | AZ68: 0 | BB68: 3472.764898 | BC68: 0 | BD68: 14808.50873 | BE68: 904.1510587 | BG68: 26611.77707 | BH68: 0 | BI68: 20246.95 | BJ68: 0 | BK68: 25884.37 | BL68: 2 | BV68: 42324.43686 | CI68: 246612.806 | CJ68: 10865.68516 | CO68: 10865.82274 | CP68: 0 | CQ68: 30 | CR68: -1489.416287 | CS68: 0 | CT68: 0 | CU68: 0 | CV68: 0 | CZ68: 0 | DA68: 0 | DB68: 0 | DE68: -74.00770657 | DF68: -1212.124631 | DG68: -2178.260557 | DH68: 0 | DI68: -2083.781904 | DK68: 0 | DL68: 6.213924722 | DN68: 0 | DO68: 4034.498911 | DP68: 18.04567619 | DQ68: 0 | DR68: -128.9341747 | DV68: 0 | DW68: 0 | DX68: 0 | DY68: -1581.73369 | EA68: 12447.55643 | EC68: 0 | EE68: 1215.053835 | EF68: 74.18655255 | EH68: 2183.524511 | EI68: 0 | EJ68: 0 | EK68: 0 | EL68: 0 | EO68: 0 | EP68: 20100.50893 | ER68: 0 | ET68: 0 | EV68: 155 | FA68: 0 | FB68: -66.40645249 | FD68: -66.40645249 | FF68: 0 | FG68: 0 | FH68: 0 | FI68: 0
A69: 879 | B69: Regular | C69: Azul | D69: A3 | E69: Industrial | F69: Não se aplica | G69: Não se aplica | H69: Não se aplica | I69: Não se aplica | J69: CATIVO | K69: 2021-10-01 | L69: 0 | M69: 0 | N69: 0 | O69: 0 | P69: 0 | Q69: 0 | AA69: 0 | AZ69: 0 | BI69: 13132.87 | BJ69: 60494.77 | BK69: 432143.59 | BL69: 6 | CJ69: -0.03 | CO69: 0 | CP69: 0 | CQ69: 31 | DK69: 0 | EV69: 155 | FA69: 0 | FB69: -66.40645249 | FD69: -66.40645249 | FF69: 0 | FG69: 0 | FH69: 0 | FI69: 0
A70: 2152 | B70: Regular | C70: Azul | D70: A3 | E70: Industrial | F70: Não se aplica | G70: Não se aplica | H70: Não se aplica | I70: Não se aplica | J70: LIVRE | K70: 2021-10-01 | L70: 0 | M70: 0 | N70: 16446.648 | O70: 16446.648 | P70: 0 | Q70: 0 | S70: 34.28 | V70: 563791.0934 | W70: 563791.0934 | X70: 589776.7973 | Y70: 0 | Z70: 245872.4936 | AA70: 0 | AB70: 0 | AC70: 0 | AD70: 0 | AE70: 0 | AI70: 413.4508426 | AJ70: 0 | AK70: 3332.444863 | AL70: 162235.4835 | AN70: 2712.395345 | AO70: 0 | AP70: 0 | AQ70: 0 | AR70: 0 | AU70: 0 | AV70: 12852.71615 | AW70: 8581.823603 | AZ70: 0 | BB70: 8305.145621 | BC70: 0 | BD70: 35414.66959 | BE70: 2162.284643 | BG70: 63642.28225 | BH70: 0 | BI70: 72628 | BJ70: 0 | BK70: 426276.39 | BL70: 5 | BV70: 101219.2365 | CI70: 589776.869 | CJ70: 25985.74556 | CO70: 25985.70384 | CP70: 0 | CQ70: 31 | CR70: -3561.951216 | CS70: 0 | CT70: 0 | CU70: 0 | CV70: 0 | CZ70: 0 | DA70: 0 | DB70: 0 | DE70: -176.9900348 | DF70: -2898.805957 | DG70: -5209.327915 | DH70: 0 | DI70: -4983.381445 | DK70: 0 | DL70: 14.86065173 | DN70: 0 | DO70: 9648.537102 | DP70: 43.15638201 | DQ70: 0 | DR70: -308.3471319 | DV70: 0 | DW70: 0 | DX70: 0 | DY70: -3782.72904 | EA70: 29768.43288 | EC70: 0 | EE70: 2905.811171 | EF70: 177.4177464 | EH70: 5221.916704 | EI70: 0 | EJ70: 0 | EK70: 0 | EL70: 0 | EO70: 0 | EP70: 48070.53129 | ER70: 0 | ET70: 0 | EV70: 155 | FA70: 0 | FB70: -66.40645249 | FD70: -66.40645249 | FF70: 0 | FG70: 0 | FH70: 0 | FI70: 0
A71: 2153 | B71: Refaturamento - Regular | C71: Azul | D71: A3 | E71: Industrial | F71: Não se aplica | G71: Não se aplica | H71: Não se aplica | I71: Não se aplica | J71: LIVRE | K71: 2021-10-01 | L71: 0 | M71: 0 | N71: -10005.154 | O71: -10005.154 | P71: 0 | Q71: 0 | S71: 34.28 | V71: -342976.6791 | W71: -342976.6791 | X71: -358784.8224 | Y71: 0 | Z71: -149574.0751 | AA71: 0 | AB71: 0 | AC71: 0 | AD71: 0 | AE71: 0 | AI71: -251.5186895 | AJ71: 0 | AK71: -2027.259539 | AL71: -98694.33555 | AN71: -1650.05861 | AO71: 0 | AP71: 0 | AQ71: 0 | AR71: 0 | AU71: 0 | AV71: -7818.821464 | AW71: -5220.666652 | AZ71: 0 | BB71: -5052.352366 | BC71: 0 | BD71: -21544.16043 | BE71: -1315.40426 | BG71: -38716.14659 | BH71: 0 | BI71: 0 | BJ71: 0 | BK71: 0 | BL71: 0 | BV71: -61575.71128 | CI71: -358784.679 | CJ71: -15808.02988 | CO71: -15808.14332 | CP71: 0 | CQ71: 31 | CR71: 2166.877437 | CS71: 0 | CT71: 0 | CU71: 0 | CV71: 0 | CZ71: 0 | DA71: 0 | DB71: 0 | DE71: 107.6701194 | DF71: 1763.459643 | DG71: 3169.042593 | DH71: 0 | DI71: 3031.590315 | DK71: 0 | DL71: -9.040329015 | DN71: 0 | DO71: -5869.591152 | DP71: -26.25375384 | DQ71: 0 | DR71: 187.5798971 | DV71: 0 | DW71: 0 | DX71: 0 | DY71: 2301.18542 | EA71: -18109.32874 | EC71: 0 | EE71: -1767.721195 | EF71: -107.9303135 | EH71: -3176.700857 | EI71: 0 | EJ71: 0 | EK71: 0 | EL71: 0 | EO71: 0 | EP71: -29243.22746 | ER71: 0 | ET71: 0 | EV71: 155 | FA71: 0 | FB71: -66.40645249 | FD71: -66.40645249 | FF71: 0 | FG71: 0 | FH71: 0 | FI71: 0
A72: 2171 | B72: Refaturamento - Regular | C72: Azul | D72: A3 | E72: Industrial | F72: Não se aplica | G72: APE | H72: Não se aplica | I72: Não se aplica | J72: LIVRE APE | K72: 2021-10-01 | L72: 0 | M72: 0 | N72: 10005.154 | O72: 10005.154 | P72: 0 | Q72: 0 | S72: 6.53 | V72: 65333.65562 | W72: 65333.65562 | X72: 65333.65562 | Y72: 0 | Z72: 0 | AA72: 0 | AB72: 0 | AC72: 0 | AD72: 0 | AE72: 0 | AI72: 251.5186895 | AJ72: 0 | AK72: 1879.005202 | AL72: 0 | AN72: 1650.05861 | AO72: 0 | AP72: 0 | AQ72: 0 | AR72: 0 | AU72: 0 | AV72: 0 | AW72: 0 | AZ72: 0 | BB72: 5052.352366 | BC72: 0 | BD72: 21544.16043 | BE72: 1315.40426 | BG72: 38716.14659 | BH72: 0 | BI72: 0 | BJ72: 0 | BK72: 0 | BL72: 0 | BV72: 61575.71128 | CI72: 65333.6295 | CJ72: -0.05612000001 | CO72: 0 | CP72: 0 | CQ72: 31 | CR72: -5004.878273 | CS72: 0 | CT72: 0 | CU72: 0 | CV72: 0 | CZ72: 0 | DA72: 0 | DB72: 0 | DE72: -107.6701194 | DF72: -1763.459643 | DG72: -3169.042593 | DH72: 0 | DI72: 0 | DK72: 0 | DL72: 9.040329015 | DN72: 0 | DO72: 0 | DP72: 26.25375384 | DQ72: 0 | DR72: -35.74037423 | DV72: 0 | DW72: 0 | DX72: 0 | DY72: -5002.577 | EA72: 5002.577 | EC72: 0 | EE72: 1767.721195 | EF72: 107.9303135 | EH72: 3176.700857 | EI72: 0 | EJ72: 0 | EK72: 0 | EL72: 0 | EO72: 0 | EP72: 0 | ER72: 0 | ET72: 0 | EV72: 155 | FA72: 0 | FB72: -66.40645249 | FD72: -66.40645249 | FF72: 0 | FG72: 0 | FH72: 0 | FI72: 0
A73: 2176 | B73: Regular | C73: Azul | D73: A3 | E73: Industrial | F73: Não se aplica | G73: Fonte incentivada | H73: Não se aplica | I73: Não se aplica | J73: LIVRE | K73: 2021-10-01 | L73: 0 | M73: 0 | N73: 6822.492 | O73: 6822.492 | P73: 0 | Q73: 0 | S73: 34.28 | V73: 233875.0258 | W73: 233875.0258 | X73: 244654.5631 | Y73: 0 | Z73: 101994.2253 | AA73: 0 | AB73: 0 | AC73: 0 | AD73: 0 | AE73: 0 | AI73: 171.5100284 | AJ73: 0 | AK73: 1382.383718 | AL73: 67299.44534 | AN73: 1125.171253 | AO73: 0 | AP73: 0 | AQ73: 0 | AR73: 0 | AU73: 0 | AV73: 5331.636763 | AW73: 3559.960843 | AZ73: 0 | BB73: 3445.18771 | BC73: 0 | BD73: 14690.91452 | BE73: 896.971205 | BG73: 26400.45324 | BH73: 0 | BI73: 19910.37 | BJ73: 0 | BK73: 25923.57 | BL73: 2 | BV73: 41988.33897 | CI73: 244654.4914 | CJ73: 10779.43564 | CO73: 10779.53736 | CP73: 0 | CQ73: 31 | CR73: -1477.588848 | CS73: 0 | CT73: 0 | CU73: 0 | CV73: 0 | CZ73: 0 | DA73: 0 | DB73: 0 | DE73: -73.42001217 | DF73: -1202.499163 | DG73: -2160.963014 | DH73: 0 | DI73: -2067.234615 | DK73: 0 | DL73: 6.164580013 | DN73: 0 | DO73: 4002.460999 | DP73: 17.90237567 | DQ73: 0 | DR73: -127.9103098 | DV73: 0 | DW73: 0 | DX73: 0 | DY73: -1569.17316 | EA73: 12348.71052 | EC73: 0 | EE73: 1205.405105 | EF73: 73.59743794 | EH73: 2166.185167 | EI73: 0 | EJ73: 0 | EK73: 0 | EL73: 0 | EO73: 0 | EP73: 19940.89101 | ER73: 0 | ET73: 0 | EV73: 155 | FA73: 0 | FB73: -66.40645249 | FD73: -66.40645249 | FF73: 0 | FG73: 0 | FH73: 0 | FI73: 0
A74: 1021 | B74: Regular | C74: Azul | D74: A3 | E74: Industrial | F74: Não se aplica | G74: Não se aplica | H74: Não se aplica | I74: Não se aplica | J74: CATIVO | K74: 2021-11-01 | L74: 0 | M74: 0 | N74: 0 | O74: 0 | P74: 0 | Q74: 0 | AA74: 0 | AZ74: 0 | BI74: 13718.9 | BJ74: 63194.19 | BK74: 451427 | BL74: 5 | CJ74: -0.03 | CO74: 0 | CP74: 0 | CQ74: 30 | DK74: 0 | EV74: 155 | FA74: 0 | FB74: -66.40645249 | FD74: -66.40645249 | FF74: 0 | FG74: 0 | FH74: 0 | FI74: 0
A75: 2219 | B75: Regular | C75: Azul | D75: A3 | E75: Industrial | F75: Não se aplica | G75: Não se aplica | H75: Não se aplica | I75: Não se aplica | J75: LIVRE | K75: 2021-11-01 | L75: 0 | M75: 0 | N75: 13548.636 | O75: 13548.636 | P75: 0 | Q75: 0 | S75: 34.28 | V75: 464447.2421 | W75: 464447.2421 | X75: 485854.087 | Y75: 0 | Z75: 202548.0766 | AA75: 0 | AB75: 0 | AC75: 0 | AD75: 0 | AE75: 0 | AI75: 340.597973 | AJ75: 0 | AK75: 2745.245258 | AL75: 133648.4803 | AN75: 2234.452712 | AO75: 0 | AP75: 0 | AQ75: 0 | AR75: 0 | AU75: 0 | AV75: 10587.97955 | AW75: 7069.647518 | AZ75: 0 | BB75: 6841.722091 | BC75: 0 | BD75: 29174.3623 | BE75: 1781.275282 | BG75: 52428.07631 | BH75: 0 | BI75: 61894.48 | BJ75: 0 | BK75: 363278.02 | BL75: 4 | BV75: 83383.71389 | CI75: 485854.2304 | CJ75: 21406.95832 | CO75: 21406.84488 | CP75: 0 | CQ75: 30 | CR75: -2934.311021 | CS75: 0 | CT75: 0 | CU75: 0 | CV75: 0 | CZ75: 0 | DA75: 0 | DB75: 0 | DE75: -145.8031787 | DF75: -2388.016497 | DG75: -4291.408664 | DH75: 0 | DI75: -4105.275509 | DK75: 0 | DL75: 12.24210313 | DN75: 0 | DO75: 7948.398794 | DP75: 35.55193197 | DQ75: 0 | DR75: -254.0142558 | DV75: 0 | DW75: 0 | DX75: 0 | DY75: -3116.18628 | EA75: 24523.03116 | EC75: 0 | EE75: 2393.787344 | EF75: 146.1555246 | EH75: 4301.779222 | EI75: 0 | EJ75: 0 | EK75: 0 | EL75: 0 | EO75: 0 | EP75: 39600.17451 | ER75: 0 | ET75: 0 | EV75: 155 | FA75: 0 | FB75: -66.40645249 | FD75: -66.40645249 | FF75: 0 | FG75: 0 | FH75: 0 | FI75: 0
A76: 2220 | B76: Refaturamento - Regular | C76: Azul | D76: A3 | E76: Industrial | F76: Não se aplica | G76: Não se aplica | H76: Não se aplica | I76: Não se aplica | J76: LIVRE | K76: 2021-11-01 | L76: 0 | M76: 0 | N76: -10221.031 | O76: -10221.031 | P76: 0 | Q76: 0 | S76: 34.28 | V76: -350376.9427 | W76: -350376.9427 | X76: -366526.1717 | Y76: 0 | Z76: -152801.372 | AA76: 0 | AB76: 0 | AC76: 0 | AD76: 0 | AE76: 0 | AI76: -256.9456025 | AJ76: 0 | AK76: -2071.000866 | AL76: -100823.8217 | AN76: -1685.661231 | AO76: 0 | AP76: 0 | AQ76: 0 | AR76: 0 | AU76: 0 | AV76: -7987.524886 | AW76: -5333.310781 | AZ76: 0 | BB76: -5161.364848 | BC76: 0 | BD76: -22009.00972 | BE76: -1343.786184 | BG76: -39551.5086 | BH76: 0 | BI76: 0 | BJ76: 0 | BK76: 0 | BL76: 0 | BV76: -62904.3045 | CI76: -366526.1358 | CJ76: -16149.22312 | CO76: -16149.22898 | CP76: 0 | CQ76: 30 | CR76: 2213.63124 | CS76: 0 | CT76: 0 | CU76: 0 | CV76: 0 | CZ76: 0 | DA76: 0 | DB76: 0 | DE76: 109.9932723 | DF76: 1801.50907 | DG76: 3237.419693 | DH76: 0 | DI76: 3097.001665 | DK76: 0 | DL76: -9.235388392 | DN76: 0 | DO76: -5996.236851 | DP76: -26.82022004 | DQ76: 0 | DR76: 191.6272297 | DV76: 0 | DW76: 0 | DX76: 0 | DY76: 2350.83713 | EA76: -18500.06611 | EC76: 0 | EE76: -1805.862572 | EF76: -110.2590805 | EH76: -3245.243195 | EI76: 0 | EJ76: 0 | EK76: 0 | EL76: 0 | EO76: 0 | EP76: -29874.19628 | ER76: 0 | ET76: 0 | EV76: 155 | FA76: 0 | FB76: -66.40645249 | FD76: -66.40645249 | FF76: 0 | FG76: 0 | FH76: 0 | FI76: 0
A77: 2238 | B77: Refaturamento - Regular | C77: Azul | D77: A3 | E77: Industrial | F77: Não se aplica | G77: APE | H77: Não se aplica | I77: Não se aplica | J77: LIVRE APE | K77: 2021-11-01 | L77: 0 | M77: 0 | N77: 10221.031 | O77: 10221.031 | P77: 0 | Q77: 0 | S77: 6.53 | V77: 66743.33243 | W77: 66743.33243 | X77: 66743.33243 | Y77: 0 | Z77: 0 | AA77: 0 | AB77: 0 | AC77: 0 | AD77: 0 | AE77: 0 | AI77: 256.9456025 | AJ77: 0 | AK77: 1919.547707 | AL77: 0 | AN77: 1685.661231 | AO77: 0 | AP77: 0 | AQ77: 0 | AR77: 0 | AU77: 0 | AV77: 0 | AW77: 0 | AZ77: 0 | BB77: 5161.364848 | BC77: 0 | BD77: 22009.00972 | BE77: 1343.786184 | BG77: 39551.5086 | BH77: 0 | BI77: 0 | BJ77: 0 | BK77: 0 | BL77: 0 | BV77: 62904.3045 | CI77: 66743.3259 | CJ77: -0.03652999998 | CO77: 0 | CP77: 0 | CQ77: 30 | CR77: -5112.866427 | CS77: 0 | CT77: 0 | CU77: 0 | CV77: 0 | CZ77: 0 | DA77: 0 | DB77: 0 | DE77: -109.9932723 | DF77: -1801.50907 | DG77: -3237.419693 | DH77: 0 | DI77: 0 | DK77: 0 | DL77: 9.235388392 | DN77: 0 | DO77: 0 | DP77: 26.82022004 | DQ77: 0 | DR77: -36.51152926 | DV77: 0 | DW77: 0 | DX77: 0 | DY77: -5110.5155 | EA77: 5110.5155 | EC77: 0 | EE77: 1805.862572 | EF77: 110.2590805 | EH77: 3245.243195 | EI77: 0 | EJ77: 0 | EK77: 0 | EL77: 0 | EO77: 0 | EP77: 0 | ER77: 0 | ET77: 0 | EV77: 155 | FA77: 0 | FB77: -66.40645249 | FD77: -66.40645249 | FF77: 0 | FG77: 0 | FH77: 0 | FI77: 0
A78: 2243 | B78: Regular | C78: Azul | D78: A3 | E78: Industrial | F78: Não se aplica | G78: Fonte incentivada | H78: Não se aplica | I78: Não se aplica | J78: LIVRE | K78: 2021-11-01 | L78: 0 | M78: 0 | N78: 10120.803 | O78: 10120.803 | P78: 0 | Q78: 0 | S78: 34.28 | V78: 346941.1268 | W78: 346941.1268 | X78: 362931.9956 | Y78: 0 | Z78: 151302.9932 | AA78: 0 | AB78: 0 | AC78: 0 | AD78: 0 | AE78: 0 | AI78: 254.4259796 | AJ78: 0 | AK78: 2050.692516 | AL78: 99835.13771 | AN78: 1669.131543 | AO78: 0 | AP78: 0 | AQ78: 0 | AR78: 0 | AU78: 0 | AV78: 7909.198772 | AW78: 5281.012038 | AZ78: 0 | BB78: 5110.752216 | BC78: 0 | BD78: 21793.18814 | BE78: 1330.608942 | BG78: 39163.6643 | BH78: 0 | BI78: 31283.65 | BJ78: 0 | BK78: 90616.43 | BL78: 3 | BV78: 62287.46139 | CI78: 362931.888 | CJ78: 15990.73116 | CO78: 15990.86874 | CP78: 0 | CQ78: 30 | CR78: -2191.924248 | CS78: 0 | CT78: 0 | CU78: 0 | CV78: 0 | CZ78: 0 | DA78: 0 | DB78: 0 | DE78: -108.9146722 | DF78: -1783.843372 | DG78: -3205.673374 | DH78: 0 | DI78: -3066.632294 | DK78: 0 | DL78: 9.144825658 | DN78: 0 | DO78: 5937.437419 | DP78: 26.55721947 | DQ78: 0 | DR78: -189.7481224 | DV78: 0 | DW78: 0 | DX78: 0 | DY78: -2327.78469 | EA78: 18318.65343 | EC78: 0 | EE78: 1788.154183 | EF78: 109.1778738 | EH78: 3213.42016 | EI78: 0 | EJ78: 0 | EK78: 0 | EL78: 0 | EO78: 0 | EP78: 29581.24825 | ER78: 0 | ET78: 0 | EV78: 155 | FA78: 0 | FB78: -66.40645249 | FD78: -66.40645249 | FF78: 0 | FG78: 0 | FH78: 0 | FI78: 0
A79: 1162 | B79: Regular | C79: Azul | D79: A3 | E79: Industrial | F79: Não se aplica | G79: Não se aplica | H79: Não se aplica | I79: Não se aplica | J79: CATIVO | K79: 2021-12-01 | L79: 0 | M79: 0 | N79: 0 | O79: 0 | P79: 0 | Q79: 0 | AA79: 0 | AZ79: 0 | BI79: 13544.89 | BJ79: 62392.61 | BK79: 445700.81 | BL79: 5 | CJ79: -0.03 | CO79: 0 | CP79: 0 | DK79: 0 | EV79: 155 | FA79: 0 | FB79: -66.40645249 | FD79: -66.40645249 | FF79: 0 | FG79: 0 | FH79: 0 | FI79: 0
A80: 2286 | B80: Regular | C80: Azul | D80: A3 | E80: Industrial | F80: Não se aplica | G80: Não se aplica | H80: Não se aplica | I80: Não se aplica | J80: LIVRE | K80: 2021-12-01 | L80: 0 | M80: 0 | N80: 13127.984 | O80: 13127.984 | P80: 0 | Q80: 0 | S80: 34.28 | V80: 450027.2915 | W80: 450027.2915 | X80: 470769.5062 | Y80: 0 | Z80: 196259.4544 | AA80: 0 | AB80: 0 | AC80: 0 | AD80: 0 | AE80: 0 | AI80: 330.0232392 | AJ80: 0 | AK80: 2660.01211 | AL80: 129499.022 | AN80: 2165.078422 | AO80: 0 | AP80: 0 | AQ80: 0 | AR80: 0 | AU80: 0 | AV80: 10259.24869 | AW80: 6850.152259 | AZ80: 0 | BB80: 6629.303359 | BC80: 0 | BD80: 28268.56972 | BE80: 1725.971042 | BG80: 50800.31281 | BH80: 0 | BI80: 61299.56 | BJ80: 0 | BK80: 359786.4 | BL80: 4 | BV80: 80794.85358 | CI80: 470769.3628 | CJ80: 20742.04128 | CO80: 20742.21472 | CP80: 0 | CR80: -2843.207842 | CS80: 0 | CT80: 0 | CU80: 0 | CV80: 0 | CZ80: 0 | DA80: 0 | DB80: 0 | DE80: -141.2763467 | DF80: -2313.874427 | DG80: -4158.170925 | DH80: 0 | DI80: -3977.816749 | DK80: 0 | DL80: 11.86201578 | DN80: 0 | DO80: 7701.620458 | DP80: 34.44813147 | DQ80: 0 | DR80: -246.1277346 | DV80: 0 | DW80: 0 | DX80: 0 | DY80: -3019.43632 | EA80: 23761.65104 | EC80: 0 | EE80: 2319.466104 | EF80: 141.6177531 | EH80: 4168.219502 | EI80: 0 | EJ80: 0 | EK80: 0 | EL80: 0 | EO80: 0 | EP80: 38370.68597 | ER80: 0 | ET80: 0 | EV80: 155 | FA80: 0 | FB80: -66.40645249 | FD80: -66.40645249 | FF80: 0 | FG80: 0 | FH80: 0 | FI80: 0
A81: 2287 | B81: Refaturamento - Regular | C81: Azul | D81: A3 | E81: Industrial | F81: Não se aplica | G81: Não se aplica | H81: Não se aplica | I81: Não se aplica | J81: LIVRE | K81: 2021-12-01 | L81: 0 | M81: 0 | N81: -8846.695 | O81: -8846.695 | P81: 0 | Q81: 0 | S81: 34.28 | V81: -303264.7046 | W81: -303264.7046 | X81: -317242.4827 | Y81: 0 | Z81: -132255.4578 | AA81: 0 | AB81: 0 | AC81: 0 | AD81: 0 | AE81: 0 | AI81: -222.3962903 | AJ81: 0 | AK81: -1792.530813 | AL81: -87266.89113 | AN81: -1459.004554 | AO81: 0 | AP81: 0 | AQ81: 0 | AR81: 0 | AU81: 0 | AV81: -6913.509652 | AW81: -4616.185375 | AZ81: 0 | BB81: -4467.359564 | BC81: 0 | BD81: -19049.64345 | BE81: -1163.098568 | BG81: -34233.35017 | BH81: 0 | BI81: 0 | BJ81: 0 | BK81: 0 | BL81: 0 | BV81: -54446.09219 | CI81: -317242.662 | CJ81: -13977.9874 | CO81: -13977.7781 | CP81: 0 | CR81: 1915.982881 | CS81: 0 | CT81: 0 | CU81: 0 | CV81: 0 | CZ81: 0 | DA81: 0 | DB81: 0 | DE81: 95.20340289 | DF81: 1559.27531 | DG81: 2802.111118 | DH81: 0 | DI81: 2680.573921 | DK81: 0 | DL81: -7.993583456 | DN81: 0 | DO81: -5189.973357 | DP81: -23.21393082 | DQ81: 0 | DR81: 165.8607292 | DV81: 0 | DW81: 0 | DX81: 0 | DY81: 2034.73985 | EA81: -16012.51795 | EC81: 0 | EE81: -1563.043433 | EF81: -95.4334701 | EH81: -2808.882661 | EI81: 0 | EJ81: 0 | EK81: 0 | EL81: 0 | EO81: 0 | EP81: -25857.26458 | ER81: 0 | ET81: 0 | EV81: 155 | FA81: 0 | FB81: -66.40645249 | FD81: -66.40645249 | FF81: 0 | FG81: 0 | FH81: 0 | FI81: 0
A82: 2305 | B82: Refaturamento - Regular | C82: Azul | D82: A3 | E82: Industrial | F82: Não se aplica | G82: APE | H82: Não se aplica | I82: Não se aplica | J82: LIVRE APE | K82: 2021-12-01 | L82: 0 | M82: 0 | N82: 8846.695 | O82: 8846.695 | P82: 0 | Q82: 0 | S82: 6.53 | V82: 57768.91835 | W82: 57768.91835 | X82: 57768.91835 | Y82: 0 | Z82: 0 | AA82: 0 | AB82: 0 | AC82: 0 | AD82: 0 | AE82: 0 | AI82: 222.3962903 | AJ82: 0 | AK82: 1661.442285 | AL82: 0 | AN82: 1459.004554 | AO82: 0 | AP82: 0 | AQ82: 0 | AR82: 0 | AU82: 0 | AV82: 0 | AW82: 0 | AZ82: 0 | BB82: 4467.359564 | BC82: 0 | BD82: 19049.64345 | BE82: 1163.098568 | BG82: 34233.35017 | BH82: 0 | BI82: 0 | BJ82: 0 | BK82: 0 | BL82: 0 | BV82: 54446.09219 | CI82: 57768.951 | CJ82: 0.002650000002 | CO82: 0 | CP82: 0 | CR82: -4425.382317 | CS82: 0 | CT82: 0 | CU82: 0 | CV82: 0 | CZ82: 0 | DA82: 0 | DB82: 0 | DE82: -95.20340289 | DF82: -1559.27531 | DG82: -2802.111118 | DH82: 0 | DI82: 0 | DK82: 0 | DL82: 7.993583456 | DN82: 0 | DO82: 0 | DP82: 23.21393082 | DQ82: 0 | DR82: -31.60213127 | DV82: 0 | DW82: 0 | DX82: 0 | DY82: -4423.3475 | EA82: 4423.3475 | EC82: 0 | EE82: 1563.043433 | EF82: 95.4334701 | EH82: 2808.882661 | EI82: 0 | EJ82: 0 | EK82: 0 | EL82: 0 | EO82: 0 | EP82: 0 | ER82: 0 | ET82: 0 | EV82: 155 | FA82: 0 | FB82: -66.40645249 | FD82: -66.40645249 | FF82: 0 | FG82: 0 | FH82: 0 | FI82: 0
A83: 2310 | B83: Regular | C83: Azul | D83: A3 | E83: Industrial | F83: Não se aplica | G83: Fonte incentivada | H83: Não se aplica | I83: Não se aplica | J83: LIVRE | K83: 2021-12-01 | L83: 0 | M83: 0 | N83: 10300.243 | O83: 10300.243 | P83: 0 | Q83: 0 | S83: 34.28 | V83: 353092.33 | W83: 353092.33 | X83: 369366.714 | Y83: 0 | Z83: 153985.5679 | AA83: 0 | AB83: 0 | AC83: 0 | AD83: 0 | AE83: 0 | AI83: 258.936906 | AJ83: 0 | AK83: 2087.050922 | AL83: 101605.1966 | AN83: 1698.724942 | AO83: 0 | AP83: 0 | AQ83: 0 | AR83: 0 | AU83: 0 | AV83: 8049.42743 | AW83: 5374.643422 | AZ83: 0 | BB83: 5201.364925 | BC83: 0 | BD83: 22179.57741 | BE83: 1354.200397 | BG83: 39858.02896 | BH83: 0 | BI83: 32477.63 | BJ83: 0 | BK83: 94525.36 | BL83: 3 | BV83: 63391.80677 | CI83: 369366.6064 | CJ83: 16274.24636 | CO83: 16274.38394 | CP83: 0 | CR83: -2230.786667 | CS83: 0 | CT83: 0 | CU83: 0 | CV83: 0 | CZ83: 0 | DA83: 0 | DB83: 0 | DE83: -110.8457095 | DF83: -1815.470591 | DG83: -3262.509381 | DH83: 0 | DI83: -3121.003127 | DK83: 0 | DL83: 9.306961757 | DN83: 0 | DO83: 6042.707106 | DP83: 27.02807415 | DQ83: 0 | DR83: -193.1123222 | DV83: 0 | DW83: 0 | DX83: 0 | DY83: -2369.05589 | EA83: 18643.43983 | EC83: 0 | EE83: 1819.857832 | EF83: 111.1135777 | EH83: 3270.393516 | EI83: 0 | EJ83: 0 | EK83: 0 | EL83: 0 | EO83: 0 | EP83: 30105.71841 | ER83: 0 | ET83: 0 | EV83: 155 | FA83: 0 | FB83: -66.40645249 | FD83: -66.40645249 | FF83: 0 | FG83: 0 | FH83: 0 | FI83: 0
A84: 1308 | B84: Regular | C84: Azul | D84: A3 | E84: Industrial | F84: Não se aplica | G84: Não se aplica | H84: Não se aplica | I84: Não se aplica | J84: CATIVO | K84: 2022-01-01 | L84: 0 | M84: 0 | N84: 0 | O84: 0 | P84: 0 | Q84: 0 | AA84: 0 | AZ84: 0 | BI84: 11856.79 | BJ84: 54616.77 | BK84: 390154.35 | BL84: 5 | CJ84: -0.03 | CO84: 0 | CP84: 0 | CQ84: 31 | DK84: 0 | EV84: 155 | FA84: 0 | FB84: -66.40645249 | FD84: -66.40645249 | FF84: 0 | FG84: 0 | FH84: 0 | FI84: 0
A85: 1309 | B85: Refaturamento - Regular | C85: Azul | D85: A3 | E85: Industrial | F85: Não se aplica | G85: Não se aplica | H85: Não se aplica | I85: Não se aplica | J85: CATIVO | K85: 2022-01-01 | L85: 0 | M85: 0 | N85: 0 | O85: 0 | P85: 0 | Q85: 0 | AA85: 0 | AZ85: 0 | BI85: 155.3 | BJ85: 715.37 | BK85: 5110.29 | BL85: 0 | CJ85: -0.03 | CO85: 0 | CP85: 0 | CQ85: 31 | DK85: 0 | EV85: 155 | FA85: 0 | FB85: -66.40645249 | FD85: -66.40645249 | FF85: 0 | FG85: 0 | FH85: 0 | FI85: 0
A86: 2353 | B86: Regular | C86: Azul | D86: A3 | E86: Industrial | F86: Não se aplica | G86: Não se aplica | H86: Não se aplica | I86: Não se aplica | J86: LIVRE | K86: 2022-01-01 | L86: 0 | M86: 0 | N86: 16015.738 | O86: 16015.738 | P86: 0 | Q86: 0 | S86: 34.28 | V86: 549019.4986 | W86: 549019.4986 | X86: 574324.3647 | Y86: 0 | Z86: 239430.5174 | AA86: 0 | AB86: 0 | AC86: 0 | AD86: 0 | AE86: 0 | AI86: 402.6182339 | AJ86: 0 | AK86: 3245.133223 | AL86: 157984.8366 | AN86: 2641.329297 | AO86: 0 | AP86: 0 | AQ86: 0 | AR86: 0 | AU86: 0 | AV86: 12515.96887 | AW86: 8356.975743 | AZ86: 0 | BB86: 8087.546856 | BC86: 0 | BD86: 34486.7884 | BE86: 2105.631756 | BG86: 61974.82418 | BH86: 0 | BI86: 72086.95 | BJ86: 0 | BK86: 423100.98 | BL86: 5 | BV86: 98567.24434 | CI86: 574324.4364 | CJ86: 25304.90776 | CO86: 25304.86604 | CP86: 0 | CQ86: 31 | CR86: -3468.6264 | CS86: 0 | CT86: 0 | CU86: 0 | CV86: 0 | CZ86: 0 | DA86: 0 | DB86: 0 | DE86: -172.3528117 | DF86: -2822.855862 | DG86: -5072.841046 | DH86: 0 | DI86: -4852.814481 | DK86: 0 | DL86: 14.47129559 | DN86: 0 | DO86: 9395.740841 | DP86: 42.02566427 | DQ86: 0 | DR86: -300.2682904 | DV86: 0 | DW86: 0 | DX86: 0 | DY86: -3683.61974 | EA86: 28988.48578 | EC86: 0 | EE86: 2829.677536 | EF86: 172.7693171 | EH86: 5085.100003 | EI86: 0 | EJ86: 0 | EK86: 0 | EL86: 0 | EO86: 0 | EP86: 46811.06051 | ER86: 0 | ET86: 0 | EV86: 155 | FA86: 0 | FB86: -66.40645249 | FD86: -66.40645249 | FF86: 0 | FG86: 0 | FH86: 0 | FI86: 0
A87: 2354 | B87: Refaturamento - Regular | C87: Azul | D87: A3 | E87: Industrial | F87: Não se aplica | G87: Não se aplica | H87: Não se aplica | I87: Não se aplica | J87: LIVRE | K87: 2022-01-01 | L87: 0 | M87: 0 | N87: -10539.724 | O87: -10539.724 | P87: 0 | Q87: 0 | S87: 34.28 | V87: -361301.7387 | W87: -361301.7387 | X87: -377954.5026 | Y87: 0 | Z87: -157565.7375 | AA87: 0 | AB87: 0 | AC87: 0 | AD87: 0 | AE87: 0 | AI87: -264.9571979 | AJ87: 0 | AK87: -2135.574927 | AL87: -103967.5208 | AN87: -1738.220354 | AO87: 0 | AP87: 0 | AQ87: 0 | AR87: 0 | AU87: 0 | AV87: -8236.576892 | AW87: -5499.604065 | AZ87: 0 | BB87: -5322.296837 | BC87: 0 | BD87: -22695.25334 | BE87: -1385.685602 | BG87: -40784.72949 | BH87: 0 | BI87: 0 | BJ87: 0 | BK87: 0 | BL87: 0 | BV87: -64865.66843 | CI87: -377954.3592 | CJ87: -16652.65048 | CO87: -16652.76392 | CP87: 0 | CQ87: 31 | CR87: 2282.652533 | CS87: 0 | CT87: 0 | CU87: 0 | CV87: 0 | CZ87: 0 | DA87: 0 | DB87: 0 | DE87: 113.422876 | DF87: 1857.680344 | DG87: 3338.362836 | DH87: 0 | DI87: 3193.566556 | DK87: 0 | DL87: -9.523348934 | DN87: 0 | DO87: -6183.200252 | DP87: -27.65647779 | DQ87: 0 | DR87: 197.6021902 | DV87: 0 | DW87: 0 | DX87: 0 | DY87: 2424.13652 | EA87: -19076.90044 | EC87: 0 | EE87: -1862.169588 | EF87: -113.6969722 | EH87: -3346.430276 | EI87: 0 | EJ87: 0 | EK87: 0 | EL87: 0 | EO87: 0 | EP87: -30805.67739 | ER87: 0 | ET87: 0 | EV87: 155 | FA87: 0 | FB87: -66.40645249 | FD87: -66.40645249 | FF87: 0 | FG87: 0 | FH87: 0 | FI87: 0
A88: 2372 | B88: Refaturamento - Regular | C88: Azul | D88: A3 | E88: Industrial | F88: Não se aplica | G88: APE | H88: Não se aplica | I88: Não se aplica | J88: LIVRE APE | K88: 2022-01-01 | L88: 0 | M88: 0 | N88: 10539.724 | O88: 10539.724 | P88: 0 | Q88: 0 | S88: 6.53 | V88: 68824.39772 | W88: 68824.39772 | X88: 68824.39772 | Y88: 0 | Z88: 0 | AA88: 0 | AB88: 0 | AC88: 0 | AD88: 0 | AE88: 0 | AI88: 264.9571979 | AJ88: 0 | AK88: 1979.39944 | AL88: 0 | AN88: 1738.220354 | AO88: 0 | AP88: 0 | AQ88: 0 | AR88: 0 | AU88: 0 | AV88: 0 | AW88: 0 | AZ88: 0 | BB88: 5322.296837 | BC88: 0 | BD88: 22695.25334 | BE88: 1385.685602 | BG88: 40784.72949 | BH88: 0 | BI88: 0 | BJ88: 0 | BK88: 0 | BL88: 0 | BV88: 64865.66843 | CI88: 68824.3716 | CJ88: -0.05611999999 | CO88: 0 | CP88: 0 | CQ88: 31 | CR88: -5272.286229 | CS88: 0 | CT88: 0 | CU88: 0 | CV88: 0 | CZ88: 0 | DA88: 0 | DB88: 0 | DE88: -113.422876 | DF88: -1857.680344 | DG88: -3338.362836 | DH88: 0 | DI88: 0 | DK88: 0 | DL88: 9.523348934 | DN88: 0 | DO88: 0 | DP88: 27.65647779 | DQ88: 0 | DR88: -37.64996322 | DV88: 0 | DW88: 0 | DX88: 0 | DY88: -5269.862 | EA88: 5269.862 | EC88: 0 | EE88: 1862.169588 | EF88: 113.6969722 | EH88: 3346.430276 | EI88: 0 | EJ88: 0 | EK88: 0 | EL88: 0 | EO88: 0 | EP88: 0 | ER88: 0 | ET88: 0 | EV88: 155 | FA88: 0 | FB88: -66.40645249 | FD88: -66.40645249 | FF88: 0 | FG88: 0 | FH88: 0 | FI88: 0
A89: 2377 | B89: Regular | C89: Azul | D89: A3 | E89: Industrial | F89: Não se aplica | G89: Fonte incentivada | H89: Não se aplica | I89: Não se aplica | J89: LIVRE | K89: 2022-01-01 | L89: 0 | M89: 0 | N89: 7118.029 | O89: 7118.029 | P89: 0 | Q89: 0 | S89: 34.28 | V89: 244006.0341 | W89: 244006.0341 | X89: 255252.5199 | Y89: 0 | Z89: 106412.4155 | AA89: 0 | AB89: 0 | AC89: 0 | AD89: 0 | AE89: 0 | AI89: 178.9395072 | AJ89: 0 | AK89: 1442.265875 | AL89: 70214.72559 | AN89: 1173.91147 | AO89: 0 | AP89: 0 | AQ89: 0 | AR89: 0 | AU89: 0 | AV89: 5562.592832 | AW89: 3714.171379 | AZ89: 0 | BB89: 3594.426498 | BC89: 0 | BD89: 15327.29619 | BE89: 935.826242 | BG89: 27544.0692 | BH89: 0 | BI89: 20377.19 | BJ89: 0 | BK89: 27017.6 | BL89: 2 | BV89: 43807.19163 | CI89: 255252.5558 | CJ89: 11246.49168 | CO89: 11246.48582 | CP89: 0 | CQ89: 31 | CR89: -1541.595105 | CS89: 0 | CT89: 0 | CU89: 0 | CV89: 0 | CZ89: 0 | DA89: 0 | DB89: 0 | DE89: -76.6004234 | DF89: -1254.589073 | DG89: -2254.571702 | DH89: 0 | DI89: -2156.783172 | DK89: 0 | DL89: 6.431617554 | DN89: 0 | DO89: 4175.839776 | DP89: 18.67787154 | DQ89: 0 | DR89: -133.4511341 | DV89: 0 | DW89: 0 | DX89: 0 | DY89: -1637.14667 | EA89: 12883.63249 | EC89: 0 | EE89: 1257.620895 | EF89: 76.78553491 | EH89: 2260.020068 | EI89: 0 | EJ89: 0 | EK89: 0 | EL89: 0 | EO89: 0 | EP89: 20804.69138 | ER89: 0 | ET89: 0 | EV89: 155 | FA89: 0 | FB89: -66.40645249 | FD89: -66.40645249 | FF89: 0 | FG89: 0 | FH89: 0 | FI89: 0
A90: 1471 | B90: Regular | C90: Azul | D90: A3 | E90: Industrial | F90: Não se aplica | G90: Não se aplica | H90: Não se aplica | I90: Não se aplica | J90: CATIVO | K90: 2022-02-01 | L90: 0 | M90: 0 | N90: 0 | O90: 0 | P90: 0 | Q90: 0 | AA90: 0 | AZ90: 0 | BI90: 15762.13 | BJ90: 72601.3 | BK90: 398011.53 | BL90: 5 | CJ90: -0.03 | CO90: 0 | CP90: 0 | CQ90: 29 | DK90: 0 | EV90: 155 | FA90: 0 | FB90: -66.40645249 | FD90: -66.40645249 | FF90: 0 | FG90: 0 | FH90: 0 | FI90: 0
A91: 2420 | B91: Regular | C91: Azul | D91: A3 | E91: Industrial | F91: Não se aplica | G91: Não se aplica | H91: Não se aplica | I91: Não se aplica | J91: LIVRE | K91: 2022-02-01 | L91: 0 | M91: 0 | N91: 12271.759 | O91: 12271.759 | P91: 0 | Q91: 0 | S91: 34.28 | V91: 420675.8985 | W91: 420675.8985 | X91: 440065.2777 | Y91: 0 | Z91: 183459.1454 | AA91: 0 | AB91: 0 | AC91: 0 | AD91: 0 | AE91: 0 | AI91: 308.498674 | AJ91: 0 | AK91: 2486.522496 | AL91: 121052.9194 | AN91: 2023.869058 | AO91: 0 | AP91: 0 | AQ91: 0 | AR91: 0 | AU91: 0 | AV91: 9590.126516 | AW91: 6403.375997 | AZ91: 0 | BB91: 6196.931163 | BC91: 0 | BD91: 26424.8551 | BE91: 1613.40086 | BG91: 47487.04721 | BH91: 0 | BI91: 60106.63 | BJ91: 0 | BK91: 352784.6 | BL91: 4 | BV91: 75525.30316 | CI91: 440065.3136 | CJ91: 19389.38508 | CO91: 19389.37922 | CP91: 0 | CQ91: 29 | CR91: -2657.769954 | CS91: 0 | CT91: 0 | CU91: 0 | CV91: 0 | CZ91: 0 | DA91: 0 | DB91: 0 | DE91: -132.0621109 | DF91: -2162.960385 | DG91: -3886.969353 | DH91: 0 | DI91: -3718.378122 | DK91: 0 | DL91: 11.08835895 | DN91: 0 | DO91: 7199.31028 | DP91: 32.20137741 | DQ91: 0 | DR91: -230.0749485 | DV91: 0 | DW91: 0 | DX91: 0 | DY91: -2822.50457 | EA91: 22211.88379 | EC91: 0 | EE91: 2168.187365 | EF91: 132.3812504 | EH91: 3896.362548 | EI91: 0 | EJ91: 0 | EK91: 0 | EL91: 0 | EO91: 0 | EP91: 35868.09756 | ER91: 0 | ET91: 0 | EV91: 155 | FA91: 0 | FB91: -66.40645249 | FD91: -66.40645249 | FF91: 0 | FG91: 0 | FH91: 0 | FI91: 0
A92: 2421 | B92: Refaturamento - Regular | C92: Azul | D92: A3 | E92: Industrial | F92: Não se aplica | G92: Não se aplica | H92: Não se aplica | I92: Não se aplica | J92: LIVRE | K92: 2022-02-01 | L92: 0 | M92: 0 | N92: -9096.851 | O92: -9096.851 | P92: 0 | Q92: 0 | S92: 34.28 | V92: -311840.0523 | W92: -311840.0523 | X92: -326213.0769 | Y92: 0 | Z92: -135995.2155 | AA92: 0 | AB92: 0 | AC92: 0 | AD92: 0 | AE92: 0 | AI92: -228.68494 | AJ92: 0 | AK92: -1843.217802 | AL92: -89734.51734 | AN92: -1500.260497 | AO92: 0 | AP92: 0 | AQ92: 0 | AR92: 0 | AU92: 0 | AV92: -7109.001406 | AW92: -4746.716208 | AZ92: 0 | BB92: -4593.682083 | BC92: 0 | BD92: -19588.30592 | BE92: -1195.987244 | BG92: -35201.3589 | BH92: 0 | BI92: 0 | BJ92: 0 | BK92: 0 | BL92: 0 | BV92: -55985.65207 | CI92: -326213.041 | CJ92: -14373.01872 | CO92: -14373.02458 | CP92: 0 | CQ92: 29 | CR92: 1970.160697 | CS92: 0 | CT92: 0 | CU92: 0 | CV92: 0 | CZ92: 0 | DA92: 0 | DB92: 0 | DE92: 97.89544805 | DF92: 1603.366587 | DG92: 2881.345783 | DH92: 0 | DI92: 2756.371905 | DK92: 0 | DL92: -8.219616213 | DN92: 0 | DO92: -5336.729064 | DP92: -23.87034591 | DQ92: 0 | DR92: 170.5507356 | DV92: 0 | DW92: 0 | DX92: 0 | DY92: 2092.27573 | EA92: -16465.30031 | EC92: 0 | EE92: -1607.24126 | EF92: -98.13202082 | EH92: -2888.308803 | EI92: 0 | EJ92: 0 | EK92: 0 | EL92: 0 | EO92: 0 | EP92: -26588.42462 | ER92: 0 | ET92: 0 | EV92: 155 | FA92: 0 | FB92: -66.40645249 | FD92: -66.40645249 | FF92: 0 | FG92: 0 | FH92: 0 | FI92: 0
A93: 2442 | B93: Refaturamento - Regular | C93: Azul | D93: A3 | E93: Industrial | F93: Não se aplica | G93: APE | H93: Não se aplica | I93: Não se aplica | J93: LIVRE APE | K93: 2022-02-01 | L93: 0 | M93: 0 | N93: 11106.028 | O93: 11106.028 | P93: 0 | Q93: 0 | S93: 6.53 | V93: 72522.36284 | W93: 72522.36284 | X93: 72522.36284 | Y93: 0 | Z93: 0 | AA93: 0 | AB93: 0 | AC93: 0 | AD93: 0 | AE93: 0 | AI93: 279.1934645 | AJ93: 0 | AK93: 2085.753441 | AL93: 0 | AN93: 1831.615698 | AO93: 0 | AP93: 0 | AQ93: 0 | AR93: 0 | AU93: 0 | AV93: 0 | AW93: 0 | AZ93: 0 | BB93: 5608.266184 | BC93: 0 | BD93: 23914.67927 | BE93: 1460.139098 | BG93: 42976.11092 | BH93: 0 | BI93: 0 | BJ93: 0 | BK93: 0 | BL93: 0 | BV93: 68350.92929 | CI93: 72522.3759 | CJ93: -0.01693999997 | CO93: 0 | CP93: 0 | CQ93: 29 | CR93: -5555.568484 | CS93: 0 | CT93: 0 | CU93: 0 | CV93: 0 | CZ93: 0 | DA93: 0 | DB93: 0 | DE93: -119.517137 | DF93: -1957.494325 | DG93: -3517.734537 | DH93: 0 | DI93: 0 | DK93: 0 | DL93: 10.03504266 | DN93: 0 | DO93: 0 | DP93: 29.14247249 | DQ93: 0 | DR93: -39.67291228 | DV93: 0 | DW93: 0 | DX93: 0 | DY93: -5553.014 | EA93: 5553.014 | EC93: 0 | EE93: 1962.224778 | EF93: 119.8059604 | EH93: 3526.235445 | EI93: 0 | EJ93: 0 | EK93: 0 | EL93: 0 | EO93: 0 | EP93: 0 | ER93: 0 | ET93: 0 | EV93: 155 | FA93: 0 | FB93: -66.40645249 | FD93: -66.40645249 | FF93: 0 | FG93: 0 | FH93: 0 | FI93: 0
A94: 2447 | B94: Regular | C94: Azul | D94: A3 | E94: Industrial | F94: Não se aplica | G94: Fonte incentivada | H94: Não se aplica | I94: Não se aplica | J94: LIVRE | K94: 2022-02-01 | L94: 0 | M94: 0 | N94: 10378.311 | O94: 10378.311 | P94: 0 | Q94: 0 | S94: 34.28 | V94: 355768.5011 | W94: 355768.5011 | X94: 372166.2325 | Y94: 0 | Z94: 155152.6612 | AA94: 0 | AB94: 0 | AC94: 0 | AD94: 0 | AE94: 0 | AI94: 260.8994506 | AJ94: 0 | AK94: 2102.869179 | AL94: 102375.2866 | AN94: 1711.599984 | AO94: 0 | AP94: 0 | AQ94: 0 | AR94: 0 | AU94: 0 | AV94: 8110.435962 | AW94: 5415.379128 | AZ94: 0 | BB94: 5240.787311 | BC94: 0 | BD94: 22347.68172 | BE94: 1364.464205 | BG94: 40160.12247 | BH94: 0 | BI94: 31625.58 | BJ94: 0 | BK94: 93571.96 | BL94: 3 | BV94: 63872.2684 | CI94: 372166.1966 | CJ94: 16397.66552 | CO94: 16397.73138 | CP94: 0 | CQ94: 29 | CR94: -2247.694332 | CS94: 0 | CT94: 0 | CU94: 0 | CV94: 0 | CZ94: 0 | DA94: 0 | DB94: 0 | DE94: -111.6858356 | DF94: -1829.230476 | DG94: -3287.236719 | DH94: 0 | DI94: -3144.657955 | DK94: 0 | DL94: 9.377501441 | DN94: 0 | DO94: 6088.506225 | DP94: 27.23292638 | DQ94: 0 | DR94: -194.5759665 | DV94: 0 | DW94: 0 | DX94: 0 | DY94: -2387.01153 | EA94: 18784.74291 | EC94: 0 | EE94: 1833.650969 | EF94: 111.955734 | EH94: 3295.180609 | EI94: 0 | EJ94: 0 | EK94: 0 | EL94: 0 | EO94: 0 | EP94: 30333.89684 | ER94: 0 | ET94: 0 | EV94: 155 | FA94: 0 | FB94: -66.40645249 | FD94: -66.40645249 | FF94: 0 | FG94: 0 | FH94: 0 | FI94: 0
A95: 2448 | B95: Refaturamento - Regular | C95: Azul | D95: A3 | E95: Industrial | F95: Não se aplica | G95: Fonte incentivada | H95: Não se aplica | I95: Não se aplica | J95: LIVRE | K95: 2022-02-01 | L95: 0 | M95: 0 | N95: -2009.177 | O95: -2009.177 | P95: 0 | Q95: 0 | S95: 34.28 | V95: -68874.58756 | W95: -68874.58756 | X95: -72049.08722 | Y95: 0 | Z95: -30036.59829 | AA95: 0 | AB95: 0 | AC95: 0 | AD95: 0 | AE95: 0 | AI95: -50.50852451 | AJ95: 0 | AK95: -407.1025033 | AL95: -19819.22407 | AN95: -331.3552003 | AO95: 0 | AP95: 0 | AQ95: 0 | AR95: 0 | AU95: 0 | AV95: -1570.13038 | AW95: -1048.383999 | AZ95: 0 | BB95: -1014.5841 | BC95: 0 | BD95: -4326.37335 | BE95: -264.1518546 | BG95: -7774.752018 | BH95: 0 | BI95: 0 | BJ95: 0 | BK95: 0 | BL95: 0 | BV95: -12365.27722 | CI95: -72049.1948 | CJ95: -3174.63724 | CO95: -3174.49966 | CP95: 0 | CQ95: 29 | CR95: 435.1397597 | CS95: 0 | CT95: 0 | CU95: 0 | CV95: 0 | CZ95: 0 | DA95: 0 | DB95: 0 | DE95: 21.62168894 | DF95: 354.1277381 | DG95: 636.3887543 | DH95: 0 | DI95: 608.786385 | DK95: 0 | DL95: -1.815426442 | DN95: 0 | DO95: -1178.697254 | DP95: -5.272126584 | DQ95: 0 | DR95: 37.66870705 | DV95: 0 | DW95: 0 | DX95: 0 | DY95: 462.11071 | EA95: -3636.61037 | EC95: 0 | EE95: -354.9835182 | EF95: -21.67393961 | EH95: -637.9266424 | EI95: 0 | EJ95: 0 | EK95: 0 | EL95: 0 | EO95: 0 | EP95: -5872.455339 | ER95: 0 | ET95: 0 | EV95: 155 | FA95: 0 | FB95: -66.40645249 | FD95: -66.40645249 | FF95: 0 | FG95: 0 | FH95: 0 | FI95: 0
A96: 1627 | B96: PROJETADO | C96: Azul | D96: A3 | E96: Industrial | F96: Não se aplica | G96: Não se aplica | H96: Não se aplica | I96: Não se aplica | J96: CATIVO | K96: 2022-03-01 | L96: 0 | M96: 0 | N96: 0 | O96: 0 | P96: 0 | Q96: 0 | AA96: 0 | AZ96: 0 | BI96: 15762.13 | BJ96: 72601.3 | BK96: 398011.53 | BL96: 5 | CJ96: -0.03 | CO96: 0 | CP96: 0 | CQ96: 31 | DK96: 0 | EV96: 155 | FA96: 0 | FB96: -66.40645249 | FD96: -66.40645249 | FF96: 0 | FG96: 0 | FH96: 0 | FI96: 0
A97: 2493 | B97: PROJETADO | C97: Azul | D97: A3 | E97: Industrial | F97: Não se aplica | G97: Não se aplica | H97: Não se aplica | I97: Não se aplica | J97: LIVRE | K97: 2022-03-01 | L97: 0 | M97: 0 | N97: 12271.759 | O97: 12271.759 | P97: 0 | Q97: 0 | S97: 34.28 | V97: 420675.8985 | W97: 420675.8985 | X97: 440065.2777 | Y97: 0 | Z97: 183459.1454 | AA97: 0 | AB97: 0 | AC97: 0 | AD97: 0 | AE97: 0 | AI97: 308.498674 | AJ97: 0 | AK97: 2486.522496 | AL97: 121052.9194 | AN97: 2023.869058 | AO97: 0 | AP97: 0 | AQ97: 0 | AR97: 0 | AU97: 0 | AV97: 9590.126516 | AW97: 6403.375997 | AZ97: 0 | BB97: 6196.931163 | BC97: 0 | BD97: 26424.8551 | BE97: 1613.40086 | BG97: 47487.04721 | BH97: 0 | BI97: 60106.63 | BJ97: 0 | BK97: 352784.6 | BL97: 4 | BV97: 75525.30316 | CI97: 440065.3136 | CJ97: 19389.38508 | CO97: 19389.37922 | CP97: 0 | CQ97: 31 | CR97: -2657.769954 | CS97: 0 | CT97: 0 | CU97: 0 | CV97: 0 | CZ97: 0 | DA97: 0 | DB97: 0 | DE97: -132.0621109 | DF97: -2162.960385 | DG97: -3886.969353 | DH97: 0 | DI97: -3718.378122 | DK97: 0 | DL97: 11.08835895 | DN97: 0 | DO97: 7199.31028 | DP97: 32.20137741 | DQ97: 0 | DR97: -230.0749485 | DV97: 0 | DW97: 0 | DX97: 0 | DY97: -2822.50457 | EA97: 22211.88379 | EC97: 0 | EE97: 2168.187365 | EF97: 132.3812504 | EH97: 3896.362548 | EI97: 0 | EJ97: 0 | EK97: 0 | EL97: 0 | EO97: 0 | EP97: 35868.09756 | ER97: 0 | ET97: 0 | EV97: 155 | FA97: 0 | FB97: -66.40645249 | FD97: -66.40645249 | FF97: 0 | FG97: 0 | FH97: 0 | FI97: 0
A98: 2494 | B98: PROJETADO | C98: Azul | D98: A3 | E98: Industrial | F98: Não se aplica | G98: Não se aplica | H98: Não se aplica | I98: Não se aplica | J98: LIVRE | K98: 2022-03-01 | L98: 0 | M98: 0 | N98: -9096.851 | O98: -9096.851 | P98: 0 | Q98: 0 | S98: 34.28 | V98: -311840.0523 | W98: -311840.0523 | X98: -326213.0769 | Y98: 0 | Z98: -135995.2155 | AA98: 0 | AB98: 0 | AC98: 0 | AD98: 0 | AE98: 0 | AI98: -228.68494 | AJ98: 0 | AK98: -1843.217802 | AL98: -89734.51734 | AN98: -1500.260497 | AO98: 0 | AP98: 0 | AQ98: 0 | AR98: 0 | AU98: 0 | AV98: -7109.001406 | AW98: -4746.716208 | AZ98: 0 | BB98: -4593.682083 | BC98: 0 | BD98: -19588.30592 | BE98: -1195.987244 | BG98: -35201.3589 | BH98: 0 | BI98: 0 | BJ98: 0 | BK98: 0 | BL98: 0 | BV98: -55985.65207 | CI98: -326213.041 | CJ98: -14373.01872 | CO98: -14373.02458 | CP98: 0 | CQ98: 31 | CR98: 1970.160697 | CS98: 0 | CT98: 0 | CU98: 0 | CV98: 0 | CZ98: 0 | DA98: 0 | DB98: 0 | DE98: 97.89544805 | DF98: 1603.366587 | DG98: 2881.345783 | DH98: 0 | DI98: 2756.371905 | DK98: 0 | DL98: -8.219616213 | DN98: 0 | DO98: -5336.729064 | DP98: -23.87034591 | DQ98: 0 | DR98: 170.5507356 | DV98: 0 | DW98: 0 | DX98: 0 | DY98: 2092.27573 | EA98: -16465.30031 | EC98: 0 | EE98: -1607.24126 | EF98: -98.13202082 | EH98: -2888.308803 | EI98: 0 | EJ98: 0 | EK98: 0 | EL98: 0 | EO98: 0 | EP98: -26588.42462 | ER98: 0 | ET98: 0 | EV98: 155 | FA98: 0 | FB98: -66.40645249 | FD98: -66.40645249 | FF98: 0 | FG98: 0 | FH98: 0 | FI98: 0
A99: 2515 | B99: PROJETADO | C99: Azul | D99: A3 | E99: Industrial | F99: Não se aplica | G99: APE | H99: Não se aplica | I99: Não se aplica | J99: LIVRE APE | K99: 2022-03-01 | L99: 0 | M99: 0 | N99: 11106.028 | O99: 11106.028 | P99: 0 | Q99: 0 | S99: 6.53 | V99: 72522.36284 | W99: 72522.36284 | X99: 72522.36284 | Y99: 0 | Z99: 0 | AA99: 0 | AB99: 0 | AC99: 0 | AD99: 0 | AE99: 0 | AI99: 279.1934645 | AJ99: 0 | AK99: 2085.753441 | AL99: 0 | AN99: 1831.615698 | AO99: 0 | AP99: 0 | AQ99: 0 | AR99: 0 | AU99: 0 | AV99: 0 | AW99: 0 | AZ99: 0 | BB99: 5608.266184 | BC99: 0 | BD99: 23914.67927 | BE99: 1460.139098 | BG99: 42976.11092 | BH99: 0 | BI99: 0 | BJ99: 0 | BK99: 0 | BL99: 0 | BV99: 68350.92929 | CI99: 72522.3759 | CJ99: -0.01693999997 | CO99: 0 | CP99: 0 | CQ99: 31 | CR99: -5555.568484 | CS99: 0 | CT99: 0 | CU99: 0 | CV99: 0 | CZ99: 0 | DA99: 0 | DB99: 0 | DE99: -119.517137 | DF99: -1957.494325 | DG99: -3517.734537 | DH99: 0 | DI99: 0 | DK99: 0 | DL99: 10.03504266 | DN99: 0 | DO99: 0 | DP99: 29.14247249 | DQ99: 0 | DR99: -39.67291228 | DV99: 0 | DW99: 0 | DX99: 0 | DY99: -5553.014 | EA99: 5553.014 | EC99: 0 | EE99: 1962.224778 | EF99: 119.8059604 | EH99: 3526.235445 | EI99: 0 | EJ99: 0 | EK99: 0 | EL99: 0 | EO99: 0 | EP99: 0 | ER99: 0 | ET99: 0 | EV99: 155 | FA99: 0 | FB99: -66.40645249 | FD99: -66.40645249 | FF99: 0 | FG99: 0 | FH99: 0 | FI99: 0
A100: 2520 | B100: PROJETADO | C100: Azul | D100: A3 | E100: Industrial | F100: Não se aplica | G100: Fonte incentivada | H100: Não se aplica | I100: Não se aplica | J100: LIVRE | K100: 2022-03-01 | L100: 0 | M100: 0 | N100: 10378.311 | O100: 10378.311 | P100: 0 | Q100: 0 | S100: 34.28 | V100: 355768.5011 | W100: 355768.5011 | X100: 372166.2325 | Y100: 0 | Z100: 155152.6612 | AA100: 0 | AB100: 0 | AC100: 0 | AD100: 0 | AE100: 0 | AI100: 260.8994506 | AJ100: 0 | AK100: 2102.869179 | AL100: 102375.2866 | AN100: 1711.599984 | AO100: 0 | AP100: 0 | AQ100: 0 | AR100: 0 | AU100: 0 | AV100: 8110.435962 | AW100: 5415.379128 | AZ100: 0 | BB100: 5240.787311 | BC100: 0 | BD100: 22347.68172 | BE100: 1364.464205 | BG100: 40160.12247 | BH100: 0 | BI100: 31625.58 | BJ100: 0 | BK100: 93571.96 | BL100: 3 | BV100: 63872.2684 | CI100: 372166.1966 | CJ100: 16397.66552 | CO100: 16397.73138 | CP100: 0 | CQ100: 31 | CR100: -2247.694332 | CS100: 0 | CT100: 0 | CU100: 0 | CV100: 0 | CZ100: 0 | DA100: 0 | DB100: 0 | DE100: -111.6858356 | DF100: -1829.230476 | DG100: -3287.236719 | DH100: 0 | DI100: -3144.657955 | DK100: 0 | DL100: 9.377501441 | DN100: 0 | DO100: 6088.506225 | DP100: 27.23292638 | DQ100: 0 | DR100: -194.5759665 | DV100: 0 | DW100: 0 | DX100: 0 | DY100: -2387.01153 | EA100: 18784.74291 | EC100: 0 | EE100: 1833.650969 | EF100: 111.955734 | EH100: 3295.180609 | EI100: 0 | EJ100: 0 | EK100: 0 | EL100: 0 | EO100: 0 | EP100: 30333.89684 | ER100: 0 | ET100: 0 | EV100: 155 | FA100: 0 | FB100: -66.40645249 | FD100: -66.40645249 | FF100: 0 | FG100: 0 | FH100: 0 | FI100: 0
A101: 2521 | B101: PROJETADO | C101: Azul | D101: A3 | E101: Industrial | F101: Não se aplica | G101: Fonte incentivada | H101: Não se aplica | I101: Não se aplica | J101: LIVRE | K101: 2022-03-01 | L101: 0 | M101: 0 | N101: -2009.177 | O101: -2009.177 | P101: 0 | Q101: 0 | S101: 34.28 | V101: -68874.58756 | W101: -68874.58756 | X101: -72049.08722 | Y101: 0 | Z101: -30036.59829 | AA101: 0 | AB101: 0 | AC101: 0 | AD101: 0 | AE101: 0 | AI101: -50.50852451 | AJ101: 0 | AK101: -407.1025033 | AL101: -19819.22407 | AN101: -331.3552003 | AO101: 0 | AP101: 0 | AQ101: 0 | AR101: 0 | AU101: 0 | AV101: -1570.13038 | AW101: -1048.383999 | AZ101: 0 | BB101: -1014.5841 | BC101: 0 | BD101: -4326.37335 | BE101: -264.1518546 | BG101: -7774.752018 | BH101: 0 | BI101: 0 | BJ101: 0 | BK101: 0 | BL101: 0 | BV101: -12365.27722 | CI101: -72049.1948 | CJ101: -3174.63724 | CO101: -3174.49966 | CP101: 0 | CQ101: 31 | CR101: 435.1397597 | CS101: 0 | CT101: 0 | CU101: 0 | CV101: 0 | CZ101: 0 | DA101: 0 | DB101: 0 | DE101: 21.62168894 | DF101: 354.1277381 | DG101: 636.3887543 | DH101: 0 | DI101: 608.786385 | DK101: 0 | DL101: -1.815426442 | DN101: 0 | DO101: -1178.697254 | DP101: -5.272126584 | DQ101: 0 | DR101: 37.66870705 | DV101: 0 | DW101: 0 | DX101: 0 | DY101: 462.11071 | EA101: -3636.61037 | EC101: 0 | EE101: -354.9835182 | EF101: -21.67393961 | EH101: -637.9266424 | EI101: 0 | EJ101: 0 | EK101: 0 | EL101: 0 | EO101: 0 | EP101: -5872.455339 | ER101: 0 | ET101: 0 | EV101: 155 | FA101: 0 | FB101: -66.40645249 | FD101: -66.40645249 | FF101: 0 | FG101: 0 | FH101: 0 | FI101: 0
A102: 28 | B102: Regular | C102: Azul | D102: A3 | E102: Industrial | F102: Não se aplica | G102: Não se aplica | H102: Não se aplica | I102: Ponta | J102: CATIVO | K102: 2021-04-01 | L102: 6274 | M102: 6274 | N102: 293.605 | O102: 293.605 | P102: 293.605 | Q102: 293.605 | R102: 30.16 | S102: 34.28 | T102: 363.01 | U102: 189223.84 | V102: 116646.3305 | W102: 305870.1704 | X102: 295646.4628 | Y102: 0 | Z102: 4389.307383 | AA102: 0 | AB102: 0 | AC102: 4200.540244 | AD102: 0 | AE102: 131499.2785 | AF102: 100476.9521 | AG102: 2968.971754 | AH102: 0 | AI102: 7.380910363 | AJ102: 0 | AK102: 703.8222904 | AL102: 2896.222326 | AN102: 48.42158933 | AO102: 8986.720098 | AP102: 44535.85981 | AQ102: 0 | AR102: 0 | AS102: 1.09828887e-10 | AT102: 0 | AU102: 0 | AV102: 229.446251 | AW102: 153.2024227 | AX102: 0 | AY102: -355.4920992 | AZ102: 0 | BB102: 8511.486893 | BC102: 13622.64713 | BD102: 632.2214754 | BE102: 38.6010318 | BF102: 1450.113065 | BG102: 1136.139855 | BH102: 0 | BI102: 0 | BJ102: 0 | BK102: 0 | BL102: 0 | BV102: 103734.0275 | CI102: 295648.4696 | CJ102: -10221.73085 | CO102: -10954.7841 | CP102: 731.07645 | CQ102: 30 | CR102: -16492.59783 | CS102: 1.273292582e-11 | CT102: -9611.832621 | CU102: 0 | CV102: 0 | CW102: 0 | CX102: 0 | CY102: 0 | CZ102: 0 | DA102: 0 | DB102: 0 | DC102: -8224.365516 | DD102: -118.6964735 | DE102: -3.159620074 | DF102: -51.74938522 | DG102: -92.99674454 | DH102: 0 | DI102: -88.96315584 | DK102: 0 | DL102: 0.2652918486 | DM102: 1525.884616 | DN102: 0 | DO102: 172.2453558 | DP102: 0.7704262619 | DQ102: 0 | DR102: -178.239624 | DU102: 131499.2785 | DV102: 0 | DW102: 0 | DX102: 0 | DY102: -25100.78915 | DZ102: -6899.7175 | EA102: 14146.00505 | EB102: 7630.79395 | EC102: -15347.19442 | ED102: 8244.240402 | EE102: 51.87444206 | EF102: 3.167255567 | EG102: 118.9833138 | EH102: 93.22147916 | EI102: 11335.33368 | EJ102: 2287.313447 | EK102: 0 | EL102: 0 | EM102: 0 | EN102: 0 | EO102: 0 | EP102: 858.1534876 | EQ102: 1039.929097 | ER102: 0 | ES102: -376.4227731 | ET102: 0 | EU102: -12.97291733 | EV102: 155 | EW102: 0 | EX102: 0 | EY102: 0 | FA102: 0 | FB102: -66.40645249 | FD102: -66.40645249 | FF102: 0 | FG102: 0 | FH102: 0 | FI102: 0
A103: 1746 | B103: Regular | C103: Azul | D103: A3 | E103: Industrial | F103: Não se aplica | G103: Não se aplica | H103: Não se aplica | I103: Ponta | J103: LIVRE | K103: 2021-04-01 | L103: 32410 | M103: 32410 | N103: 0 | O103: 0 | P103: 0 | Q103: 0 | R103: 30.16 | U103: 977485.6 | W103: 977485.6 | X103: 918499.4 | Y103: 0 | Z103: 0 | AA103: 0 | AB103: 0 | AC103: 21698.99734 | AD103: 0 | AE103: 679294.1688 | AI103: 0 | AJ103: 0 | AK103: 0 | AL103: 0 | AN103: 0 | AO103: 46423.27038 | AP103: 230061.7176 | AQ103: 0 | AR103: 0 | AU103: 0 | AV103: 0 | AW103: 0 | AZ103: 0 | BB103: 0 | BC103: 70371.37287 | BD103: 0 | BE103: 0 | BG103: 0 | BH103: 0 | BI103: 0 | BJ103: 0 | BK103: 0 | BL103: 0 | BV103: 0 | CI103: 918499.4 | CJ103: -58986.23 | CO103: -58986.2 | CP103: 0 | CQ103: 30 | CR103: -49652.45382 | CS103: 6.548361853e-11 | CT103: -49652.45382 | CU103: 0 | CV103: 0 | CZ103: 0 | DA103: 0 | DB103: 0 | DE103: 0 | DF103: 0 | DG103: 0 | DH103: 0 | DI103: 0 | DK103: 0 | DL103: 0 | DN103: 0 | DO103: 0 | DP103: 0 | DQ103: 0 | DR103: -534.5381908 | DU103: 679294.1688 | DW103: 0 | DX103: 0 | DY103: -129315.9 | EA103: 70329.7 | EC103: -79279.9763 | EE103: 0 | EF103: 0 | EH103: 0 | EI103: 58555.65263 | EJ103: 11815.72024 | EK103: 0 | EL103: 0 | EO103: 0 | EP103: 0 | ER103: 0 | ET103: 0 | EV103: 155 | FA103: 0 | FB103: -66.40645249 | FD103: -66.40645249 | FF103: 0 | FG103: 0 | FH103: 0 | FI103: 0
A104: 1770 | B104: Regular | C104: Azul | D104: A3 | E104: Industrial | F104: Não se aplica | G104: Fonte incentivada | H104: Não se aplica | I104: Ponta | J104: LIVRE | K104: 2021-04-01 | L104: 1210 | M104: 607.3255837 | N104: 0 | O104: 0 | P104: 0 | Q104: 0 | R104: 30.16 | U104: 36493.6 | W104: 36493.6 | X104: 34291.4 | Y104: 0 | Z104: 0 | AA104: 0 | AB104: 0 | AC104: 810.1137543 | AD104: 0 | AE104: 25360.87455 | AI104: 0 | AJ104: 0 | AK104: 0 | AL104: 0 | AN104: 0 | AO104: 1733.173624 | AP104: 8589.160085 | AQ104: 0 | AR104: 0 | AU104: 0 | AV104: 0 | AW104: 0 | AZ104: 0 | BB104: 0 | BC104: 2627.255822 | BD104: 0 | BE104: 0 | BG104: 0 | BH104: 0 | BI104: 0 | BJ104: 0 | BK104: 0 | BL104: 0 | BN104: 17079.79296 | BV104: 0 | CI104: 17211.7322 | CJ104: -1105.237404 | CO104: -2202.2 | CP104: 0 | CQ104: 30 | CR104: -1853.732463 | CS104: 2.273736754e-12 | CT104: -1853.732463 | CU104: 0 | CV104: 0 | CZ104: 0 | DA104: 0 | DB104: 0 | DE104: 0 | DF104: 0 | DG104: 0 | DH104: 0 | DI104: 0 | DK104: 0 | DL104: 0 | DN104: 0 | DO104: 0 | DP104: 0 | DQ104: 0 | DR104: -19.95653227 | DU104: 25360.87455 | DW104: 0 | DX104: 0 | DY104: -4827.9 | EA104: 2625.7 | EC104: -2959.851013 | EE104: 0 | EF104: 0 | EH104: 0 | EI104: 2186.125877 | EJ104: 441.1299443 | EK104: 0 | EL104: 0 | EO104: 0 | EP104: 0 | ER104: 0 | ET104: 0 | EV104: 155 | FA104: 0 | FB104: -66.40645249 | FD104: -66.40645249 | FF104: 0 | FG104: 0 | FH104: 0 | FI104: 0
A105: 156 | B105: Regular | C105: Azul | D105: A3 | E105: Industrial | F105: Não se aplica | G105: Não se aplica | H105: Não se aplica | I105: Ponta | J105: CATIVO | K105: 2021-05-01 | L105: 6455 | M105: 6455 | N105: 309.166 | O105: 309.166 | P105: 309.166 | Q105: 309.166 | R105: 30.16 | S105: 34.28 | T105: 363.01 | U105: 194682.8 | V105: 122828.5601 | W105: 317511.3601 | X105: 307021.5658 | Y105: 0 | Z105: 4621.939703 | AA105: 0 | AB105: 0 | AC105: 4321.722549 | AD105: 0 | AE105: 135292.9299 | AF105: 105802.2083 | AG105: 3126.3266 | AH105: 0 | AI105: 7.772096978 | AJ105: 0 | AK105: 741.124716 | AL105: 3049.721468 | AN105: 50.98792284 | AO105: 9245.979954 | AP105: 45820.68458 | AQ105: 0 | AR105: 0 | AS105: 1.156497937e-10 | AT105: 0 | AU105: 0 | AV105: 241.6068515 | AW105: 161.3221172 | AX105: 0 | AY105: -374.3331018 | AZ105: 0 | BB105: 8962.593814 | BC105: 14015.64986 | BD105: 665.7290736 | BE105: 40.64687794 | BF105: 1526.968737 | BG105: 1196.355016 | BH105: 0 | BI105: 0 | BJ105: 0 | BK105: 0 | BL105: 0 | BV105: 109231.908 | CI105: 307023.1712 | CJ105: -10488.21894 | CO105: -11259.61772 | CP105: 769.82334 | CQ105: 31 | CR105: -17134.57072 | CS105: 1.273292582e-11 | CT105: -9889.126485 | CU105: 0 | CV105: 0 | CW105: 0 | CX105: 0 | CY105: 0 | CZ105: 0 | DA105: 0 | DB105: 0 | DC105: -8660.255068 | DD105: -124.9873604 | DE105: -3.327079238 | DF105: -54.49209118 | DG105: -97.92555141 | DH105: 0 | DI105: -93.67818341 | DK105: 0 | DL105: 0.2793522579 | DM105: 1606.756162 | DN105: 0 | DO105: 181.3743215 | DP105: 0.8112586832 | DQ105: 0 | DR105: -185.1872549 | DU105: 135292.9299 | DV105: 0 | DW105: 0 | DX105: 0 | DY105: -25826.55818 | DZ105: -7265.401 | EA105: 14566.94046 | EB105: 8035.22434 | EC105: -15789.949 | ED105: 8681.183318 | EE105: 54.623776 | EF105: 3.335119411 | EG105: 125.2894031 | EH105: 98.16219692 | EI105: 11662.3492 | EJ105: 2353.300653 | EK105: 0 | EL105: 0 | EM105: 0 | EN105: 0 | EO105: 0 | EP105: 903.6354325 | EQ105: 1095.045109 | ER105: 0 | ES105: -396.3730968 | ET105: 0 | EU105: -13.66047907 | EV105: 155 | EW105: 0 | EX105: 0 | EY105: 0 | FA105: 0 | FB105: -66.40645249 | FD105: -66.40645249 | FF105: 0 | FG105: 0 | FH105: 0 | FI105: 0
A106: 1813 | B106: Regular | C106: Azul | D106: A3 | E106: Industrial | F106: Não se aplica | G106: Não se aplica | H106: Não se aplica | I106: Ponta | J106: LIVRE | K106: 2021-05-01 | L106: 31136 | M106: 31136 | N106: 0 | O106: 0 | P106: 0 | Q106: 0 | R106: 30.16 | U106: 939061.76 | W106: 939061.76 | X106: 882394.24 | Y106: 0 | Z106: 0 | AA106: 0 | AB106: 0 | AC106: 20846.03459 | AD106: 0 | AE106: 652591.8926 | AI106: 0 | AJ106: 0 | AK106: 0 | AL106: 0 | AN106: 0 | AO106: 44598.42476 | AP106: 221018.2549 | AQ106: 0 | AR106: 0 | AU106: 0 | AV106: 0 | AW106: 0 | AZ106: 0 | BB106: 0 | BC106: 67605.15476 | BD106: 0 | BE106: 0 | BG106: 0 | BH106: 0 | BI106: 0 | BJ106: 0 | BK106: 0 | BL106: 0 | BV106: 0 | CI106: 882394.24 | CJ106: -56667.55 | CO106: -56667.52 | CP106: 0 | CQ106: 31 | CR106: -47700.67269 | CS106: 6.548361853e-11 | CT106: -47700.67269 | CU106: 0 | CV106: 0 | CZ106: 0 | DA106: 0 | DB106: 0 | DE106: 0 | DF106: 0 | DG106: 0 | DH106: 0 | DI106: 0 | DK106: 0 | DL106: 0 | DN106: 0 | DO106: 0 | DP106: 0 | DQ106: 0 | DR106: -513.5261064 | DU106: 652591.8926 | DW106: 0 | DX106: 0 | DY106: -124232.64 | EA106: 67565.12 | EC106: -76163.57118 | EE106: 0 | EF106: 0 | EH106: 0 | EI106: 56253.89695 | EJ106: 11351.25781 | EK106: 0 | EL106: 0 | EO106: 0 | EP106: 0 | ER106: 0 | ET106: 0 | EV106: 155 | FA106: 0 | FB106: -66.40645249 | FD106: -66.40645249 | FF106: 0 | FG106: 0 | FH106: 0 | FI106: 0
A107: 1837 | B107: Regular | C107: Azul | D107: A3 | E107: Industrial | F107: Não se aplica | G107: Fonte incentivada | H107: Não se aplica | I107: Ponta | J107: LIVRE | K107: 2021-05-01 | L107: 1210 | M107: 608.3789855 | N107: 0 | O107: 0 | P107: 0 | Q107: 0 | R107: 30.16 | U107: 36493.6 | W107: 36493.6 | X107: 34291.4 | Y107: 0 | Z107: 0 | AA107: 0 | AB107: 0 | AC107: 810.1137543 | AD107: 0 | AE107: 25360.87455 | AI107: 0 | AJ107: 0 | AK107: 0 | AL107: 0 | AN107: 0 | AO107: 1733.173624 | AP107: 8589.160085 | AQ107: 0 | AR107: 0 | AU107: 0 | AV107: 0 | AW107: 0 | AZ107: 0 | BB107: 0 | BC107: 2627.255822 | BD107: 0 | BE107: 0 | BG107: 0 | BH107: 0 | BI107: 0 | BJ107: 0 | BK107: 0 | BL107: 0 | BN107: 17049.93955 | BV107: 0 | CI107: 17241.4892 | CJ107: -1107.251003 | CO107: -2202.2 | CP107: 0 | CQ107: 31 | CR107: -1853.732463 | CS107: 2.273736754e-12 | CT107: -1853.732463 | CU107: 0 | CV107: 0 | CZ107: 0 | DA107: 0 | DB107: 0 | DE107: 0 | DF107: 0 | DG107: 0 | DH107: 0 | DI107: 0 | DK107: 0 | DL107: 0 | DN107: 0 | DO107: 0 | DP107: 0 | DQ107: 0 | DR107: -19.95653227 | DU107: 25360.87455 | DW107: 0 | DX107: 0 | DY107: -4827.9 | EA107: 2625.7 | EC107: -2959.851013 | EE107: 0 | EF107: 0 | EH107: 0 | EI107: 2186.125877 | EJ107: 441.1299443 | EK107: 0 | EL107: 0 | EO107: 0 | EP107: 0 | ER107: 0 | ET107: 0 | EV107: 155 | FA107: 0 | FB107: -66.40645249 | FD107: -66.40645249 | FF107: 0 | FG107: 0 | FH107: 0 | FI107: 0
A108: 301 | B108: Regular | C108: Azul | D108: A3 | E108: Industrial | F108: Não se aplica | G108: Não se aplica | H108: Não se aplica | I108: Ponta | J108: CATIVO | K108: 2021-06-01 | L108: 6320 | M108: 6320 | N108: 309.367 | O108: 309.367 | P108: 309.367 | Q108: 309.367 | R108: 30.16 | S108: 34.28 | T108: 363.01 | U108: 190611.2 | V108: 122908.4154 | W108: 313519.6154 | X108: 303276.3391 | Y108: 0 | Z108: 4624.944593 | AA108: 0 | AB108: 0 | AC108: 4231.337957 | AD108: 0 | AE108: 132463.4109 | AF108: 105870.9942 | AG108: 3128.359138 | AH108: 0 | AI108: 7.777149899 | AJ108: 0 | AK108: 741.606548 | AL108: 3051.704202 | AN108: 51.02107194 | AO108: 9052.609343 | AP108: 44862.38986 | AQ108: 0 | AR108: 0 | AS108: 1.157249818e-10 | AT108: 0 | AU108: 0 | AV108: 241.7639289 | AW108: 161.4269985 | AX108: 0 | AY108: -374.5764693 | AZ108: 0 | BB108: 8968.42072 | BC108: 13722.52627 | BD108: 666.1618882 | BE108: 40.67330395 | BF108: 1527.961474 | BG108: 1197.13281 | BH108: 0 | BI108: 0 | BJ108: 0 | BK108: 0 | BL108: 0 | BV108: 109302.9237 | CI108: 303277.5432 | CJ108: -10242.10223 | CO108: -11013.60014 | CP108: 770.32383 | CQ108: 30 | CR108: -16932.45986 | CS108: 1.273292582e-11 | CT108: -9682.305095 | CU108: 0 | CV108: 0 | CW108: 0 | CX108: 0 | CY108: 0 | CZ108: 0 | DA108: 0 | DB108: 0 | DC108: -8665.885413 | DD108: -125.0686192 | DE108: -3.329242292 | DF108: -54.52751846 | DG108: -97.98921635 | DH108: 0 | DI108: -93.73908698 | DK108: 0 | DL108: 0.2795338749 | DM108: 1607.800773 | DN108: 0 | DO108: 181.4922395 | DP108: 0.8117861118 | DQ108: 0 | DR108: -183.0118816 | DU108: 132463.4109 | DV108: 0 | DW108: 0 | DX108: 0 | DY108: -25287.95441 | DZ108: -7270.1245 | EA108: 14274.35427 | EB108: 8040.44833 | EC108: -15459.71769 | ED108: 8686.82727 | EE108: 54.6592889 | EF108: 3.337287693 | EG108: 125.3708582 | EH108: 98.22601572 | EI108: 11418.4426 | EJ108: 2304.083676 | EK108: 0 | EL108: 0 | EM108: 0 | EN108: 0 | EO108: 0 | EP108: 904.2229186 | EQ108: 1095.757037 | ER108: 0 | ES108: -396.6307933 | ET108: 0 | EU108: -13.66936024 | EV108: 155 | EW108: 0 | EX108: 0 | EY108: 0 | FA108: 0 | FB108: -66.40645249 | FD108: -66.40645249 | FF108: 0 | FG108: 0 | FH108: 0 | FI108: 0
A109: 1880 | B109: Regular | C109: Azul | D109: A3 | E109: Industrial | F109: Não se aplica | G109: Não se aplica | H109: Não se aplica | I109: Ponta | J109: LIVRE | K109: 2021-06-01 | L109: 31168 | M109: 31168 | N109: 0 | O109: 0 | P109: 0 | Q109: 0 | R109: 30.16 | U109: 940026.88 | W109: 940026.88 | X109: 883301.12 | Y109: 0 | Z109: 0 | AA109: 0 | AB109: 0 | AC109: 20867.45909 | AD109: 0 | AE109: 653262.5934 | AI109: 0 | AJ109: 0 | AK109: 0 | AL109: 0 | AN109: 0 | AO109: 44644.26076 | AP109: 221245.4062 | AQ109: 0 | AR109: 0 | AU109: 0 | AV109: 0 | AW109: 0 | AZ109: 0 | BB109: 0 | BC109: 67674.63591 | BD109: 0 | BE109: 0 | BG109: 0 | BH109: 0 | BI109: 0 | BJ109: 0 | BK109: 0 | BL109: 0 | BV109: 0 | CI109: 883301.12 | CJ109: -56725.79 | CO109: -56725.76 | CP109: 0 | CQ109: 30 | CR109: -47749.69702 | CS109: 5.820766091e-11 | CT109: -47749.69702 | CU109: 0 | CV109: 0 | CZ109: 0 | DA109: 0 | DB109: 0 | DE109: 0 | DF109: 0 | DG109: 0 | DH109: 0 | DI109: 0 | DK109: 0 | DL109: 0 | DN109: 0 | DO109: 0 | DP109: 0 | DQ109: 0 | DR109: -514.0538825 | DU109: 653262.5934 | DW109: 0 | DX109: 0 | DY109: -124360.32 | EA109: 67634.56 | EC109: -76241.84824 | EE109: 0 | EF109: 0 | EH109: 0 | EI109: 56311.71185 | EJ109: 11362.92405 | EK109: 0 | EL109: 0 | EO109: 0 | EP109: 0 | ER109: 0 | ET109: 0 | EV109: 155 | FA109: 0 | FB109: -66.40645249 | FD109: -66.40645249 | FF109: 0 | FG109: 0 | FH109: 0 | FI109: 0
A110: 1904 | B110: Regular | C110: Azul | D110: A3 | E110: Industrial | F110: Não se aplica | G110: Fonte incentivada | H110: Não se aplica | I110: Ponta | J110: LIVRE | K110: 2021-06-01 | L110: 1210 | M110: 605.5578705 | N110: 0 | O110: 0 | P110: 0 | Q110: 0 | R110: 30.16 | U110: 36493.6 | W110: 36493.6 | X110: 34291.4 | Y110: 0 | Z110: 0 | AA110: 0 | AB110: 0 | AC110: 810.1137543 | AD110: 0 | AE110: 25360.87455 | AI110: 0 | AJ110: 0 | AK110: 0 | AL110: 0 | AN110: 0 | AO110: 1733.173624 | AP110: 8589.160085 | AQ110: 0 | AR110: 0 | AU110: 0 | AV110: 0 | AW110: 0 | AZ110: 0 | BB110: 0 | BC110: 2627.255822 | BD110: 0 | BE110: 0 | BG110: 0 | BH110: 0 | BI110: 0 | BJ110: 0 | BK110: 0 | BL110: 0 | BN110: 17129.88995 | BV110: 0 | CI110: 17161.5704 | CJ110: -1102.084974 | CO110: -2202.2 | CP110: 0 | CQ110: 30 | CR110: -1853.732463 | CS110: 2.273736754e-12 | CT110: -1853.732463 | CU110: 0 | CV110: 0 | CZ110: 0 | DA110: 0 | DB110: 0 | DE110: 0 | DF110: 0 | DG110: 0 | DH110: 0 | DI110: 0 | DK110: 0 | DL110: 0 | DN110: 0 | DO110: 0 | DP110: 0 | DQ110: 0 | DR110: -19.95653227 | DU110: 25360.87455 | DW110: 0 | DX110: 0 | DY110: -4827.9 | EA110: 2625.7 | EC110: -2959.851013 | EE110: 0 | EF110: 0 | EH110: 0 | EI110: 2186.125877 | EJ110: 441.1299443 | EK110: 0 | EL110: 0 | EO110: 0 | EP110: 0 | ER110: 0 | ET110: 0 | EV110: 155 | FA110: 0 | FB110: -66.40645249 | FD110: -66.40645249 | FF110: 0 | FG110: 0 | FH110: 0 | FI110: 0
A111: 441 | B111: Regular | C111: Azul | D111: A3 | E111: Industrial | F111: Não se aplica | G111: Não se aplica | H111: Não se aplica | I111: Ponta | J111: CATIVO | K111: 2021-07-01 | L111: 6300 | M111: 6300 | N111: 302.175 | O111: 302.175 | P111: 302.175 | Q111: 302.175 | R111: 30.16 | S111: 34.28 | T111: 363.01 | U111: 190008 | V111: 120051.1058 | W111: 310059.1057 | X111: 299822.958 | Y111: 0 | Z111: 4517.426333 | AA111: 0 | AB111: 0 | AC111: 4217.947647 | AD111: 0 | AE111: 132044.2229 | AF111: 103409.7614 | AG111: 3055.632703 | AH111: 0 | AI111: 7.596350842 | AJ111: 0 | AK111: 724.3660721 | AL111: 2980.759801 | AN111: 49.83496111 | AO111: 9023.961845 | AP111: 44720.42028 | AQ111: 0 | AR111: 0 | AS111: 1.130346688e-10 | AT111: 0 | AU111: 0 | AV111: 236.1435292 | AW111: 157.6742293 | AX111: 0 | AY111: -365.8685141 | AZ111: 0 | BB111: 8759.92763 | BC111: 13679.10056 | BD111: 650.6753098 | BE111: 39.72775254 | BF111: 1492.440236 | BG111: 1169.302501 | BH111: 0 | BI111: 0 | BJ111: 0 | BK111: 0 | BL111: 0 | BV111: 106761.9072 | CI111: 299824.9648 | CJ111: -10234.17095 | CO111: -10988.5635 | CP111: 752.41575 | CQ111: 31 | CR111: -16733.2719 | CS111: 1.273292582e-11 | CT111: -9651.664889 | CU111: 0 | CV111: 0 | CW111: 0 | CX111: 0 | CY111: 0 | CZ111: 0 | DA111: 0 | DB111: 0 | DC111: -8464.425503 | DD111: -122.1610902 | DE111: -3.251845833 | DF111: -53.25989162 | DG111: -95.711215 | DH111: 0 | DI111: -91.55989039 | DK111: 0 | DL111: 0.2730354195 | DM111: 1570.423473 | DN111: 0 | DO111: 177.2730041 | DP111: 0.7929141387 | DQ111: 0 | DR111: -180.8506763 | DU111: 132044.2229 | DV111: 0 | DW111: 0 | DX111: 0 | DY111: -25206.50025 | DZ111: -7101.1125 | EA111: 14217.93675 | EB111: 7853.52825 | EC111: -15410.79453 | ED111: 8484.880515 | EE111: 53.38859873 | EF111: 3.259704198 | EG111: 122.456303 | EH111: 95.94250938 | EI111: 11382.30829 | EJ111: 2296.792272 | EK111: 0 | EL111: 0 | EM111: 0 | EN111: 0 | EO111: 0 | EP111: 883.2020235 | EQ111: 1070.283459 | ER111: 0 | ES111: -387.4101309 | ET111: 0 | EU111: -13.3515822 | EV111: 155 | EW111: 0 | EX111: 0 | EY111: 0 | FA111: 0 | FB111: -66.40645249 | FD111: -66.40645249 | FF111: 0 | FG111: 0 | FH111: 0 | FI111: 0
A112: 1947 | B112: Regular | C112: Azul | D112: A3 | E112: Industrial | F112: Não se aplica | G112: Não se aplica | H112: Não se aplica | I112: Ponta | J112: LIVRE | K112: 2021-07-01 | L112: 31096 | M112: 31096 | N112: 0 | O112: 0 | P112: 0 | Q112: 0 | R112: 30.16 | U112: 937855.36 | W112: 937855.36 | X112: 881260.64 | Y112: 0 | Z112: 0 | AA112: 0 | AB112: 0 | AC112: 20819.25397 | AD112: 0 | AE112: 651753.5166 | AI112: 0 | AJ112: 0 | AK112: 0 | AL112: 0 | AN112: 0 | AO112: 44541.12977 | AP112: 220734.3157 | AQ112: 0 | AR112: 0 | AU112: 0 | AV112: 0 | AW112: 0 | AZ112: 0 | BB112: 0 | BC112: 67518.30333 | BD112: 0 | BE112: 0 | BG112: 0 | BH112: 0 | BI112: 0 | BJ112: 0 | BK112: 0 | BL112: 0 | BV112: 0 | CI112: 881260.64 | CJ112: -56594.75 | CO112: -56594.72 | CP112: 0 | CQ112: 31 | CR112: -47639.39228 | CS112: 6.548361853e-11 | CT112: -47639.39228 | CU112: 0 | CV112: 0 | CZ112: 0 | DA112: 0 | DB112: 0 | DE112: 0 | DF112: 0 | DG112: 0 | DH112: 0 | DI112: 0 | DK112: 0 | DL112: 0 | DN112: 0 | DO112: 0 | DP112: 0 | DQ112: 0 | DR112: -512.8663864 | DU112: 651753.5166 | DW112: 0 | DX112: 0 | DY112: -124073.04 | EA112: 67478.32 | EC112: -76065.72487 | EE112: 0 | EF112: 0 | EH112: 0 | EI112: 56181.62833 | EJ112: 11336.675 | EK112: 0 | EL112: 0 | EO112: 0 | EP112: 0 | ER112: 0 | ET112: 0 | EV112: 155 | FA112: 0 | FB112: -66.40645249 | FD112: -66.40645249 | FF112: 0 | FG112: 0 | FH112: 0 | FI112: 0
A113: 1971 | B113: Regular | C113: Azul | D113: A3 | E113: Industrial | F113: Não se aplica | G113: Fonte incentivada | H113: Não se aplica | I113: Ponta | J113: LIVRE | K113: 2021-07-01 | L113: 1210 | M113: 635.2367747 | N113: 0 | O113: 0 | P113: 0 | Q113: 0 | R113: 30.16 | U113: 36493.6 | W113: 36493.6 | X113: 34291.4 | Y113: 0 | Z113: 0 | AA113: 0 | AB113: 0 | AC113: 810.1137543 | AD113: 0 | AE113: 25360.87455 | AI113: 0 | AJ113: 0 | AK113: 0 | AL113: 0 | AN113: 0 | AO113: 1733.173624 | AP113: 8589.160085 | AQ113: 0 | AR113: 0 | AU113: 0 | AV113: 0 | AW113: 0 | AZ113: 0 | BB113: 0 | BC113: 2627.255822 | BD113: 0 | BE113: 0 | BG113: 0 | BH113: 0 | BI113: 0 | BJ113: 0 | BK113: 0 | BL113: 0 | BN113: 16288.78981 | BV113: 0 | CI113: 18002.7016 | CJ113: -1156.069525 | CO113: -2202.2 | CP113: 0 | CQ113: 31 | CR113: -1853.732463 | CS113: 2.273736754e-12 | CT113: -1853.732463 | CU113: 0 | CV113: 0 | CZ113: 0 | DA113: 0 | DB113: 0 | DE113: 0 | DF113: 0 | DG113: 0 | DH113: 0 | DI113: 0 | DK113: 0 | DL113: 0 | DN113: 0 | DO113: 0 | DP113: 0 | DQ113: 0 | DR113: -19.95653227 | DU113: 25360.87455 | DW113: 0 | DX113: 0 | DY113: -4827.9 | EA113: 2625.7 | EC113: -2959.851013 | EE113: 0 | EF113: 0 | EH113: 0 | EI113: 2186.125877 | EJ113: 441.1299443 | EK113: 0 | EL113: 0 | EO113: 0 | EP113: 0 | ER113: 0 | ET113: 0 | EV113: 155 | FA113: 0 | FB113: -66.40645249 | FD113: -66.40645249 | FF113: 0 | FG113: 0 | FH113: 0 | FI113: 0
A114: 595 | B114: Regular | C114: Azul | D114: A3 | E114: Industrial | F114: Não se aplica | G114: Não se aplica | H114: Não se aplica | I114: Ponta | J114: CATIVO | K114: 2021-08-01 | L114: 6720 | M114: 6720 | N114: 314.818 | O114: 314.818 | P114: 314.818 | Q114: 314.818 | R114: 30.16 | S114: 34.28 | T114: 363.01 | U114: 202675.2 | V114: 125074.0432 | W114: 327749.2432 | X114: 316800.1525 | Y114: 0 | Z114: 4706.435421 | AA114: 0 | AB114: 0 | AC114: 4499.144156 | AD114: 0 | AE114: 140847.1711 | AF114: 107736.4252 | AG114: 3183.480356 | AH114: 0 | AI114: 7.91418211 | AJ114: 0 | AK114: 754.6735438 | AL114: 3105.474771 | AN114: 51.92005555 | AO114: 9625.559301 | AP114: 47701.78163 | AQ114: 0 | AR114: 0 | AS114: 1.177640386e-10 | AT114: 0 | AU114: 0 | AV114: 246.0237729 | AW114: 164.271318 | AX114: 0 | AY114: -381.1764503 | AZ114: 0 | BB114: 9126.442944 | BC114: 14591.0406 | BD114: 677.8995605 | BE114: 41.38996144 | BF114: 1554.883926 | BG114: 1218.22611 | BH114: 0 | BI114: 0 | BJ114: 0 | BK114: 0 | BL114: 0 | BV114: 111228.8247 | CI114: 316800.9552 | CJ114: -10948.31802 | CO114: -11732.98756 | CP114: 783.89682 | CQ114: 31 | CR114: -17673.01061 | CS114: 1.637090463e-11 | CT114: -10295.10921 | CU114: 0 | CV114: 0 | CW114: 0 | CX114: 0 | CY114: 0 | CZ114: 0 | DA114: 0 | DB114: 0 | DC114: -8818.57701 | DD114: -127.2723094 | DE114: -3.387903041 | DF114: -55.48828513 | DG114: -99.7157716 | DH114: 0 | DI114: -95.39075559 | DK114: 0 | DL114: 0.2844592197 | DM114: 1636.12998 | DN114: 0 | DO114: 184.6901054 | DP114: 0.826089661 | DQ114: 0 | DR114: -190.9971055 | DU114: 140847.1711 | DV114: 0 | DW114: 0 | DX114: 0 | DY114: -26885.20814 | DZ114: -7398.223 | EA114: 15152.22058 | EB114: 8182.11982 | EC114: -16438.18083 | ED114: 8839.887859 | EE114: 55.62237734 | EF114: 3.3960902 | EG114: 127.5798739 | EH114: 99.95674334 | EI114: 12141.12884 | EJ114: 2449.911757 | EK114: 0 | EL114: 0 | EM114: 0 | EN114: 0 | EO114: 0 | EP114: 920.1551904 | EQ114: 1115.064111 | ER114: 0 | ES114: -403.6193682 | ET114: 0 | EU114: -13.91021231 | EV114: 155 | EW114: 0 | EX114: 0 | EY114: 0 | FA114: 0 | FB114: -66.40645249 | FD114: -66.40645249 | FF114: 0 | FG114: 0 | FH114: 0 | FI114: 0
A115: 2014 | B115: Regular | C115: Azul | D115: A3 | E115: Industrial | F115: Não se aplica | G115: Não se aplica | H115: Não se aplica | I115: Ponta | J115: LIVRE | K115: 2021-08-01 | L115: 31080 | M115: 31080 | N115: 0 | O115: 0 | P115: 0 | Q115: 0 | R115: 30.16 | U115: 937372.8 | W115: 937372.8 | X115: 880807.2 | Y115: 0 | Z115: 0 | AA115: 0 | AB115: 0 | AC115: 20808.54172 | AD115: 0 | AE115: 651418.1662 | AI115: 0 | AJ115: 0 | AK115: 0 | AL115: 0 | AN115: 0 | AO115: 44518.21177 | AP115: 220620.74 | AQ115: 0 | AR115: 0 | AU115: 0 | AV115: 0 | AW115: 0 | AZ115: 0 | BB115: 0 | BC115: 67483.56276 | BD115: 0 | BE115: 0 | BG115: 0 | BH115: 0 | BI115: 0 | BJ115: 0 | BK115: 0 | BL115: 0 | BV115: 0 | CI115: 880807.2 | CJ115: -56565.63 | CO115: -56565.6 | CP115: 0 | CQ115: 31 | CR115: -47614.88012 | CS115: 7.275957614e-11 | CT115: -47614.88012 | CU115: 0 | CV115: 0 | CZ115: 0 | DA115: 0 | DB115: 0 | DE115: 0 | DF115: 0 | DG115: 0 | DH115: 0 | DI115: 0 | DK115: 0 | DL115: 0 | DN115: 0 | DO115: 0 | DP115: 0 | DQ115: 0 | DR115: -512.6024983 | DU115: 651418.1662 | DW115: 0 | DX115: 0 | DY115: -124009.2 | EA115: 67443.6 | EC115: -76026.58634 | EE115: 0 | EF115: 0 | EH115: 0 | EI115: 56152.72088 | EJ115: 11330.84187 | EK115: 0 | EL115: 0 | EO115: 0 | EP115: 0 | ER115: 0 | ET115: 0 | EV115: 155 | FA115: 0 | FB115: -66.40645249 | FD115: -66.40645249 | FF115: 0 | FG115: 0 | FH115: 0 | FI115: 0
